Workbook

Sheet Site
E1: DEQ Virginia Runoff Reduction Method Re-Development Compliance Spreadsheet - Version 3.0 | P1: #errors
O2: Check Areas! | P2: =IF(OR(F20=0,F27=0),"",COUNTIF(B27:E27,"Check Areas!")) ->  | S2: Yes
O3: ENTER TOTAL DISTURBED AREA ABOVE! | P3: =IF(F10>0,0,IF(OR(F20=0,F27=0),"",1)) ->  | S3: No
A4: Project Name: | O4: ENTER LAND COVER AREAS!
A5: Date: | O5: Total errors | P5: =IF(AND(P2="",P3=""),0,IF(OR(P2="",P3=""),"incomplete",IF(P2+P3=0,0,P2+P3))) -> 0
D6: Linear Development Project? | E6: No
A7: Site Information
B8: =IF(AND($F$10=0,$F$20=0,$F$27=0),"ENTER AREAS IN DATA INPUT CELLS FOR RESULTS","") -> ENTER AREAS IN DATA INPUT CELLS FOR RESULTS
A9: Post-Development Project (Treatment Volume and Loads) | O9: Total Site Area = | P9: =S13+S20 -> 0
C10: Enter Total Disturbed Area (acres) → | G10: =IF(P3=1,"←","") ->  | H10: Check: | J10: TRUE
G11: BMP Design Specifications List: | J11: 2013 Draft Stds & Specs
D12: Maximum reduction required: | F12: =IF(F10=0,"--",$I$58) -> -- | I12: Linear project? | J12: =IF(E6="yes","Yes","No") -> No | O12: A soils | P12: B Soils | Q12: C Soils | R12: D Soils | S12: Total
E13: The site's net increase in impervious cover (acres) is: | F13: =IF(OR(F12="--",P5="incomplete"),"--",IF(P2>0,"x",$L$48)) -> -- | G13: Land cover areas entered correctly? | J13: =IF(P2="","___",IF(P2=0,"✔",IF(P2>0,"x","___"))) -> ___ | K13: =IF(AND(P2>0,F20>0,F27>0),"Pre- & Post Area Inputs must be equal!","") ->  | N13: Increase in Imperv.: | O13: =B26-B19 -> 0 | P13: =C26-C19 -> 0 | Q13: =D26-D19 -> 0 | R13: =E26-E19 -> 0 | S13: =SUM(O13:R13) -> 0
E14: Post-Development TP Load Reduction for Site (lb/yr): | F14: =+IF(OR($F$12="--",$P$5="incomplete"),"--",IF($E$60=$O$3,"x",(IF($P$2>0,"x",IF($E$6="yes",$G$64,$G$63))))) -> -- | G14: Total disturbed area entered? | J14: =IF(P3=1,"x",IF(P3=0,"✔",IF(P3="","___",""))) -> ___ | K14: =IF(P3=1,"Total disturbed area missing!",IF(AND(F10>F27,P3=0),"Total disturbed area > Post-Development area!","")) -> 
A15: Pre-ReDevelopment Land Cover (acres) | H15: =IF($G$63<=0,"TP LOAD REDUCTION NOT REQUIRED","") ->  | O15: Pre-ReDevelopment-ADJUSTED
B16: A Soils | C16: B Soils | D16: C Soils | E16: D Soils | F16: Totals | O16: A soils | P16: B Soils | Q16: C Soils | R16: D Soils | S16: Total
A17: Forest/Open Space (acres) -- undisturbed forest/open space | F17: =SUM(B17:E17) -> 0 | N17: F/O | O17: =IF(B$24>=B$17,B17,IF(B$25>=B$18,B17-(B$26-B$19),B$24)) -> 0 | P17: =IF(C$24>=C$17,C17,IF(C$25>=C$18,C17-(C$26-C$19),C$24)) -> 0 | Q17: =IF(D$24>=D$17,D17,IF(D$25>=D$18,D17-(D$26-D$19),D$24)) -> 0 | R17: =IF(E$24>=E$17,E17,IF(E$25>=E$18,E17-(E$26-E$19),E$24)) -> 0 | S17: =SUM(O17:R17) -> 0
A18: Managed Turf (acres) -- disturbed, graded for yards or other turf to be mowed/managed | F18: =SUM(B18:E18) -> 0 | N18: MT | O18: =IF(B$24>=B$17,B$18-(B$26-B$19),IF(B$25>=B$18,B$18,B$25)) -> 0 | P18: =IF(C$24>=C$17,C$18-(C$26-C$19),IF(C$25>=C$18,C$18,C$25)) -> 0 | Q18: =IF(D$24>=D$17,D$18-(D$26-D$19),IF(D$25>=D$18,D$18,D$25)) -> 0 | R18: =IF(E$24>=E$17,E$18-(E$26-E$19),IF(E$25>=E$18,E$18,E$25)) -> 0 | S18: =SUM(O18:R18) -> 0
A19: Impervious Cover (acres) | F19: =SUM(B19:E19) -> 0 | N19: IC | O19: =B$19 -> 0 | P19: =C$19 -> 0 | Q19: =D$19 -> 0 | R19: =E$19 -> 0 | S19: =SUM(O19:R19) -> 0
F20: =SUM(F17:F19) -> 0 | R20: Total | S20: =SUM(S17:S19) -> 0
A22: Post-Development Land Cover (acres)
B23: A Soils | C23: B Soils | D23: C Soils | E23: D Soils | F23: Totals
A24: Forest/Open Space (acres) -- undisturbed, protected forest/open space or reforested land | F24: =SUM(B24:E24) -> 0 | G24: =IF(F24>0,"*","") -> 
A25: Managed Turf (acres) -- disturbed, graded for yards or other turf to be mowed/managed | F25: =SUM(B25:E25) -> 0
A26: Impervious Cover (acres) | F26: =SUM(B26:E26) -> 0
A27: Area Check | B27: =IF((ABS(ROUND(SUM(B17:B19),4)-ROUND(SUM(B24:B26),4))>0),$O$2,"OK.") -> OK. | C27: =IF((ABS(ROUND(SUM(C17:C19),4)-ROUND(SUM(C24:C26),4))>0),$O$2,"OK.") -> OK. | D27: =IF((ABS(ROUND(SUM(D17:D19),4)-ROUND(SUM(D24:D26),4))>0),$O$2,"OK.") -> OK. | E27: =IF((ABS(ROUND(SUM(E17:E19),4)-ROUND(SUM(E24:E26),4))>0),$O$2,"OK.") -> OK. | F27: =SUM(F24:F26) -> 0
A28: =IF(F24>0,"* Forest/Open Space areas must be protected in accordance with the Virginia Runoff Reduction Method","") -> 
A30: Constants | D30: Runoff Coefficients (Rv)
A31: Annual Rainfall (inches) | B31: 43 | E31: A Soils | F31: B Soils | G31: C Soils | H31: D Soils
A32: Target Rainfall Event (inches) | B32: 1 | D32: Forest/Open Space | E32: 0.02 | F32: 0.03 | G32: 0.04 | H32: 0.05
A33: Total Phosphorus (TP) EMC (mg/L) | B33: 0.26 | D33: Managed Turf | E33: 0.15 | F33: 0.2 | G33: 0.22 | H33: 0.25
A34: Total Nitrogen (TN) EMC (mg/L) | B34: 1.86 | D34: Impervious Cover | E34: 0.95 | F34: 0.95 | G34: 0.95 | H34: 0.95
A35: Target TP Load (lb/acre/yr) | B35: 0.41
A36: Pj (unitless correction factor) | B36: 0.9
A38: LAND COVER SUMMARY -- PRE-REDEVELOPMENT | E38: LAND COVER SUMMARY -- POST DEVELOPMENT
A40: Land Cover Summary-Pre | E40: Land Cover Summary-Post (Final) | H40: Land Cover Summary-Post | K40: Land Cover Summary-Post
A41: Pre-ReDevelopment | B41: Listed | C41: Adjusted1 | E41: Post ReDev. & New Impervious | H41: Post-ReDevelopment | K41: Post-Development New Impervious
A42: Forest/Open Space Cover (acres) | B42: =IF(F13="--","--",IF(P2>0,"x",F17)) -> -- | C42: =IF(F13="--","--",IF(P2>0,"x",IF(F19>=F26,B42,IFERROR($S$17,0)))) -> -- | E42: Forest/Open Space Cover (acres) | F42: =IF(F13="--","--",IF(P2>0,"x",$I$42)) -> -- | H42: Forest/Open Space Cover (acres) | I42: =IF(F13="--","--",IF(P2>0,"x",$F$24)) -> --
A43: Weighted Rv(forest) | B43: =IF(OR(B42="--",B42="x"),B42,IFERROR(SUMPRODUCT(B17:E17,E32:H32)/B42,0)) -> -- | C43: =IF(OR(C42="--",C42="x"),C42,IF(F26-F19<=0,B43,IFERROR(SUMPRODUCT(O17:R17,E32:H32)/C42,0))) -> -- | E43: Weighted Rv(forest) | F43: =IF(OR(F42="--",F42="x"),F42,$I$43) -> -- | H43: Weighted Rv(forest) | I43: =IF(OR(I42="--",I42="x"),I42,IFERROR(SUMPRODUCT($B$24:$E$24,$E$32:$H$32)/$I$42,0)) -> --
A44: % Forest | B44: =IF(OR(B42="--",B42="x"),B42,IFERROR(SUM(B42)/B$51,0)) -> -- | C44: =IF(OR(C42="--",C42="x"),C42,IFERROR(C42/C$51,0)) -> -- | E44: % Forest | F44: =IF(OR(F42="--",F42="x"),F42,IFERROR($F$42/$F$51,"--")) -> -- | H44: % Forest | I44: =IF(OR(I42="--",I42="x"),I42,IFERROR($I$42/$I$51,0)) -> --
A45: Managed Turf Cover (acres) | B45: =IF(OR(B42="--",B42="x"),B42,F18) -> -- | C45: =IF(OR(C42="--",C42="x"),C42,IF(F19>=F26,B45,IFERROR(S18,0))) -> -- | E45: Managed Turf Cover (acres) | F45: =IF(OR(F42="--",F42="x"),F42,$I$45) -> -- | H45: Managed Turf Cover (acres) | I45: =IF(OR(I42="--",I42="x"),I42,$F$25) -> --
A46: Weighted Rv(turf) | B46: =IF(OR(B42="--",B42="x"),B42,IFERROR(SUMPRODUCT(B18:E18,E33:H33)/B45,0)) -> -- | C46: =IF(OR(C42="--",C42="x"),C42,IFERROR(IF(F26-F19<=0,B46,IFERROR(SUMPRODUCT(O18:R18,E33:H33)/C45,0)),0)) -> -- | E46: Weighted Rv (turf) | F46: =IF(OR(F42="--",F42="x"),F42,$I$46) -> -- | H46: Weighted Rv (turf) | I46: =IF(OR(I42="--",I42="x"),I42,IFERROR(SUMPRODUCT($B$25:$E$25,$E$33:$H$33)/$I$45,0)) -> --
A47: % Managed Turf | B47: =IF(OR(B42="--",B42="x"),B42,IFERROR(B45/B$51,0)) -> -- | C47: =IF(OR(C42="--",C42="x"),C42,IFERROR(C45/C$51,0)) -> -- | E47: % Managed Turf | F47: =IF(OR(F42="--",F42="x"),F42,IFERROR($F$45/$F$51,"--")) -> -- | H47: % Managed Turf | I47: =IF(OR(I42="--",I42="x"),I42,IFERROR($I$45/$I$51,0)) -> --
A48: Impervious Cover (acres) | B48: =IF(OR(B42="--",B42="x"),B42,F19) -> -- | C48: =B48 -> -- | E48: Impervious Cover (acres) | F48: =IF(OR(F42="--",F42="x"),F42,$I$48+$L$48) -> -- | H48: ReDev. Impervious Cover (acres) | I48: =IF(OR(I42="--",I42="x"),I42,$F$26-$L$48) -> -- | K48: New Impervious Cover (acres) | L48: =IF(P2=1,"--",IF(P5>0,"x",IF($F$26-$F$19<0,0,$F$26-$F$19))) -> 0
A49: Rv(impervious) | B49: =IF(OR(F13="--",P2>0),"--",E34) -> -- | C49: =B49 -> -- | E49: Rv(impervious) | F49: =IF(OR(F13="--",P2>0),"--",$I$49) -> -- | H49: Rv(impervious) | I49: =IF(OR(F13="--",P2>0),"--",$E$34) -> -- | K49: Rv(impervious) | L49: =IF(OR(L48="--",L48="x"),L48,IF($F$26-$F$19<=0,"--",$H$34)) -> --
A50: % Impervious | B50: =IF(OR(B42="--",B42="x"),B42,IFERROR(B48/B51,0)) -> -- | C50: =IF(OR(C42="--",C42="x"),C42,IFERROR(C48/C51,0)) -> -- | E50: % Impervious | F50: =IF(OR(F42="--",F42="x"),F42,($F$48/$F$51)) -> -- | H50: % Impervious | I50: =IF(OR(I42="--",I42="x"),I42,IFERROR($I$48/$I$51,0)) -> --
A51: Total Site Area (acres) | B51: =IF(OR(B42="--",B42="x"),B42,(B48+B45+B42)) -> -- | C51: =IF(OR(C42="--",C42="x"),C42,(C48+C45+C42)) -> -- | E51: Final Site Area (acres) | F51: =IF(OR(F42="--",F42="x"),F42,$I$51+$L$48) -> -- | H51: Total ReDev. Site Area (acres) | I51: =IF(OR(I42="--",I42="x"),I42,($I$48+$I$45+$I$42)) -> --
A52: Site Rv | B52: =IF(OR(B42="--",B42="x"),B42,(B43*B44+B46*B47+B49*B50)) -> -- | C52: =IF(OR(C42="--",C42="x"),C42,(C43*C44+C46*C47+C49*C50)) -> -- | E52: Final Post Dev Site Rv | F52: =IF(OR(F42="--",F42="x"),F42,($F$43*$F$44+$F$46*$F$47+$F$49*$F$50)) -> -- | H52: ReDev Site Rv | I52: =IF(OR(I42="--",I42="x"),I42,($I$43*$I$44+$I$46*$I$47+$I$49*$I$50)) -> --
A53: Treatment Volume and Nutrient Load | E53: Treatment Volume and Nutrient Load
A54: Pre-ReDevelopment Treatment Volume (acre-ft) | B54: =IF(OR(B42="--",B42="x"),B42,(B32*B52*B51/12)) -> -- | C54: =IF(OR(C42="--",C42="x"),C42,(B32*C52*C51/12)) -> -- | E54: Final Post-Development Treatment Volume (acre-ft) | F54: =IF(OR(F42="--",F42="x"),F42,($B$32*$F$52*$F$51/12)) -> -- | H54: Post-ReDevelopment Treatment Volume (acre-ft) | I54: =IF(OR(I42="--",I42="x"),I42,($B$32*$I$52*$I$51/12)) -> -- | K54: Post-Development Treatment Volume (acre-ft) | L54: =IF(OR(L48="--",L48="x",L48=0),"--",($B$32*$L$49*($L$48))/12) -> --
A55: Pre-ReDevelopment Treatment Volume (cubic feet) | B55: =IF(OR(B42="--",B42="x"),B42,(B54*43560)) -> -- | C55: =IF(OR(C42="--",C42="x"),C42,(C54*43560)) -> -- | E55: Final Post-Development Treatment Volume (cubic feet) | F55: =IF(OR(F42="--",F42="x"),F42,($F$54*43560)) -> -- | H55: Post-ReDevelopment Treatment Volume (cubic feet) | I55: =IF(OR(I42="--",I42="x"),I42,($I$54*43560)) -> -- | K55: Post-Development Treatment Volume (cubic feet) | L55: =IF(F13="--","--",IF(P2>0,"x",IF($L$49="--","--",IFERROR($L$54*43560,$O$2)))) -> --
A56: Pre-ReDevelopment TP Load (lb/yr) | B56: =IF(OR(B42="--",B42="x"),B42,(B31*B36*(B54/B32)*B33*2.72)) -> -- | C56: =IF(OR(C42="--",C42="x"),C42,(B31*B36*(C54/B32)*B33*2.72)) -> -- | D56: =IFERROR(IF(OR($C$51=0,$C$56="x",$C$56="--"),"",(IF((1-$I$58)*$C$56<($I$51*$B$35),"*",""))),"") ->  | E56: Final Post-Development TP Load (lb/yr) | F56: =IF(OR(F42="--",F42="x"),F42,($B$31*$B$36*($F$54/$B$32)*$B$33*2.72)) -> -- | G56: =IF($D$56="*","*","") ->  | H56: Post-ReDevelopment Load (TP) (lb/yr)* | I56: =IF(OR(I42="--",I42="x"),I42,($B$31*$B$36*($I$54/$B$32)*$B$33*2.72)) -> -- | K56: Post-Development TP Load (lb/yr) | L56: =IF(OR(L55="--",L55="x"),L55,IF($L$49="--","--",(IF(P2>0,$O$2,($B$31*$B$36*($L$54/$B$32)*$B$33*2.72))))) -> --
A57: Pre-ReDevelopment TP Load per acre (lb/acre/yr) | B57: =IF(OR(B42="--",B42="x"),B42,IF(B51>0,(ROUND(B56/B51,2)),"")) -> -- | C57: =IF(OR(C42="--",C42="x"),C42,IF(C51>0,(ROUND(C56/C51,2)),"")) -> -- | D57: =IF($D$56="*","*","") ->  | E57: Final Post-Development TP Load per acre (lb/acre/yr) | F57: =IF(OR(F42="--",F42="x"),F42,IF($F$51>0,(ROUND($F$56/$F$51,2)),"")) -> -- | H57: Post-ReDevelopment TP Load per acre (lb/acre/yr) | I57: =IF(OR(I42="--",I42="x"),I42,IF($I$51>0,(ROUND($I$56/$I$51,2)),"")) -> --
A58: Baseline TP Load (lb/yr) (0.41 lbs/acre/yr applied to pre-redevelopment area excluding pervious land proposed for new impervious cover) | C58: =IF(OR(C42="--",C42="x"),C42,$B$35*C51) -> -- | D58: =IFERROR(IF(OR(C53=0,C58="x"),"",(IF((1-I60)*C58<(I53*B37),"*",""))),"") ->  | H58: Max. Reduction Required (Below Pre-ReDevelopment Load) | I58: =IF(F10=0,"--",IF(E6="yes",20%,IF($F$10<1,10%,20%))) -> --
A60: 1Adjusted Land Cover Summary: Pre ReDevelopment land cover minus pervious land cover (forest/open space or managed turf) acreage proposed for new impervious cover. Adjusted total acreage is consistent with Post-ReDevelopment acreage (minus acreage of new impervious cover). Column I shows load reduction requriement for new impervious cover (based on new development load limit, 0.41 lbs/acre/year). | E60: =IF(P3=1,O3,IF(OR($F$20=0,$F$27=0),"ENTER ALL AREA INPUTS ABOVE FOR RESULTS","")) -> ENTER ALL AREA INPUTS ABOVE FOR RESULTS | G60: =IF($D$56="*","*","") ->  | H60: TP Load Reduction Required for Redeveloped Area (lb/yr) | I60: =IF(OR(I42="--",I42="x"),I42,(IF((1-I58)*C56<(I51*B35),I56-C51*B35,I56-(1-I58)*C56))) -> -- | K60: TP Load Reduction Required for New Impervious Area (lb/yr) | L60: =IF(OR(F42="--",F42="x"),F42,IF($L$49="--","0",(L56-L$48*B35))) -> --
G61: =IF($D$56="*","*","") ->  | H61: =IF(D56="*","Reduction below new development load limitation not required","") -> 
C62: Post-Development Requirement for Site Area
D63: TP Load Reduction Required (lb/yr) | G63: =+IF(F13="--","--",IF($E$60=$O$3,$O$3,(IF(P2>0,$O$2,($L$60+$I$60))))) -> -- | H63: =IF($G$63<0.0049,"**","") ->  | I63: =IF(H63="**","TP LOAD REDUCTION NOT REQUIRED","") -> 
D64: Linear Project TP Load Reduction Required (lb/yr): | G64: =+IF(E6="yes",IF(F13="--","--",IF($E$60=$O$3,$O$3,IF(P2>0,$O$2,IF((0.8)*B56<(B51*B35),F56-B51*B35,F56-(0.8)*B56)))),"N/A") -> N/A | H64: =IF($G$64<0.0049,"**","") ->  | I64: =IF(H64="**","TP LOAD REDUCTION NOT REQUIRED","") -> 
B66: Nitrogen Loads (Informational Purposes Only)
B67: Pre-ReDevelopment TN Load (lb/yr) | D67: =IF(F13="--","--",IF(P2>0,$O$2,B31*B36*(B54/B32)*B34*2.72)) -> -- | G67: Final Post-Development TN Load (Post-ReDevelopment & New Impervious) (lb/yr) | I67: =IF(F13="--","--",IF(P2>0,$O$2,B31*B36*((F54)/B32)*B34*2.72)) -> --

Sheet D.A. A
A1: Drainage Area A
Y2: Check Areas! | AA2: CHECK AREAS!
A3: Drainage Area A Land Cover (acres) | B3: =IF($F$8>Site!$F$27,"Drainage area is greater than site area!",(IF(OR(F5>Site!F24,F6>Site!F25,F7>Site!F26),"Check Site Tab land cover areas!",""))) -> 
B4: A Soils | C4: B Soils | D4: C Soils | E4: D Soils | F4: Totals | G4: Land Cover Rv | N4: `
A5: Forest/Open Space (acres) | F5: =SUMIF(B5:E5,">=0") -> 0 | G5: =IF(F5>0,(B5*Site!E32+C5*Site!F32+D5*Site!G32+E5*Site!H32)/F5,0) -> 0
A6: Managed Turf (acres) | F6: =SUMIF(B6:E6,">=0") -> 0 | G6: =IF(F6>0,(B6*Site!E33+C6*Site!F33+D6*Site!G33+E6*Site!H33)/F6,0) -> 0
A7: Impervious Cover (acres) | F7: =SUMIF(B7:E7,">=0") -> 0 | G7: =IF(F7>0,((B7*Site!E34+C7*Site!F34+D7*Site!G34+E7*Site!H34)/F7),0) -> 0 | H7: Total Phosphorus Available for Removal in D.A. A (lb/yr) | M7: =Site!$B$31*Site!$B$36*($M$8/Site!$B$32)*Site!$B$33*2.72/43560 -> 0
E8: Total | F8: =SUM(F5:F7) -> 0 | I8: Post Development Treatment Volume in D.A. A (ft3) | M8: =IFERROR(Site!B32/12*(F6*G6+F7*G7)/(F6+F7)*(F6+F7)*43560,0) -> 0
A10: Stormwater Best Management Practices (RR = Runoff Reduction) | N10: --Select from dropdown lists--
A11: Practice | B11: Runoff Reduction Credit (%) | C11: Managed Turf Credit Area (acres) | D11: Impervious Cover Credit Area (acres) | E11: Volume from Upstream Practice (ft3) | F11: Runoff Reduction (ft3) | G11: Remaining Runoff Volume (ft3) | H11: Total BMP Treatment Volume (ft3) | I11: Phosphorus Removal Efficiency (%) | J11: Phosphorus Load from Upstream Practices (lb) | K11: Untreated Phosphorus Load to Practice (lb) | L11: Phosphorus Removed By Practice (lb) | M11: Remaining Phosphorus Load (lb) | N11: Downstream Practice to be Employed | Q11: Nitrogen Removal Efficiency (%) | R11: Nitrogen Load from Upstream Practices (lbs) | S11: Untreated Nitrogen Load to Practice (lbs) | T11: Nitrogen Removed By Practice (lbs) | U11: Remaining Nitrogen Load (lbs)
A12: 1. Vegetated Roof (RR) | Q12: 1. Vegetated Roof (RR)
A13: 1.a. Vegetated Roof #1 (Spec #5) | B13: 45 | F13: =(Site!$B$32*($G$7*$D13)*3630)*$B13/100 -> 0 | G13: =(Site!$B$32*($G$7*$D13)*3630)*(1-$B13/100) -> 0 | H13: =+$F13+$G13 -> 0 | I13: 0 | K13: =(Site!$B$32*($G$7*$D13)*3630)*Site!$B$33*0.3048^3/454*Site!$B$31/Site!$B$32*Site!$B$36 -> 0 | L13: =IFERROR($K13*($F13+$G13*$I13/100)/($H13),0) -> 0 | M13: =$K13-$L13 -> 0 | Q13: 0 | S13: =(Site!$B$32*$G$7*$D13*3630)*Site!$B$34*0.3048^3/454*Site!$B$31/Site!$B$32*Site!$B$36 -> 0 | T13: =IFERROR($S13*($F13+$G13*$Q13/100)/$H13,0) -> 0 | U13: =$S13-$T13 -> 0
A14: 1.b. Vegetated Roof #2 (Spec #5) | B14: 60 | F14: =(Site!$B$32*($G$7*$D14)*3630)*$B14/100 -> 0 | G14: =(Site!$B$32*($G$7*$D14)*3630)*(1-$B14/100) -> 0 | H14: =+$F14+$G14 -> 0 | I14: 0 | K14: =(Site!$B$32*($G$7*$D14)*3630)*Site!$B$33*0.3048^3/454*Site!$B$31/Site!$B$32*Site!$B$36 -> 0 | L14: =IFERROR($K14*($F14+$G14*$I14/100)/($H14),0) -> 0 | M14: =$K14-$L14 -> 0 | Q14: 0 | S14: =(Site!$B$32*$G$7*$D14*3630)*Site!$B$34*0.3048^3/454*Site!$B$31/Site!$B$32*Site!$B$36 -> 0 | T14: =IFERROR($S14*($F14+$G14*$Q14/100)/$H14,0) -> 0 | U14: =$S14-$T14 -> 0
A16: 2. Rooftop Disconnection (RR) | Q16: 2. Rooftop Disconnection (RR)
A17: 2.a. Simple Disconnection to A/B Soils (Spec #1) | B17: 50 | E17: =SUMIF($N$13:$N$92,$P121,$G$13:$G$92) -> 0 | F17: =(Site!$B$32*($G$6*$C17+$G$7*$D17)*3630+$E17)*$B17/100 -> 0 | G17: =(Site!$B$32*($G$6*$C17+$G$7*$D17)*3630+$E17)*(1-$B17/100) -> 0 | H17: =+$F17+$G17 -> 0 | I17: 0 | J17: =SUMIF($N$13:$N$92,$P121,$M$13:$M$92) -> 0 | K17: =(Site!$B$32*($G$6*$C17+$G$7*$D17)*3630)*Site!$B$33*0.3048^3/454*Site!$B$31/Site!$B$32*Site!$B$36 -> 0 | L17: =IFERROR(($J17+$K17)*($F17+$G17*$I17/100)/$H17,0) -> 0 | M17: =$J17+$K17-$L17 -> 0 | Q17: 0 | R17: =SUMIF($N$13:$N$92,$P121,$U$13:$U$92) -> 0 | S17: =(Site!$B$32*$G$7*$D17*3630)*Site!$B$34*0.3048^3/454*Site!$B$31/Site!$B$32*Site!$B$36 -> 0 | T17: =IFERROR(($R17+$S17)*($F17+$G17*$Q17/100)/$H17,0) -> 0 | U17: =$R17+$S17-$T17 -> 0
A18: 2.b. Simple Disconnection to C/D Soils (Spec #1) | B18: 25 | E18: =SUMIF($N$13:$N$92,$P122,$G$13:$G$92) -> 0 | F18: =(Site!$B$32*($G$6*$C18+$G$7*$D18)*3630+$E18)*$B18/100 -> 0 | G18: =(Site!$B$32*($G$6*$C18+$G$7*$D18)*3630+$E18)*(1-$B18/100) -> 0 | H18: =+$F18+$G18 -> 0 | I18: 0 | J18: =SUMIF($N$13:$N$92,$P122,$M$13:$M$92) -> 0 | K18: =(Site!$B$32*($G$6*$C18+$G$7*$D18)*3630)*Site!$B$33*0.3048^3/454*Site!$B$31/Site!$B$32*Site!$B$36 -> 0 | L18: =IFERROR(($J18+$K18)*($F18+$G18*$I18/100)/$H18,0) -> 0 | M18: 0 | Q18: 0 | R18: =SUMIF($N$13:$N$92,$P122,$U$13:$U$92) -> 0 | S18: =(Site!$B$32*$G$7*$D18*3630)*Site!$B$34*0.3048^3/454*Site!$B$31/Site!$B$32*Site!$B$36 -> 0 | T18: =IFERROR(($R18+$S18)*($F18+$G18*$Q18/100)/$H18,0) -> 0 | U18: 0
A19: 2.c. To Soil Amended Filter Path as per specifications (existing C/D soils) (Spec #4) | B19: 50 | E19: 0 | F19: =(Site!$B$32*($G$6*$C19+$G$7*$D19)*3630+$E19)*$B19/100 -> 0 | G19: =(Site!$B$32*($G$6*$C19+$G$7*$D19)*3630+$E19)*(1-$B19/100) -> 0 | H19: 0 | I19: 0 | J19: 0 | K19: =(Site!$B$32*($G$6*$C19+$G$7*$D19)*3630)*Site!$B$33*0.3048^3/454*Site!$B$31/Site!$B$32*Site!$B$36 -> 0 | L19: 0 | M19: 0 | Q19: 0 | R19: 0 | S19: =(Site!$B$32*$G$7*$D19*3630)*Site!$B$34*0.3048^3/454*Site!$B$31/Site!$B$32*Site!$B$36 -> 0 | T19: 0 | U19: 0
A20: 2.d. To Dry Well or French Drain #1, Micro-Infilration #1 (Spec #8) | B20: 50 | E20: 0 | F20: =(Site!$B$32*($G$6*$C20+$G$7*$D20)*3630+$E20)*$B20/100 -> 0 | G20: =(Site!$B$32*($G$6*$C20+$G$7*$D20)*3630+$E20)*(1-$B20/100) -> 0 | H20: 0 | I20: 25 | J20: 0 | K20: =(Site!$B$32*($G$6*$C20+$G$7*$D20)*3630)*Site!$B$33*0.3048^3/454*Site!$B$31/Site!$B$32*Site!$B$36 -> 0 | L20: 0 | M20: 0 | Q20: 15 | R20: 0 | S20: =(Site!$B$32*$G$7*$D20*3630)*Site!$B$34*0.3048^3/454*Site!$B$31/Site!$B$32*Site!$B$36 -> 0 | T20: 0 | U20: 0
A21: 2.e. To Dry Well or French Drain #2, Micro-Infiltration #2 (Spec #8) | B21: 90 | E21: 0 | F21: =(Site!$B$32*($G$6*$C21+$G$7*$D21)*3630+$E21)*$B21/100 -> 0 | G21: =(Site!$B$32*($G$6*$C21+$G$7*$D21)*3630+$E21)*(1-$B21/100) -> 0 | H21: 0 | I21: 25 | J21: 0 | K21: =(Site!$B$32*($G$6*$C21+$G$7*$D21)*3630)*Site!$B$33*0.3048^3/454*Site!$B$31/Site!$B$32*Site!$B$36 -> 0 | L21: 0 | M21: 0 | Q21: 15 | R21: 0 | S21: =(Site!$B$32*$G$7*$D21*3630)*Site!$B$34*0.3048^3/454*Site!$B$31/Site!$B$32*Site!$B$36 -> 0 | T21: 0 | U21: 0
A22: 2.f. To Rain Garden #1, Micro-Bioretention #1 (Spec #9) | B22: 40 | E22: 0 | F22: =(Site!$B$32*($G$6*$C22+$G$7*$D22)*3630+$E22)*$B22/100 -> 0 | G22: =(Site!$B$32*($G$6*$C22+$G$7*$D22)*3630+$E22)*(1-$B22/100) -> 0 | H22: 0 | I22: 25 | J22: 0 | K22: =(Site!$B$32*($G$6*$C22+$G$7*$D22)*3630)*Site!$B$33*0.3048^3/454*Site!$B$31/Site!$B$32*Site!$B$36 -> 0 | L22: 0 | M22: 0 | Q22: 40 | R22: 0 | S22: =(Site!$B$32*$G$7*$D22*3630)*Site!$B$34*0.3048^3/454*Site!$B$31/Site!$B$32*Site!$B$36 -> 0 | T22: 0 | U22: 0
A23: 2.g. To Rain Garden #2, Micro-Bioretention #2 (Spec #9) | B23: 80 | E23: 0 | F23: =(Site!$B$32*($G$6*$C23+$G$7*$D23)*3630+$E23)*$B23/100 -> 0 | G23: =(Site!$B$32*($G$6*$C23+$G$7*$D23)*3630+$E23)*(1-$B23/100) -> 0 | H23: 0 | I23: 50 | J23: 0 | K23: =(Site!$B$32*($G$6*$C23+$G$7*$D23)*3630)*Site!$B$33*0.3048^3/454*Site!$B$31/Site!$B$32*Site!$B$36 -> 0 | L23: 0 | M23: 0 | Q23: 60 | R23: 0 | S23: =(Site!$B$32*$G$7*$D23*3630)*Site!$B$34*0.3048^3/454*Site!$B$31/Site!$B$32*Site!$B$36 -> 0 | T23: 0 | U23: 0
A24: 2.h. To Rainwater Harvesting (Spec #6) | B24: 0 | E24: 0 | F24: =(Site!$B$32*($G$6*$C24+$G$7*$D24)*3630+$E24)*$B24/100 -> 0 | G24: =(Site!$B$32*($G$6*$C24+$G$7*$D24)*3630+$E24)*(1-$B24/100) -> 0 | H24: 0 | I24: 0 | J24: 0 | K24: =(Site!$B$32*($G$6*$C24+$G$7*$D24)*3630)*Site!$B$33*0.3048^3/454*Site!$B$31/Site!$B$32*Site!$B$36 -> 0 | L24: 0 | M24: 0 | Q24: 0 | R24: 0 | S24: =(Site!$B$32*$G$7*$D24*3630)*Site!$B$34*0.3048^3/454*Site!$B$31/Site!$B$32*Site!$B$36 -> 0 | T24: 0 | U24: 0
A25: 2.i. To Stormwater Planter, Urban Bioretention (Spec #9, Appendix A) | B25: 40 | E25: 0 | F25: =(Site!$B$32*($G$6*$C25+$G$7*$D25)*3630+$E25)*$B25/100 -> 0 | G25: =(Site!$B$32*($G$6*$C25+$G$7*$D25)*3630+$E25)*(1-$B25/100) -> 0 | H25: 0 | I25: 25 | J25: 0 | K25: =(Site!$B$32*($G$6*$C25+$G$7*$D25)*3630)*Site!$B$33*0.3048^3/454*Site!$B$31/Site!$B$32*Site!$B$36 -> 0 | L25: 0 | M25: 0 | Q25: 40 | R25: 0 | S25: =(Site!$B$32*$G$7*$D25*3630)*Site!$B$34*0.3048^3/454*Site!$B$31/Site!$B$32*Site!$B$36 -> 0 | T25: 0 | U25: 0
A27: 3. Permeable Pavement (RR) | Q27: 3. Permeable Pavement (RR)
A28: 3.a. Permeable Pavement #1 (Spec #7) | B28: 45 | E28: =SUMIF($N$13:$N$92,$P130,$G$13:$G$92) -> 0 | F28: =(Site!$B$32*($G$6*$C28+$G$7*$D28)*3630+$E28)*$B28/100 -> 0 | G28: =(Site!$B$32*($G$6*$C28+$G$7*$D28)*3630+$E28)*(1-$B28/100) -> 0 | H28: =+$F28+$G28 -> 0 | I28: 25 | J28: =SUMIF($N$13:$N$92,$P130,$M$13:$M$92) -> 0 | K28: =(Site!$B$32*($G$6*$C28+$G$7*$D28)*3630)*Site!$B$33*0.3048^3/454*Site!$B$31/Site!$B$32*Site!$B$36 -> 0 | L28: =IFERROR(($J28+$K28)*($F28+$G28*$I28/100)/$H28,0) -> 0 | M28: =$J28+$K28-$L28 -> 0 | Q28: 25 | R28: =SUMIF($N$13:$N$92,$P130,$U$13:$U$92) -> 0 | S28: =(Site!$B$32*($G$6*$C28+$G$7*$D28)*3630)*Site!$B$34*0.3048^3/454*Site!$B$31/Site!$B$32*Site!$B$36 -> 0 | T28: =IFERROR(($R28+$S28)*($F28+$G28*$Q28/100)/$H28,0) -> 0 | U28: =$R28+$S28-$T28 -> 0
A29: 3.b. Permeable Pavement #2 (Spec #7) | B29: 75 | F29: =(Site!$B$32*($G$6*$C29+$G$7*$D29)*3630+$E29)*$B29/100 -> 0 | G29: =(Site!$B$32*($G$6*$C29+$G$7*$D29)*3630+$E29)*(1-$B29/100) -> 0 | H29: =+$F29+$G29 -> 0 | I29: 25 | K29: =(Site!$B$32*($G$6*$C29+$G$7*$D29)*3630)*Site!$B$33*0.3048^3/454*Site!$B$31/Site!$B$32*Site!$B$36 -> 0 | L29: =IFERROR(($J29+$K29)*($F29+$G29*$I29/100)/$H29,0) -> 0 | M29: =$K29-$L29 -> 0 | Q29: 25 | S29: =(Site!$B$32*$G$7*$D29*3630)*Site!$B$34*0.3048^3/454*Site!$B$31/Site!$B$32*Site!$B$36 -> 0 | T29: =IFERROR(($R29+$S29)*($F29+$G29*$Q29/100)/$H29,0) -> 0 | U29: =$R29+$S29-$T29 -> 0
A31: 4. Grass Channel (RR) | Q31: 4. Grass Channel (RR)
A32: 4.a. Grass Channel A/B Soils (Spec #3) | B32: 20 | E32: =SUMIF($N$13:$N$92,$P131,$G$13:$G$92) -> 0 | F32: =(Site!$B$32*($G$6*$C32+$G$7*$D32)*3630+$E32)*$B32/100 -> 0 | G32: =(Site!$B$32*($G$6*$C32+$G$7*$D32)*3630+$E32)*(1-$B32/100) -> 0 | H32: =+$F32+$G32 -> 0 | I32: 15 | J32: =SUMIF($N$13:$N$92,$P131,$M$13:$M$92) -> 0 | K32: =(Site!$B$32*($G$6*$C32+$G$7*$D32)*3630)*Site!$B$33*0.3048^3/454*Site!$B$31/Site!$B$32*Site!$B$36 -> 0 | L32: =IFERROR(($J32+$K32)*($F32+$G32*$I32/100)/$H32,0) -> 0 | M32: =$J32+$K32-$L32 -> 0 | Q32: 20 | R32: =SUMIF($N$13:$N$92,$P131,$U$13:$U$92) -> 0 | S32: =(Site!$B$32*($G$6*$C32+$G$7*$D32)*3630)*Site!$B$34*0.3048^3/454*Site!$B$31/Site!$B$32*Site!$B$36 -> 0 | T32: =IFERROR(($R32+$S32)*($F32+$G32*$Q32/100)/$H32,0) -> 0 | U32: =$R32+$S32-$T32 -> 0
A33: 4.b. Grass Channel C/D Soils (Spec #3) | B33: 10 | E33: =SUMIF($N$13:$N$92,$P132,$G$13:$G$92) -> 0 | F33: =(Site!$B$32*($G$6*$C33+$G$7*$D33)*3630+$E33)*$B33/100 -> 0 | G33: =(Site!$B$32*($G$6*$C33+$G$7*$D33)*3630+$E33)*(1-$B33/100) -> 0 | H33: =+$F33+$G33 -> 0 | I33: 15 | J33: =SUMIF($N$13:$N$92,$P132,$M$13:$M$92) -> 0 | K33: =(Site!$B$32*($G$6*$C33+$G$7*$D33)*3630)*Site!$B$33*0.3048^3/454*Site!$B$31/Site!$B$32*Site!$B$36 -> 0 | L33: =IFERROR(($J33+$K33)*($F33+$G33*$I33/100)/$H33,0) -> 0 | M33: =$J33+$K33-$L33 -> 0 | Q33: 20 | R33: =SUMIF($N$13:$N$92,$P132,$U$13:$U$92) -> 0 | S33: =(Site!$B$32*($G$6*$C33+$G$7*$D33)*3630)*Site!$B$34*0.3048^3/454*Site!$B$31/Site!$B$32*Site!$B$36 -> 0 | T33: =IFERROR(($R33+$S33)*($F33+$G33*$Q33/100)/$H33,0) -> 0 | U33: =$R33+$S33-$T33 -> 0
A34: 4.c. Grass Channel with Compost Amended Soils as per specs (see Spec #4) | B34: =IF(Site!$J$11="2011 Stds & Specs",30,20) -> 20 | E34: 0 | F34: =(Site!$B$32*($G$6*$C34+$G$7*$D34)*3630+$E34)*$B34/100 -> 0 | G34: =(Site!$B$32*($G$6*$C34+$G$7*$D34)*3630+$E34)*(1-$B34/100) -> 0 | H34: 0 | I34: 15 | J34: =SUMIF($N$13:$N$92,$P133,$M$13:$M$92) -> 0 | K34: =(Site!$B$32*($G$6*$C34+$G$7*$D34)*3630)*Site!$B$33*0.3048^3/454*Site!$B$31/Site!$B$32*Site!$B$36 -> 0 | L34: 0 | M34: 0 | Q34: 20 | R34: 0 | S34: =(Site!$B$32*($G$6*$C34+$G$7*$D34)*3630)*Site!$B$34*0.3048^3/454*Site!$B$31/Site!$B$32*Site!$B$36 -> 0 | T34: 0 | U34: 0
W35: `
A36: 5. Dry Swale (RR) | Q36: 5. Dry Swale (RR)
A37: 5.a. Dry Swale #1 (Spec #10) | B37: 40 | E37: =SUMIF($N$13:$N$92,$P134,$G$13:$G$92) -> 0 | F37: =(Site!$B$32*($G$6*$C37+$G$7*$D37)*3630+$E37)*$B37/100 -> 0 | G37: =(Site!$B$32*($G$6*$C37+$G$7*$D37)*3630+$E37)*(1-$B37/100) -> 0 | H37: =+$F37+$G37 -> 0 | I37: 20 | J37: =SUMIF($N$13:$N$92,$P134,$M$13:$M$92) -> 0 | K37: =(Site!$B$32*($G$6*$C37+$G$7*$D37)*3630)*Site!$B$33*0.3048^3/454*Site!$B$31/Site!$B$32*Site!$B$36 -> 0 | L37: =IFERROR(($J37+$K37)*($F37+$G37*$I37/100)/$H37,0) -> 0 | M37: =$J37+$K37-$L37 -> 0 | Q37: 25 | R37: =SUMIF($N$13:$N$92,$P134,$U$13:$U$92) -> 0 | S37: =(Site!$B$32*($G$6*$C37+$G$7*$D37)*3630)*Site!$B$34*0.3048^3/454*Site!$B$31/Site!$B$32*Site!$B$36 -> 0 | T37: =IFERROR(($R37+$S37)*($F37+$G37*$Q37/100)/$H37,0) -> 0 | U37: =$R37+$S37-$T37 -> 0
A38: 5.b. Dry Swale #2 (Spec #10) | B38: 60 | E38: =SUMIF($N$13:$N$92,$P135,$G$13:$G$92) -> 0 | F38: =(Site!$B$32*($G$6*$C38+$G$7*$D38)*3630+$E38)*$B38/100 -> 0 | G38: =(Site!$B$32*($G$6*$C38+$G$7*$D38)*3630+$E38)*(1-$B38/100) -> 0 | H38: =+$F38+$G38 -> 0 | I38: 40 | J38: =SUMIF($N$13:$N$92,$P135,$M$13:$M$92) -> 0 | K38: =(Site!$B$32*($G$6*$C38+$G$7*$D38)*3630)*Site!$B$33*0.3048^3/454*Site!$B$31/Site!$B$32*Site!$B$36 -> 0 | L38: =IFERROR(($J38+$K38)*($F38+$G38*$I38/100)/$H38,0) -> 0 | M38: =$J38+$K38-$L38 -> 0 | Q38: 35 | R38: =SUMIF($N$13:$N$92,$P135,$U$13:$U$92) -> 0 | S38: =(Site!$B$32*($G$6*$C38+$G$7*$D38)*3630)*Site!$B$34*0.3048^3/454*Site!$B$31/Site!$B$32*Site!$B$36 -> 0 | T38: 0 | U38: 0
A40: 6. Bioretention (RR) | Q40: 6. Bioretention (RR)
A41: 6.a. Bioretention #1 or Micro-Bioretention #1 or Urban Bioretention (Spec #9) | B41: 40 | E41: =SUMIF($N$13:$N$92,$P136,$G$13:$G$92) -> 0 | F41: =(Site!$B$32*($G$6*$C41+$G$7*$D41)*3630+$E41)*$B41/100 -> 0 | G41: =(Site!$B$32*($G$6*$C41+$G$7*$D41)*3630+$E41)*(1-$B41/100) -> 0 | H41: =+$F41+$G41 -> 0 | I41: 25 | J41: =SUMIF($N$13:$N$92,$P136,$M$13:$M$92) -> 0 | K41: =(Site!$B$32*($G$6*$C41+$G$7*$D41)*3630)*Site!$B$33*0.3048^3/454*Site!$B$31/Site!$B$32*Site!$B$36 -> 0 | L41: =IFERROR(($J41+$K41)*($F41+$G41*$I41/100)/$H41,0) -> 0 | M41: =$J41+$K41-$L41 -> 0 | Q41: 40 | R41: =SUMIF($N$13:$N$92,$P136,$U$13:$U$92) -> 0 | S41: =(Site!$B$32*($G$6*$C41+$G$7*$D41)*3630)*Site!$B$34*0.3048^3/454*Site!$B$31/Site!$B$32*Site!$B$36 -> 0 | T41: =IFERROR(($R41+$S41)*($F41+$G41*$Q41/100)/$H41,0) -> 0 | U41: =$R41+$S41-$T41 -> 0
A42: 6.b. Bioretention #2 or Micro-Bioretention #2 (Spec #9) | B42: 80 | E42: =SUMIF($N$13:$N$92,$P137,$G$13:$G$92) -> 0 | F42: =(Site!$B$32*($G$6*$C42+$G$7*$D42)*3630+$E42)*$B42/100 -> 0 | G42: =(Site!$B$32*($G$6*$C42+$G$7*$D42)*3630+$E42)*(1-$B42/100) -> 0 | H42: =+$F42+$G42 -> 0 | I42: 50 | J42: =SUMIF($N$13:$N$92,$P137,$M$13:$M$92) -> 0 | K42: =(Site!$B$32*($G$6*$C42+$G$7*$D42)*3630)*Site!$B$33*0.3048^3/454*Site!$B$31/Site!$B$32*Site!$B$36 -> 0 | L42: =IFERROR(($J42+$K42)*($F42+$G42*$I42/100)/$H42,0) -> 0 | M42: =$J42+$K42-$L42 -> 0 | Q42: 60 | R42: =SUMIF($N$13:$N$92,$P137,$U$13:$U$92) -> 0 | S42: =(Site!$B$32*($G$6*$C42+$G$7*$D42)*3630)*Site!$B$34*0.3048^3/454*Site!$B$31/Site!$B$32*Site!$B$36 -> 0 | T42: 0 | U42: 0
A44: 7. Infiltration (RR) | Q44: 7. Infiltration (RR)
A45: 7.a. Infiltration #1 (Spec #8) | B45: 50 | E45: =SUMIF($N$13:$N$92,$P138,$G$13:$G$92) -> 0 | F45: =(Site!$B$32*($G$6*$C45+$G$7*$D45)*3630+$E45)*$B45/100 -> 0 | G45: =(Site!$B$32*($G$6*$C45+$G$7*$D45)*3630+$E45)*(1-$B45/100) -> 0 | H45: =+$F45+$G45 -> 0 | I45: 25 | J45: =SUMIF($N$13:$N$92,$P138,$M$13:$M$92) -> 0 | K45: =(Site!$B$32*($G$6*$C45+$G$7*$D45)*3630)*Site!$B$33*0.3048^3/454*Site!$B$31/Site!$B$32*Site!$B$36 -> 0 | L45: =IFERROR(($J45+$K45)*($F45+$G45*$I45/100)/$H45,0) -> 0 | M45: =$J45+$K45-$L45 -> 0 | Q45: 15 | R45: =SUMIF($N$13:$N$92,$P138,$U$13:$U$92) -> 0 | S45: =(Site!$B$32*($G$6*$C45+$G$7*$D45)*3630)*Site!$B$34*0.3048^3/454*Site!$B$31/Site!$B$32*Site!$B$36 -> 0 | T45: =IFERROR(($R45+$S45)*($F45+$G45*$Q45/100)/$H45,0) -> 0 | U45: =$R45+$S45-$T45 -> 0
A46: 7.b. Infiltration #2 (Spec #8) | B46: 90 | E46: =SUMIF($N$13:$N$92,$P139,$G$13:$G$92) -> 0 | F46: =(Site!$B$32*($G$6*$C46+$G$7*$D46)*3630+$E46)*$B46/100 -> 0 | G46: =(Site!$B$32*($G$6*$C46+$G$7*$D46)*3630+$E46)*(1-$B46/100) -> 0 | H46: =+$F46+$G46 -> 0 | I46: 25 | J46: =SUMIF($N$13:$N$92,$P139,$M$13:$M$92) -> 0 | K46: =(Site!$B$32*($G$6*$C46+$G$7*$D46)*3630)*Site!$B$33*0.3048^3/454*Site!$B$31/Site!$B$32*Site!$B$36 -> 0 | L46: =IFERROR(($J46+$K46)*($F46+$G46*$I46/100)/$H46,0) -> 0 | M46: =$J46+$K46-$L46 -> 0 | Q46: 15 | R46: =SUMIF($N$13:$N$92,$P139,$U$13:$U$92) -> 0 | S46: =(Site!$B$32*($G$6*$C46+$G$7*$D46)*3630)*Site!$B$34*0.3048^3/454*Site!$B$31/Site!$B$32*Site!$B$36 -> 0 | T46: 0 | U46: 0
A48: 8. Extended Detention Pond (RR) | Q48: 8. Extended Detention Pond (RR)
A49: 8.a. ED #1 (Spec #15) | B49: 0 | E49: =SUMIF($N$13:$N$92,$P140,$G$13:$G$92) -> 0 | F49: =(Site!$B$32*($G$6*$C49+$G$7*$D49)*3630+$E49)*$B49/100 -> 0 | G49: =(Site!$B$32*($G$6*$C49+$G$7*$D49)*3630+$E49)*(1-$B49/100) -> 0 | H49: =+$F49+$G49 -> 0 | I49: 15 | J49: =SUMIF($N$13:$N$92,$P140,$M$13:$M$92) -> 0 | K49: =(Site!$B$32*($G$6*$C49+$G$7*$D49)*3630)*Site!$B$33*0.3048^3/454*Site!$B$31/Site!$B$32*Site!$B$36 -> 0 | L49: =IFERROR(($J49+$K49)*($F49+$G49*$I49/100)/$H49,0) -> 0 | M49: =$J49+$K49-$L49 -> 0 | Q49: 10 | R49: =SUMIF($N$13:$N$92,$P140,$U$13:$U$92) -> 0 | S49: =(Site!$B$32*($G$6*$C49+$G$7*$D49)*3630)*Site!$B$34*0.3048^3/454*Site!$B$31/Site!$B$32*Site!$B$36 -> 0 | T49: =IFERROR(($R49+$S49)*($F49+$G49*$Q49/100)/$H49,0) -> 0 | U49: =$R49+$S49-$T49 -> 0
A50: 8.b. ED #2 (Spec #15) | B50: 15 | E50: =SUMIF($N$13:$N$92,$P141,$G$13:$G$92) -> 0 | F50: =(Site!$B$32*($G$6*$C50+$G$7*$D50)*3630+$E50)*$B50/100 -> 0 | G50: =(Site!$B$32*($G$6*$C50+$G$7*$D50)*3630+$E50)*(1-$B50/100) -> 0 | H50: =+$F50+$G50 -> 0 | I50: 15 | J50: =SUMIF($N$13:$N$92,$P141,$M$13:$M$92) -> 0 | K50: =(Site!$B$32*($G$6*$C50+$G$7*$D50)*3630)*Site!$B$33*0.3048^3/454*Site!$B$31/Site!$B$32*Site!$B$36 -> 0 | L50: 0 | M50: 0 | Q50: 10 | R50: =SUMIF($N$13:$N$92,$P141,$U$13:$U$92) -> 0 | S50: =(Site!$B$32*($G$6*$C50+$G$7*$D50)*3630)*Site!$B$34*0.3048^3/454*Site!$B$31/Site!$B$32*Site!$B$36 -> 0 | T50: 0 | U50: 0
A52: 9. Sheetflow to Filter/Open Space (RR) | Q52: 9. Sheetflow to Filter/Open Space (RR)
A53: 9.a. Sheetflow to Conservation Area, A/B Soils (Spec #2) | B53: 75 | E53: =SUMIF($N$13:$N$92,$P142,$G$13:$G$92) -> 0 | F53: =(Site!$B$32*($G$6*$C53+$G$7*$D53)*3630+$E53)*$B53/100 -> 0 | G53: =(Site!$B$32*($G$6*$C53+$G$7*$D53)*3630+$E53)*(1-$B53/100) -> 0 | H53: =+$F53+$G53 -> 0 | I53: 0 | J53: =SUMIF($N$13:$N$92,$P142,$M$13:$M$92) -> 0 | K53: =(Site!$B$32*($G$6*$C53+$G$7*$D53)*3630)*Site!$B$33*0.3048^3/454*Site!$B$31/Site!$B$32*Site!$B$36 -> 0 | L53: =IFERROR(($J53+$K53)*($F53+$G53*$I53/100)/$H53,0) -> 0 | M53: =$J53+$K53-$L53 -> 0 | Q53: 0 | R53: =SUMIF($N$13:$N$92,$P142,$U$13:$U$92) -> 0 | S53: =(Site!$B$32*($G$6*$C53+$G$7*$D53)*3630)*Site!$B$34*0.3048^3/454*Site!$B$31/Site!$B$32*Site!$B$36 -> 0 | T53: =IFERROR(($R53+$S53)*($F53+$G53*$Q53/100)/$H53,0) -> 0 | U53: =$R53+$S53-$T53 -> 0
A54: 9.b. Sheetflow to Conservation Area, C/D Soils (Spec #2) | B54: 50 | E54: =SUMIF($N$13:$N$92,$P143,$G$13:$G$92) -> 0 | F54: =(Site!$B$32*($G$6*$C54+$G$7*$D54)*3630+$E54)*$B54/100 -> 0 | G54: =(Site!$B$32*($G$6*$C54+$G$7*$D54)*3630+$E54)*(1-$B54/100) -> 0 | H54: =+$F54+$G54 -> 0 | I54: 0 | J54: =SUMIF($N$13:$N$92,$P143,$M$13:$M$92) -> 0 | K54: =(Site!$B$32*($G$6*$C54+$G$7*$D54)*3630)*Site!$B$33*0.3048^3/454*Site!$B$31/Site!$B$32*Site!$B$36 -> 0 | L54: 0 | M54: 0 | Q54: 0 | R54: =SUMIF($N$13:$N$92,$P143,$U$13:$U$92) -> 0 | S54: =(Site!$B$32*($G$6*$C54+$G$7*$D54)*3630)*Site!$B$34*0.3048^3/454*Site!$B$31/Site!$B$32*Site!$B$36 -> 0 | T54: 0 | U54: 0
A55: 9.c. Sheetflow to Vegetated Filter Strip, A Soils or Compost Amended B/C/D Soils (Spec #2 & #4) | B55: 50 | E55: 0 | F55: =(Site!$B$32*($G$6*$C55+$G$7*$D55)*3630+$E55)*$B55/100 -> 0 | G55: =(Site!$B$32*($G$6*$C55+$G$7*$D55)*3630+$E55)*(1-$B55/100) -> 0 | H55: 0 | I55: 0 | J55: 0 | K55: =(Site!$B$32*($G$6*$C55+$G$7*$D55)*3630)*Site!$B$33*0.3048^3/454*Site!$B$31/Site!$B$32*Site!$B$36 -> 0 | L55: 0 | M55: 0 | Q55: 0 | R55: 0 | S55: =(Site!$B$32*($G$6*$C55+$G$7*$D55)*3630)*Site!$B$34*0.3048^3/454*Site!$B$31/Site!$B$32*Site!$B$36 -> 0 | T55: 0 | U55: 0
E58: TOTAL IMPERVIOUS COVER TREATED (ac) | F58: =SUM(D13:D55) -> 0 | G58: AREA CHECK: | H58: =IF(F58>$F$7,"AREA EXCEEDED!","OK.") -> OK.
E59: TOTAL MANAGED TURF AREA TREATED (ac) | F59: =SUM(C32:C55) -> 0 | G59: AREA CHECK: | H59: =IF(F59>$F$6,"AREA EXCEEDED!","OK.") -> OK.
E60: TOTAL RUNOFF REDUCTION IN D.A. A (ft3) | F60: =IFERROR(SUM($F$13:$F$55),0) -> 0
H62: TOTAL PHOSPHORUS AVAILABLE FOR REMOVAL IN D.A. A (lb/yr) | I62: =$M$7 -> 0
H63: TOTAL PHOSPHORUS REMOVED WITH RUNOFF REDUCTION PRACTICES IN D.A. A (lb/yr) | I63: =IFERROR(SUM(L13:L55),0) -> 0 | U63: TOTAL RUNOFF REDUCTION IN D.A. A (ft3) | V63: =F60 -> 0
H64: TOTAL PHOSPHORUS REMAINING AFTER APPLYING RUNOFF REDUCTION PRACTICES IN D.A. A (lb/yr) | I64: =I62-I63 -> 0 | U64: NITROGEN REMOVED WITH RUNOFF REDUCTION PRACTICES IN D.A. A (lb/yr) | V64: =SUM($T$13:$T$55) -> 0
C66: SEE WATER QUALITY COMPLIANCE TAB FOR SITE COMPLIANCE CALCULATIONS | V66: SEE WATER QUALITY COMPLIANCE TAB FOR SITE CALCULATIONS (Information Only)
A71: 10. Wet Swale (no RR) | R71: 10. Wet Swale (Coastal Plain) (no RR)
A72: 10.a. Wet Swale #1 (Spec #11) | B72: 0 | E72: =SUMIF($N$13:$N$92,$P145,$G$13:$G$92) -> 0 | F72: =(Site!$B$32*($G$6*$C72+$G$7*$D72)*3630+$E72)*$B72/100 -> 0 | G72: =(Site!$B$32*($G$6*$C72+$G$7*$D72)*3630+$E72)*(1-$B72/100) -> 0 | H72: =+$F72+$G72 -> 0 | I72: 20 | J72: =SUMIF($N$13:$N$92,$P145,$M$13:$M$92) -> 0 | K72: =(Site!$B$32*($G$6*$C72+$G$7*$D72)*3630)*Site!$B$33*0.3048^3/454*Site!$B$31/Site!$B$32*Site!$B$36 -> 0 | L72: =IFERROR(($J72+$K72)*($F72+$G72*$I72/100)/$H72,0) -> 0 | M72: =$J72+$K72-$L72 -> 0 | Q72: 25 | R72: =SUMIF($N$13:$N$92,$P145,$U$13:$U$92) -> 0 | S72: =(Site!$B$32*($G$6*$C72+$G$7*$D72)*3630)*Site!$B$34*0.3048^3/454*Site!$B$31/Site!$B$32*Site!$B$36 -> 0 | T72: =IFERROR(($R72+$S72)*($F72+$G72*$Q72/100)/$H72,0) -> 0 | U72: =$R72+$S72-$T72 -> 0
A73: 10.b. Wet Swale #2 (Spec #11) | B73: 0 | E73: =SUMIF($N$13:$N$92,$P146,$G$13:$G$92) -> 0 | F73: =(Site!$B$32*($G$6*$C73+$G$7*$D73)*3630+$E73)*$B73/100 -> 0 | G73: =(Site!$B$32*($G$6*$C73+$G$7*$D73)*3630+$E73)*(1-$B73/100) -> 0 | H73: 0 | I73: 40 | J73: =SUMIF($N$13:$N$92,$P146,$M$13:$M$92) -> 0 | K73: =(Site!$B$32*($G$6*$C73+$G$7*$D73)*3630)*Site!$B$33*0.3048^3/454*Site!$B$31/Site!$B$32*Site!$B$36 -> 0 | L73: 0 | M73: 0 | Q73: 35 | R73: =SUMIF($N$13:$N$92,$P146,$U$13:$U$92) -> 0 | S73: =(Site!$B$32*($G$6*$C73+$G$7*$D73)*3630)*Site!$B$34*0.3048^3/454*Site!$B$31/Site!$B$32*Site!$B$36 -> 0 | T73: 0 | U73: 0
A75: 11. Filtering Practices (no RR) | Q75: 11. Filtering Practices (no RR)
A76: 11.a.Filtering Practice #1 (Spec #12) | B76: 0 | E76: =SUMIF($N$13:$N$92,$P147,$G$13:$G$92) -> 0 | F76: =(Site!$B$32*($G$6*$C76+$G$7*$D76)*3630+$E76)*$B76/100 -> 0 | G76: =(Site!$B$32*($G$6*$C76+$G$7*$D76)*3630+$E76)*(1-$B76/100) -> 0 | H76: =+$F76+$G76 -> 0 | I76: 60 | J76: =SUMIF($N$13:$N$92,$P147,$M$13:$M$92) -> 0 | K76: =(Site!$B$32*($G$6*$C76+$G$7*$D76)*3630)*Site!$B$33*0.3048^3/454*Site!$B$31/Site!$B$32*Site!$B$36 -> 0 | L76: =IFERROR(($J76+$K76)*($F76+$G76*$I76/100)/$H76,0) -> 0 | M76: =$J76+$K76-$L76 -> 0 | Q76: 30 | R76: =SUMIF($N$13:$N$92,$P147,$U$13:$U$92) -> 0 | S76: =(Site!$B$32*($G$6*$C76+$G$7*$D76)*3630)*Site!$B$34*0.3048^3/454*Site!$B$31/Site!$B$32*Site!$B$36 -> 0 | T76: =IFERROR(($R76+$S76)*($F76+$G76*$Q76/100)/$H76,0) -> 0 | U76: =$R76+$S76-$T76 -> 0
A77: 11.b. Filtering Practice #2 (Spec #12) | B77: 0 | E77: =SUMIF($N$13:$N$92,$P148,$G$13:$G$92) -> 0 | F77: =(Site!$B$32*($G$6*$C77+$G$7*$D77)*3630+$E77)*$B77/100 -> 0 | G77: =(Site!$B$32*($G$6*$C77+$G$7*$D77)*3630+$E77)*(1-$B77/100) -> 0 | H77: 0 | I77: 65 | J77: =SUMIF($N$13:$N$92,$P148,$M$13:$M$92) -> 0 | K77: =(Site!$B$32*($G$6*$C77+$G$7*$D77)*3630)*Site!$B$33*0.3048^3/454*Site!$B$31/Site!$B$32*Site!$B$36 -> 0 | L77: 0 | M77: 0 | Q77: 45 | R77: =SUMIF($N$13:$N$92,$P148,$U$13:$U$92) -> 0 | S77: =(Site!$B$32*($G$6*$C77+$G$7*$D77)*3630)*Site!$B$34*0.3048^3/454*Site!$B$31/Site!$B$32*Site!$B$36 -> 0 | T77: 0 | U77: 0
A79: 12. Constructed Wetland (no RR) | Q79: 12. Constructed Wetland (no RR)
A80: 12.a.Constructed Wetland #1 (Spec #13) | B80: 0 | E80: =SUMIF($N$13:$N$92,$P149,$G$13:$G$92) -> 0 | F80: =(Site!$B$32*($G$6*$C80+$G$7*$D80)*3630+$E80)*$B80/100 -> 0 | G80: =(Site!$B$32*($G$6*$C80+$G$7*$D80)*3630+$E80)*(1-$B80/100) -> 0 | H80: =+$F80+$G80 -> 0 | I80: 50 | J80: =SUMIF($N$13:$N$92,$P149,$M$13:$M$92) -> 0 | K80: =(Site!$B$32*($G$6*$C80+$G$7*$D80)*3630)*Site!$B$33*0.3048^3/454*Site!$B$31/Site!$B$32*Site!$B$36 -> 0 | L80: =IFERROR(($J80+$K80)*($F80+$G80*$I80/100)/$H80,0) -> 0 | M80: =$J80+$K80-$L80 -> 0 | Q80: 25 | R80: =SUMIF($N$13:$N$92,$P149,$U$13:$U$92) -> 0 | S80: =(Site!$B$32*($G$6*$C80+$G$7*$D80)*3630)*Site!$B$34*0.3048^3/454*Site!$B$31/Site!$B$32*Site!$B$36 -> 0 | T80: =IFERROR(($R80+$S80)*($F80+$G80*$Q80/100)/$H80,0) -> 0 | U80: =$R80+$S80-$T80 -> 0
A81: 12.b. Constructed Wetland #2 (Spec #13) | B81: 0 | E81: =SUMIF($N$13:$N$92,$P150,$G$13:$G$92) -> 0 | F81: =(Site!$B$32*($G$6*$C81+$G$7*$D81)*3630+$E81)*$B81/100 -> 0 | G81: =(Site!$B$32*($G$6*$C81+$G$7*$D81)*3630+$E81)*(1-$B81/100) -> 0 | H81: 0 | I81: 75 | J81: =SUMIF($N$13:$N$92,$P150,$M$13:$M$92) -> 0 | K81: =(Site!$B$32*($G$6*$C81+$G$7*$D81)*3630)*Site!$B$33*0.3048^3/454*Site!$B$31/Site!$B$32*Site!$B$36 -> 0 | L81: 0 | M81: 0 | Q81: 55 | R81: =SUMIF($N$13:$N$92,$P150,$U$13:$U$92) -> 0 | S81: =(Site!$B$32*($G$6*$C81+$G$7*$D81)*3630)*Site!$B$34*0.3048^3/454*Site!$B$31/Site!$B$32*Site!$B$36 -> 0 | T81: 0 | U81: 0
A83: 13. Wet Ponds (no RR) | Q83: 13. Wet Ponds (no RR)
A84: 13.a. Wet Pond #1 (Spec #14) | B84: 0 | E84: =SUMIF($N$13:$N$92,$P151,$G$13:$G$92) -> 0 | F84: =(Site!$B$32*($G$6*$C84+$G$7*$D84)*3630+$E84)*$B84/100 -> 0 | G84: =(Site!$B$32*($G$6*$C84+$G$7*$D84)*3630+$E84)*(1-$B84/100) -> 0 | H84: =+$F84+$G84 -> 0 | I84: 50 | J84: =SUMIF($N$13:$N$92,$P151,$M$13:$M$92) -> 0 | K84: =(Site!$B$32*($G$6*$C84+$G$7*$D84)*3630)*Site!$B$33*0.3048^3/454*Site!$B$31/Site!$B$32*Site!$B$36 -> 0 | L84: =IFERROR(($J84+$K84)*($F84+$G84*$I84/100)/$H84,0) -> 0 | M84: =$J84+$K84-$L84 -> 0 | Q84: 30 | R84: =SUMIF($N$13:$N$92,$P151,$U$13:$U$92) -> 0 | S84: =(Site!$B$32*($G$6*$C84+$G$7*$D84)*3630)*Site!$B$34*0.3048^3/454*Site!$B$31/Site!$B$32*Site!$B$36 -> 0 | T84: =IFERROR(($R84+$S84)*($F84+$G84*$Q84/100)/$H84,0) -> 0 | U84: =$R84+$S84-$T84 -> 0
A85: 13.b. Wet Pond #1 (Coastal Plain) (Spec #14) | B85: 0 | E85: =SUMIF($N$13:$N$92,$P152,$G$13:$G$92) -> 0 | F85: =(Site!$B$32*($G$6*$C85+$G$7*$D85)*3630+$E85)*$B85/100 -> 0 | G85: =(Site!$B$32*($G$6*$C85+$G$7*$D85)*3630+$E85)*(1-$B85/100) -> 0 | H85: 0 | I85: 45 | J85: =SUMIF($N$13:$N$92,$P152,$M$13:$M$92) -> 0 | K85: =(Site!$B$32*($G$6*$C85+$G$7*$D85)*3630)*Site!$B$33*0.3048^3/454*Site!$B$31/Site!$B$32*Site!$B$36 -> 0 | L85: 0 | M85: 0 | Q85: 20 | R85: =SUMIF($N$13:$N$92,$P152,$U$13:$U$92) -> 0 | S85: =(Site!$B$32*($G$6*$C85+$G$7*$D85)*3630)*Site!$B$34*0.3048^3/454*Site!$B$31/Site!$B$32*Site!$B$36 -> 0 | T85: 0 | U85: 0
A86: 13.c. Wet Pond #2 (Spec #14) | B86: 0 | E86: 0 | F86: =(Site!$B$32*($G$6*$C86+$G$7*$D86)*3630+$E86)*$B86/100 -> 0 | G86: =(Site!$B$32*($G$6*$C86+$G$7*$D86)*3630+$E86)*(1-$B86/100) -> 0 | H86: 0 | I86: 75 | J86: 0 | K86: =(Site!$B$32*($G$6*$C86+$G$7*$D86)*3630)*Site!$B$33*0.3048^3/454*Site!$B$31/Site!$B$32*Site!$B$36 -> 0 | L86: 0 | M86: 0 | Q86: 40 | R86: 0 | S86: =(Site!$B$32*($G$6*$C86+$G$7*$D86)*3630)*Site!$B$34*0.3048^3/454*Site!$B$31/Site!$B$32*Site!$B$36 -> 0 | T86: 0 | U86: 0
A87: 13.d. Wet Pond #2 (Coastal Plain) (Spec #14) | B87: 0 | E87: 0 | F87: =(Site!$B$32*($G$6*$C87+$G$7*$D87)*3630+$E87)*$B87/100 -> 0 | G87: =(Site!$B$32*($G$6*$C87+$G$7*$D87)*3630+$E87)*(1-$B87/100) -> 0 | H87: 0 | I87: 65 | J87: 0 | K87: =(Site!$B$32*($G$6*$C87+$G$7*$D87)*3630)*Site!$B$33*0.3048^3/454*Site!$B$31/Site!$B$32*Site!$B$36 -> 0 | L87: 0 | M87: 0 | Q87: 30 | R87: 0 | S87: =(Site!$B$32*($G$6*$C87+$G$7*$D87)*3630)*Site!$B$34*0.3048^3/454*Site!$B$31/Site!$B$32*Site!$B$36 -> 0 | T87: 0 | U87: 0
A89: 14. Manufactured Treatment Devices (no RR) | R89: 14. Manufactured BMP (no RR)
A90: 14.a. Manufactured Treatment Device-Hydrodynamic | B90: 0 | E90: =SUMIF($N$13:$N$92,$P155,$G$13:$G$92) -> 0 | F90: =(Site!$B$32*($G$6*$C90+$G$7*$D90)*3630+$E90)*$B90/100 -> 0 | G90: =(Site!$B$32*($G$6*$C90+$G$7*$D90)*3630+$E90)*(1-$B90/100) -> 0 | H90: =+$F90+$G90 -> 0 | I90: 20 | J90: =SUMIF($N$13:$N$92,$P155,$M$13:$M$92) -> 0 | K90: =(Site!$B$32*($G$6*$C90+$G$7*$D90)*3630)*Site!$B$33*0.3048^3/454*Site!$B$31/Site!$B$32*Site!$B$36 -> 0 | L90: =IFERROR(($J90+$K90)*($F90+$G90*$I90/100)/$H90,0) -> 0 | M90: =$J90+$K90-$L90 -> 0 | Q90: 0 | R90: =SUMIF($N$13:$N$92,$P155,$U$13:$U$92) -> 0 | S90: =(Site!$B$32*($G$6*$C90+$G$7*$D90)*3630)*Site!$B$34*0.3048^3/454*Site!$B$31/Site!$B$32*Site!$B$36 -> 0 | T90: =IFERROR(($R90+$S90)*($F90+$G90*$Q90/100)/$H90,0) -> 0 | U90: =$R90+$S90-$T90 -> 0
A91: 14.b. Manufactured Treatment Device-Filtering | B91: 0 | E91: =SUMIF($N$13:$N$92,$P156,$G$13:$G$92) -> 0 | F91: =(Site!$B$32*($G$6*$C91+$G$7*$D91)*3630+$E91)*$B91/100 -> 0 | G91: =(Site!$B$32*($G$6*$C91+$G$7*$D91)*3630+$E91)*(1-$B91/100) -> 0 | H91: 0 | I91: 20 | J91: =SUMIF($N$13:$N$92,$P156,$M$13:$M$92) -> 0 | K91: =(Site!$B$32*($G$6*$C91+$G$7*$D91)*3630)*Site!$B$33*0.3048^3/454*Site!$B$31/Site!$B$32*Site!$B$36 -> 0 | L91: 0 | M91: 0 | Q91: 0 | R91: =SUMIF($N$13:$N$92,$P156,$U$13:$U$92) -> 0 | S91: =(Site!$B$32*($G$6*$C91+$G$7*$D91)*3630)*Site!$B$34*0.3048^3/454*Site!$B$31/Site!$B$32*Site!$B$36 -> 0 | T91: 0 | U91: 0
A92: 14.c. Manufactured Treatment Device-Generic | B92: 0 | E92: 0 | F92: =(Site!$B$32*($G$6*$C92+$G$7*$D92)*3630+$E92)*$B92/100 -> 0 | G92: =(Site!$B$32*($G$6*$C92+$G$7*$D92)*3630+$E92)*(1-$B92/100) -> 0 | H92: 0 | I92: 20 | J92: 0 | K92: =(Site!$B$32*($G$6*$C92+$G$7*$D92)*3630)*Site!$B$33*0.3048^3/454*Site!$B$31/Site!$B$32*Site!$B$36 -> 0 | L92: 0 | M92: 0 | Q92: 0 | R92: 0 | S92: =(Site!$B$32*($G$6*$C92+$G$7*$D92)*3630)*Site!$B$34*0.3048^3/454*Site!$B$31/Site!$B$32*Site!$B$36 -> 0 | T92: 0 | U92: 0
E96: TOTAL IMPERVIOUS COVER TREATED (ac) | F96: =SUM($D$13:$D$92) -> 0 | G96: AREA CHECK: | H96: =IF($F$96>$F$7,"AREA EXCEEDED!","OK.") -> OK.
E97: TOTAL MANAGED TURF AREA TREATED (ac) | F97: =SUM($C$13:$C$92) -> 0 | G97: AREA CHECK: | H97: =IF($F$97>$F$6,"AREA EXCEEDED!","OK.") -> OK.
H99: TOTAL PHOSPHORUS REMOVAL REQUIRED ON SITE (lb/yr) | I99: =IF(Site!G63="Check Areas!","ERROR - ",Site!G63) -> -- | J99: =IF(I99="ERROR - ","Site Data Tab","") -> 
H101: TOTAL PHOSPHORUS AVAILABLE FOR REMOVAL IN D.A. A (lb/yr) | I101: =$M$7 -> 0
H102: TOTAL PHOSPHORUS REMOVED WITHOUT RUNOFF REDUCTION PRACTICES IN D.A. A (lb/yr) | I102: =SUM($L$72:$L$92) -> 0
H103: TOTAL PHOSPHORUS REMOVED WITH RUNOFF REDUCTION PRACTICES IN D.A. A (lb/yr) | I103: =$I$63 -> 0
H104: TOTAL PHOSPHORUS LOAD REDUCTION ACHIEVED IN D.A. A (lb/yr) | I104: =$I$102+$I$103 -> 0
H105: TOTAL PHOSPHORUS REMAINING AFTER APPLYING BMP LOAD REDUCTIONS IN D.A. A (lb/yr) | I105: =$I$101-$I$104 -> 0
C107: SEE WATER QUALITY COMPLIANCE TAB FOR SITE COMPLIANCE CALCULATIONS
H109: NITROGEN REMOVED WITH RUNOFF REDUCTION PRACTICES IN D.A. A (lb/yr) | I109: =IFERROR(SUM($T$13:$T$55),0) -> 0
H110: NITROGEN REMOVED WITHOUT RUNOFF REDUCTION PRACTICES IN D.A. A (lb/yr) | I110: =SUM($T$72:$T$92) -> 0
H111: TOTAL NITROGEN REMOVED IN D.A. A (lb/yr) | I111: =$I$109+$I$110 -> 0
C116: Downstream Practices - Dropdown selections for each applicable BMP
A118: Options for 1. Green Roof | C118: Options for 2. Impervious Surface Disconnection | E118: Options for 3a. Pervious Parking, A/B Soils | G118: Options for 4a. Grass Channels, A/B Soils | J118: Options for 4b. Grass Channels, C/D Soils
L119: Options for 4.c. Grass Channel Compost Amended Soils | P119: Master Downstream BMP Reference List
A120: =P120 -> None | C120: =P120 -> None | E120: =P120 -> None | G120: =P120 -> None | J120: =P120 -> None | P120: None
A121: 2.a. Simple Disconnection to A/B Soils | C121: =P131 -> 4.a. Grass Channel A/B Soils | E121: =P131 -> 4.a. Grass Channel A/B Soils | G121: =P132 -> 4.b. Grass Channel C/D Soils | J121: =P131 -> 4.a. Grass Channel A/B Soils | L121: =P120 -> None | P121: 2.a. Simple Disconnection to A/B Soils
A122: 2.b. Simple Disconnection to C/D Soils | C122: 4.b. Grass Channel C/D Soils | E122: 4.b. Grass Channel C/D Soils | G122: 4.c. Grass Channel Compost Amended Soils | J122: =P133 -> 4.c. Grass Channel Compost Amended Soils | L122: =P131 -> 4.a. Grass Channel A/B Soils | P122: 2.b. Simple Disconnection to C/D Soils
A123: 2.c. To Soil Amended Filter Path | C123: 4.c. Grass Channel Compost Amended Soils | E123: 4.c. Grass Channel Compost Amended Soils | G123: 5.a. Dry Swale #1 | J123: 5.a. Dry Swale #1 | L123: =P132 -> 4.b. Grass Channel C/D Soils | P123: 2.c. To Soil Amended Filter Path
A124: 2.d. To Dry Well/French Drain #1 (Micro-Infiltration #1) | C124: 5.a. Dry Swale #1 | E124: 5.a. Dry Swale #1 | G124: 5.b. Dry Swale #2 | J124: 5.b. Dry Swale #2 | L124: =P134 -> 5.a. Dry Swale #1 | P124: 2.d. To Dry Well/French Drain #1 (Micro-Infiltration #1)
A125: 2.e. To Dry Well/French Drain #2 (Micro-Infiltration. #2) | C125: 5.b. Dry Swale #2 | E125: 5.b. Dry Swale #2 | G125: 6.a. Bioretention #1 | J125: 6.a. Bioretention #1 | L125: 5.b. Dry Swale #2 | P125: 2.e. To Dry Well/French Drain #2 (Micro-Infiltration. #2)
A126: 2.f. To Rain Garden #1 (Micro-Bioretention #1) | C126: 6.a. Bioretention #1 | E126: 6.a. Bioretention #1 | G126: 6.b. Bioretention #2 | J126: 6.b. Bioretention #2 | L126: 6.a. Bioretention #1 | P126: 2.f. To Rain Garden #1 (Micro-Bioretention #1)
A127: 2.g. To Rain Garden #2 (Micro-Bioretention #2) | C127: 6.b. Bioretention #2 | E127: 6.b. Bioretention #2 | G127: 7.a. Infiltration #1 | J127: 7.a. Infiltration #1 | L127: 6.b. Bioretention #2 | P127: 2.g. To Rain Garden #2 (Micro-Bioretention #2)
A128: 2.h. To Train Barrel, Rain Tank, or Cistern | C128: 7.a. Infiltration #1 | E128: 7.a. Infiltration #1 | G128: 7.b. Infiltration #2 | J128: 7.b. Infiltration #2 | L128: 7.a. Infiltration #1 | P128: 2.h. To Train Barrel, Rain Tank, or Cistern
A129: 2.i. To Stormwater Planter (Urban Bioretention) | C129: 7.b. Infiltration #2 | E129: 7.b. Infiltration #2 | G129: 8.a. ED #1 | J129: 8.a. ED #1 | L129: 7.b. Infiltration #2 | P129: 2.i. To Stormwater Planter (Urban Bioretention)
A130: 3.a. Permeable Pavement #1 | C130: 8.a. ED #1 | E130: 8.a. ED #1 | G130: 8.b. ED #2 | J130: 8.b. ED #2 | L130: 8.a. ED #1 | P130: 3.a. Permeable Pavement #1
A131: 4.a. Grass Channel A/B Soils | C131: 8.b. ED #2 | E131: 8.b. ED #2 | G131: 9.a. Sheetflow to A/B Soil Conservation Area | J131: 9.a. Sheetflow to A/B Soil Conservation Area | L131: 8.b. ED #2 | P131: 4.a. Grass Channel A/B Soils
A132: 4.b. Grass Channel C/D Soils | C132: 9.a. Sheetflow to A/B Soil Conservation Area | E132: 9.a. Sheetflow to A/B Soil Conservation Area | G132: 9.b. Sheetflow to C/D Soil Conservation Area | J132: 9.b. Sheetflow to C/D Soil Conservation Area | L132: 9.a. Sheetflow to A/B Soil Conservation Area | P132: 4.b. Grass Channel C/D Soils
A133: 4.c. Grass Channel Compost Amended Soils | C133: 9.b. Sheetflow to C/D Soil Conservation Area | E133: 9.b. Sheetflow to C/D Soil Conservation Area | G133: 9.c. Sheetflow to Vegetated Filter Strip | J133: 9.c. Sheetflow to Vegetated Filter Strip | L133: 9.b. Sheetflow to C/D Soil Conservation Area | P133: 4.c. Grass Channel Compost Amended Soils
A134: 5.a. Dry Swale #1 | C134: 9.c. Sheetflow to Vegetated Filter Strip | E134: 9.c. Sheetflow to Vegetated Filter Strip | G134: 10.a. Wet Swale #1 | J134: 10.a. Wet Swale #1 | L134: 9.c. Sheetflow to Vegetated Filter Strip | P134: 5.a. Dry Swale #1
A135: 5.b. Dry Swale #2 | C135: 10.a. Wet Swale #1 | E135: 10.a. Wet Swale #1 | G135: 10.b. Wet Swale #2 | J135: 10.b. Wet Swale #2 | L135: 10.a. Wet Swale #1 | P135: 5.b. Dry Swale #2
A136: 6.a. Bioretention #1 | C136: 10.b. Wet Swale #2 | E136: 10.b. Wet Swale #2 | G136: 11.a. Filtering Practice #1 | J136: 11.a. Filtering Practice #1 | L136: 10.b. Wet Swale #2 | P136: 6.a. Bioretention #1
A137: 6.b. Bioretention #2 | C137: 11.a. Filtering Practice #1 | E137: 11.a. Filtering Practice #1 | G137: 11.b. Filtering Practice #2 | J137: 11.b. Filtering Practice #2 | L137: 11.a. Filtering Practice #1 | P137: 6.b. Bioretention #2
A138: 7.a. Infiltration #1 | C138: 11.b. Filtering Practice #2 | E138: 11.b. Filtering Practice #2 | G138: 12.a. Constructed Wetland #1 | J138: 12.a. Constructed Wetland #1 | L138: 11.b. Filtering Practice #2 | P138: 7.a. Infiltration #1
A139: 7.b. Infiltration #2 | C139: 12.a. Constructed Wetland #1 | E139: 12.a. Constructed Wetland #1 | G139: 12.b. Constructed Wetland #2 | J139: 12.b. Constructed Wetland #2 | L139: 12.a. Constructed Wetland #1 | P139: 7.b. Infiltration #2
A140: 8.a. ED #1 | C140: 12.b. Constructed Wetland #2 | E140: 12.b. Constructed Wetland #2 | G140: 13.a. Wet Pond #1 | J140: 13.a. Wet Pond #1 | L140: 12.b. Constructed Wetland #2 | P140: 8.a. ED #1
A141: 8.b. ED #2 | C141: 13.a. Wet Pond #1 | E141: 13.a. Wet Pond #1 | G141: 13.b. Wet Pond #1 (Coastal Plain) | J141: 13.b. Wet Pond #1 (Coastal Plain) | L141: 13.a. Wet Pond #1 | P141: 8.b. ED #2
A142: 9.a. Sheetflow to A/B Soil Conservation Area | C142: 13.b. Wet Pond #1 (Coastal Plain) | E142: 13.b. Wet Pond #1 (Coastal Plain) | G142: 13.c. Wet Pond #2 | J142: 13.c. Wet Pond #2 | L142: 13.b. Wet Pond #1 (Coastal Plain) | P142: 9.a. Sheetflow to A/B Soil Conservation Area
A143: 9.b. Sheetflow to C/D Soil Conservation Area | C143: 13.c. Wet Pond #2 | E143: 13.c. Wet Pond #2 | G143: 13.d. Wet Pond #2 (Coastal Plain) | J143: 13.d. Wet Pond #2 (Coastal Plain) | L143: 13.c. Wet Pond #2 | P143: 9.b. Sheetflow to C/D Soil Conservation Area
A144: 9.c. Sheetflow to Vegetated Filter Strip | C144: 13.d. Wet Pond #2 (Coastal Plain) | E144: 13.d. Wet Pond #2 (Coastal Plain) | G144: 14.a. MTD - Hydrodynamic | J144: 14.a. MTD - Hydrodynamic | L144: 13.d. Wet Pond #2 (Coastal Plain) | P144: 9.c. Sheetflow to Vegetated Filter Strip
A145: 10.a. Wet Swale #1 | C145: 14.a. MTD - Hydrodynamic | E145: 14.a. MTD - Hydrodynamic | G145: 14.b. MTD - Filtering | J145: 14.b. MTD - Filtering | L145: 14.a. MTD - Hydrodynamic | P145: 10.a. Wet Swale #1
A146: 10.b. Wet Swale #2 | C146: 14.b. MTD - Filtering | E146: 14.b. MTD - Filtering | G146: 14.c. MTD - Generic | J146: 14.c. MTD - Generic | L146: 14.b. MTD - Filtering | P146: 10.b. Wet Swale #2
A147: 11.a. Filtering Practice #1 | C147: 14.c. MTD - Generic | E147: 14.c. MTD - Generic | L147: 14.c. MTD - Generic | P147: 11.a. Filtering Practice #1
A148: 11.b. Filtering Practice #2 | P148: 11.b. Filtering Practice #2
A149: 12.a. Constructed Wetland #1 | P149: 12.a. Constructed Wetland #1
A150: 12.b. Constructed Wetland #2 | P150: 12.b. Constructed Wetland #2
A151: 13.a. Wet Pond #1 | P151: 13.a. Wet Pond #1
A152: 13.b. Wet Pond #1 (Coastal Plain) | P152: 13.b. Wet Pond #1 (Coastal Plain)
A153: 13.c. Wet Pond #2 | P153: 13.c. Wet Pond #2
A154: 13.d. Wet Pond #2 (Coastal Plain) | P154: 13.d. Wet Pond #2 (Coastal Plain)
A155: 14.a. MTD - Hydrodynamic | P155: 14.a. MTD - Hydrodynamic
A156: 14.b. MTD - Filtering | P156: 14.b. MTD - Filtering
A157: 14.c. MTD - Generic | P157: 14.c. MTD - Generic
A159: Options for 5a. Dry Swale #1 | C159: Options for 5b. Dry Swale #2 | E159: Options for 6a. Bioretention #1 | G159: Options for 6b. Bioretention #2 | J159: Options for 7a. Infiltration #1 | L159: Options for 7b. Infiltration #2
A161: =P120 -> None | C161: =P120 -> None | E161: =P120 -> None | G161: =P120 -> None | J161: =P120 -> None | L161: =P120 -> None
A162: =P131 -> 4.a. Grass Channel A/B Soils | C162: =P131 -> 4.a. Grass Channel A/B Soils | E162: =P131 -> 4.a. Grass Channel A/B Soils | G162: =P131 -> 4.a. Grass Channel A/B Soils | J162: =P131 -> 4.a. Grass Channel A/B Soils | L162: =P131 -> 4.a. Grass Channel A/B Soils
A163: =P132 -> 4.b. Grass Channel C/D Soils | C163: =P132 -> 4.b. Grass Channel C/D Soils | E163: =P132 -> 4.b. Grass Channel C/D Soils | G163: 4.b. Grass Channel C/D Soils | J163: 4.b. Grass Channel C/D Soils | L163: 4.b. Grass Channel C/D Soils
A164: =P133 -> 4.c. Grass Channel Compost Amended Soils | C164: =P133 -> 4.c. Grass Channel Compost Amended Soils | E164: =P133 -> 4.c. Grass Channel Compost Amended Soils | G164: 4.c. Grass Channel Compost Amended Soils | J164: 4.c. Grass Channel Compost Amended Soils | L164: 4.c. Grass Channel Compost Amended Soils
A165: =P135 -> 5.b. Dry Swale #2 | C165: =P134 -> 5.a. Dry Swale #1 | E165: =P134 -> 5.a. Dry Swale #1 | G165: 5.a. Dry Swale #1 | J165: 5.a. Dry Swale #1 | L165: 5.a. Dry Swale #1
A166: 6.a. Bioretention #1 | C166: =P136 -> 6.a. Bioretention #1 | E166: =P135 -> 5.b. Dry Swale #2 | G166: 5.b. Dry Swale #2 | J166: 5.b. Dry Swale #2 | L166: 5.b. Dry Swale #2
A167: 6.b. Bioretention #2 | C167: 6.b. Bioretention #2 | E167: =P137 -> 6.b. Bioretention #2 | G167: 6.a. Bioretention #1 | J167: 6.a. Bioretention #1 | L167: 6.a. Bioretention #1
A168: 7.a. Infiltration #1 | C168: 7.a. Infiltration #1 | E168: 7.a. Infiltration #1 | G168: =P138 -> 7.a. Infiltration #1 | J168: 6.b. Bioretention #2 | L168: 6.b. Bioretention #2
A169: 7.b. Infiltration #2 | C169: 7.b. Infiltration #2 | E169: 7.b. Infiltration #2 | G169: 7.b. Infiltration #2 | J169: =P139 -> 7.b. Infiltration #2 | L169: 7.a. Infiltration #1
A170: 8.a. ED #1 | C170: 8.a. ED #1 | E170: 8.a. ED #1 | G170: 8.a. ED #1 | J170: 8.a. ED #1 | L170: =P140 -> 8.a. ED #1
A171: 8.b. ED #2 | C171: 8.b. ED #2 | E171: 8.b. ED #2 | G171: 8.b. ED #2 | J171: 8.b. ED #2 | L171: 8.b. ED #2
A172: 9.a. Sheetflow to A/B Soil Conservation Area | C172: 9.a. Sheetflow to A/B Soil Conservation Area | E172: 9.a. Sheetflow to A/B Soil Conservation Area | G172: 9.a. Sheetflow to A/B Soil Conservation Area | J172: 9.a. Sheetflow to A/B Soil Conservation Area | L172: 9.a. Sheetflow to A/B Soil Conservation Area
A173: 9.b. Sheetflow to C/D Soil Conservation Area | C173: 9.b. Sheetflow to C/D Soil Conservation Area | E173: 9.b. Sheetflow to C/D Soil Conservation Area | G173: 9.b. Sheetflow to C/D Soil Conservation Area | J173: 9.b. Sheetflow to C/D Soil Conservation Area | L173: 9.b. Sheetflow to C/D Soil Conservation Area
A174: 9.c. Sheetflow to Vegetated Filter Strip | C174: 9.c. Sheetflow to Vegetated Filter Strip | E174: 9.c. Sheetflow to Vegetated Filter Strip | G174: 9.c. Sheetflow to Vegetated Filter Strip | J174: 9.c. Sheetflow to Vegetated Filter Strip | L174: 9.c. Sheetflow to Vegetated Filter Strip
A175: 10.a. Wet Swale #1 | C175: 10.a. Wet Swale #1 | E175: 10.a. Wet Swale #1 | G175: 10.a. Wet Swale #1 | J175: 10.a. Wet Swale #1 | L175: 10.a. Wet Swale #1
A176: 10.b. Wet Swale #2 | C176: 10.b. Wet Swale #2 | E176: 10.b. Wet Swale #2 | G176: 10.b. Wet Swale #2 | J176: 10.b. Wet Swale #2 | L176: 10.b. Wet Swale #2
A177: 11.a. Filtering Practice #1 | C177: 11.a. Filtering Practice #1 | E177: 11.a. Filtering Practice #1 | G177: 11.a. Filtering Practice #1 | J177: 11.a. Filtering Practice #1 | L177: 11.a. Filtering Practice #1
A178: 11.b. Filtering Practice #2 | C178: 11.b. Filtering Practice #2 | E178: 11.b. Filtering Practice #2 | G178: 11.b. Filtering Practice #2 | J178: 11.b. Filtering Practice #2 | L178: 11.b. Filtering Practice #2
A179: 12.a. Constructed Wetland #1 | C179: 12.a. Constructed Wetland #1 | E179: 12.a. Constructed Wetland #1 | G179: 12.a. Constructed Wetland #1 | J179: 12.a. Constructed Wetland #1 | L179: 12.a. Constructed Wetland #1
A180: 12.b. Constructed Wetland #2 | C180: 12.b. Constructed Wetland #2 | E180: 12.b. Constructed Wetland #2 | G180: 12.b. Constructed Wetland #2 | J180: 12.b. Constructed Wetland #2 | L180: 12.b. Constructed Wetland #2
A181: 13.a. Wet Pond #1 | C181: 13.a. Wet Pond #1 | E181: 13.a. Wet Pond #1 | G181: 13.a. Wet Pond #1 | J181: 13.a. Wet Pond #1 | L181: 13.a. Wet Pond #1
A182: 13.b. Wet Pond #1 (Coastal Plain) | C182: 13.b. Wet Pond #1 (Coastal Plain) | E182: 13.b. Wet Pond #1 (Coastal Plain) | G182: 13.b. Wet Pond #1 (Coastal Plain) | J182: 13.b. Wet Pond #1 (Coastal Plain) | L182: 13.b. Wet Pond #1 (Coastal Plain)
A183: 13.c. Wet Pond #2 | C183: 13.c. Wet Pond #2 | E183: 13.c. Wet Pond #2 | G183: 13.c. Wet Pond #2 | J183: 13.c. Wet Pond #2 | L183: 13.c. Wet Pond #2
A184: 13.d. Wet Pond #2 (Coastal Plain) | C184: 13.d. Wet Pond #2 (Coastal Plain) | E184: 13.d. Wet Pond #2 (Coastal Plain) | G184: 13.d. Wet Pond #2 (Coastal Plain) | J184: 13.d. Wet Pond #2 (Coastal Plain) | L184: 13.d. Wet Pond #2 (Coastal Plain)
A185: 14.a. MTD - Hydrodynamic | C185: 14.a. MTD - Hydrodynamic | E185: 14.a. MTD - Hydrodynamic | G185: 14.a. MTD - Hydrodynamic | J185: 14.a. MTD - Hydrodynamic | L185: 14.a. MTD - Hydrodynamic
A186: 14.b. MTD - Filtering | C186: 14.b. MTD - Filtering | E186: 14.b. MTD - Filtering | G186: 14.b. MTD - Filtering | J186: 14.b. MTD - Filtering | L186: 14.b. MTD - Filtering
A187: 14.c. MTD - Generic | C187: 14.c. MTD - Generic | E187: 14.c. MTD - Generic | G187: 14.c. MTD - Generic | J187: 14.c. MTD - Generic | L187: 14.c. MTD - Generic
A189: Options for 8a. Extended Detention #1 | C189: Options for 8b. Extended Detention #2 | E189: Options for 9 Sheet Flow to Open Space | G189: Options for 9c. Sheet Flow to Filter Strip | J189: Options for 10a. Wet Swale #1 | L189: Options for 10b. Wet Swale #2
A191: =P120 -> None | C191: =P120 -> None | E191: =P120 -> None | G191: =P120 -> None | J191: =P120 -> None | L191: =P120 -> None
A192: =P131 -> 4.a. Grass Channel A/B Soils | C192: =P131 -> 4.a. Grass Channel A/B Soils | G192: =P131 -> 4.a. Grass Channel A/B Soils | J192: =P131 -> 4.a. Grass Channel A/B Soils | L192: =P131 -> 4.a. Grass Channel A/B Soils
A193: 4.b. Grass Channel C/D Soils | C193: 4.b. Grass Channel C/D Soils | G193: 4.b. Grass Channel C/D Soils | J193: 4.b. Grass Channel C/D Soils | L193: 4.b. Grass Channel C/D Soils
A194: 4.c. Grass Channel Compost Amended Soils | C194: 4.c. Grass Channel Compost Amended Soils | G194: 4.c. Grass Channel Compost Amended Soils | J194: 4.c. Grass Channel Compost Amended Soils | L194: 4.c. Grass Channel Compost Amended Soils
A195: 5.a. Dry Swale #1 | C195: 5.a. Dry Swale #1 | G195: 5.a. Dry Swale #1 | J195: 5.a. Dry Swale #1 | L195: 5.a. Dry Swale #1
A196: 5.b. Dry Swale #2 | C196: 5.b. Dry Swale #2 | G196: 5.b. Dry Swale #2 | J196: 5.b. Dry Swale #2 | L196: 5.b. Dry Swale #2
A197: 6.a. Bioretention #1 | C197: 6.a. Bioretention #1 | G197: 6.a. Bioretention #1 | J197: 6.a. Bioretention #1 | L197: 6.a. Bioretention #1
A198: 6.b. Bioretention #2 | C198: 6.b. Bioretention #2 | G198: 6.b. Bioretention #2 | J198: 6.b. Bioretention #2 | L198: 6.b. Bioretention #2
A199: 7.a. Infiltration #1 | C199: 7.a. Infiltration #1 | G199: 7.a. Infiltration #1 | J199: 7.a. Infiltration #1 | L199: 7.a. Infiltration #1
A200: 7.b. Infiltration #2 | C200: 7.b. Infiltration #2 | G200: 7.b. Infiltration #2 | J200: 7.b. Infiltration #2 | L200: 7.b. Infiltration #2
A201: =P141 -> 8.b. ED #2 | C201: 8.a. ED #1 | G201: 8.a. ED #1 | J201: 8.a. ED #1 | L201: 8.a. ED #1
A202: 9.a. Sheetflow to A/B Soil Conservation Area | C202: =P142 -> 9.a. Sheetflow to A/B Soil Conservation Area | G202: 8.b. ED #2 | J202: 8.b. ED #2 | L202: 8.b. ED #2
A203: 9.b. Sheetflow to C/D Soil Conservation Area | C203: 9.b. Sheetflow to C/D Soil Conservation Area | G203: 9.a. Sheetflow to A/B Soil Conservation Area | J203: 9.a. Sheetflow to A/B Soil Conservation Area | L203: 9.a. Sheetflow to A/B Soil Conservation Area
A204: 9.c. Sheetflow to Vegetated Filter Strip | C204: 9.c. Sheetflow to Vegetated Filter Strip | G204: 9.b. Sheetflow to C/D Soil Conservation Area | J204: 9.b. Sheetflow to C/D Soil Conservation Area | L204: 9.b. Sheetflow to C/D Soil Conservation Area
A205: 10.a. Wet Swale #1 | C205: 10.a. Wet Swale #1 | G205: =P145 -> 10.a. Wet Swale #1 | J205: 9.c. Sheetflow to Vegetated Filter Strip | L205: 9.c. Sheetflow to Vegetated Filter Strip
A206: 10.b. Wet Swale #2 | C206: 10.b. Wet Swale #2 | G206: 10.b. Wet Swale #2 | J206: =P146 -> 10.b. Wet Swale #2 | L206: 10.a. Wet Swale #1
A207: 11.a. Filtering Practice #1 | C207: 11.a. Filtering Practice #1 | G207: 11.a. Filtering Practice #1 | J207: 11.a. Filtering Practice #1 | L207: =P147 -> 11.a. Filtering Practice #1
A208: 11.b. Filtering Practice #2 | C208: 11.b. Filtering Practice #2 | G208: 11.b. Filtering Practice #2 | J208: 11.b. Filtering Practice #2 | L208: 11.b. Filtering Practice #2
A209: 12.a. Constructed Wetland #1 | C209: 12.a. Constructed Wetland #1 | G209: 12.a. Constructed Wetland #1 | J209: 12.a. Constructed Wetland #1 | L209: 12.a. Constructed Wetland #1
A210: 12.b. Constructed Wetland #2 | C210: 12.b. Constructed Wetland #2 | G210: 12.b. Constructed Wetland #2 | J210: 12.b. Constructed Wetland #2 | L210: 12.b. Constructed Wetland #2
A211: 13.a. Wet Pond #1 | C211: 13.a. Wet Pond #1 | G211: 13.a. Wet Pond #1 | J211: 13.a. Wet Pond #1 | L211: 13.a. Wet Pond #1
A212: 13.b. Wet Pond #1 (Coastal Plain) | C212: 13.b. Wet Pond #1 (Coastal Plain) | G212: 13.b. Wet Pond #1 (Coastal Plain) | J212: 13.b. Wet Pond #1 (Coastal Plain) | L212: 13.b. Wet Pond #1 (Coastal Plain)
A213: 13.c. Wet Pond #2 | C213: 13.c. Wet Pond #2 | G213: 13.c. Wet Pond #2 | J213: 13.c. Wet Pond #2 | L213: 13.c. Wet Pond #2
A214: 13.d. Wet Pond #2 (Coastal Plain) | C214: 13.d. Wet Pond #2 (Coastal Plain) | G214: 13.d. Wet Pond #2 (Coastal Plain) | J214: 13.d. Wet Pond #2 (Coastal Plain) | L214: 13.d. Wet Pond #2 (Coastal Plain)
A215: 14.a. MTD - Hydrodynamic | C215: 14.a. MTD - Hydrodynamic | G215: 14.a. MTD - Hydrodynamic | J215: 14.a. MTD - Hydrodynamic | L215: 14.a. MTD - Hydrodynamic
A216: 14.b. MTD - Filtering | C216: 14.b. MTD - Filtering | G216: 14.b. MTD - Filtering | J216: 14.b. MTD - Filtering | L216: 14.b. MTD - Filtering
A217: 14.c. MTD - Generic | C217: 14.c. MTD - Generic | G217: 14.c. MTD - Generic | J217: 14.c. MTD - Generic | L217: 14.c. MTD - Generic
E219: Options for 12.a. Constructed Wetland #1 | G219: Options for 12.b. Constructed Wetland #2
A220: Options for 11 A. Filtering Practice #1 | C220: Options for 11 b. Filtering Practice #2 | J220: Options for 13.a. Wet Pond #1
A221: =P120 -> None | C221: =P120 -> None | E221: =P120 -> None | G221: =P120 -> None | J221: =P120 -> None | L221: Options for 13.b. Wet Pond #1 (Coastal Plain)
A222: =P131 -> 4.a. Grass Channel A/B Soils | C222: =P131 -> 4.a. Grass Channel A/B Soils | E222: =P131 -> 4.a. Grass Channel A/B Soils | G222: =P131 -> 4.a. Grass Channel A/B Soils | J222: =P131 -> 4.a. Grass Channel A/B Soils | L222: =P120 -> None
A223: 4.b. Grass Channel C/D Soils | C223: 4.b. Grass Channel C/D Soils | E223: 4.b. Grass Channel C/D Soils | G223: 4.b. Grass Channel C/D Soils | J223: 4.b. Grass Channel C/D Soils | L223: =P131 -> 4.a. Grass Channel A/B Soils
A224: 4.c. Grass Channel Compost Amended Soils | C224: 4.c. Grass Channel Compost Amended Soils | E224: 4.c. Grass Channel Compost Amended Soils | G224: 4.c. Grass Channel Compost Amended Soils | J224: 4.c. Grass Channel Compost Amended Soils | L224: 4.b. Grass Channel C/D Soils
A225: 5.a. Dry Swale #1 | C225: 5.a. Dry Swale #1 | E225: 5.a. Dry Swale #1 | G225: 5.a. Dry Swale #1 | J225: 5.a. Dry Swale #1 | L225: 4.c. Grass Channel Compost Amended Soils
A226: 5.b. Dry Swale #2 | C226: 5.b. Dry Swale #2 | E226: 5.b. Dry Swale #2 | G226: 5.b. Dry Swale #2 | J226: 5.b. Dry Swale #2 | L226: 5.a. Dry Swale #1
A227: 6.a. Bioretention #1 | C227: 6.a. Bioretention #1 | E227: 6.a. Bioretention #1 | G227: 6.a. Bioretention #1 | J227: 6.a. Bioretention #1 | L227: 5.b. Dry Swale #2
A228: 6.b. Bioretention #2 | C228: 6.b. Bioretention #2 | E228: 6.b. Bioretention #2 | G228: 6.b. Bioretention #2 | J228: 6.b. Bioretention #2 | L228: 6.a. Bioretention #1
A229: 7.a. Infiltration #1 | C229: 7.a. Infiltration #1 | E229: 7.a. Infiltration #1 | G229: 7.a. Infiltration #1 | J229: 7.a. Infiltration #1 | L229: 6.b. Bioretention #2
A230: 7.b. Infiltration #2 | C230: 7.b. Infiltration #2 | E230: 7.b. Infiltration #2 | G230: 7.b. Infiltration #2 | J230: 7.b. Infiltration #2 | L230: 7.a. Infiltration #1
A231: 8.a. ED #1 | C231: 8.a. ED #1 | E231: 8.a. ED #1 | G231: 8.a. ED #1 | J231: 8.a. ED #1 | L231: 7.b. Infiltration #2
A232: 8.b. ED #2 | C232: 8.b. ED #2 | E232: 8.b. ED #2 | G232: 8.b. ED #2 | J232: 8.b. ED #2 | L232: 8.a. ED #1
A233: 9.a. Sheetflow to A/B Soil Conservation Area | C233: 9.a. Sheetflow to A/B Soil Conservation Area | E233: 9.a. Sheetflow to A/B Soil Conservation Area | G233: 9.a. Sheetflow to A/B Soil Conservation Area | J233: 9.a. Sheetflow to A/B Soil Conservation Area | L233: 8.b. ED #2
A234: 9.b. Sheetflow to C/D Soil Conservation Area | C234: 9.b. Sheetflow to C/D Soil Conservation Area | E234: 9.b. Sheetflow to C/D Soil Conservation Area | G234: 9.b. Sheetflow to C/D Soil Conservation Area | J234: 9.b. Sheetflow to C/D Soil Conservation Area | L234: 9.a. Sheetflow to A/B Soil Conservation Area
A235: 9.c. Sheetflow to Vegetated Filter Strip | C235: 9.c. Sheetflow to Vegetated Filter Strip | E235: 9.c. Sheetflow to Vegetated Filter Strip | G235: 9.c. Sheetflow to Vegetated Filter Strip | J235: 9.c. Sheetflow to Vegetated Filter Strip | L235: 9.b. Sheetflow to C/D Soil Conservation Area
A236: 10.a. Wet Swale #1 | C236: 10.a. Wet Swale #1 | E236: 10.a. Wet Swale #1 | G236: 10.a. Wet Swale #1 | J236: 10.a. Wet Swale #1 | L236: 9.c. Sheetflow to Vegetated Filter Strip
A237: 10.b. Wet Swale #2 | C237: 10.b. Wet Swale #2 | E237: 10.b. Wet Swale #2 | G237: 10.b. Wet Swale #2 | J237: 10.b. Wet Swale #2 | L237: 10.a. Wet Swale #1
... 37 more rows

Sheet D.A. B
A1: Drainage Area B
Y2: Check Areas! | AA2: CHECK AREAS!
A3: Drainage Area A Land Cover (acres) | B3: =IF($F$8>Site!$F$27,"Drainage area is greater than site area!",(IF(OR(F5>Site!F24,F6>Site!F25,F7>Site!F26),"Check Site Tab land cover areas!",""))) -> 
B4: A Soils | C4: B Soils | D4: C Soils | E4: D Soils | F4: Totals | G4: Land Cover Rv | N4: `
A5: Forest/Open Space (acres) | F5: =SUMIF(B5:E5,">=0") -> 0 | G5: =IF(F5>0,(B5*Site!E32+C5*Site!F32+D5*Site!G32+E5*Site!H32)/F5,0) -> 0
A6: Managed Turf (acres) | F6: =SUMIF(B6:E6,">=0") -> 0 | G6: =IF(F6>0,(B6*Site!E33+C6*Site!F33+D6*Site!G33+E6*Site!H33)/F6,0) -> 0
A7: Impervious Cover (acres) | F7: =SUMIF(B7:E7,">=0") -> 0 | G7: =IF(F7>0,((B7*Site!E34+C7*Site!F34+D7*Site!G34+E7*Site!H34)/F7),0) -> 0 | I7: Total Phosphorus Available for Removal in D.A. B (lb/yr) | M7: =Site!$B$31*Site!$B$36*($M$8/Site!$B$32)*Site!$B$33*2.72/43560 -> 0
E8: Total | F8: =SUM(F5:F7) -> 0 | I8: Post Development Treatment Volume in D.A. B (ft3) | M8: =IFERROR(Site!B32/12*(F6*G6+F7*G7)/(F6+F7)*(F6+F7)*43560,0) -> 0
A10: Stormwater Best Management Practices (RR = Runoff Reduction) | N10: --Select from dropdown lists--
A11: Practice | B11: Runoff Reduction Credit (%) | C11: Managed Turf Credit Area (acres) | D11: Impervious Cover Credit Area (acres) | E11: Volume from Upstream Practice (ft3) | F11: Runoff Reduction (ft3) | G11: Remaining Runoff Volume (ft3) | H11: Total BMP Treatment Volume (ft3) | I11: Phosphorus Removal Efficiency (%) | J11: Phosphorus Load from Upstream Practices (lb) | K11: Untreated Phosphorus Load to Practice (lb) | L11: Phosphorus Removed By Practice (lb) | M11: Remaining Phosphorus Load (lb) | N11: Downstream Practice to be Employed | Q11: Nitrogen Removal Efficiency (%) | R11: Nitrogen Load from Upstream Practices (lbs) | S11: Untreated Nitrogen Load to Practice (lbs) | T11: Nitrogen Removed By Practice (lbs) | U11: Remaining Nitrogen Load (lbs)
A12: 1. Vegetated Roof (RR) | Q12: 1. Vegetated Roof (RR)
A13: 1.a. Vegetated Roof #1 (Spec #5) | B13: 45 | F13: =(Site!$B$32*($G$7*$D13)*3630)*$B13/100 -> 0 | G13: =(Site!$B$32*($G$7*$D13)*3630)*(1-$B13/100) -> 0 | H13: =+$F13+$G13 -> 0 | I13: 0 | K13: =(Site!$B$32*($G$7*$D13)*3630)*Site!$B$33*0.3048^3/454*Site!$B$31/Site!$B$32*Site!$B$36 -> 0 | L13: =IFERROR($K13*($F13+$G13*$I13/100)/($H13),0) -> 0 | M13: =$K13-$L13 -> 0 | Q13: 0 | S13: =(Site!$B$32*$G$7*$D13*3630)*Site!$B$34*0.3048^3/454*Site!$B$31/Site!$B$32*Site!$B$36 -> 0 | T13: =IFERROR($S13*($F13+$G13*$Q13/100)/$H13,0) -> 0 | U13: =$S13-$T13 -> 0
A14: 1.b. Vegetated Roof #2 (Spec #5) | B14: 60 | F14: =(Site!$B$32*($G$7*$D14)*3630)*$B14/100 -> 0 | G14: =(Site!$B$32*($G$7*$D14)*3630)*(1-$B14/100) -> 0 | H14: =+$F14+$G14 -> 0 | I14: 0 | K14: =(Site!$B$32*($G$7*$D14)*3630)*Site!$B$33*0.3048^3/454*Site!$B$31/Site!$B$32*Site!$B$36 -> 0 | L14: =IFERROR($K14*($F14+$G14*$I14/100)/($H14),0) -> 0 | M14: =$K14-$L14 -> 0 | Q14: 0 | S14: =(Site!$B$32*$G$7*$D14*3630)*Site!$B$34*0.3048^3/454*Site!$B$31/Site!$B$32*Site!$B$36 -> 0 | T14: =IFERROR($S14*($F14+$G14*$Q14/100)/$H14,0) -> 0 | U14: =$S14-$T14 -> 0
A16: 2. Rooftop Disconnection (RR) | Q16: 2. Rooftop Disconnection (RR)
A17: 2.a. Simple Disconnection to A/B Soils (Spec #1) | B17: 50 | E17: =SUMIF($N$13:$N$92,$P121,$G$13:$G$92) -> 0 | F17: =(Site!$B$32*($G$6*$C17+$G$7*$D17)*3630+$E17)*$B17/100 -> 0 | G17: =(Site!$B$32*($G$6*$C17+$G$7*$D17)*3630+$E17)*(1-$B17/100) -> 0 | H17: =+$F17+$G17 -> 0 | I17: 0 | J17: =SUMIF($N$13:$N$92,$P121,$M$13:$M$92) -> 0 | K17: =(Site!$B$32*($G$6*$C17+$G$7*$D17)*3630)*Site!$B$33*0.3048^3/454*Site!$B$31/Site!$B$32*Site!$B$36 -> 0 | L17: =IFERROR(($J17+$K17)*($F17+$G17*$I17/100)/$H17,0) -> 0 | M17: =$J17+$K17-$L17 -> 0 | Q17: 0 | R17: =SUMIF($N$13:$N$92,$P121,$U$13:$U$92) -> 0 | S17: =(Site!$B$32*$G$7*$D17*3630)*Site!$B$34*0.3048^3/454*Site!$B$31/Site!$B$32*Site!$B$36 -> 0 | T17: =IFERROR(($R17+$S17)*($F17+$G17*$Q17/100)/$H17,0) -> 0 | U17: =$R17+$S17-$T17 -> 0
A18: 2.b. Simple Disconnection to C/D Soils (Spec #1) | B18: 25 | E18: =SUMIF($N$13:$N$92,$P122,$G$13:$G$92) -> 0 | F18: =(Site!$B$32*($G$6*$C18+$G$7*$D18)*3630+$E18)*$B18/100 -> 0 | G18: =(Site!$B$32*($G$6*$C18+$G$7*$D18)*3630+$E18)*(1-$B18/100) -> 0 | H18: =+$F18+$G18 -> 0 | I18: 0 | J18: =SUMIF($N$13:$N$92,$P122,$M$13:$M$92) -> 0 | K18: =(Site!$B$32*($G$6*$C18+$G$7*$D18)*3630)*Site!$B$33*0.3048^3/454*Site!$B$31/Site!$B$32*Site!$B$36 -> 0 | L18: =IFERROR(($J18+$K18)*($F18+$G18*$I18/100)/$H18,0) -> 0 | M18: 0 | Q18: 0 | R18: =SUMIF($N$13:$N$92,$P122,$U$13:$U$92) -> 0 | S18: =(Site!$B$32*$G$7*$D18*3630)*Site!$B$34*0.3048^3/454*Site!$B$31/Site!$B$32*Site!$B$36 -> 0 | T18: =IFERROR(($R18+$S18)*($F18+$G18*$Q18/100)/$H18,0) -> 0 | U18: 0
A19: 2.c. To Soil Amended Filter Path as per specifications (existing C/D soils) (Spec #4) | B19: 50 | E19: 0 | F19: =(Site!$B$32*($G$6*$C19+$G$7*$D19)*3630+$E19)*$B19/100 -> 0 | G19: =(Site!$B$32*($G$6*$C19+$G$7*$D19)*3630+$E19)*(1-$B19/100) -> 0 | H19: 0 | I19: 0 | J19: 0 | K19: =(Site!$B$32*($G$6*$C19+$G$7*$D19)*3630)*Site!$B$33*0.3048^3/454*Site!$B$31/Site!$B$32*Site!$B$36 -> 0 | L19: 0 | M19: 0 | Q19: 0 | R19: 0 | S19: =(Site!$B$32*$G$7*$D19*3630)*Site!$B$34*0.3048^3/454*Site!$B$31/Site!$B$32*Site!$B$36 -> 0 | T19: 0 | U19: 0
A20: 2.d. To Dry Well or French Drain #1, Micro-Infilration #1 (Spec #8) | B20: 50 | E20: 0 | F20: =(Site!$B$32*($G$6*$C20+$G$7*$D20)*3630+$E20)*$B20/100 -> 0 | G20: =(Site!$B$32*($G$6*$C20+$G$7*$D20)*3630+$E20)*(1-$B20/100) -> 0 | H20: 0 | I20: 25 | J20: 0 | K20: =(Site!$B$32*($G$6*$C20+$G$7*$D20)*3630)*Site!$B$33*0.3048^3/454*Site!$B$31/Site!$B$32*Site!$B$36 -> 0 | L20: 0 | M20: 0 | Q20: 15 | R20: 0 | S20: =(Site!$B$32*$G$7*$D20*3630)*Site!$B$34*0.3048^3/454*Site!$B$31/Site!$B$32*Site!$B$36 -> 0 | T20: 0 | U20: 0
A21: 2.e. To Dry Well or French Drain #2, Micro-Infiltration #2 (Spec #8) | B21: 90 | E21: 0 | F21: =(Site!$B$32*($G$6*$C21+$G$7*$D21)*3630+$E21)*$B21/100 -> 0 | G21: =(Site!$B$32*($G$6*$C21+$G$7*$D21)*3630+$E21)*(1-$B21/100) -> 0 | H21: 0 | I21: 25 | J21: 0 | K21: =(Site!$B$32*($G$6*$C21+$G$7*$D21)*3630)*Site!$B$33*0.3048^3/454*Site!$B$31/Site!$B$32*Site!$B$36 -> 0 | L21: 0 | M21: 0 | Q21: 15 | R21: 0 | S21: =(Site!$B$32*$G$7*$D21*3630)*Site!$B$34*0.3048^3/454*Site!$B$31/Site!$B$32*Site!$B$36 -> 0 | T21: 0 | U21: 0
A22: 2.f. To Rain Garden #1, Micro-Bioretention #1 (Spec #9) | B22: 40 | E22: 0 | F22: =(Site!$B$32*($G$6*$C22+$G$7*$D22)*3630+$E22)*$B22/100 -> 0 | G22: =(Site!$B$32*($G$6*$C22+$G$7*$D22)*3630+$E22)*(1-$B22/100) -> 0 | H22: 0 | I22: 25 | J22: 0 | K22: =(Site!$B$32*($G$6*$C22+$G$7*$D22)*3630)*Site!$B$33*0.3048^3/454*Site!$B$31/Site!$B$32*Site!$B$36 -> 0 | L22: 0 | M22: 0 | Q22: 40 | R22: 0 | S22: =(Site!$B$32*$G$7*$D22*3630)*Site!$B$34*0.3048^3/454*Site!$B$31/Site!$B$32*Site!$B$36 -> 0 | T22: 0 | U22: 0
A23: 2.g. To Rain Garden #2, Micro-Bioretention #2 (Spec #9) | B23: 80 | E23: 0 | F23: =(Site!$B$32*($G$6*$C23+$G$7*$D23)*3630+$E23)*$B23/100 -> 0 | G23: =(Site!$B$32*($G$6*$C23+$G$7*$D23)*3630+$E23)*(1-$B23/100) -> 0 | H23: 0 | I23: 50 | J23: 0 | K23: =(Site!$B$32*($G$6*$C23+$G$7*$D23)*3630)*Site!$B$33*0.3048^3/454*Site!$B$31/Site!$B$32*Site!$B$36 -> 0 | L23: 0 | M23: 0 | Q23: 60 | R23: 0 | S23: =(Site!$B$32*$G$7*$D23*3630)*Site!$B$34*0.3048^3/454*Site!$B$31/Site!$B$32*Site!$B$36 -> 0 | T23: 0 | U23: 0
A24: 2.h. To Rainwater Harvesting (Spec #6) | B24: 0 | E24: 0 | F24: =(Site!$B$32*($G$6*$C24+$G$7*$D24)*3630+$E24)*$B24/100 -> 0 | G24: =(Site!$B$32*($G$6*$C24+$G$7*$D24)*3630+$E24)*(1-$B24/100) -> 0 | H24: 0 | I24: 0 | J24: 0 | K24: =(Site!$B$32*($G$6*$C24+$G$7*$D24)*3630)*Site!$B$33*0.3048^3/454*Site!$B$31/Site!$B$32*Site!$B$36 -> 0 | L24: 0 | M24: 0 | Q24: 0 | R24: 0 | S24: =(Site!$B$32*$G$7*$D24*3630)*Site!$B$34*0.3048^3/454*Site!$B$31/Site!$B$32*Site!$B$36 -> 0 | T24: 0 | U24: 0
A25: 2.i. To Stormwater Planter, Urban Bioretention (Spec #9, Appendix A) | B25: 40 | E25: 0 | F25: =(Site!$B$32*($G$6*$C25+$G$7*$D25)*3630+$E25)*$B25/100 -> 0 | G25: =(Site!$B$32*($G$6*$C25+$G$7*$D25)*3630+$E25)*(1-$B25/100) -> 0 | H25: 0 | I25: 25 | J25: 0 | K25: =(Site!$B$32*($G$6*$C25+$G$7*$D25)*3630)*Site!$B$33*0.3048^3/454*Site!$B$31/Site!$B$32*Site!$B$36 -> 0 | L25: 0 | M25: 0 | Q25: 40 | R25: 0 | S25: =(Site!$B$32*$G$7*$D25*3630)*Site!$B$34*0.3048^3/454*Site!$B$31/Site!$B$32*Site!$B$36 -> 0 | T25: 0 | U25: 0
A27: 3. Permeable Pavement (RR) | Q27: 3. Permeable Pavement (RR)
A28: 3.a. Permeable Pavement #1 (Spec #7) | B28: 45 | E28: =SUMIF($N$13:$N$92,$P130,$G$13:$G$92) -> 0 | F28: =(Site!$B$32*($G$6*$C28+$G$7*$D28)*3630+$E28)*$B28/100 -> 0 | G28: =(Site!$B$32*($G$6*$C28+$G$7*$D28)*3630+$E28)*(1-$B28/100) -> 0 | H28: =+$F28+$G28 -> 0 | I28: 25 | J28: =SUMIF($N$13:$N$92,$P130,$M$13:$M$92) -> 0 | K28: =(Site!$B$32*($G$6*$C28+$G$7*$D28)*3630)*Site!$B$33*0.3048^3/454*Site!$B$31/Site!$B$32*Site!$B$36 -> 0 | L28: =IFERROR(($J28+$K28)*($F28+$G28*$I28/100)/$H28,0) -> 0 | M28: =$J28+$K28-$L28 -> 0 | Q28: 25 | R28: =SUMIF($N$13:$N$92,$P130,$U$13:$U$92) -> 0 | S28: =(Site!$B$32*($G$6*$C28+$G$7*$D28)*3630)*Site!$B$34*0.3048^3/454*Site!$B$31/Site!$B$32*Site!$B$36 -> 0 | T28: =IFERROR(($R28+$S28)*($F28+$G28*$Q28/100)/$H28,0) -> 0 | U28: =$R28+$S28-$T28 -> 0
A29: 3.b. Permeable Pavement #2 (Spec #7) | B29: 75 | F29: =(Site!$B$32*($G$6*$C29+$G$7*$D29)*3630+$E29)*$B29/100 -> 0 | G29: =(Site!$B$32*($G$6*$C29+$G$7*$D29)*3630+$E29)*(1-$B29/100) -> 0 | H29: =+$F29+$G29 -> 0 | I29: 25 | K29: =(Site!$B$32*($G$6*$C29+$G$7*$D29)*3630)*Site!$B$33*0.3048^3/454*Site!$B$31/Site!$B$32*Site!$B$36 -> 0 | L29: =IFERROR(($J29+$K29)*($F29+$G29*$I29/100)/$H29,0) -> 0 | M29: =$K29-$L29 -> 0 | Q29: 25 | S29: =(Site!$B$32*$G$7*$D29*3630)*Site!$B$34*0.3048^3/454*Site!$B$31/Site!$B$32*Site!$B$36 -> 0 | T29: =IFERROR(($R29+$S29)*($F29+$G29*$Q29/100)/$H29,0) -> 0 | U29: =$R29+$S29-$T29 -> 0
A31: 4. Grass Channel (RR) | Q31: 4. Grass Channel (RR)
A32: 4.a. Grass Channel A/B Soils (Spec #3) | B32: 20 | E32: =SUMIF($N$13:$N$92,$P131,$G$13:$G$92) -> 0 | F32: =(Site!$B$32*($G$6*$C32+$G$7*$D32)*3630+$E32)*$B32/100 -> 0 | G32: =(Site!$B$32*($G$6*$C32+$G$7*$D32)*3630+$E32)*(1-$B32/100) -> 0 | H32: =+$F32+$G32 -> 0 | I32: 15 | J32: =SUMIF($N$13:$N$92,$P131,$M$13:$M$92) -> 0 | K32: =(Site!$B$32*($G$6*$C32+$G$7*$D32)*3630)*Site!$B$33*0.3048^3/454*Site!$B$31/Site!$B$32*Site!$B$36 -> 0 | L32: =IFERROR(($J32+$K32)*($F32+$G32*$I32/100)/$H32,0) -> 0 | M32: =$J32+$K32-$L32 -> 0 | Q32: 20 | R32: =SUMIF($N$13:$N$92,$P131,$U$13:$U$92) -> 0 | S32: =(Site!$B$32*($G$6*$C32+$G$7*$D32)*3630)*Site!$B$34*0.3048^3/454*Site!$B$31/Site!$B$32*Site!$B$36 -> 0 | T32: =IFERROR(($R32+$S32)*($F32+$G32*$Q32/100)/$H32,0) -> 0 | U32: =$R32+$S32-$T32 -> 0
A33: 4.b. Grass Channel C/D Soils (Spec #3) | B33: 10 | E33: =SUMIF($N$13:$N$92,$P132,$G$13:$G$92) -> 0 | F33: =(Site!$B$32*($G$6*$C33+$G$7*$D33)*3630+$E33)*$B33/100 -> 0 | G33: =(Site!$B$32*($G$6*$C33+$G$7*$D33)*3630+$E33)*(1-$B33/100) -> 0 | H33: =+$F33+$G33 -> 0 | I33: 15 | J33: =SUMIF($N$13:$N$92,$P132,$M$13:$M$92) -> 0 | K33: =(Site!$B$32*($G$6*$C33+$G$7*$D33)*3630)*Site!$B$33*0.3048^3/454*Site!$B$31/Site!$B$32*Site!$B$36 -> 0 | L33: =IFERROR(($J33+$K33)*($F33+$G33*$I33/100)/$H33,0) -> 0 | M33: =$J33+$K33-$L33 -> 0 | Q33: 20 | R33: =SUMIF($N$13:$N$92,$P132,$U$13:$U$92) -> 0 | S33: =(Site!$B$32*($G$6*$C33+$G$7*$D33)*3630)*Site!$B$34*0.3048^3/454*Site!$B$31/Site!$B$32*Site!$B$36 -> 0 | T33: =IFERROR(($R33+$S33)*($F33+$G33*$Q33/100)/$H33,0) -> 0 | U33: =$R33+$S33-$T33 -> 0
A34: 4.c. Grass Channel with Compost Amended Soils as per specs (see Spec #4) | B34: =IF(Site!$J$11="2011 Stds & Specs",30,20) -> 20 | E34: 0 | F34: =(Site!$B$32*($G$6*$C34+$G$7*$D34)*3630+$E34)*$B34/100 -> 0 | G34: =(Site!$B$32*($G$6*$C34+$G$7*$D34)*3630+$E34)*(1-$B34/100) -> 0 | H34: 0 | I34: 15 | J34: =SUMIF($N$13:$N$92,$P133,$M$13:$M$92) -> 0 | K34: =(Site!$B$32*($G$6*$C34+$G$7*$D34)*3630)*Site!$B$33*0.3048^3/454*Site!$B$31/Site!$B$32*Site!$B$36 -> 0 | L34: 0 | M34: 0 | Q34: 20 | R34: 0 | S34: =(Site!$B$32*($G$6*$C34+$G$7*$D34)*3630)*Site!$B$34*0.3048^3/454*Site!$B$31/Site!$B$32*Site!$B$36 -> 0 | T34: 0 | U34: 0
W35: `
A36: 5. Dry Swale (RR) | Q36: 5. Dry Swale (RR)
A37: 5.a. Dry Swale #1 (Spec #10) | B37: 40 | E37: =SUMIF($N$13:$N$92,$P134,$G$13:$G$92) -> 0 | F37: =(Site!$B$32*($G$6*$C37+$G$7*$D37)*3630+$E37)*$B37/100 -> 0 | G37: =(Site!$B$32*($G$6*$C37+$G$7*$D37)*3630+$E37)*(1-$B37/100) -> 0 | H37: =+$F37+$G37 -> 0 | I37: 20 | J37: =SUMIF($N$13:$N$92,$P134,$M$13:$M$92) -> 0 | K37: =(Site!$B$32*($G$6*$C37+$G$7*$D37)*3630)*Site!$B$33*0.3048^3/454*Site!$B$31/Site!$B$32*Site!$B$36 -> 0 | L37: =IFERROR(($J37+$K37)*($F37+$G37*$I37/100)/$H37,0) -> 0 | M37: =$J37+$K37-$L37 -> 0 | Q37: 25 | R37: =SUMIF($N$13:$N$92,$P134,$U$13:$U$92) -> 0 | S37: =(Site!$B$32*($G$6*$C37+$G$7*$D37)*3630)*Site!$B$34*0.3048^3/454*Site!$B$31/Site!$B$32*Site!$B$36 -> 0 | T37: =IFERROR(($R37+$S37)*($F37+$G37*$Q37/100)/$H37,0) -> 0 | U37: =$R37+$S37-$T37 -> 0
A38: 5.b. Dry Swale #2 (Spec #10) | B38: 60 | E38: =SUMIF($N$13:$N$92,$P135,$G$13:$G$92) -> 0 | F38: =(Site!$B$32*($G$6*$C38+$G$7*$D38)*3630+$E38)*$B38/100 -> 0 | G38: =(Site!$B$32*($G$6*$C38+$G$7*$D38)*3630+$E38)*(1-$B38/100) -> 0 | H38: =+$F38+$G38 -> 0 | I38: 40 | J38: =SUMIF($N$13:$N$92,$P135,$M$13:$M$92) -> 0 | K38: =(Site!$B$32*($G$6*$C38+$G$7*$D38)*3630)*Site!$B$33*0.3048^3/454*Site!$B$31/Site!$B$32*Site!$B$36 -> 0 | L38: =IFERROR(($J38+$K38)*($F38+$G38*$I38/100)/$H38,0) -> 0 | M38: =$J38+$K38-$L38 -> 0 | Q38: 35 | R38: =SUMIF($N$13:$N$92,$P135,$U$13:$U$92) -> 0 | S38: =(Site!$B$32*($G$6*$C38+$G$7*$D38)*3630)*Site!$B$34*0.3048^3/454*Site!$B$31/Site!$B$32*Site!$B$36 -> 0 | T38: 0 | U38: 0
A40: 6. Bioretention (RR) | Q40: 6. Bioretention (RR)
A41: 6.a. Bioretention #1 or Micro-Bioretention #1 or Urban Bioretention (Spec #9) | B41: 40 | E41: =SUMIF($N$13:$N$92,$P136,$G$13:$G$92) -> 0 | F41: =(Site!$B$32*($G$6*$C41+$G$7*$D41)*3630+$E41)*$B41/100 -> 0 | G41: =(Site!$B$32*($G$6*$C41+$G$7*$D41)*3630+$E41)*(1-$B41/100) -> 0 | H41: =+$F41+$G41 -> 0 | I41: 25 | J41: =SUMIF($N$13:$N$92,$P136,$M$13:$M$92) -> 0 | K41: =(Site!$B$32*($G$6*$C41+$G$7*$D41)*3630)*Site!$B$33*0.3048^3/454*Site!$B$31/Site!$B$32*Site!$B$36 -> 0 | L41: =IFERROR(($J41+$K41)*($F41+$G41*$I41/100)/$H41,0) -> 0 | M41: =$J41+$K41-$L41 -> 0 | Q41: 40 | R41: =SUMIF($N$13:$N$92,$P136,$U$13:$U$92) -> 0 | S41: =(Site!$B$32*($G$6*$C41+$G$7*$D41)*3630)*Site!$B$34*0.3048^3/454*Site!$B$31/Site!$B$32*Site!$B$36 -> 0 | T41: =IFERROR(($R41+$S41)*($F41+$G41*$Q41/100)/$H41,0) -> 0 | U41: =$R41+$S41-$T41 -> 0
A42: 6.b. Bioretention #2 or Micro-Bioretention #2 (Spec #9) | B42: 80 | E42: =SUMIF($N$13:$N$92,$P137,$G$13:$G$92) -> 0 | F42: =(Site!$B$32*($G$6*$C42+$G$7*$D42)*3630+$E42)*$B42/100 -> 0 | G42: =(Site!$B$32*($G$6*$C42+$G$7*$D42)*3630+$E42)*(1-$B42/100) -> 0 | H42: =+$F42+$G42 -> 0 | I42: 50 | J42: =SUMIF($N$13:$N$92,$P137,$M$13:$M$92) -> 0 | K42: =(Site!$B$32*($G$6*$C42+$G$7*$D42)*3630)*Site!$B$33*0.3048^3/454*Site!$B$31/Site!$B$32*Site!$B$36 -> 0 | L42: =IFERROR(($J42+$K42)*($F42+$G42*$I42/100)/$H42,0) -> 0 | M42: =$J42+$K42-$L42 -> 0 | Q42: 60 | R42: =SUMIF($N$13:$N$92,$P137,$U$13:$U$92) -> 0 | S42: =(Site!$B$32*($G$6*$C42+$G$7*$D42)*3630)*Site!$B$34*0.3048^3/454*Site!$B$31/Site!$B$32*Site!$B$36 -> 0 | T42: 0 | U42: 0
A44: 7. Infiltration (RR) | Q44: 7. Infiltration (RR)
A45: 7.a. Infiltration #1 (Spec #8) | B45: 50 | E45: =SUMIF($N$13:$N$92,$P138,$G$13:$G$92) -> 0 | F45: =(Site!$B$32*($G$6*$C45+$G$7*$D45)*3630+$E45)*$B45/100 -> 0 | G45: =(Site!$B$32*($G$6*$C45+$G$7*$D45)*3630+$E45)*(1-$B45/100) -> 0 | H45: =+$F45+$G45 -> 0 | I45: 25 | J45: =SUMIF($N$13:$N$92,$P138,$M$13:$M$92) -> 0 | K45: =(Site!$B$32*($G$6*$C45+$G$7*$D45)*3630)*Site!$B$33*0.3048^3/454*Site!$B$31/Site!$B$32*Site!$B$36 -> 0 | L45: =IFERROR(($J45+$K45)*($F45+$G45*$I45/100)/$H45,0) -> 0 | M45: =$J45+$K45-$L45 -> 0 | Q45: 15 | R45: =SUMIF($N$13:$N$92,$P138,$U$13:$U$92) -> 0 | S45: =(Site!$B$32*($G$6*$C45+$G$7*$D45)*3630)*Site!$B$34*0.3048^3/454*Site!$B$31/Site!$B$32*Site!$B$36 -> 0 | T45: =IFERROR(($R45+$S45)*($F45+$G45*$Q45/100)/$H45,0) -> 0 | U45: =$R45+$S45-$T45 -> 0
A46: 7.b. Infiltration #2 (Spec #8) | B46: 90 | E46: =SUMIF($N$13:$N$92,$P139,$G$13:$G$92) -> 0 | F46: =(Site!$B$32*($G$6*$C46+$G$7*$D46)*3630+$E46)*$B46/100 -> 0 | G46: =(Site!$B$32*($G$6*$C46+$G$7*$D46)*3630+$E46)*(1-$B46/100) -> 0 | H46: =+$F46+$G46 -> 0 | I46: 25 | J46: =SUMIF($N$13:$N$92,$P139,$M$13:$M$92) -> 0 | K46: =(Site!$B$32*($G$6*$C46+$G$7*$D46)*3630)*Site!$B$33*0.3048^3/454*Site!$B$31/Site!$B$32*Site!$B$36 -> 0 | L46: =IFERROR(($J46+$K46)*($F46+$G46*$I46/100)/$H46,0) -> 0 | M46: =$J46+$K46-$L46 -> 0 | Q46: 15 | R46: =SUMIF($N$13:$N$92,$P139,$U$13:$U$92) -> 0 | S46: =(Site!$B$32*($G$6*$C46+$G$7*$D46)*3630)*Site!$B$34*0.3048^3/454*Site!$B$31/Site!$B$32*Site!$B$36 -> 0 | T46: 0 | U46: 0
A48: 8. Extended Detention Pond (RR) | Q48: 8. Extended Detention Pond (RR)
A49: 8.a. ED #1 (Spec #15) | B49: 0 | E49: =SUMIF($N$13:$N$92,$P140,$G$13:$G$92) -> 0 | F49: =(Site!$B$32*($G$6*$C49+$G$7*$D49)*3630+$E49)*$B49/100 -> 0 | G49: =(Site!$B$32*($G$6*$C49+$G$7*$D49)*3630+$E49)*(1-$B49/100) -> 0 | H49: =+$F49+$G49 -> 0 | I49: 15 | J49: =SUMIF($N$13:$N$92,$P140,$M$13:$M$92) -> 0 | K49: =(Site!$B$32*($G$6*$C49+$G$7*$D49)*3630)*Site!$B$33*0.3048^3/454*Site!$B$31/Site!$B$32*Site!$B$36 -> 0 | L49: =IFERROR(($J49+$K49)*($F49+$G49*$I49/100)/$H49,0) -> 0 | M49: =$J49+$K49-$L49 -> 0 | Q49: 10 | R49: =SUMIF($N$13:$N$92,$P140,$U$13:$U$92) -> 0 | S49: =(Site!$B$32*($G$6*$C49+$G$7*$D49)*3630)*Site!$B$34*0.3048^3/454*Site!$B$31/Site!$B$32*Site!$B$36 -> 0 | T49: =IFERROR(($R49+$S49)*($F49+$G49*$Q49/100)/$H49,0) -> 0 | U49: =$R49+$S49-$T49 -> 0
A50: 8.b. ED #2 (Spec #15) | B50: 15 | E50: =SUMIF($N$13:$N$92,$P141,$G$13:$G$92) -> 0 | F50: =(Site!$B$32*($G$6*$C50+$G$7*$D50)*3630+$E50)*$B50/100 -> 0 | G50: =(Site!$B$32*($G$6*$C50+$G$7*$D50)*3630+$E50)*(1-$B50/100) -> 0 | H50: =+$F50+$G50 -> 0 | I50: 15 | J50: =SUMIF($N$13:$N$92,$P141,$M$13:$M$92) -> 0 | K50: =(Site!$B$32*($G$6*$C50+$G$7*$D50)*3630)*Site!$B$33*0.3048^3/454*Site!$B$31/Site!$B$32*Site!$B$36 -> 0 | L50: 0 | M50: 0 | Q50: 10 | R50: =SUMIF($N$13:$N$92,$P141,$U$13:$U$92) -> 0 | S50: =(Site!$B$32*($G$6*$C50+$G$7*$D50)*3630)*Site!$B$34*0.3048^3/454*Site!$B$31/Site!$B$32*Site!$B$36 -> 0 | T50: 0 | U50: 0
A52: 9. Sheetflow to Filter/Open Space (RR) | Q52: 9. Sheetflow to Filter/Open Space (RR)
A53: 9.a. Sheetflow to Conservation Area, A/B Soils (Spec #2) | B53: 75 | E53: =SUMIF($N$13:$N$92,$P142,$G$13:$G$92) -> 0 | F53: =(Site!$B$32*($G$6*$C53+$G$7*$D53)*3630+$E53)*$B53/100 -> 0 | G53: =(Site!$B$32*($G$6*$C53+$G$7*$D53)*3630+$E53)*(1-$B53/100) -> 0 | H53: =+$F53+$G53 -> 0 | I53: 0 | J53: =SUMIF($N$13:$N$92,$P142,$M$13:$M$92) -> 0 | K53: =(Site!$B$32*($G$6*$C53+$G$7*$D53)*3630)*Site!$B$33*0.3048^3/454*Site!$B$31/Site!$B$32*Site!$B$36 -> 0 | L53: =IFERROR(($J53+$K53)*($F53+$G53*$I53/100)/$H53,0) -> 0 | M53: =$J53+$K53-$L53 -> 0 | Q53: 0 | R53: =SUMIF($N$13:$N$92,$P142,$U$13:$U$92) -> 0 | S53: =(Site!$B$32*($G$6*$C53+$G$7*$D53)*3630)*Site!$B$34*0.3048^3/454*Site!$B$31/Site!$B$32*Site!$B$36 -> 0 | T53: =IFERROR(($R53+$S53)*($F53+$G53*$Q53/100)/$H53,0) -> 0 | U53: =$R53+$S53-$T53 -> 0
A54: 9.b. Sheetflow to Conservation Area, C/D Soils (Spec #2) | B54: 50 | E54: =SUMIF($N$13:$N$92,$P143,$G$13:$G$92) -> 0 | F54: =(Site!$B$32*($G$6*$C54+$G$7*$D54)*3630+$E54)*$B54/100 -> 0 | G54: =(Site!$B$32*($G$6*$C54+$G$7*$D54)*3630+$E54)*(1-$B54/100) -> 0 | H54: =+$F54+$G54 -> 0 | I54: 0 | J54: =SUMIF($N$13:$N$92,$P143,$M$13:$M$92) -> 0 | K54: =(Site!$B$32*($G$6*$C54+$G$7*$D54)*3630)*Site!$B$33*0.3048^3/454*Site!$B$31/Site!$B$32*Site!$B$36 -> 0 | L54: 0 | M54: 0 | Q54: 0 | R54: =SUMIF($N$13:$N$92,$P143,$U$13:$U$92) -> 0 | S54: =(Site!$B$32*($G$6*$C54+$G$7*$D54)*3630)*Site!$B$34*0.3048^3/454*Site!$B$31/Site!$B$32*Site!$B$36 -> 0 | T54: 0 | U54: 0
A55: 9.c. Sheetflow to Vegetated Filter Strip, A Soils or Compost Amended B/C/D Soils (Spec #2 & #4) | B55: 50 | E55: 0 | F55: =(Site!$B$32*($G$6*$C55+$G$7*$D55)*3630+$E55)*$B55/100 -> 0 | G55: =(Site!$B$32*($G$6*$C55+$G$7*$D55)*3630+$E55)*(1-$B55/100) -> 0 | H55: 0 | I55: 0 | J55: 0 | K55: =(Site!$B$32*($G$6*$C55+$G$7*$D55)*3630)*Site!$B$33*0.3048^3/454*Site!$B$31/Site!$B$32*Site!$B$36 -> 0 | L55: 0 | M55: 0 | Q55: 0 | R55: 0 | S55: =(Site!$B$32*($G$6*$C55+$G$7*$D55)*3630)*Site!$B$34*0.3048^3/454*Site!$B$31/Site!$B$32*Site!$B$36 -> 0 | T55: 0 | U55: 0
E58: TOTAL IMPERVIOUS COVER TREATED (ac) | F58: =SUM(D13:D55) -> 0 | G58: AREA CHECK: | H58: =IF(F58>$F$7,"AREA EXCEEDED!","OK.") -> OK.
E59: TOTAL TURF AREA TREATED (ac) | F59: =SUM(C32:C55) -> 0 | G59: AREA CHECK: | H59: =IF(F59>$F$6,"AREA EXCEEDED!","OK.") -> OK.
E60: TOTAL RUNOFF REDUCTION IN D.A. B (ft3) | F60: =IFERROR(SUM($F$13:$F$55),0) -> 0
H62: TOTAL PHOSPHORUS AVAILABLE FOR REMOVAL IN D.A. B (lb/yr) | I62: =$M$7 -> 0
H63: TOTAL PHOSPHORUS REMOVED WITH RUNOFF REDUCTION PRACTICES IN D.A. B (lb/yr) | I63: =IFERROR(SUM(L13:L55),0) -> 0 | U63: TOTAL RUNOFF REDUCTION IN D.A. B (ft3) | V63: =F60 -> 0
H64: TOTAL PHOSPHORUS REMAINING AFTER APPLYING RUNOFF REDUCTION PRACTICES IN D.A. B (lb/yr) | I64: =I62-I63 -> 0 | U64: NITROGEN REMOVED WITH RUNOFF REDUCTION PRACTICES IN D.A. B (lb/yr) | V64: =SUM($T$13:$T$55) -> 0
C66: SEE WATER QUALITY COMPLIANCE TAB FOR SITE COMPLIANCE CALCULATIONS | V66: SEE WATER QUALITY COMPLIANCE TAB FOR SITE CALCULATIONS (Information Only)
A71: 10. Wet Swale (no RR) | R71: 10. Wet Swale (Coastal Plain) (no RR)
A72: 10.a. Wet Swale #1 (Spec #11) | B72: 0 | E72: =SUMIF($N$13:$N$92,$P145,$G$13:$G$92) -> 0 | F72: =(Site!$B$32*($G$6*$C72+$G$7*$D72)*3630+$E72)*$B72/100 -> 0 | G72: =(Site!$B$32*($G$6*$C72+$G$7*$D72)*3630+$E72)*(1-$B72/100) -> 0 | H72: =+$F72+$G72 -> 0 | I72: 20 | J72: =SUMIF($N$13:$N$92,$P145,$M$13:$M$92) -> 0 | K72: =(Site!$B$32*($G$6*$C72+$G$7*$D72)*3630)*Site!$B$33*0.3048^3/454*Site!$B$31/Site!$B$32*Site!$B$36 -> 0 | L72: =IFERROR(($J72+$K72)*($F72+$G72*$I72/100)/$H72,0) -> 0 | M72: =$J72+$K72-$L72 -> 0 | Q72: 25 | R72: =SUMIF($N$13:$N$92,$P145,$U$13:$U$92) -> 0 | S72: =(Site!$B$32*($G$6*$C72+$G$7*$D72)*3630)*Site!$B$34*0.3048^3/454*Site!$B$31/Site!$B$32*Site!$B$36 -> 0 | T72: =IFERROR(($R72+$S72)*($F72+$G72*$Q72/100)/$H72,0) -> 0 | U72: =$R72+$S72-$T72 -> 0
A73: 10.b. Wet Swale #2 (Spec #11) | B73: 0 | E73: =SUMIF($N$13:$N$92,$P146,$G$13:$G$92) -> 0 | F73: =(Site!$B$32*($G$6*$C73+$G$7*$D73)*3630+$E73)*$B73/100 -> 0 | G73: =(Site!$B$32*($G$6*$C73+$G$7*$D73)*3630+$E73)*(1-$B73/100) -> 0 | H73: 0 | I73: 40 | J73: =SUMIF($N$13:$N$92,$P146,$M$13:$M$92) -> 0 | K73: =(Site!$B$32*($G$6*$C73+$G$7*$D73)*3630)*Site!$B$33*0.3048^3/454*Site!$B$31/Site!$B$32*Site!$B$36 -> 0 | L73: 0 | M73: 0 | Q73: 35 | R73: =SUMIF($N$13:$N$92,$P146,$U$13:$U$92) -> 0 | S73: =(Site!$B$32*($G$6*$C73+$G$7*$D73)*3630)*Site!$B$34*0.3048^3/454*Site!$B$31/Site!$B$32*Site!$B$36 -> 0 | T73: 0 | U73: 0
A75: 11. Filtering Practices (no RR) | Q75: 11. Filtering Practices (no RR)
A76: 11.a.Filtering Practice #1 (Spec #12) | B76: 0 | E76: =SUMIF($N$13:$N$92,$P147,$G$13:$G$92) -> 0 | F76: =(Site!$B$32*($G$6*$C76+$G$7*$D76)*3630+$E76)*$B76/100 -> 0 | G76: =(Site!$B$32*($G$6*$C76+$G$7*$D76)*3630+$E76)*(1-$B76/100) -> 0 | H76: =+$F76+$G76 -> 0 | I76: 60 | J76: =SUMIF($N$13:$N$92,$P147,$M$13:$M$92) -> 0 | K76: =(Site!$B$32*($G$6*$C76+$G$7*$D76)*3630)*Site!$B$33*0.3048^3/454*Site!$B$31/Site!$B$32*Site!$B$36 -> 0 | L76: =IFERROR(($J76+$K76)*($F76+$G76*$I76/100)/$H76,0) -> 0 | M76: =$J76+$K76-$L76 -> 0 | Q76: 30 | R76: =SUMIF($N$13:$N$92,$P147,$U$13:$U$92) -> 0 | S76: =(Site!$B$32*($G$6*$C76+$G$7*$D76)*3630)*Site!$B$34*0.3048^3/454*Site!$B$31/Site!$B$32*Site!$B$36 -> 0 | T76: =IFERROR(($R76+$S76)*($F76+$G76*$Q76/100)/$H76,0) -> 0 | U76: =$R76+$S76-$T76 -> 0
A77: 11.b. Filtering Practice #2 (Spec #12) | B77: 0 | E77: =SUMIF($N$13:$N$92,$P148,$G$13:$G$92) -> 0 | F77: =(Site!$B$32*($G$6*$C77+$G$7*$D77)*3630+$E77)*$B77/100 -> 0 | G77: =(Site!$B$32*($G$6*$C77+$G$7*$D77)*3630+$E77)*(1-$B77/100) -> 0 | H77: 0 | I77: 65 | J77: =SUMIF($N$13:$N$92,$P148,$M$13:$M$92) -> 0 | K77: =(Site!$B$32*($G$6*$C77+$G$7*$D77)*3630)*Site!$B$33*0.3048^3/454*Site!$B$31/Site!$B$32*Site!$B$36 -> 0 | L77: 0 | M77: 0 | Q77: 45 | R77: =SUMIF($N$13:$N$92,$P148,$U$13:$U$92) -> 0 | S77: =(Site!$B$32*($G$6*$C77+$G$7*$D77)*3630)*Site!$B$34*0.3048^3/454*Site!$B$31/Site!$B$32*Site!$B$36 -> 0 | T77: 0 | U77: 0
A79: 12. Constructed Wetland (no RR) | Q79: 12. Constructed Wetland (no RR)
A80: 12.a.Constructed Wetland #1 (Spec #13) | B80: 0 | E80: =SUMIF($N$13:$N$92,$P149,$G$13:$G$92) -> 0 | F80: =(Site!$B$32*($G$6*$C80+$G$7*$D80)*3630+$E80)*$B80/100 -> 0 | G80: =(Site!$B$32*($G$6*$C80+$G$7*$D80)*3630+$E80)*(1-$B80/100) -> 0 | H80: =+$F80+$G80 -> 0 | I80: 50 | J80: =SUMIF($N$13:$N$92,$P149,$M$13:$M$92) -> 0 | K80: =(Site!$B$32*($G$6*$C80+$G$7*$D80)*3630)*Site!$B$33*0.3048^3/454*Site!$B$31/Site!$B$32*Site!$B$36 -> 0 | L80: =IFERROR(($J80+$K80)*($F80+$G80*$I80/100)/$H80,0) -> 0 | M80: =$J80+$K80-$L80 -> 0 | Q80: 25 | R80: =SUMIF($N$13:$N$92,$P149,$U$13:$U$92) -> 0 | S80: =(Site!$B$32*($G$6*$C80+$G$7*$D80)*3630)*Site!$B$34*0.3048^3/454*Site!$B$31/Site!$B$32*Site!$B$36 -> 0 | T80: =IFERROR(($R80+$S80)*($F80+$G80*$Q80/100)/$H80,0) -> 0 | U80: =$R80+$S80-$T80 -> 0
A81: 12.b. Constructed Wetland #2 (Spec #13) | B81: 0 | E81: =SUMIF($N$13:$N$92,$P150,$G$13:$G$92) -> 0 | F81: =(Site!$B$32*($G$6*$C81+$G$7*$D81)*3630+$E81)*$B81/100 -> 0 | G81: =(Site!$B$32*($G$6*$C81+$G$7*$D81)*3630+$E81)*(1-$B81/100) -> 0 | H81: 0 | I81: 75 | J81: =SUMIF($N$13:$N$92,$P150,$M$13:$M$92) -> 0 | K81: =(Site!$B$32*($G$6*$C81+$G$7*$D81)*3630)*Site!$B$33*0.3048^3/454*Site!$B$31/Site!$B$32*Site!$B$36 -> 0 | L81: 0 | M81: 0 | Q81: 55 | R81: =SUMIF($N$13:$N$92,$P150,$U$13:$U$92) -> 0 | S81: =(Site!$B$32*($G$6*$C81+$G$7*$D81)*3630)*Site!$B$34*0.3048^3/454*Site!$B$31/Site!$B$32*Site!$B$36 -> 0 | T81: 0 | U81: 0
A83: 13. Wet Ponds (no RR) | Q83: 13. Wet Ponds (no RR)
A84: 13.a. Wet Pond #1 (Spec #14) | B84: 0 | E84: =SUMIF($N$13:$N$92,$P151,$G$13:$G$92) -> 0 | F84: =(Site!$B$32*($G$6*$C84+$G$7*$D84)*3630+$E84)*$B84/100 -> 0 | G84: =(Site!$B$32*($G$6*$C84+$G$7*$D84)*3630+$E84)*(1-$B84/100) -> 0 | H84: =+$F84+$G84 -> 0 | I84: 50 | J84: =SUMIF($N$13:$N$92,$P151,$M$13:$M$92) -> 0 | K84: =(Site!$B$32*($G$6*$C84+$G$7*$D84)*3630)*Site!$B$33*0.3048^3/454*Site!$B$31/Site!$B$32*Site!$B$36 -> 0 | L84: =IFERROR(($J84+$K84)*($F84+$G84*$I84/100)/$H84,0) -> 0 | M84: =$J84+$K84-$L84 -> 0 | Q84: 30 | R84: =SUMIF($N$13:$N$92,$P151,$U$13:$U$92) -> 0 | S84: =(Site!$B$32*($G$6*$C84+$G$7*$D84)*3630)*Site!$B$34*0.3048^3/454*Site!$B$31/Site!$B$32*Site!$B$36 -> 0 | T84: =IFERROR(($R84+$S84)*($F84+$G84*$Q84/100)/$H84,0) -> 0 | U84: =$R84+$S84-$T84 -> 0
A85: 13.b. Wet Pond #1 (Coastal Plain) (Spec #14) | B85: 0 | E85: =SUMIF($N$13:$N$92,$P152,$G$13:$G$92) -> 0 | F85: =(Site!$B$32*($G$6*$C85+$G$7*$D85)*3630+$E85)*$B85/100 -> 0 | G85: =(Site!$B$32*($G$6*$C85+$G$7*$D85)*3630+$E85)*(1-$B85/100) -> 0 | H85: 0 | I85: 45 | J85: =SUMIF($N$13:$N$92,$P152,$M$13:$M$92) -> 0 | K85: =(Site!$B$32*($G$6*$C85+$G$7*$D85)*3630)*Site!$B$33*0.3048^3/454*Site!$B$31/Site!$B$32*Site!$B$36 -> 0 | L85: 0 | M85: 0 | Q85: 20 | R85: =SUMIF($N$13:$N$92,$P152,$U$13:$U$92) -> 0 | S85: =(Site!$B$32*($G$6*$C85+$G$7*$D85)*3630)*Site!$B$34*0.3048^3/454*Site!$B$31/Site!$B$32*Site!$B$36 -> 0 | T85: 0 | U85: 0
A86: 13.c. Wet Pond #2 (Spec #14) | B86: 0 | E86: 0 | F86: =(Site!$B$32*($G$6*$C86+$G$7*$D86)*3630+$E86)*$B86/100 -> 0 | G86: =(Site!$B$32*($G$6*$C86+$G$7*$D86)*3630+$E86)*(1-$B86/100) -> 0 | H86: 0 | I86: 75 | J86: 0 | K86: =(Site!$B$32*($G$6*$C86+$G$7*$D86)*3630)*Site!$B$33*0.3048^3/454*Site!$B$31/Site!$B$32*Site!$B$36 -> 0 | L86: 0 | M86: 0 | Q86: 40 | R86: 0 | S86: =(Site!$B$32*($G$6*$C86+$G$7*$D86)*3630)*Site!$B$34*0.3048^3/454*Site!$B$31/Site!$B$32*Site!$B$36 -> 0 | T86: 0 | U86: 0
A87: 13.d. Wet Pond #2 (Coastal Plain) (Spec #14) | B87: 0 | E87: 0 | F87: =(Site!$B$32*($G$6*$C87+$G$7*$D87)*3630+$E87)*$B87/100 -> 0 | G87: =(Site!$B$32*($G$6*$C87+$G$7*$D87)*3630+$E87)*(1-$B87/100) -> 0 | H87: 0 | I87: 65 | J87: 0 | K87: =(Site!$B$32*($G$6*$C87+$G$7*$D87)*3630)*Site!$B$33*0.3048^3/454*Site!$B$31/Site!$B$32*Site!$B$36 -> 0 | L87: 0 | M87: 0 | Q87: 30 | R87: 0 | S87: =(Site!$B$32*($G$6*$C87+$G$7*$D87)*3630)*Site!$B$34*0.3048^3/454*Site!$B$31/Site!$B$32*Site!$B$36 -> 0 | T87: 0 | U87: 0
A89: 14. Manufactured Treatment Devices (no RR) | R89: 14. Manufactured BMP (no RR)
A90: 14.a. Manufactured Treatment Device-Hydrodynamic | B90: 0 | E90: =SUMIF($N$13:$N$92,$P155,$G$13:$G$92) -> 0 | F90: =(Site!$B$32*($G$6*$C90+$G$7*$D90)*3630+$E90)*$B90/100 -> 0 | G90: =(Site!$B$32*($G$6*$C90+$G$7*$D90)*3630+$E90)*(1-$B90/100) -> 0 | H90: =+$F90+$G90 -> 0 | I90: 20 | J90: =SUMIF($N$13:$N$92,$P155,$M$13:$M$92) -> 0 | K90: =(Site!$B$32*($G$6*$C90+$G$7*$D90)*3630)*Site!$B$33*0.3048^3/454*Site!$B$31/Site!$B$32*Site!$B$36 -> 0 | L90: =IFERROR(($J90+$K90)*($F90+$G90*$I90/100)/$H90,0) -> 0 | M90: =$J90+$K90-$L90 -> 0 | Q90: 0 | R90: =SUMIF($N$13:$N$92,$P155,$U$13:$U$92) -> 0 | S90: =(Site!$B$32*($G$6*$C90+$G$7*$D90)*3630)*Site!$B$34*0.3048^3/454*Site!$B$31/Site!$B$32*Site!$B$36 -> 0 | T90: =IFERROR(($R90+$S90)*($F90+$G90*$Q90/100)/$H90,0) -> 0 | U90: =$R90+$S90-$T90 -> 0
A91: 14.b. Manufactured Treatment Device-Filtering | B91: 0 | E91: =SUMIF($N$13:$N$92,$P156,$G$13:$G$92) -> 0 | F91: =(Site!$B$32*($G$6*$C91+$G$7*$D91)*3630+$E91)*$B91/100 -> 0 | G91: =(Site!$B$32*($G$6*$C91+$G$7*$D91)*3630+$E91)*(1-$B91/100) -> 0 | H91: 0 | I91: 20 | J91: =SUMIF($N$13:$N$92,$P156,$M$13:$M$92) -> 0 | K91: =(Site!$B$32*($G$6*$C91+$G$7*$D91)*3630)*Site!$B$33*0.3048^3/454*Site!$B$31/Site!$B$32*Site!$B$36 -> 0 | L91: 0 | M91: 0 | Q91: 0 | R91: =SUMIF($N$13:$N$92,$P156,$U$13:$U$92) -> 0 | S91: =(Site!$B$32*($G$6*$C91+$G$7*$D91)*3630)*Site!$B$34*0.3048^3/454*Site!$B$31/Site!$B$32*Site!$B$36 -> 0 | T91: 0 | U91: 0
A92: 14.c. Manufactured Treatment Device-Generic | B92: 0 | E92: 0 | F92: =(Site!$B$32*($G$6*$C92+$G$7*$D92)*3630+$E92)*$B92/100 -> 0 | G92: =(Site!$B$32*($G$6*$C92+$G$7*$D92)*3630+$E92)*(1-$B92/100) -> 0 | H92: 0 | I92: 20 | J92: 0 | K92: =(Site!$B$32*($G$6*$C92+$G$7*$D92)*3630)*Site!$B$33*0.3048^3/454*Site!$B$31/Site!$B$32*Site!$B$36 -> 0 | L92: 0 | M92: 0 | Q92: 0 | R92: 0 | S92: =(Site!$B$32*($G$6*$C92+$G$7*$D92)*3630)*Site!$B$34*0.3048^3/454*Site!$B$31/Site!$B$32*Site!$B$36 -> 0 | T92: 0 | U92: 0
E96: TOTAL IMPERVIOUS COVER TREATED (ac) | F96: =SUM($D$13:$D$92) -> 0 | G96: AREA CHECK: | H96: =IF($F$96>$F$7,"AREA EXCEEDED!","OK.") -> OK.
E97: TOTAL MANAGED TURF AREA TREATED (ac) | F97: =SUM($C$13:$C$92) -> 0 | G97: AREA CHECK: | H97: =IF($F$97>$F$6,"AREA EXCEEDED!","OK.") -> OK.
H99: TOTAL PHOSPHORUS REMOVAL REQUIRED ON SITE (lb/yr) | I99: =IF(Site!G63="Check Areas!","ERROR - ",Site!G63) -> -- | J99: =IF(I99="ERROR - ","Site Data Tab","") -> 
H101: TOTAL PHOSPHORUS AVAILABLE FOR REMOVAL IN D.A. B (lb/yr) | I101: =$M$7 -> 0
H102: TOTAL PHOSPHORUS REMOVED WITHOUT RUNOFF REDUCTION PRACTICES IN D.A. B (lb/yr) | I102: =SUM($L$72:$L$92) -> 0
H103: TOTAL PHOSPHORUS REMOVED WITH RUNOFF REDUCTION PRACTICES IN D.A. B (lb/yr) | I103: =$I$63 -> 0
H104: TOTAL PHOSPHORUS LOAD REDUCTION ACHIEVED IN D.A. B (lb/yr) | I104: =$I$102+$I$103 -> 0
H105: TOTAL PHOSPHORUS REMAINING AFTER APPLYING BMP LOAD REDUCTIONS IN D.A. B (lb/yr) | I105: =$I$101-$I$104 -> 0
C107: SEE WATER QUALITY COMPLIANCE TAB FOR SITE COMPLIANCE CALCULATIONS
H109: NITROGEN REMOVED WITH RUNOFF REDUCTION PRACTICES IN D.A. B (lb/yr) | I109: =IFERROR(SUM($T$13:$T$55),0) -> 0
H110: NITROGEN REMOVED WITHOUT RUNOFF REDUCTION PRACTICES IN D.A. B (lb/yr) | I110: =SUM($T$72:$T$92) -> 0
H111: TOTAL NITROGEN REMOVED IN D.A. B (lb/yr) | I111: =$I$109+$I$110 -> 0
C116: Downstream Practices - Dropdown selections for each applicable BMP
A118: Options for 1. Green Roof | C118: Options for 2. Impervious Surface Disconnection | E118: Options for 3a. Pervious Parking, A/B Soils | G118: Options for 4a. Grass Channels, A/B Soils | J118: Options for 4b. Grass Channels, C/D Soils
L119: Options for 4.c. Grass Channel Compost Amended Soils | P119: Master Downstream BMP Reference List
A120: =P120 -> None | C120: =P120 -> None | E120: =P120 -> None | G120: =P120 -> None | J120: =P120 -> None | P120: None
A121: 2.a. Simple Disconnection to A/B Soils | C121: =P131 -> 4.a. Grass Channel A/B Soils | E121: =P131 -> 4.a. Grass Channel A/B Soils | G121: =P132 -> 4.b. Grass Channel C/D Soils | J121: =P131 -> 4.a. Grass Channel A/B Soils | L121: =P120 -> None | P121: 2.a. Simple Disconnection to A/B Soils
A122: 2.b. Simple Disconnection to C/D Soils | C122: 4.b. Grass Channel C/D Soils | E122: 4.b. Grass Channel C/D Soils | G122: 4.c. Grass Channel Compost Amended Soils | J122: =P133 -> 4.c. Grass Channel Compost Amended Soils | L122: =P131 -> 4.a. Grass Channel A/B Soils | P122: 2.b. Simple Disconnection to C/D Soils
A123: 2.c. To Soil Amended Filter Path | C123: 4.c. Grass Channel Compost Amended Soils | E123: 4.c. Grass Channel Compost Amended Soils | G123: 5.a. Dry Swale #1 | J123: 5.a. Dry Swale #1 | L123: =P132 -> 4.b. Grass Channel C/D Soils | P123: 2.c. To Soil Amended Filter Path
A124: 2.d. To Dry Well/French Drain #1 (Micro-Infiltration #1) | C124: 5.a. Dry Swale #1 | E124: 5.a. Dry Swale #1 | G124: 5.b. Dry Swale #2 | J124: 5.b. Dry Swale #2 | L124: =P134 -> 5.a. Dry Swale #1 | P124: 2.d. To Dry Well/French Drain #1 (Micro-Infiltration #1)
A125: 2.e. To Dry Well/French Drain #2 (Micro-Infiltration. #2) | C125: 5.b. Dry Swale #2 | E125: 5.b. Dry Swale #2 | G125: 6.a. Bioretention #1 | J125: 6.a. Bioretention #1 | L125: 5.b. Dry Swale #2 | P125: 2.e. To Dry Well/French Drain #2 (Micro-Infiltration. #2)
A126: 2.f. To Rain Garden #1 (Micro-Bioretention #1) | C126: 6.a. Bioretention #1 | E126: 6.a. Bioretention #1 | G126: 6.b. Bioretention #2 | J126: 6.b. Bioretention #2 | L126: 6.a. Bioretention #1 | P126: 2.f. To Rain Garden #1 (Micro-Bioretention #1)
A127: 2.g. To Rain Garden #2 (Micro-Bioretention #2) | C127: 6.b. Bioretention #2 | E127: 6.b. Bioretention #2 | G127: 7.a. Infiltration #1 | J127: 7.a. Infiltration #1 | L127: 6.b. Bioretention #2 | P127: 2.g. To Rain Garden #2 (Micro-Bioretention #2)
A128: 2.h. To Train Barrel, Rain Tank, or Cistern | C128: 7.a. Infiltration #1 | E128: 7.a. Infiltration #1 | G128: 7.b. Infiltration #2 | J128: 7.b. Infiltration #2 | L128: 7.a. Infiltration #1 | P128: 2.h. To Train Barrel, Rain Tank, or Cistern
A129: 2.i. To Stormwater Planter (Urban Bioretention) | C129: 7.b. Infiltration #2 | E129: 7.b. Infiltration #2 | G129: 8.a. ED #1 | J129: 8.a. ED #1 | L129: 7.b. Infiltration #2 | P129: 2.i. To Stormwater Planter (Urban Bioretention)
A130: 3.a. Permeable Pavement #1 | C130: 8.a. ED #1 | E130: 8.a. ED #1 | G130: 8.b. ED #2 | J130: 8.b. ED #2 | L130: 8.a. ED #1 | P130: 3.a. Permeable Pavement #1
A131: 4.a. Grass Channel A/B Soils | C131: 8.b. ED #2 | E131: 8.b. ED #2 | G131: 9.a. Sheetflow to A/B Soil Conservation Area | J131: 9.a. Sheetflow to A/B Soil Conservation Area | L131: 8.b. ED #2 | P131: 4.a. Grass Channel A/B Soils
A132: 4.b. Grass Channel C/D Soils | C132: 9.a. Sheetflow to A/B Soil Conservation Area | E132: 9.a. Sheetflow to A/B Soil Conservation Area | G132: 9.b. Sheetflow to C/D Soil Conservation Area | J132: 9.b. Sheetflow to C/D Soil Conservation Area | L132: 9.a. Sheetflow to A/B Soil Conservation Area | P132: 4.b. Grass Channel C/D Soils
A133: 4.c. Grass Channel Compost Amended Soils | C133: 9.b. Sheetflow to C/D Soil Conservation Area | E133: 9.b. Sheetflow to C/D Soil Conservation Area | G133: 9.c. Sheetflow to Vegetated Filter Strip | J133: 9.c. Sheetflow to Vegetated Filter Strip | L133: 9.b. Sheetflow to C/D Soil Conservation Area | P133: 4.c. Grass Channel Compost Amended Soils
A134: 5.a. Dry Swale #1 | C134: 9.c. Sheetflow to Vegetated Filter Strip | E134: 9.c. Sheetflow to Vegetated Filter Strip | G134: 10.a. Wet Swale #1 | J134: 10.a. Wet Swale #1 | L134: 9.c. Sheetflow to Vegetated Filter Strip | P134: 5.a. Dry Swale #1
A135: 5.b. Dry Swale #2 | C135: 10.a. Wet Swale #1 | E135: 10.a. Wet Swale #1 | G135: 10.b. Wet Swale #2 | J135: 10.b. Wet Swale #2 | L135: 10.a. Wet Swale #1 | P135: 5.b. Dry Swale #2
A136: 6.a. Bioretention #1 | C136: 10.b. Wet Swale #2 | E136: 10.b. Wet Swale #2 | G136: 11.a. Filtering Practice #1 | J136: 11.a. Filtering Practice #1 | L136: 10.b. Wet Swale #2 | P136: 6.a. Bioretention #1
A137: 6.b. Bioretention #2 | C137: 11.a. Filtering Practice #1 | E137: 11.a. Filtering Practice #1 | G137: 11.b. Filtering Practice #2 | J137: 11.b. Filtering Practice #2 | L137: 11.a. Filtering Practice #1 | P137: 6.b. Bioretention #2
A138: 7.a. Infiltration #1 | C138: 11.b. Filtering Practice #2 | E138: 11.b. Filtering Practice #2 | G138: 12.a. Constructed Wetland #1 | J138: 12.a. Constructed Wetland #1 | L138: 11.b. Filtering Practice #2 | P138: 7.a. Infiltration #1
A139: 7.b. Infiltration #2 | C139: 12.a. Constructed Wetland #1 | E139: 12.a. Constructed Wetland #1 | G139: 12.b. Constructed Wetland #2 | J139: 12.b. Constructed Wetland #2 | L139: 12.a. Constructed Wetland #1 | P139: 7.b. Infiltration #2
A140: 8.a. ED #1 | C140: 12.b. Constructed Wetland #2 | E140: 12.b. Constructed Wetland #2 | G140: 13.a. Wet Pond #1 | J140: 13.a. Wet Pond #1 | L140: 12.b. Constructed Wetland #2 | P140: 8.a. ED #1
A141: 8.b. ED #2 | C141: 13.a. Wet Pond #1 | E141: 13.a. Wet Pond #1 | G141: 13.b. Wet Pond #1 (Coastal Plain) | J141: 13.b. Wet Pond #1 (Coastal Plain) | L141: 13.a. Wet Pond #1 | P141: 8.b. ED #2
A142: 9.a. Sheetflow to A/B Soil Conservation Area | C142: 13.b. Wet Pond #1 (Coastal Plain) | E142: 13.b. Wet Pond #1 (Coastal Plain) | G142: 13.c. Wet Pond #2 | J142: 13.c. Wet Pond #2 | L142: 13.b. Wet Pond #1 (Coastal Plain) | P142: 9.a. Sheetflow to A/B Soil Conservation Area
A143: 9.b. Sheetflow to C/D Soil Conservation Area | C143: 13.c. Wet Pond #2 | E143: 13.c. Wet Pond #2 | G143: 13.d. Wet Pond #2 (Coastal Plain) | J143: 13.d. Wet Pond #2 (Coastal Plain) | L143: 13.c. Wet Pond #2 | P143: 9.b. Sheetflow to C/D Soil Conservation Area
A144: 9.c. Sheetflow to Vegetated Filter Strip | C144: 13.d. Wet Pond #2 (Coastal Plain) | E144: 13.d. Wet Pond #2 (Coastal Plain) | G144: 14.a. MTD - Hydrodynamic | J144: 14.a. MTD - Hydrodynamic | L144: 13.d. Wet Pond #2 (Coastal Plain) | P144: 9.c. Sheetflow to Vegetated Filter Strip
A145: 10.a. Wet Swale #1 | C145: 14.a. MTD - Hydrodynamic | E145: 14.a. MTD - Hydrodynamic | G145: 14.b. MTD - Filtering | J145: 14.b. MTD - Filtering | L145: 14.a. MTD - Hydrodynamic | P145: 10.a. Wet Swale #1
A146: 10.b. Wet Swale #2 | C146: 14.b. MTD - Filtering | E146: 14.b. MTD - Filtering | G146: 14.c. MTD - Generic | J146: 14.c. MTD - Generic | L146: 14.b. MTD - Filtering | P146: 10.b. Wet Swale #2
A147: 11.a. Filtering Practice #1 | C147: 14.c. MTD - Generic | E147: 14.c. MTD - Generic | L147: 14.c. MTD - Generic | P147: 11.a. Filtering Practice #1
A148: 11.b. Filtering Practice #2 | P148: 11.b. Filtering Practice #2
A149: 12.a. Constructed Wetland #1 | P149: 12.a. Constructed Wetland #1
A150: 12.b. Constructed Wetland #2 | P150: 12.b. Constructed Wetland #2
A151: 13.a. Wet Pond #1 | P151: 13.a. Wet Pond #1
A152: 13.b. Wet Pond #1 (Coastal Plain) | P152: 13.b. Wet Pond #1 (Coastal Plain)
A153: 13.c. Wet Pond #2 | P153: 13.c. Wet Pond #2
A154: 13.d. Wet Pond #2 (Coastal Plain) | P154: 13.d. Wet Pond #2 (Coastal Plain)
A155: 14.a. MTD - Hydrodynamic | P155: 14.a. MTD - Hydrodynamic
A156: 14.b. MTD - Filtering | P156: 14.b. MTD - Filtering
A157: 14.c. MTD - Generic | P157: 14.c. MTD - Generic
A159: Options for 5a. Dry Swale #1 | C159: Options for 5b. Dry Swale #2 | E159: Options for 6a. Bioretention #1 | G159: Options for 6b. Bioretention #2 | J159: Options for 7a. Infiltration #1 | L159: Options for 7b. Infiltration #2
A161: =P120 -> None | C161: =P120 -> None | E161: =P120 -> None | G161: =P120 -> None | J161: =P120 -> None | L161: =P120 -> None
A162: =P131 -> 4.a. Grass Channel A/B Soils | C162: =P131 -> 4.a. Grass Channel A/B Soils | E162: =P131 -> 4.a. Grass Channel A/B Soils | G162: =P131 -> 4.a. Grass Channel A/B Soils | J162: =P131 -> 4.a. Grass Channel A/B Soils | L162: =P131 -> 4.a. Grass Channel A/B Soils
A163: =P132 -> 4.b. Grass Channel C/D Soils | C163: =P132 -> 4.b. Grass Channel C/D Soils | E163: =P132 -> 4.b. Grass Channel C/D Soils | G163: 4.b. Grass Channel C/D Soils | J163: 4.b. Grass Channel C/D Soils | L163: 4.b. Grass Channel C/D Soils
A164: =P133 -> 4.c. Grass Channel Compost Amended Soils | C164: =P133 -> 4.c. Grass Channel Compost Amended Soils | E164: =P133 -> 4.c. Grass Channel Compost Amended Soils | G164: 4.c. Grass Channel Compost Amended Soils | J164: 4.c. Grass Channel Compost Amended Soils | L164: 4.c. Grass Channel Compost Amended Soils
A165: =P135 -> 5.b. Dry Swale #2 | C165: =P134 -> 5.a. Dry Swale #1 | E165: =P134 -> 5.a. Dry Swale #1 | G165: 5.a. Dry Swale #1 | J165: 5.a. Dry Swale #1 | L165: 5.a. Dry Swale #1
A166: 6.a. Bioretention #1 | C166: =P136 -> 6.a. Bioretention #1 | E166: =P135 -> 5.b. Dry Swale #2 | G166: 5.b. Dry Swale #2 | J166: 5.b. Dry Swale #2 | L166: 5.b. Dry Swale #2
A167: 6.b. Bioretention #2 | C167: 6.b. Bioretention #2 | E167: =P137 -> 6.b. Bioretention #2 | G167: 6.a. Bioretention #1 | J167: 6.a. Bioretention #1 | L167: 6.a. Bioretention #1
A168: 7.a. Infiltration #1 | C168: 7.a. Infiltration #1 | E168: 7.a. Infiltration #1 | G168: =P138 -> 7.a. Infiltration #1 | J168: 6.b. Bioretention #2 | L168: 6.b. Bioretention #2
A169: 7.b. Infiltration #2 | C169: 7.b. Infiltration #2 | E169: 7.b. Infiltration #2 | G169: 7.b. Infiltration #2 | J169: =P139 -> 7.b. Infiltration #2 | L169: 7.a. Infiltration #1
A170: 8.a. ED #1 | C170: 8.a. ED #1 | E170: 8.a. ED #1 | G170: 8.a. ED #1 | J170: 8.a. ED #1 | L170: =P140 -> 8.a. ED #1
A171: 8.b. ED #2 | C171: 8.b. ED #2 | E171: 8.b. ED #2 | G171: 8.b. ED #2 | J171: 8.b. ED #2 | L171: 8.b. ED #2
A172: 9.a. Sheetflow to A/B Soil Conservation Area | C172: 9.a. Sheetflow to A/B Soil Conservation Area | E172: 9.a. Sheetflow to A/B Soil Conservation Area | G172: 9.a. Sheetflow to A/B Soil Conservation Area | J172: 9.a. Sheetflow to A/B Soil Conservation Area | L172: 9.a. Sheetflow to A/B Soil Conservation Area
A173: 9.b. Sheetflow to C/D Soil Conservation Area | C173: 9.b. Sheetflow to C/D Soil Conservation Area | E173: 9.b. Sheetflow to C/D Soil Conservation Area | G173: 9.b. Sheetflow to C/D Soil Conservation Area | J173: 9.b. Sheetflow to C/D Soil Conservation Area | L173: 9.b. Sheetflow to C/D Soil Conservation Area
A174: 9.c. Sheetflow to Vegetated Filter Strip | C174: 9.c. Sheetflow to Vegetated Filter Strip | E174: 9.c. Sheetflow to Vegetated Filter Strip | G174: 9.c. Sheetflow to Vegetated Filter Strip | J174: 9.c. Sheetflow to Vegetated Filter Strip | L174: 9.c. Sheetflow to Vegetated Filter Strip
A175: 10.a. Wet Swale #1 | C175: 10.a. Wet Swale #1 | E175: 10.a. Wet Swale #1 | G175: 10.a. Wet Swale #1 | J175: 10.a. Wet Swale #1 | L175: 10.a. Wet Swale #1
A176: 10.b. Wet Swale #2 | C176: 10.b. Wet Swale #2 | E176: 10.b. Wet Swale #2 | G176: 10.b. Wet Swale #2 | J176: 10.b. Wet Swale #2 | L176: 10.b. Wet Swale #2
A177: 11.a. Filtering Practice #1 | C177: 11.a. Filtering Practice #1 | E177: 11.a. Filtering Practice #1 | G177: 11.a. Filtering Practice #1 | J177: 11.a. Filtering Practice #1 | L177: 11.a. Filtering Practice #1
A178: 11.b. Filtering Practice #2 | C178: 11.b. Filtering Practice #2 | E178: 11.b. Filtering Practice #2 | G178: 11.b. Filtering Practice #2 | J178: 11.b. Filtering Practice #2 | L178: 11.b. Filtering Practice #2
A179: 12.a. Constructed Wetland #1 | C179: 12.a. Constructed Wetland #1 | E179: 12.a. Constructed Wetland #1 | G179: 12.a. Constructed Wetland #1 | J179: 12.a. Constructed Wetland #1 | L179: 12.a. Constructed Wetland #1
A180: 12.b. Constructed Wetland #2 | C180: 12.b. Constructed Wetland #2 | E180: 12.b. Constructed Wetland #2 | G180: 12.b. Constructed Wetland #2 | J180: 12.b. Constructed Wetland #2 | L180: 12.b. Constructed Wetland #2
A181: 13.a. Wet Pond #1 | C181: 13.a. Wet Pond #1 | E181: 13.a. Wet Pond #1 | G181: 13.a. Wet Pond #1 | J181: 13.a. Wet Pond #1 | L181: 13.a. Wet Pond #1
A182: 13.b. Wet Pond #1 (Coastal Plain) | C182: 13.b. Wet Pond #1 (Coastal Plain) | E182: 13.b. Wet Pond #1 (Coastal Plain) | G182: 13.b. Wet Pond #1 (Coastal Plain) | J182: 13.b. Wet Pond #1 (Coastal Plain) | L182: 13.b. Wet Pond #1 (Coastal Plain)
A183: 13.c. Wet Pond #2 | C183: 13.c. Wet Pond #2 | E183: 13.c. Wet Pond #2 | G183: 13.c. Wet Pond #2 | J183: 13.c. Wet Pond #2 | L183: 13.c. Wet Pond #2
A184: 13.d. Wet Pond #2 (Coastal Plain) | C184: 13.d. Wet Pond #2 (Coastal Plain) | E184: 13.d. Wet Pond #2 (Coastal Plain) | G184: 13.d. Wet Pond #2 (Coastal Plain) | J184: 13.d. Wet Pond #2 (Coastal Plain) | L184: 13.d. Wet Pond #2 (Coastal Plain)
A185: 14.a. MTD - Hydrodynamic | C185: 14.a. MTD - Hydrodynamic | E185: 14.a. MTD - Hydrodynamic | G185: 14.a. MTD - Hydrodynamic | J185: 14.a. MTD - Hydrodynamic | L185: 14.a. MTD - Hydrodynamic
A186: 14.b. MTD - Filtering | C186: 14.b. MTD - Filtering | E186: 14.b. MTD - Filtering | G186: 14.b. MTD - Filtering | J186: 14.b. MTD - Filtering | L186: 14.b. MTD - Filtering
A187: 14.c. MTD - Generic | C187: 14.c. MTD - Generic | E187: 14.c. MTD - Generic | G187: 14.c. MTD - Generic | J187: 14.c. MTD - Generic | L187: 14.c. MTD - Generic
A189: Options for 8a. Extended Detention #1 | C189: Options for 8b. Extended Detention #2 | E189: Options for 9 Sheet Flow to Open Space | G189: Options for 9c. Sheet Flow to Filter Strip | J189: Options for 10a. Wet Swale #1 | L189: Options for 10b. Wet Swale #2
A191: =P120 -> None | C191: =P120 -> None | E191: =P120 -> None | G191: =P120 -> None | J191: =P120 -> None | L191: =P120 -> None
A192: =P131 -> 4.a. Grass Channel A/B Soils | C192: =P131 -> 4.a. Grass Channel A/B Soils | G192: =P131 -> 4.a. Grass Channel A/B Soils | J192: =P131 -> 4.a. Grass Channel A/B Soils | L192: =P131 -> 4.a. Grass Channel A/B Soils
A193: 4.b. Grass Channel C/D Soils | C193: 4.b. Grass Channel C/D Soils | G193: 4.b. Grass Channel C/D Soils | J193: 4.b. Grass Channel C/D Soils | L193: 4.b. Grass Channel C/D Soils
A194: 4.c. Grass Channel Compost Amended Soils | C194: 4.c. Grass Channel Compost Amended Soils | G194: 4.c. Grass Channel Compost Amended Soils | J194: 4.c. Grass Channel Compost Amended Soils | L194: 4.c. Grass Channel Compost Amended Soils
A195: 5.a. Dry Swale #1 | C195: 5.a. Dry Swale #1 | G195: 5.a. Dry Swale #1 | J195: 5.a. Dry Swale #1 | L195: 5.a. Dry Swale #1
A196: 5.b. Dry Swale #2 | C196: 5.b. Dry Swale #2 | G196: 5.b. Dry Swale #2 | J196: 5.b. Dry Swale #2 | L196: 5.b. Dry Swale #2
A197: 6.a. Bioretention #1 | C197: 6.a. Bioretention #1 | G197: 6.a. Bioretention #1 | J197: 6.a. Bioretention #1 | L197: 6.a. Bioretention #1
A198: 6.b. Bioretention #2 | C198: 6.b. Bioretention #2 | G198: 6.b. Bioretention #2 | J198: 6.b. Bioretention #2 | L198: 6.b. Bioretention #2
A199: 7.a. Infiltration #1 | C199: 7.a. Infiltration #1 | G199: 7.a. Infiltration #1 | J199: 7.a. Infiltration #1 | L199: 7.a. Infiltration #1
A200: 7.b. Infiltration #2 | C200: 7.b. Infiltration #2 | G200: 7.b. Infiltration #2 | J200: 7.b. Infiltration #2 | L200: 7.b. Infiltration #2
A201: =P141 -> 8.b. ED #2 | C201: 8.a. ED #1 | G201: 8.a. ED #1 | J201: 8.a. ED #1 | L201: 8.a. ED #1
A202: 9.a. Sheetflow to A/B Soil Conservation Area | C202: =P142 -> 9.a. Sheetflow to A/B Soil Conservation Area | G202: 8.b. ED #2 | J202: 8.b. ED #2 | L202: 8.b. ED #2
A203: 9.b. Sheetflow to C/D Soil Conservation Area | C203: 9.b. Sheetflow to C/D Soil Conservation Area | G203: 9.a. Sheetflow to A/B Soil Conservation Area | J203: 9.a. Sheetflow to A/B Soil Conservation Area | L203: 9.a. Sheetflow to A/B Soil Conservation Area
A204: 9.c. Sheetflow to Vegetated Filter Strip | C204: 9.c. Sheetflow to Vegetated Filter Strip | G204: 9.b. Sheetflow to C/D Soil Conservation Area | J204: 9.b. Sheetflow to C/D Soil Conservation Area | L204: 9.b. Sheetflow to C/D Soil Conservation Area
A205: 10.a. Wet Swale #1 | C205: 10.a. Wet Swale #1 | G205: =P145 -> 10.a. Wet Swale #1 | J205: 9.c. Sheetflow to Vegetated Filter Strip | L205: 9.c. Sheetflow to Vegetated Filter Strip
A206: 10.b. Wet Swale #2 | C206: 10.b. Wet Swale #2 | G206: 10.b. Wet Swale #2 | J206: =P146 -> 10.b. Wet Swale #2 | L206: 10.a. Wet Swale #1
A207: 11.a. Filtering Practice #1 | C207: 11.a. Filtering Practice #1 | G207: 11.a. Filtering Practice #1 | J207: 11.a. Filtering Practice #1 | L207: =P147 -> 11.a. Filtering Practice #1
A208: 11.b. Filtering Practice #2 | C208: 11.b. Filtering Practice #2 | G208: 11.b. Filtering Practice #2 | J208: 11.b. Filtering Practice #2 | L208: 11.b. Filtering Practice #2
A209: 12.a. Constructed Wetland #1 | C209: 12.a. Constructed Wetland #1 | G209: 12.a. Constructed Wetland #1 | J209: 12.a. Constructed Wetland #1 | L209: 12.a. Constructed Wetland #1
A210: 12.b. Constructed Wetland #2 | C210: 12.b. Constructed Wetland #2 | G210: 12.b. Constructed Wetland #2 | J210: 12.b. Constructed Wetland #2 | L210: 12.b. Constructed Wetland #2
A211: 13.a. Wet Pond #1 | C211: 13.a. Wet Pond #1 | G211: 13.a. Wet Pond #1 | J211: 13.a. Wet Pond #1 | L211: 13.a. Wet Pond #1
A212: 13.b. Wet Pond #1 (Coastal Plain) | C212: 13.b. Wet Pond #1 (Coastal Plain) | G212: 13.b. Wet Pond #1 (Coastal Plain) | J212: 13.b. Wet Pond #1 (Coastal Plain) | L212: 13.b. Wet Pond #1 (Coastal Plain)
A213: 13.c. Wet Pond #2 | C213: 13.c. Wet Pond #2 | G213: 13.c. Wet Pond #2 | J213: 13.c. Wet Pond #2 | L213: 13.c. Wet Pond #2
A214: 13.d. Wet Pond #2 (Coastal Plain) | C214: 13.d. Wet Pond #2 (Coastal Plain) | G214: 13.d. Wet Pond #2 (Coastal Plain) | J214: 13.d. Wet Pond #2 (Coastal Plain) | L214: 13.d. Wet Pond #2 (Coastal Plain)
A215: 14.a. MTD - Hydrodynamic | C215: 14.a. MTD - Hydrodynamic | G215: 14.a. MTD - Hydrodynamic | J215: 14.a. MTD - Hydrodynamic | L215: 14.a. MTD - Hydrodynamic
A216: 14.b. MTD - Filtering | C216: 14.b. MTD - Filtering | G216: 14.b. MTD - Filtering | J216: 14.b. MTD - Filtering | L216: 14.b. MTD - Filtering
A217: 14.c. MTD - Generic | C217: 14.c. MTD - Generic | G217: 14.c. MTD - Generic | J217: 14.c. MTD - Generic | L217: 14.c. MTD - Generic
E219: Options for 12.a. Constructed Wetland #1 | G219: Options for 12.b. Constructed Wetland #2
A220: Options for 11 A. Filtering Practice #1 | C220: Options for 11 b. Filtering Practice #2 | J220: Options for 13.a. Wet Pond #1
E221: =P120 -> None | G221: =P120 -> None | J221: =P120 -> None | L221: Options for 13.b. Wet Pond #1 (Coastal Plain)
A222: =P120 -> None | C222: =P120 -> None | E222: =P131 -> 4.a. Grass Channel A/B Soils | G222: =P131 -> 4.a. Grass Channel A/B Soils | J222: =P131 -> 4.a. Grass Channel A/B Soils | L222: =P120 -> None
A223: =P131 -> 4.a. Grass Channel A/B Soils | C223: =P131 -> 4.a. Grass Channel A/B Soils | E223: 4.b. Grass Channel C/D Soils | G223: 4.b. Grass Channel C/D Soils | J223: 4.b. Grass Channel C/D Soils | L223: =P131 -> 4.a. Grass Channel A/B Soils
A224: 4.b. Grass Channel C/D Soils | C224: 4.b. Grass Channel C/D Soils | E224: 4.c. Grass Channel Compost Amended Soils | G224: 4.c. Grass Channel Compost Amended Soils | J224: 4.c. Grass Channel Compost Amended Soils | L224: 4.b. Grass Channel C/D Soils
A225: 4.c. Grass Channel Compost Amended Soils | C225: 4.c. Grass Channel Compost Amended Soils | E225: 5.a. Dry Swale #1 | G225: 5.a. Dry Swale #1 | J225: 5.a. Dry Swale #1 | L225: 4.c. Grass Channel Compost Amended Soils
A226: 5.a. Dry Swale #1 | C226: 5.a. Dry Swale #1 | E226: 5.b. Dry Swale #2 | G226: 5.b. Dry Swale #2 | J226: 5.b. Dry Swale #2 | L226: 5.a. Dry Swale #1
A227: 5.b. Dry Swale #2 | C227: 5.b. Dry Swale #2 | E227: 6.a. Bioretention #1 | G227: 6.a. Bioretention #1 | J227: 6.a. Bioretention #1 | L227: 5.b. Dry Swale #2
A228: 6.a. Bioretention #1 | C228: 6.a. Bioretention #1 | E228: 6.b. Bioretention #2 | G228: 6.b. Bioretention #2 | J228: 6.b. Bioretention #2 | L228: 6.a. Bioretention #1
A229: 6.b. Bioretention #2 | C229: 6.b. Bioretention #2 | E229: 7.a. Infiltration #1 | G229: 7.a. Infiltration #1 | J229: 7.a. Infiltration #1 | L229: 6.b. Bioretention #2
A230: 7.a. Infiltration #1 | C230: 7.a. Infiltration #1 | E230: 7.b. Infiltration #2 | G230: 7.b. Infiltration #2 | J230: 7.b. Infiltration #2 | L230: 7.a. Infiltration #1
A231: 7.b. Infiltration #2 | C231: 7.b. Infiltration #2 | E231: 8.a. ED #1 | G231: 8.a. ED #1 | J231: 8.a. ED #1 | L231: 7.b. Infiltration #2
A232: 8.a. ED #1 | C232: 8.a. ED #1 | E232: 8.b. ED #2 | G232: 8.b. ED #2 | J232: 8.b. ED #2 | L232: 8.a. ED #1
A233: 8.b. ED #2 | C233: 8.b. ED #2 | E233: 9.a. Sheetflow to A/B Soil Conservation Area | G233: 9.a. Sheetflow to A/B Soil Conservation Area | J233: 9.a. Sheetflow to A/B Soil Conservation Area | L233: 8.b. ED #2
A234: 9.a. Sheetflow to A/B Soil Conservation Area | C234: 9.a. Sheetflow to A/B Soil Conservation Area | E234: 9.b. Sheetflow to C/D Soil Conservation Area | G234: 9.b. Sheetflow to C/D Soil Conservation Area | J234: 9.b. Sheetflow to C/D Soil Conservation Area | L234: 9.a. Sheetflow to A/B Soil Conservation Area
A235: 9.b. Sheetflow to C/D Soil Conservation Area | C235: 9.b. Sheetflow to C/D Soil Conservation Area | E235: 9.c. Sheetflow to Vegetated Filter Strip | G235: 9.c. Sheetflow to Vegetated Filter Strip | J235: 9.c. Sheetflow to Vegetated Filter Strip | L235: 9.b. Sheetflow to C/D Soil Conservation Area
A236: 9.c. Sheetflow to Vegetated Filter Strip | C236: 9.c. Sheetflow to Vegetated Filter Strip | E236: 10.a. Wet Swale #1 | G236: 10.a. Wet Swale #1 | J236: 10.a. Wet Swale #1 | L236: 9.c. Sheetflow to Vegetated Filter Strip
A237: 10.a. Wet Swale #1 | C237: 10.a. Wet Swale #1 | E237: 10.b. Wet Swale #2 | G237: 10.b. Wet Swale #2 | J237: 10.b. Wet Swale #2 | L237: 10.a. Wet Swale #1
... 38 more rows

Sheet D.A. C
A1: Drainage Area C
Y2: Check Areas! | AA2: CHECK AREAS!
A3: Drainage Area A Land Cover (acres) | B3: =IF($F$8>Site!$F$27,"Drainage area is greater than site area!",(IF(OR(F5>Site!F24,F6>Site!F25,F7>Site!F26),"Check Site Tab land cover areas!",""))) -> 
B4: A Soils | C4: B Soils | D4: C Soils | E4: D Soils | F4: Totals | G4: Land Cover Rv | N4: `
A5: Forest/Open Space (acres) | F5: =SUMIF(B5:E5,">=0") -> 0 | G5: =IF(F5>0,(B5*Site!E32+C5*Site!F32+D5*Site!G32+E5*Site!H32)/F5,0) -> 0
A6: Managed Turf (acres) | F6: =SUMIF(B6:E6,">=0") -> 0 | G6: =IF(F6>0,(B6*Site!E33+C6*Site!F33+D6*Site!G33+E6*Site!H33)/F6,0) -> 0
A7: Impervious Cover (acres) | F7: =SUMIF(B7:E7,">=0") -> 0 | G7: =IF(F7>0,((B7*Site!E34+C7*Site!F34+D7*Site!G34+E7*Site!H34)/F7),0) -> 0 | I7: Total Phosphorus Available for Removal in D.A. C (lb/yr) | M7: =Site!$B$31*Site!$B$36*($M$8/Site!$B$32)*Site!$B$33*2.72/43560 -> 0
E8: Total | F8: =SUM(F5:F7) -> 0 | I8: Post Development Treatment Volume in D.A. C (ft3) | M8: =IFERROR(Site!B32/12*(F6*G6+F7*G7)/(F6+F7)*(F6+F7)*43560,0) -> 0
A10: Stormwater Best Management Practices (RR = Runoff Reduction) | N10: --Select from dropdown lists--
A11: Practice | B11: Runoff Reduction Credit (%) | C11: Managed Turf Credit Area (acres) | D11: Impervious Cover Credit Area (acres) | E11: Volume from Upstream Practice (ft3) | F11: Runoff Reduction (ft3) | G11: Remaining Runoff Volume (ft3) | H11: Total BMP Treatment Volume (ft3) | I11: Phosphorus Removal Efficiency (%) | J11: Phosphorus Load from Upstream Practices (lb) | K11: Untreated Phosphorus Load to Practice (lb) | L11: Phosphorus Removed By Practice (lb) | M11: Remaining Phosphorus Load (lb) | N11: Downstream Practice to be Employed | Q11: Nitrogen Removal Efficiency (%) | R11: Nitrogen Load from Upstream Practices (lbs) | S11: Untreated Nitrogen Load to Practice (lbs) | T11: Nitrogen Removed By Practice (lbs) | U11: Remaining Nitrogen Load (lbs)
A12: 1. Vegetated Roof (RR) | Q12: 1. Vegetated Roof (RR)
A13: 1.a. Vegetated Roof #1 (Spec #5) | B13: 45 | F13: =(Site!$B$32*($G$7*$D13)*3630)*$B13/100 -> 0 | G13: =(Site!$B$32*($G$7*$D13)*3630)*(1-$B13/100) -> 0 | H13: =+$F13+$G13 -> 0 | I13: 0 | K13: =(Site!$B$32*($G$7*$D13)*3630)*Site!$B$33*0.3048^3/454*Site!$B$31/Site!$B$32*Site!$B$36 -> 0 | L13: =IFERROR($K13*($F13+$G13*$I13/100)/($H13),0) -> 0 | M13: =$K13-$L13 -> 0 | Q13: 0 | S13: =(Site!$B$32*$G$7*$D13*3630)*Site!$B$34*0.3048^3/454*Site!$B$31/Site!$B$32*Site!$B$36 -> 0 | T13: =IFERROR($S13*($F13+$G13*$Q13/100)/$H13,0) -> 0 | U13: =$S13-$T13 -> 0
A14: 1.b. Vegetated Roof #2 (Spec #5) | B14: 60 | F14: =(Site!$B$32*($G$7*$D14)*3630)*$B14/100 -> 0 | G14: =(Site!$B$32*($G$7*$D14)*3630)*(1-$B14/100) -> 0 | H14: =+$F14+$G14 -> 0 | I14: 0 | K14: =(Site!$B$32*($G$7*$D14)*3630)*Site!$B$33*0.3048^3/454*Site!$B$31/Site!$B$32*Site!$B$36 -> 0 | L14: =IFERROR($K14*($F14+$G14*$I14/100)/($H14),0) -> 0 | M14: =$K14-$L14 -> 0 | Q14: 0 | S14: =(Site!$B$32*$G$7*$D14*3630)*Site!$B$34*0.3048^3/454*Site!$B$31/Site!$B$32*Site!$B$36 -> 0 | T14: =IFERROR($S14*($F14+$G14*$Q14/100)/$H14,0) -> 0 | U14: =$S14-$T14 -> 0
A16: 2. Rooftop Disconnection (RR) | Q16: 2. Rooftop Disconnection (RR)
A17: 2.a. Simple Disconnection to A/B Soils (Spec #1) | B17: 50 | E17: =SUMIF($N$13:$N$92,$P121,$G$13:$G$92) -> 0 | F17: =(Site!$B$32*($G$6*$C17+$G$7*$D17)*3630+$E17)*$B17/100 -> 0 | G17: =(Site!$B$32*($G$6*$C17+$G$7*$D17)*3630+$E17)*(1-$B17/100) -> 0 | H17: =+$F17+$G17 -> 0 | I17: 0 | J17: =SUMIF($N$13:$N$92,$P121,$M$13:$M$92) -> 0 | K17: =(Site!$B$32*($G$6*$C17+$G$7*$D17)*3630)*Site!$B$33*0.3048^3/454*Site!$B$31/Site!$B$32*Site!$B$36 -> 0 | L17: =IFERROR(($J17+$K17)*($F17+$G17*$I17/100)/$H17,0) -> 0 | M17: =$J17+$K17-$L17 -> 0 | Q17: 0 | R17: =SUMIF($N$13:$N$92,$P121,$U$13:$U$92) -> 0 | S17: =(Site!$B$32*$G$7*$D17*3630)*Site!$B$34*0.3048^3/454*Site!$B$31/Site!$B$32*Site!$B$36 -> 0 | T17: =IFERROR(($R17+$S17)*($F17+$G17*$Q17/100)/$H17,0) -> 0 | U17: =$R17+$S17-$T17 -> 0
A18: 2.b. Simple Disconnection to C/D Soils (Spec #1) | B18: 25 | E18: =SUMIF($N$13:$N$92,$P122,$G$13:$G$92) -> 0 | F18: =(Site!$B$32*($G$6*$C18+$G$7*$D18)*3630+$E18)*$B18/100 -> 0 | G18: =(Site!$B$32*($G$6*$C18+$G$7*$D18)*3630+$E18)*(1-$B18/100) -> 0 | H18: =+$F18+$G18 -> 0 | I18: 0 | J18: =SUMIF($N$13:$N$92,$P122,$M$13:$M$92) -> 0 | K18: =(Site!$B$32*($G$6*$C18+$G$7*$D18)*3630)*Site!$B$33*0.3048^3/454*Site!$B$31/Site!$B$32*Site!$B$36 -> 0 | L18: =IFERROR(($J18+$K18)*($F18+$G18*$I18/100)/$H18,0) -> 0 | M18: 0 | Q18: 0 | R18: =SUMIF($N$13:$N$92,$P122,$U$13:$U$92) -> 0 | S18: =(Site!$B$32*$G$7*$D18*3630)*Site!$B$34*0.3048^3/454*Site!$B$31/Site!$B$32*Site!$B$36 -> 0 | T18: =IFERROR(($R18+$S18)*($F18+$G18*$Q18/100)/$H18,0) -> 0 | U18: 0
A19: 2.c. To Soil Amended Filter Path as per specifications (existing C/D soils) (Spec #4) | B19: 50 | E19: 0 | F19: =(Site!$B$32*($G$6*$C19+$G$7*$D19)*3630+$E19)*$B19/100 -> 0 | G19: =(Site!$B$32*($G$6*$C19+$G$7*$D19)*3630+$E19)*(1-$B19/100) -> 0 | H19: 0 | I19: 0 | J19: 0 | K19: =(Site!$B$32*($G$6*$C19+$G$7*$D19)*3630)*Site!$B$33*0.3048^3/454*Site!$B$31/Site!$B$32*Site!$B$36 -> 0 | L19: 0 | M19: 0 | Q19: 0 | R19: 0 | S19: =(Site!$B$32*$G$7*$D19*3630)*Site!$B$34*0.3048^3/454*Site!$B$31/Site!$B$32*Site!$B$36 -> 0 | T19: 0 | U19: 0
A20: 2.d. To Dry Well or French Drain #1, Micro-Infilration #1 (Spec #8) | B20: 50 | E20: 0 | F20: =(Site!$B$32*($G$6*$C20+$G$7*$D20)*3630+$E20)*$B20/100 -> 0 | G20: =(Site!$B$32*($G$6*$C20+$G$7*$D20)*3630+$E20)*(1-$B20/100) -> 0 | H20: 0 | I20: 25 | J20: 0 | K20: =(Site!$B$32*($G$6*$C20+$G$7*$D20)*3630)*Site!$B$33*0.3048^3/454*Site!$B$31/Site!$B$32*Site!$B$36 -> 0 | L20: 0 | M20: 0 | Q20: 15 | R20: 0 | S20: =(Site!$B$32*$G$7*$D20*3630)*Site!$B$34*0.3048^3/454*Site!$B$31/Site!$B$32*Site!$B$36 -> 0 | T20: 0 | U20: 0
A21: 2.e. To Dry Well or French Drain #2, Micro-Infiltration #2 (Spec #8) | B21: 90 | E21: 0 | F21: =(Site!$B$32*($G$6*$C21+$G$7*$D21)*3630+$E21)*$B21/100 -> 0 | G21: =(Site!$B$32*($G$6*$C21+$G$7*$D21)*3630+$E21)*(1-$B21/100) -> 0 | H21: 0 | I21: 25 | J21: 0 | K21: =(Site!$B$32*($G$6*$C21+$G$7*$D21)*3630)*Site!$B$33*0.3048^3/454*Site!$B$31/Site!$B$32*Site!$B$36 -> 0 | L21: 0 | M21: 0 | Q21: 15 | R21: 0 | S21: =(Site!$B$32*$G$7*$D21*3630)*Site!$B$34*0.3048^3/454*Site!$B$31/Site!$B$32*Site!$B$36 -> 0 | T21: 0 | U21: 0
A22: 2.f. To Rain Garden #1, Micro-Bioretention #1 (Spec #9) | B22: 40 | E22: 0 | F22: =(Site!$B$32*($G$6*$C22+$G$7*$D22)*3630+$E22)*$B22/100 -> 0 | G22: =(Site!$B$32*($G$6*$C22+$G$7*$D22)*3630+$E22)*(1-$B22/100) -> 0 | H22: 0 | I22: 25 | J22: 0 | K22: =(Site!$B$32*($G$6*$C22+$G$7*$D22)*3630)*Site!$B$33*0.3048^3/454*Site!$B$31/Site!$B$32*Site!$B$36 -> 0 | L22: 0 | M22: 0 | Q22: 40 | R22: 0 | S22: =(Site!$B$32*$G$7*$D22*3630)*Site!$B$34*0.3048^3/454*Site!$B$31/Site!$B$32*Site!$B$36 -> 0 | T22: 0 | U22: 0
A23: 2.g. To Rain Garden #2, Micro-Bioretention #2 (Spec #9) | B23: 80 | E23: 0 | F23: =(Site!$B$32*($G$6*$C23+$G$7*$D23)*3630+$E23)*$B23/100 -> 0 | G23: =(Site!$B$32*($G$6*$C23+$G$7*$D23)*3630+$E23)*(1-$B23/100) -> 0 | H23: 0 | I23: 50 | J23: 0 | K23: =(Site!$B$32*($G$6*$C23+$G$7*$D23)*3630)*Site!$B$33*0.3048^3/454*Site!$B$31/Site!$B$32*Site!$B$36 -> 0 | L23: 0 | M23: 0 | Q23: 60 | R23: 0 | S23: =(Site!$B$32*$G$7*$D23*3630)*Site!$B$34*0.3048^3/454*Site!$B$31/Site!$B$32*Site!$B$36 -> 0 | T23: 0 | U23: 0
A24: 2.h. To Rainwater Harvesting (Spec #6) | B24: 0 | E24: 0 | F24: =(Site!$B$32*($G$6*$C24+$G$7*$D24)*3630+$E24)*$B24/100 -> 0 | G24: =(Site!$B$32*($G$6*$C24+$G$7*$D24)*3630+$E24)*(1-$B24/100) -> 0 | H24: 0 | I24: 0 | J24: 0 | K24: =(Site!$B$32*($G$6*$C24+$G$7*$D24)*3630)*Site!$B$33*0.3048^3/454*Site!$B$31/Site!$B$32*Site!$B$36 -> 0 | L24: 0 | M24: 0 | Q24: 0 | R24: 0 | S24: =(Site!$B$32*$G$7*$D24*3630)*Site!$B$34*0.3048^3/454*Site!$B$31/Site!$B$32*Site!$B$36 -> 0 | T24: 0 | U24: 0
A25: 2.i. To Stormwater Planter, Urban Bioretention (Spec #9, Appendix A) | B25: 40 | E25: 0 | F25: =(Site!$B$32*($G$6*$C25+$G$7*$D25)*3630+$E25)*$B25/100 -> 0 | G25: =(Site!$B$32*($G$6*$C25+$G$7*$D25)*3630+$E25)*(1-$B25/100) -> 0 | H25: 0 | I25: 25 | J25: 0 | K25: =(Site!$B$32*($G$6*$C25+$G$7*$D25)*3630)*Site!$B$33*0.3048^3/454*Site!$B$31/Site!$B$32*Site!$B$36 -> 0 | L25: 0 | M25: 0 | Q25: 40 | R25: 0 | S25: =(Site!$B$32*$G$7*$D25*3630)*Site!$B$34*0.3048^3/454*Site!$B$31/Site!$B$32*Site!$B$36 -> 0 | T25: 0 | U25: 0
A27: 3. Permeable Pavement (RR) | Q27: 3. Permeable Pavement (RR)
A28: 3.a. Permeable Pavement #1 (Spec #7) | B28: 45 | E28: =SUMIF($N$13:$N$92,$P130,$G$13:$G$92) -> 0 | F28: =(Site!$B$32*($G$6*$C28+$G$7*$D28)*3630+$E28)*$B28/100 -> 0 | G28: =(Site!$B$32*($G$6*$C28+$G$7*$D28)*3630+$E28)*(1-$B28/100) -> 0 | H28: =+$F28+$G28 -> 0 | I28: 25 | J28: =SUMIF($N$13:$N$92,$P130,$M$13:$M$92) -> 0 | K28: =(Site!$B$32*($G$6*$C28+$G$7*$D28)*3630)*Site!$B$33*0.3048^3/454*Site!$B$31/Site!$B$32*Site!$B$36 -> 0 | L28: =IFERROR(($J28+$K28)*($F28+$G28*$I28/100)/$H28,0) -> 0 | M28: =$J28+$K28-$L28 -> 0 | Q28: 25 | R28: =SUMIF($N$13:$N$92,$P130,$U$13:$U$92) -> 0 | S28: =(Site!$B$32*($G$6*$C28+$G$7*$D28)*3630)*Site!$B$34*0.3048^3/454*Site!$B$31/Site!$B$32*Site!$B$36 -> 0 | T28: =IFERROR(($R28+$S28)*($F28+$G28*$Q28/100)/$H28,0) -> 0 | U28: =$R28+$S28-$T28 -> 0
A29: 3.b. Permeable Pavement #2 (Spec #7) | B29: 75 | F29: =(Site!$B$32*($G$6*$C29+$G$7*$D29)*3630+$E29)*$B29/100 -> 0 | G29: =(Site!$B$32*($G$6*$C29+$G$7*$D29)*3630+$E29)*(1-$B29/100) -> 0 | H29: =+$F29+$G29 -> 0 | I29: 25 | K29: =(Site!$B$32*($G$6*$C29+$G$7*$D29)*3630)*Site!$B$33*0.3048^3/454*Site!$B$31/Site!$B$32*Site!$B$36 -> 0 | L29: =IFERROR(($J29+$K29)*($F29+$G29*$I29/100)/$H29,0) -> 0 | M29: =$K29-$L29 -> 0 | Q29: 25 | S29: =(Site!$B$32*$G$7*$D29*3630)*Site!$B$34*0.3048^3/454*Site!$B$31/Site!$B$32*Site!$B$36 -> 0 | T29: =IFERROR(($R29+$S29)*($F29+$G29*$Q29/100)/$H29,0) -> 0 | U29: =$R29+$S29-$T29 -> 0
A31: 4. Grass Channel (RR) | Q31: 4. Grass Channel (RR)
A32: 4.a. Grass Channel A/B Soils (Spec #3) | B32: 20 | E32: =SUMIF($N$13:$N$92,$P131,$G$13:$G$92) -> 0 | F32: =(Site!$B$32*($G$6*$C32+$G$7*$D32)*3630+$E32)*$B32/100 -> 0 | G32: =(Site!$B$32*($G$6*$C32+$G$7*$D32)*3630+$E32)*(1-$B32/100) -> 0 | H32: =+$F32+$G32 -> 0 | I32: 15 | J32: =SUMIF($N$13:$N$92,$P131,$M$13:$M$92) -> 0 | K32: =(Site!$B$32*($G$6*$C32+$G$7*$D32)*3630)*Site!$B$33*0.3048^3/454*Site!$B$31/Site!$B$32*Site!$B$36 -> 0 | L32: =IFERROR(($J32+$K32)*($F32+$G32*$I32/100)/$H32,0) -> 0 | M32: =$J32+$K32-$L32 -> 0 | Q32: 20 | R32: =SUMIF($N$13:$N$92,$P131,$U$13:$U$92) -> 0 | S32: =(Site!$B$32*($G$6*$C32+$G$7*$D32)*3630)*Site!$B$34*0.3048^3/454*Site!$B$31/Site!$B$32*Site!$B$36 -> 0 | T32: =IFERROR(($R32+$S32)*($F32+$G32*$Q32/100)/$H32,0) -> 0 | U32: =$R32+$S32-$T32 -> 0
A33: 4.b. Grass Channel C/D Soils (Spec #3) | B33: 10 | E33: =SUMIF($N$13:$N$92,$P132,$G$13:$G$92) -> 0 | F33: =(Site!$B$32*($G$6*$C33+$G$7*$D33)*3630+$E33)*$B33/100 -> 0 | G33: =(Site!$B$32*($G$6*$C33+$G$7*$D33)*3630+$E33)*(1-$B33/100) -> 0 | H33: =+$F33+$G33 -> 0 | I33: 15 | J33: =SUMIF($N$13:$N$92,$P132,$M$13:$M$92) -> 0 | K33: =(Site!$B$32*($G$6*$C33+$G$7*$D33)*3630)*Site!$B$33*0.3048^3/454*Site!$B$31/Site!$B$32*Site!$B$36 -> 0 | L33: =IFERROR(($J33+$K33)*($F33+$G33*$I33/100)/$H33,0) -> 0 | M33: =$J33+$K33-$L33 -> 0 | Q33: 20 | R33: =SUMIF($N$13:$N$92,$P132,$U$13:$U$92) -> 0 | S33: =(Site!$B$32*($G$6*$C33+$G$7*$D33)*3630)*Site!$B$34*0.3048^3/454*Site!$B$31/Site!$B$32*Site!$B$36 -> 0 | T33: =IFERROR(($R33+$S33)*($F33+$G33*$Q33/100)/$H33,0) -> 0 | U33: =$R33+$S33-$T33 -> 0
A34: 4.c. Grass Channel with Compost Amended Soils as per specs (see Spec #4) | B34: =IF(Site!$J$11="2011 Stds & Specs",30,20) -> 20 | E34: 0 | F34: =(Site!$B$32*($G$6*$C34+$G$7*$D34)*3630+$E34)*$B34/100 -> 0 | G34: =(Site!$B$32*($G$6*$C34+$G$7*$D34)*3630+$E34)*(1-$B34/100) -> 0 | H34: 0 | I34: 15 | J34: =SUMIF($N$13:$N$92,$P133,$M$13:$M$92) -> 0 | K34: =(Site!$B$32*($G$6*$C34+$G$7*$D34)*3630)*Site!$B$33*0.3048^3/454*Site!$B$31/Site!$B$32*Site!$B$36 -> 0 | L34: 0 | M34: 0 | Q34: 20 | R34: 0 | S34: =(Site!$B$32*($G$6*$C34+$G$7*$D34)*3630)*Site!$B$34*0.3048^3/454*Site!$B$31/Site!$B$32*Site!$B$36 -> 0 | T34: 0 | U34: 0
W35: `
A36: 5. Dry Swale (RR) | Q36: 5. Dry Swale (RR)
A37: 5.a. Dry Swale #1 (Spec #10) | B37: 40 | E37: =SUMIF($N$13:$N$92,$P134,$G$13:$G$92) -> 0 | F37: =(Site!$B$32*($G$6*$C37+$G$7*$D37)*3630+$E37)*$B37/100 -> 0 | G37: =(Site!$B$32*($G$6*$C37+$G$7*$D37)*3630+$E37)*(1-$B37/100) -> 0 | H37: =+$F37+$G37 -> 0 | I37: 20 | J37: =SUMIF($N$13:$N$92,$P134,$M$13:$M$92) -> 0 | K37: =(Site!$B$32*($G$6*$C37+$G$7*$D37)*3630)*Site!$B$33*0.3048^3/454*Site!$B$31/Site!$B$32*Site!$B$36 -> 0 | L37: =IFERROR(($J37+$K37)*($F37+$G37*$I37/100)/$H37,0) -> 0 | M37: =$J37+$K37-$L37 -> 0 | Q37: 25 | R37: =SUMIF($N$13:$N$92,$P134,$U$13:$U$92) -> 0 | S37: =(Site!$B$32*($G$6*$C37+$G$7*$D37)*3630)*Site!$B$34*0.3048^3/454*Site!$B$31/Site!$B$32*Site!$B$36 -> 0 | T37: =IFERROR(($R37+$S37)*($F37+$G37*$Q37/100)/$H37,0) -> 0 | U37: =$R37+$S37-$T37 -> 0
A38: 5.b. Dry Swale #2 (Spec #10) | B38: 60 | E38: =SUMIF($N$13:$N$92,$P135,$G$13:$G$92) -> 0 | F38: =(Site!$B$32*($G$6*$C38+$G$7*$D38)*3630+$E38)*$B38/100 -> 0 | G38: =(Site!$B$32*($G$6*$C38+$G$7*$D38)*3630+$E38)*(1-$B38/100) -> 0 | H38: =+$F38+$G38 -> 0 | I38: 40 | J38: =SUMIF($N$13:$N$92,$P135,$M$13:$M$92) -> 0 | K38: =(Site!$B$32*($G$6*$C38+$G$7*$D38)*3630)*Site!$B$33*0.3048^3/454*Site!$B$31/Site!$B$32*Site!$B$36 -> 0 | L38: =IFERROR(($J38+$K38)*($F38+$G38*$I38/100)/$H38,0) -> 0 | M38: =$J38+$K38-$L38 -> 0 | Q38: 35 | R38: =SUMIF($N$13:$N$92,$P135,$U$13:$U$92) -> 0 | S38: =(Site!$B$32*($G$6*$C38+$G$7*$D38)*3630)*Site!$B$34*0.3048^3/454*Site!$B$31/Site!$B$32*Site!$B$36 -> 0 | T38: 0 | U38: 0
A40: 6. Bioretention (RR) | Q40: 6. Bioretention (RR)
A41: 6.a. Bioretention #1 or Micro-Bioretention #1 or Urban Bioretention (Spec #9) | B41: 40 | E41: =SUMIF($N$13:$N$92,$P136,$G$13:$G$92) -> 0 | F41: =(Site!$B$32*($G$6*$C41+$G$7*$D41)*3630+$E41)*$B41/100 -> 0 | G41: =(Site!$B$32*($G$6*$C41+$G$7*$D41)*3630+$E41)*(1-$B41/100) -> 0 | H41: =+$F41+$G41 -> 0 | I41: 25 | J41: =SUMIF($N$13:$N$92,$P136,$M$13:$M$92) -> 0 | K41: =(Site!$B$32*($G$6*$C41+$G$7*$D41)*3630)*Site!$B$33*0.3048^3/454*Site!$B$31/Site!$B$32*Site!$B$36 -> 0 | L41: =IFERROR(($J41+$K41)*($F41+$G41*$I41/100)/$H41,0) -> 0 | M41: =$J41+$K41-$L41 -> 0 | Q41: 40 | R41: =SUMIF($N$13:$N$92,$P136,$U$13:$U$92) -> 0 | S41: =(Site!$B$32*($G$6*$C41+$G$7*$D41)*3630)*Site!$B$34*0.3048^3/454*Site!$B$31/Site!$B$32*Site!$B$36 -> 0 | T41: =IFERROR(($R41+$S41)*($F41+$G41*$Q41/100)/$H41,0) -> 0 | U41: =$R41+$S41-$T41 -> 0
A42: 6.b. Bioretention #2 or Micro-Bioretention #2 (Spec #9) | B42: 80 | E42: =SUMIF($N$13:$N$92,$P137,$G$13:$G$92) -> 0 | F42: =(Site!$B$32*($G$6*$C42+$G$7*$D42)*3630+$E42)*$B42/100 -> 0 | G42: =(Site!$B$32*($G$6*$C42+$G$7*$D42)*3630+$E42)*(1-$B42/100) -> 0 | H42: =+$F42+$G42 -> 0 | I42: 50 | J42: =SUMIF($N$13:$N$92,$P137,$M$13:$M$92) -> 0 | K42: =(Site!$B$32*($G$6*$C42+$G$7*$D42)*3630)*Site!$B$33*0.3048^3/454*Site!$B$31/Site!$B$32*Site!$B$36 -> 0 | L42: =IFERROR(($J42+$K42)*($F42+$G42*$I42/100)/$H42,0) -> 0 | M42: =$J42+$K42-$L42 -> 0 | Q42: 60 | R42: =SUMIF($N$13:$N$92,$P137,$U$13:$U$92) -> 0 | S42: =(Site!$B$32*($G$6*$C42+$G$7*$D42)*3630)*Site!$B$34*0.3048^3/454*Site!$B$31/Site!$B$32*Site!$B$36 -> 0 | T42: 0 | U42: 0
A44: 7. Infiltration (RR) | Q44: 7. Infiltration (RR)
A45: 7.a. Infiltration #1 (Spec #8) | B45: 50 | E45: =SUMIF($N$13:$N$92,$P138,$G$13:$G$92) -> 0 | F45: =(Site!$B$32*($G$6*$C45+$G$7*$D45)*3630+$E45)*$B45/100 -> 0 | G45: =(Site!$B$32*($G$6*$C45+$G$7*$D45)*3630+$E45)*(1-$B45/100) -> 0 | H45: =+$F45+$G45 -> 0 | I45: 25 | J45: =SUMIF($N$13:$N$92,$P138,$M$13:$M$92) -> 0 | K45: =(Site!$B$32*($G$6*$C45+$G$7*$D45)*3630)*Site!$B$33*0.3048^3/454*Site!$B$31/Site!$B$32*Site!$B$36 -> 0 | L45: =IFERROR(($J45+$K45)*($F45+$G45*$I45/100)/$H45,0) -> 0 | M45: =$J45+$K45-$L45 -> 0 | Q45: 15 | R45: =SUMIF($N$13:$N$92,$P138,$U$13:$U$92) -> 0 | S45: =(Site!$B$32*($G$6*$C45+$G$7*$D45)*3630)*Site!$B$34*0.3048^3/454*Site!$B$31/Site!$B$32*Site!$B$36 -> 0 | T45: =IFERROR(($R45+$S45)*($F45+$G45*$Q45/100)/$H45,0) -> 0 | U45: =$R45+$S45-$T45 -> 0
A46: 7.b. Infiltration #2 (Spec #8) | B46: 90 | E46: =SUMIF($N$13:$N$92,$P139,$G$13:$G$92) -> 0 | F46: =(Site!$B$32*($G$6*$C46+$G$7*$D46)*3630+$E46)*$B46/100 -> 0 | G46: =(Site!$B$32*($G$6*$C46+$G$7*$D46)*3630+$E46)*(1-$B46/100) -> 0 | H46: =+$F46+$G46 -> 0 | I46: 25 | J46: =SUMIF($N$13:$N$92,$P139,$M$13:$M$92) -> 0 | K46: =(Site!$B$32*($G$6*$C46+$G$7*$D46)*3630)*Site!$B$33*0.3048^3/454*Site!$B$31/Site!$B$32*Site!$B$36 -> 0 | L46: =IFERROR(($J46+$K46)*($F46+$G46*$I46/100)/$H46,0) -> 0 | M46: =$J46+$K46-$L46 -> 0 | Q46: 15 | R46: =SUMIF($N$13:$N$92,$P139,$U$13:$U$92) -> 0 | S46: =(Site!$B$32*($G$6*$C46+$G$7*$D46)*3630)*Site!$B$34*0.3048^3/454*Site!$B$31/Site!$B$32*Site!$B$36 -> 0 | T46: 0 | U46: 0
A48: 8. Extended Detention Pond (RR) | Q48: 8. Extended Detention Pond (RR)
A49: 8.a. ED #1 (Spec #15) | B49: 0 | E49: =SUMIF($N$13:$N$92,$P140,$G$13:$G$92) -> 0 | F49: =(Site!$B$32*($G$6*$C49+$G$7*$D49)*3630+$E49)*$B49/100 -> 0 | G49: =(Site!$B$32*($G$6*$C49+$G$7*$D49)*3630+$E49)*(1-$B49/100) -> 0 | H49: =+$F49+$G49 -> 0 | I49: 15 | J49: =SUMIF($N$13:$N$92,$P140,$M$13:$M$92) -> 0 | K49: =(Site!$B$32*($G$6*$C49+$G$7*$D49)*3630)*Site!$B$33*0.3048^3/454*Site!$B$31/Site!$B$32*Site!$B$36 -> 0 | L49: =IFERROR(($J49+$K49)*($F49+$G49*$I49/100)/$H49,0) -> 0 | M49: =$J49+$K49-$L49 -> 0 | Q49: 10 | R49: =SUMIF($N$13:$N$92,$P140,$U$13:$U$92) -> 0 | S49: =(Site!$B$32*($G$6*$C49+$G$7*$D49)*3630)*Site!$B$34*0.3048^3/454*Site!$B$31/Site!$B$32*Site!$B$36 -> 0 | T49: =IFERROR(($R49+$S49)*($F49+$G49*$Q49/100)/$H49,0) -> 0 | U49: =$R49+$S49-$T49 -> 0
A50: 8.b. ED #2 (Spec #15) | B50: 15 | E50: =SUMIF($N$13:$N$92,$P141,$G$13:$G$92) -> 0 | F50: =(Site!$B$32*($G$6*$C50+$G$7*$D50)*3630+$E50)*$B50/100 -> 0 | G50: =(Site!$B$32*($G$6*$C50+$G$7*$D50)*3630+$E50)*(1-$B50/100) -> 0 | H50: =+$F50+$G50 -> 0 | I50: 15 | J50: =SUMIF($N$13:$N$92,$P141,$M$13:$M$92) -> 0 | K50: =(Site!$B$32*($G$6*$C50+$G$7*$D50)*3630)*Site!$B$33*0.3048^3/454*Site!$B$31/Site!$B$32*Site!$B$36 -> 0 | L50: 0 | M50: 0 | Q50: 10 | R50: =SUMIF($N$13:$N$92,$P141,$U$13:$U$92) -> 0 | S50: =(Site!$B$32*($G$6*$C50+$G$7*$D50)*3630)*Site!$B$34*0.3048^3/454*Site!$B$31/Site!$B$32*Site!$B$36 -> 0 | T50: 0 | U50: 0
A52: 9. Sheetflow to Filter/Open Space (RR) | Q52: 9. Sheetflow to Filter/Open Space (RR)
A53: 9.a. Sheetflow to Conservation Area, A/B Soils (Spec #2) | B53: 75 | E53: =SUMIF($N$13:$N$92,$P142,$G$13:$G$92) -> 0 | F53: =(Site!$B$32*($G$6*$C53+$G$7*$D53)*3630+$E53)*$B53/100 -> 0 | G53: =(Site!$B$32*($G$6*$C53+$G$7*$D53)*3630+$E53)*(1-$B53/100) -> 0 | H53: =+$F53+$G53 -> 0 | I53: 0 | J53: =SUMIF($N$13:$N$92,$P142,$M$13:$M$92) -> 0 | K53: =(Site!$B$32*($G$6*$C53+$G$7*$D53)*3630)*Site!$B$33*0.3048^3/454*Site!$B$31/Site!$B$32*Site!$B$36 -> 0 | L53: =IFERROR(($J53+$K53)*($F53+$G53*$I53/100)/$H53,0) -> 0 | M53: =$J53+$K53-$L53 -> 0 | Q53: 0 | R53: =SUMIF($N$13:$N$92,$P142,$U$13:$U$92) -> 0 | S53: =(Site!$B$32*($G$6*$C53+$G$7*$D53)*3630)*Site!$B$34*0.3048^3/454*Site!$B$31/Site!$B$32*Site!$B$36 -> 0 | T53: =IFERROR(($R53+$S53)*($F53+$G53*$Q53/100)/$H53,0) -> 0 | U53: =$R53+$S53-$T53 -> 0
A54: 9.b. Sheetflow to Conservation Area, C/D Soils (Spec #2) | B54: 50 | E54: =SUMIF($N$13:$N$92,$P143,$G$13:$G$92) -> 0 | F54: =(Site!$B$32*($G$6*$C54+$G$7*$D54)*3630+$E54)*$B54/100 -> 0 | G54: =(Site!$B$32*($G$6*$C54+$G$7*$D54)*3630+$E54)*(1-$B54/100) -> 0 | H54: =+$F54+$G54 -> 0 | I54: 0 | J54: =SUMIF($N$13:$N$92,$P143,$M$13:$M$92) -> 0 | K54: =(Site!$B$32*($G$6*$C54+$G$7*$D54)*3630)*Site!$B$33*0.3048^3/454*Site!$B$31/Site!$B$32*Site!$B$36 -> 0 | L54: 0 | M54: 0 | Q54: 0 | R54: =SUMIF($N$13:$N$92,$P143,$U$13:$U$92) -> 0 | S54: =(Site!$B$32*($G$6*$C54+$G$7*$D54)*3630)*Site!$B$34*0.3048^3/454*Site!$B$31/Site!$B$32*Site!$B$36 -> 0 | T54: 0 | U54: 0
A55: 9.c. Sheetflow to Vegetated Filter Strip, A Soils or Compost Amended B/C/D Soils (Spec #2 & #4) | B55: 50 | E55: 0 | F55: =(Site!$B$32*($G$6*$C55+$G$7*$D55)*3630+$E55)*$B55/100 -> 0 | G55: =(Site!$B$32*($G$6*$C55+$G$7*$D55)*3630+$E55)*(1-$B55/100) -> 0 | H55: 0 | I55: 0 | J55: 0 | K55: =(Site!$B$32*($G$6*$C55+$G$7*$D55)*3630)*Site!$B$33*0.3048^3/454*Site!$B$31/Site!$B$32*Site!$B$36 -> 0 | L55: 0 | M55: 0 | Q55: 0 | R55: 0 | S55: =(Site!$B$32*($G$6*$C55+$G$7*$D55)*3630)*Site!$B$34*0.3048^3/454*Site!$B$31/Site!$B$32*Site!$B$36 -> 0 | T55: 0 | U55: 0
E58: TOTAL IMPERVIOUS COVER TREATED (ac) | F58: =SUM(D13:D55) -> 0 | G58: AREA CHECK: | H58: =IF(F58>$F$7,"AREA EXCEEDED!","OK.") -> OK.
E59: TOTAL MANAGED TURF AREA TREATED (ac) | F59: =SUM(C32:C55) -> 0 | G59: AREA CHECK: | H59: =IF(F59>$F$6,"AREA EXCEEDED!","OK.") -> OK.
E60: TOTAL RUNOFF REDUCTION IN D.A. C (ft3) | F60: =IFERROR(SUM($F$13:$F$55),0) -> 0
H62: TOTAL PHOSPHORUS AVAILABLE FOR REMOVAL IN D.A. C (lb/yr) | I62: =$M$7 -> 0
H63: TOTAL PHOSPHORUS REMOVED WITH RUNOFF REDUCTION PRACTICES IN D.A. C (lb/yr) | I63: =IFERROR(SUM(L13:L55),0) -> 0 | U63: TOTAL RUNOFF REDUCTION IN D.A. C (ft3) | V63: =F60 -> 0
H64: TOTAL PHOSPHORUS REMAINING AFTER APPLYING RUNOFF REDUCTION PRACTICES IN D.A. C (lb/yr) | I64: =I62-I63 -> 0 | U64: NITROGEN REMOVED WITH RUNOFF REDUCTION PRACTICES IN D.A. C (lb/yr) | V64: =SUM($T$13:$T$55) -> 0
C66: SEE WATER QUALITY COMPLIANCE TAB FOR SITE COMPLIANCE CALCULATIONS | V66: SEE WATER QUALITY COMPLIANCE TAB FOR SITE CALCULATIONS (Information Only)
A71: 10. Wet Swale (no RR) | R71: 10. Wet Swale (Coastal Plain) (no RR)
A72: 10.a. Wet Swale #1 (Spec #11) | B72: 0 | E72: =SUMIF($N$13:$N$92,$P145,$G$13:$G$92) -> 0 | F72: =(Site!$B$32*($G$6*$C72+$G$7*$D72)*3630+$E72)*$B72/100 -> 0 | G72: =(Site!$B$32*($G$6*$C72+$G$7*$D72)*3630+$E72)*(1-$B72/100) -> 0 | H72: =+$F72+$G72 -> 0 | I72: 20 | J72: =SUMIF($N$13:$N$92,$P145,$M$13:$M$92) -> 0 | K72: =(Site!$B$32*($G$6*$C72+$G$7*$D72)*3630)*Site!$B$33*0.3048^3/454*Site!$B$31/Site!$B$32*Site!$B$36 -> 0 | L72: =IFERROR(($J72+$K72)*($F72+$G72*$I72/100)/$H72,0) -> 0 | M72: =$J72+$K72-$L72 -> 0 | Q72: 25 | R72: =SUMIF($N$13:$N$92,$P145,$U$13:$U$92) -> 0 | S72: =(Site!$B$32*($G$6*$C72+$G$7*$D72)*3630)*Site!$B$34*0.3048^3/454*Site!$B$31/Site!$B$32*Site!$B$36 -> 0 | T72: =IFERROR(($R72+$S72)*($F72+$G72*$Q72/100)/$H72,0) -> 0 | U72: =$R72+$S72-$T72 -> 0
A73: 10.b. Wet Swale #2 (Spec #11) | B73: 0 | E73: =SUMIF($N$13:$N$92,$P146,$G$13:$G$92) -> 0 | F73: =(Site!$B$32*($G$6*$C73+$G$7*$D73)*3630+$E73)*$B73/100 -> 0 | G73: =(Site!$B$32*($G$6*$C73+$G$7*$D73)*3630+$E73)*(1-$B73/100) -> 0 | H73: 0 | I73: 40 | J73: =SUMIF($N$13:$N$92,$P146,$M$13:$M$92) -> 0 | K73: =(Site!$B$32*($G$6*$C73+$G$7*$D73)*3630)*Site!$B$33*0.3048^3/454*Site!$B$31/Site!$B$32*Site!$B$36 -> 0 | L73: 0 | M73: 0 | Q73: 35 | R73: =SUMIF($N$13:$N$92,$P146,$U$13:$U$92) -> 0 | S73: =(Site!$B$32*($G$6*$C73+$G$7*$D73)*3630)*Site!$B$34*0.3048^3/454*Site!$B$31/Site!$B$32*Site!$B$36 -> 0 | T73: 0 | U73: 0
A75: 11. Filtering Practices (no RR) | Q75: 11. Filtering Practices (no RR)
A76: 11.a.Filtering Practice #1 (Spec #12) | B76: 0 | E76: =SUMIF($N$13:$N$92,$P147,$G$13:$G$92) -> 0 | F76: =(Site!$B$32*($G$6*$C76+$G$7*$D76)*3630+$E76)*$B76/100 -> 0 | G76: =(Site!$B$32*($G$6*$C76+$G$7*$D76)*3630+$E76)*(1-$B76/100) -> 0 | H76: =+$F76+$G76 -> 0 | I76: 60 | J76: =SUMIF($N$13:$N$92,$P147,$M$13:$M$92) -> 0 | K76: =(Site!$B$32*($G$6*$C76+$G$7*$D76)*3630)*Site!$B$33*0.3048^3/454*Site!$B$31/Site!$B$32*Site!$B$36 -> 0 | L76: =IFERROR(($J76+$K76)*($F76+$G76*$I76/100)/$H76,0) -> 0 | M76: =$J76+$K76-$L76 -> 0 | Q76: 30 | R76: =SUMIF($N$13:$N$92,$P147,$U$13:$U$92) -> 0 | S76: =(Site!$B$32*($G$6*$C76+$G$7*$D76)*3630)*Site!$B$34*0.3048^3/454*Site!$B$31/Site!$B$32*Site!$B$36 -> 0 | T76: =IFERROR(($R76+$S76)*($F76+$G76*$Q76/100)/$H76,0) -> 0 | U76: =$R76+$S76-$T76 -> 0
A77: 11.b. Filtering Practice #2 (Spec #12) | B77: 0 | E77: =SUMIF($N$13:$N$92,$P148,$G$13:$G$92) -> 0 | F77: =(Site!$B$32*($G$6*$C77+$G$7*$D77)*3630+$E77)*$B77/100 -> 0 | G77: =(Site!$B$32*($G$6*$C77+$G$7*$D77)*3630+$E77)*(1-$B77/100) -> 0 | H77: 0 | I77: 65 | J77: =SUMIF($N$13:$N$92,$P148,$M$13:$M$92) -> 0 | K77: =(Site!$B$32*($G$6*$C77+$G$7*$D77)*3630)*Site!$B$33*0.3048^3/454*Site!$B$31/Site!$B$32*Site!$B$36 -> 0 | L77: 0 | M77: 0 | Q77: 45 | R77: =SUMIF($N$13:$N$92,$P148,$U$13:$U$92) -> 0 | S77: =(Site!$B$32*($G$6*$C77+$G$7*$D77)*3630)*Site!$B$34*0.3048^3/454*Site!$B$31/Site!$B$32*Site!$B$36 -> 0 | T77: 0 | U77: 0
A79: 12. Constructed Wetland (no RR) | Q79: 12. Constructed Wetland (no RR)
A80: 12.a.Constructed Wetland #1 (Spec #13) | B80: 0 | E80: =SUMIF($N$13:$N$92,$P149,$G$13:$G$92) -> 0 | F80: =(Site!$B$32*($G$6*$C80+$G$7*$D80)*3630+$E80)*$B80/100 -> 0 | G80: =(Site!$B$32*($G$6*$C80+$G$7*$D80)*3630+$E80)*(1-$B80/100) -> 0 | H80: =+$F80+$G80 -> 0 | I80: 50 | J80: =SUMIF($N$13:$N$92,$P149,$M$13:$M$92) -> 0 | K80: =(Site!$B$32*($G$6*$C80+$G$7*$D80)*3630)*Site!$B$33*0.3048^3/454*Site!$B$31/Site!$B$32*Site!$B$36 -> 0 | L80: =IFERROR(($J80+$K80)*($F80+$G80*$I80/100)/$H80,0) -> 0 | M80: =$J80+$K80-$L80 -> 0 | Q80: 25 | R80: =SUMIF($N$13:$N$92,$P149,$U$13:$U$92) -> 0 | S80: =(Site!$B$32*($G$6*$C80+$G$7*$D80)*3630)*Site!$B$34*0.3048^3/454*Site!$B$31/Site!$B$32*Site!$B$36 -> 0 | T80: =IFERROR(($R80+$S80)*($F80+$G80*$Q80/100)/$H80,0) -> 0 | U80: =$R80+$S80-$T80 -> 0
A81: 12.b. Constructed Wetland #2 (Spec #13) | B81: 0 | E81: =SUMIF($N$13:$N$92,$P150,$G$13:$G$92) -> 0 | F81: =(Site!$B$32*($G$6*$C81+$G$7*$D81)*3630+$E81)*$B81/100 -> 0 | G81: =(Site!$B$32*($G$6*$C81+$G$7*$D81)*3630+$E81)*(1-$B81/100) -> 0 | H81: 0 | I81: 75 | J81: =SUMIF($N$13:$N$92,$P150,$M$13:$M$92) -> 0 | K81: =(Site!$B$32*($G$6*$C81+$G$7*$D81)*3630)*Site!$B$33*0.3048^3/454*Site!$B$31/Site!$B$32*Site!$B$36 -> 0 | L81: 0 | M81: 0 | Q81: 55 | R81: =SUMIF($N$13:$N$92,$P150,$U$13:$U$92) -> 0 | S81: =(Site!$B$32*($G$6*$C81+$G$7*$D81)*3630)*Site!$B$34*0.3048^3/454*Site!$B$31/Site!$B$32*Site!$B$36 -> 0 | T81: 0 | U81: 0
A83: 13. Wet Ponds (no RR) | Q83: 13. Wet Ponds (no RR)
A84: 13.a. Wet Pond #1 (Spec #14) | B84: 0 | E84: =SUMIF($N$13:$N$92,$P151,$G$13:$G$92) -> 0 | F84: =(Site!$B$32*($G$6*$C84+$G$7*$D84)*3630+$E84)*$B84/100 -> 0 | G84: =(Site!$B$32*($G$6*$C84+$G$7*$D84)*3630+$E84)*(1-$B84/100) -> 0 | H84: =+$F84+$G84 -> 0 | I84: 50 | J84: =SUMIF($N$13:$N$92,$P151,$M$13:$M$92) -> 0 | K84: =(Site!$B$32*($G$6*$C84+$G$7*$D84)*3630)*Site!$B$33*0.3048^3/454*Site!$B$31/Site!$B$32*Site!$B$36 -> 0 | L84: =IFERROR(($J84+$K84)*($F84+$G84*$I84/100)/$H84,0) -> 0 | M84: =$J84+$K84-$L84 -> 0 | Q84: 30 | R84: =SUMIF($N$13:$N$92,$P151,$U$13:$U$92) -> 0 | S84: =(Site!$B$32*($G$6*$C84+$G$7*$D84)*3630)*Site!$B$34*0.3048^3/454*Site!$B$31/Site!$B$32*Site!$B$36 -> 0 | T84: =IFERROR(($R84+$S84)*($F84+$G84*$Q84/100)/$H84,0) -> 0 | U84: =$R84+$S84-$T84 -> 0
A85: 13.b. Wet Pond #1 (Coastal Plain) (Spec #14) | B85: 0 | E85: =SUMIF($N$13:$N$92,$P152,$G$13:$G$92) -> 0 | F85: =(Site!$B$32*($G$6*$C85+$G$7*$D85)*3630+$E85)*$B85/100 -> 0 | G85: =(Site!$B$32*($G$6*$C85+$G$7*$D85)*3630+$E85)*(1-$B85/100) -> 0 | H85: 0 | I85: 45 | J85: =SUMIF($N$13:$N$92,$P152,$M$13:$M$92) -> 0 | K85: =(Site!$B$32*($G$6*$C85+$G$7*$D85)*3630)*Site!$B$33*0.3048^3/454*Site!$B$31/Site!$B$32*Site!$B$36 -> 0 | L85: 0 | M85: 0 | Q85: 20 | R85: =SUMIF($N$13:$N$92,$P152,$U$13:$U$92) -> 0 | S85: =(Site!$B$32*($G$6*$C85+$G$7*$D85)*3630)*Site!$B$34*0.3048^3/454*Site!$B$31/Site!$B$32*Site!$B$36 -> 0 | T85: 0 | U85: 0
A86: 13.c. Wet Pond #2 (Spec #14) | B86: 0 | E86: 0 | F86: =(Site!$B$32*($G$6*$C86+$G$7*$D86)*3630+$E86)*$B86/100 -> 0 | G86: =(Site!$B$32*($G$6*$C86+$G$7*$D86)*3630+$E86)*(1-$B86/100) -> 0 | H86: 0 | I86: 75 | J86: 0 | K86: =(Site!$B$32*($G$6*$C86+$G$7*$D86)*3630)*Site!$B$33*0.3048^3/454*Site!$B$31/Site!$B$32*Site!$B$36 -> 0 | L86: 0 | M86: 0 | Q86: 40 | R86: 0 | S86: =(Site!$B$32*($G$6*$C86+$G$7*$D86)*3630)*Site!$B$34*0.3048^3/454*Site!$B$31/Site!$B$32*Site!$B$36 -> 0 | T86: 0 | U86: 0
A87: 13.d. Wet Pond #2 (Coastal Plain) (Spec #14) | B87: 0 | E87: 0 | F87: =(Site!$B$32*($G$6*$C87+$G$7*$D87)*3630+$E87)*$B87/100 -> 0 | G87: =(Site!$B$32*($G$6*$C87+$G$7*$D87)*3630+$E87)*(1-$B87/100) -> 0 | H87: 0 | I87: 65 | J87: 0 | K87: =(Site!$B$32*($G$6*$C87+$G$7*$D87)*3630)*Site!$B$33*0.3048^3/454*Site!$B$31/Site!$B$32*Site!$B$36 -> 0 | L87: 0 | M87: 0 | Q87: 30 | R87: 0 | S87: =(Site!$B$32*($G$6*$C87+$G$7*$D87)*3630)*Site!$B$34*0.3048^3/454*Site!$B$31/Site!$B$32*Site!$B$36 -> 0 | T87: 0 | U87: 0
A89: 14. Manufactured Treatment Devices (no RR) | R89: 14. Manufactured BMP (no RR)
A90: 14.a. Manufactured Treatment Device-Hydrodynamic | B90: 0 | E90: =SUMIF($N$13:$N$92,$P155,$G$13:$G$92) -> 0 | F90: =(Site!$B$32*($G$6*$C90+$G$7*$D90)*3630+$E90)*$B90/100 -> 0 | G90: =(Site!$B$32*($G$6*$C90+$G$7*$D90)*3630+$E90)*(1-$B90/100) -> 0 | H90: =+$F90+$G90 -> 0 | I90: 20 | J90: =SUMIF($N$13:$N$92,$P155,$M$13:$M$92) -> 0 | K90: =(Site!$B$32*($G$6*$C90+$G$7*$D90)*3630)*Site!$B$33*0.3048^3/454*Site!$B$31/Site!$B$32*Site!$B$36 -> 0 | L90: =IFERROR(($J90+$K90)*($F90+$G90*$I90/100)/$H90,0) -> 0 | M90: =$J90+$K90-$L90 -> 0 | Q90: 0 | R90: =SUMIF($N$13:$N$92,$P155,$U$13:$U$92) -> 0 | S90: =(Site!$B$32*($G$6*$C90+$G$7*$D90)*3630)*Site!$B$34*0.3048^3/454*Site!$B$31/Site!$B$32*Site!$B$36 -> 0 | T90: =IFERROR(($R90+$S90)*($F90+$G90*$Q90/100)/$H90,0) -> 0 | U90: =$R90+$S90-$T90 -> 0
A91: 14.b. Manufactured Treatment Device-Filtering | B91: 0 | E91: =SUMIF($N$13:$N$92,$P156,$G$13:$G$92) -> 0 | F91: =(Site!$B$32*($G$6*$C91+$G$7*$D91)*3630+$E91)*$B91/100 -> 0 | G91: =(Site!$B$32*($G$6*$C91+$G$7*$D91)*3630+$E91)*(1-$B91/100) -> 0 | H91: 0 | I91: 20 | J91: =SUMIF($N$13:$N$92,$P156,$M$13:$M$92) -> 0 | K91: =(Site!$B$32*($G$6*$C91+$G$7*$D91)*3630)*Site!$B$33*0.3048^3/454*Site!$B$31/Site!$B$32*Site!$B$36 -> 0 | L91: 0 | M91: 0 | Q91: 0 | R91: =SUMIF($N$13:$N$92,$P156,$U$13:$U$92) -> 0 | S91: =(Site!$B$32*($G$6*$C91+$G$7*$D91)*3630)*Site!$B$34*0.3048^3/454*Site!$B$31/Site!$B$32*Site!$B$36 -> 0 | T91: 0 | U91: 0
A92: 14.c. Manufactured Treatment Device-Generic | B92: 0 | E92: 0 | F92: =(Site!$B$32*($G$6*$C92+$G$7*$D92)*3630+$E92)*$B92/100 -> 0 | G92: =(Site!$B$32*($G$6*$C92+$G$7*$D92)*3630+$E92)*(1-$B92/100) -> 0 | H92: 0 | I92: 20 | J92: 0 | K92: =(Site!$B$32*($G$6*$C92+$G$7*$D92)*3630)*Site!$B$33*0.3048^3/454*Site!$B$31/Site!$B$32*Site!$B$36 -> 0 | L92: 0 | M92: 0 | Q92: 0 | R92: 0 | S92: =(Site!$B$32*($G$6*$C92+$G$7*$D92)*3630)*Site!$B$34*0.3048^3/454*Site!$B$31/Site!$B$32*Site!$B$36 -> 0 | T92: 0 | U92: 0
E96: TOTAL IMPERVIOUS COVER TREATED (ac) | F96: =SUM($D$13:$D$92) -> 0 | G96: AREA CHECK: | H96: =IF($F$96>$F$7,"AREA EXCEEDED!","OK.") -> OK.
E97: TOTAL MANAGED TURF AREA TREATED (ac) | F97: =SUM($C$13:$C$92) -> 0 | G97: AREA CHECK: | H97: =IF($F$97>$F$6,"AREA EXCEEDED!","OK.") -> OK.
H99: TOTAL PHOSPHORUS REMOVAL REQUIRED ON SITE (lb/yr) | I99: =IF(Site!G63="Check Areas!","ERROR - ",Site!G63) -> -- | J99: =IF(I99="ERROR - ","Site Data Tab","") -> 
H101: TOTAL PHOSPHORUS AVAILABLE FOR REMOVAL IN D.A. C (lb/yr) | I101: =$M$7 -> 0
H102: TOTAL PHOSPHORUS REMOVED WITHOUT RUNOFF REDUCTION PRACTICES IN D.A. C (lb/yr) | I102: =SUM($L$72:$L$92) -> 0
H103: TOTAL PHOSPHORUS REMOVED WITH RUNOFF REDUCTION PRACTICES IN D.A. C (lb/yr) | I103: =$I$63 -> 0
H104: TOTAL PHOSPHORUS LOAD REDUCTION ACHIEVED IN D.A. C (lb/yr) | I104: =$I$102+$I$103 -> 0
H105: TOTAL PHOSPHORUS REMAINING AFTER APPLYING BMP LOAD REDUCTIONS IN D.A. C (lb/yr) | I105: =$I$101-$I$104 -> 0
C107: SEE WATER QUALITY COMPLIANCE TAB FOR SITE COMPLIANCE CALCULATIONS
H109: NITROGEN REMOVED WITH RUNOFF REDUCTION PRACTICES IN D.A. C (lb/yr) | I109: =IFERROR(SUM($T$13:$T$55),0) -> 0
H110: NITROGEN REMOVED WITHOUT RUNOFF REDUCTION PRACTICES IN D.A. C (lb/yr) | I110: =SUM($T$72:$T$92) -> 0
H111: TOTAL NITROGEN REMOVED IN D.A. C (lb/yr) | I111: =$I$109+$I$110 -> 0
C116: Downstream Practices - Dropdown selections for each applicable BMP
A118: Options for 1. Green Roof | C118: Options for 2. Impervious Surface Disconnection | E118: Options for 3a. Pervious Parking, A/B Soils | G118: Options for 4a. Grass Channels, A/B Soils | J118: Options for 4b. Grass Channels, C/D Soils
L119: Options for 4.c. Grass Channel Compost Amended Soils | P119: Master Downstream BMP Reference List
A120: =P120 -> None | C120: =P120 -> None | E120: =P120 -> None | G120: =P120 -> None | J120: =P120 -> None | P120: None
A121: 2.a. Simple Disconnection to A/B Soils | C121: =P131 -> 4.a. Grass Channel A/B Soils | E121: =P131 -> 4.a. Grass Channel A/B Soils | G121: =P132 -> 4.b. Grass Channel C/D Soils | J121: =P131 -> 4.a. Grass Channel A/B Soils | L121: =P120 -> None | P121: 2.a. Simple Disconnection to A/B Soils
A122: 2.b. Simple Disconnection to C/D Soils | C122: 4.b. Grass Channel C/D Soils | E122: 4.b. Grass Channel C/D Soils | G122: 4.c. Grass Channel Compost Amended Soils | J122: =P133 -> 4.c. Grass Channel Compost Amended Soils | L122: =P131 -> 4.a. Grass Channel A/B Soils | P122: 2.b. Simple Disconnection to C/D Soils
A123: 2.c. To Soil Amended Filter Path | C123: 4.c. Grass Channel Compost Amended Soils | E123: 4.c. Grass Channel Compost Amended Soils | G123: 5.a. Dry Swale #1 | J123: 5.a. Dry Swale #1 | L123: =P132 -> 4.b. Grass Channel C/D Soils | P123: 2.c. To Soil Amended Filter Path
A124: 2.d. To Dry Well/French Drain #1 (Micro-Infiltration #1) | C124: 5.a. Dry Swale #1 | E124: 5.a. Dry Swale #1 | G124: 5.b. Dry Swale #2 | J124: 5.b. Dry Swale #2 | L124: =P134 -> 5.a. Dry Swale #1 | P124: 2.d. To Dry Well/French Drain #1 (Micro-Infiltration #1)
A125: 2.e. To Dry Well/French Drain #2 (Micro-Infiltration. #2) | C125: 5.b. Dry Swale #2 | E125: 5.b. Dry Swale #2 | G125: 6.a. Bioretention #1 | J125: 6.a. Bioretention #1 | L125: 5.b. Dry Swale #2 | P125: 2.e. To Dry Well/French Drain #2 (Micro-Infiltration. #2)
A126: 2.f. To Rain Garden #1 (Micro-Bioretention #1) | C126: 6.a. Bioretention #1 | E126: 6.a. Bioretention #1 | G126: 6.b. Bioretention #2 | J126: 6.b. Bioretention #2 | L126: 6.a. Bioretention #1 | P126: 2.f. To Rain Garden #1 (Micro-Bioretention #1)
A127: 2.g. To Rain Garden #2 (Micro-Bioretention #2) | C127: 6.b. Bioretention #2 | E127: 6.b. Bioretention #2 | G127: 7.a. Infiltration #1 | J127: 7.a. Infiltration #1 | L127: 6.b. Bioretention #2 | P127: 2.g. To Rain Garden #2 (Micro-Bioretention #2)
A128: 2.h. To Train Barrel, Rain Tank, or Cistern | C128: 7.a. Infiltration #1 | E128: 7.a. Infiltration #1 | G128: 7.b. Infiltration #2 | J128: 7.b. Infiltration #2 | L128: 7.a. Infiltration #1 | P128: 2.h. To Train Barrel, Rain Tank, or Cistern
A129: 2.i. To Stormwater Planter (Urban Bioretention) | C129: 7.b. Infiltration #2 | E129: 7.b. Infiltration #2 | G129: 8.a. ED #1 | J129: 8.a. ED #1 | L129: 7.b. Infiltration #2 | P129: 2.i. To Stormwater Planter (Urban Bioretention)
A130: 3.a. Permeable Pavement #1 | C130: 8.a. ED #1 | E130: 8.a. ED #1 | G130: 8.b. ED #2 | J130: 8.b. ED #2 | L130: 8.a. ED #1 | P130: 3.a. Permeable Pavement #1
A131: 4.a. Grass Channel A/B Soils | C131: 8.b. ED #2 | E131: 8.b. ED #2 | G131: 9.a. Sheetflow to A/B Soil Conservation Area | J131: 9.a. Sheetflow to A/B Soil Conservation Area | L131: 8.b. ED #2 | P131: 4.a. Grass Channel A/B Soils
A132: 4.b. Grass Channel C/D Soils | C132: 9.a. Sheetflow to A/B Soil Conservation Area | E132: 9.a. Sheetflow to A/B Soil Conservation Area | G132: 9.b. Sheetflow to C/D Soil Conservation Area | J132: 9.b. Sheetflow to C/D Soil Conservation Area | L132: 9.a. Sheetflow to A/B Soil Conservation Area | P132: 4.b. Grass Channel C/D Soils
A133: 4.c. Grass Channel Compost Amended Soils | C133: 9.b. Sheetflow to C/D Soil Conservation Area | E133: 9.b. Sheetflow to C/D Soil Conservation Area | G133: 9.c. Sheetflow to Vegetated Filter Strip | J133: 9.c. Sheetflow to Vegetated Filter Strip | L133: 9.b. Sheetflow to C/D Soil Conservation Area | P133: 4.c. Grass Channel Compost Amended Soils
A134: 5.a. Dry Swale #1 | C134: 9.c. Sheetflow to Vegetated Filter Strip | E134: 9.c. Sheetflow to Vegetated Filter Strip | G134: 10.a. Wet Swale #1 | J134: 10.a. Wet Swale #1 | L134: 9.c. Sheetflow to Vegetated Filter Strip | P134: 5.a. Dry Swale #1
A135: 5.b. Dry Swale #2 | C135: 10.a. Wet Swale #1 | E135: 10.a. Wet Swale #1 | G135: 10.b. Wet Swale #2 | J135: 10.b. Wet Swale #2 | L135: 10.a. Wet Swale #1 | P135: 5.b. Dry Swale #2
A136: 6.a. Bioretention #1 | C136: 10.b. Wet Swale #2 | E136: 10.b. Wet Swale #2 | G136: 11.a. Filtering Practice #1 | J136: 11.a. Filtering Practice #1 | L136: 10.b. Wet Swale #2 | P136: 6.a. Bioretention #1
A137: 6.b. Bioretention #2 | C137: 11.a. Filtering Practice #1 | E137: 11.a. Filtering Practice #1 | G137: 11.b. Filtering Practice #2 | J137: 11.b. Filtering Practice #2 | L137: 11.a. Filtering Practice #1 | P137: 6.b. Bioretention #2
A138: 7.a. Infiltration #1 | C138: 11.b. Filtering Practice #2 | E138: 11.b. Filtering Practice #2 | G138: 12.a. Constructed Wetland #1 | J138: 12.a. Constructed Wetland #1 | L138: 11.b. Filtering Practice #2 | P138: 7.a. Infiltration #1
A139: 7.b. Infiltration #2 | C139: 12.a. Constructed Wetland #1 | E139: 12.a. Constructed Wetland #1 | G139: 12.b. Constructed Wetland #2 | J139: 12.b. Constructed Wetland #2 | L139: 12.a. Constructed Wetland #1 | P139: 7.b. Infiltration #2
A140: 8.a. ED #1 | C140: 12.b. Constructed Wetland #2 | E140: 12.b. Constructed Wetland #2 | G140: 13.a. Wet Pond #1 | J140: 13.a. Wet Pond #1 | L140: 12.b. Constructed Wetland #2 | P140: 8.a. ED #1
A141: 8.b. ED #2 | C141: 13.a. Wet Pond #1 | E141: 13.a. Wet Pond #1 | G141: 13.b. Wet Pond #1 (Coastal Plain) | J141: 13.b. Wet Pond #1 (Coastal Plain) | L141: 13.a. Wet Pond #1 | P141: 8.b. ED #2
A142: 9.a. Sheetflow to A/B Soil Conservation Area | C142: 13.b. Wet Pond #1 (Coastal Plain) | E142: 13.b. Wet Pond #1 (Coastal Plain) | G142: 13.c. Wet Pond #2 | J142: 13.c. Wet Pond #2 | L142: 13.b. Wet Pond #1 (Coastal Plain) | P142: 9.a. Sheetflow to A/B Soil Conservation Area
A143: 9.b. Sheetflow to C/D Soil Conservation Area | C143: 13.c. Wet Pond #2 | E143: 13.c. Wet Pond #2 | G143: 13.d. Wet Pond #2 (Coastal Plain) | J143: 13.d. Wet Pond #2 (Coastal Plain) | L143: 13.c. Wet Pond #2 | P143: 9.b. Sheetflow to C/D Soil Conservation Area
A144: 9.c. Sheetflow to Vegetated Filter Strip | C144: 13.d. Wet Pond #2 (Coastal Plain) | E144: 13.d. Wet Pond #2 (Coastal Plain) | G144: 14.a. MTD - Hydrodynamic | J144: 14.a. MTD - Hydrodynamic | L144: 13.d. Wet Pond #2 (Coastal Plain) | P144: 9.c. Sheetflow to Vegetated Filter Strip
A145: 10.a. Wet Swale #1 | C145: 14.a. MTD - Hydrodynamic | E145: 14.a. MTD - Hydrodynamic | G145: 14.b. MTD - Filtering | J145: 14.b. MTD - Filtering | L145: 14.a. MTD - Hydrodynamic | P145: 10.a. Wet Swale #1
A146: 10.b. Wet Swale #2 | C146: 14.b. MTD - Filtering | E146: 14.b. MTD - Filtering | G146: 14.c. MTD - Generic | J146: 14.c. MTD - Generic | L146: 14.b. MTD - Filtering | P146: 10.b. Wet Swale #2
A147: 11.a. Filtering Practice #1 | C147: 14.c. MTD - Generic | E147: 14.c. MTD - Generic | L147: 14.c. MTD - Generic | P147: 11.a. Filtering Practice #1
A148: 11.b. Filtering Practice #2 | P148: 11.b. Filtering Practice #2
A149: 12.a. Constructed Wetland #1 | P149: 12.a. Constructed Wetland #1
A150: 12.b. Constructed Wetland #2 | P150: 12.b. Constructed Wetland #2
A151: 13.a. Wet Pond #1 | P151: 13.a. Wet Pond #1
A152: 13.b. Wet Pond #1 (Coastal Plain) | P152: 13.b. Wet Pond #1 (Coastal Plain)
A153: 13.c. Wet Pond #2 | P153: 13.c. Wet Pond #2
A154: 13.d. Wet Pond #2 (Coastal Plain) | P154: 13.d. Wet Pond #2 (Coastal Plain)
A155: 14.a. MTD - Hydrodynamic | P155: 14.a. MTD - Hydrodynamic
A156: 14.b. MTD - Filtering | P156: 14.b. MTD - Filtering
A157: 14.c. MTD - Generic | P157: 14.c. MTD - Generic
A159: Options for 5a. Dry Swale #1 | C159: Options for 5b. Dry Swale #2 | E159: Options for 6a. Bioretention #1 | G159: Options for 6b. Bioretention #2 | J159: Options for 7a. Infiltration #1 | L159: Options for 7b. Infiltration #2
A161: =P120 -> None | C161: =P120 -> None | E161: =P120 -> None | G161: =P120 -> None | J161: =P120 -> None | L161: =P120 -> None
A162: =P131 -> 4.a. Grass Channel A/B Soils | C162: =P131 -> 4.a. Grass Channel A/B Soils | E162: =P131 -> 4.a. Grass Channel A/B Soils | G162: =P131 -> 4.a. Grass Channel A/B Soils | J162: =P131 -> 4.a. Grass Channel A/B Soils | L162: =P131 -> 4.a. Grass Channel A/B Soils
A163: =P132 -> 4.b. Grass Channel C/D Soils | C163: =P132 -> 4.b. Grass Channel C/D Soils | E163: =P132 -> 4.b. Grass Channel C/D Soils | G163: 4.b. Grass Channel C/D Soils | J163: 4.b. Grass Channel C/D Soils | L163: 4.b. Grass Channel C/D Soils
A164: =P133 -> 4.c. Grass Channel Compost Amended Soils | C164: =P133 -> 4.c. Grass Channel Compost Amended Soils | E164: =P133 -> 4.c. Grass Channel Compost Amended Soils | G164: 4.c. Grass Channel Compost Amended Soils | J164: 4.c. Grass Channel Compost Amended Soils | L164: 4.c. Grass Channel Compost Amended Soils
A165: =P135 -> 5.b. Dry Swale #2 | C165: =P134 -> 5.a. Dry Swale #1 | E165: =P134 -> 5.a. Dry Swale #1 | G165: 5.a. Dry Swale #1 | J165: 5.a. Dry Swale #1 | L165: 5.a. Dry Swale #1
A166: 6.a. Bioretention #1 | C166: =P136 -> 6.a. Bioretention #1 | E166: =P135 -> 5.b. Dry Swale #2 | G166: 5.b. Dry Swale #2 | J166: 5.b. Dry Swale #2 | L166: 5.b. Dry Swale #2
A167: 6.b. Bioretention #2 | C167: 6.b. Bioretention #2 | E167: =P137 -> 6.b. Bioretention #2 | G167: 6.a. Bioretention #1 | J167: 6.a. Bioretention #1 | L167: 6.a. Bioretention #1
A168: 7.a. Infiltration #1 | C168: 7.a. Infiltration #1 | E168: 7.a. Infiltration #1 | G168: =P138 -> 7.a. Infiltration #1 | J168: 6.b. Bioretention #2 | L168: 6.b. Bioretention #2
A169: 7.b. Infiltration #2 | C169: 7.b. Infiltration #2 | E169: 7.b. Infiltration #2 | G169: 7.b. Infiltration #2 | J169: =P139 -> 7.b. Infiltration #2 | L169: 7.a. Infiltration #1
A170: 8.a. ED #1 | C170: 8.a. ED #1 | E170: 8.a. ED #1 | G170: 8.a. ED #1 | J170: 8.a. ED #1 | L170: =P140 -> 8.a. ED #1
A171: 8.b. ED #2 | C171: 8.b. ED #2 | E171: 8.b. ED #2 | G171: 8.b. ED #2 | J171: 8.b. ED #2 | L171: 8.b. ED #2
A172: 9.a. Sheetflow to A/B Soil Conservation Area | C172: 9.a. Sheetflow to A/B Soil Conservation Area | E172: 9.a. Sheetflow to A/B Soil Conservation Area | G172: 9.a. Sheetflow to A/B Soil Conservation Area | J172: 9.a. Sheetflow to A/B Soil Conservation Area | L172: 9.a. Sheetflow to A/B Soil Conservation Area
A173: 9.b. Sheetflow to C/D Soil Conservation Area | C173: 9.b. Sheetflow to C/D Soil Conservation Area | E173: 9.b. Sheetflow to C/D Soil Conservation Area | G173: 9.b. Sheetflow to C/D Soil Conservation Area | J173: 9.b. Sheetflow to C/D Soil Conservation Area | L173: 9.b. Sheetflow to C/D Soil Conservation Area
A174: 9.c. Sheetflow to Vegetated Filter Strip | C174: 9.c. Sheetflow to Vegetated Filter Strip | E174: 9.c. Sheetflow to Vegetated Filter Strip | G174: 9.c. Sheetflow to Vegetated Filter Strip | J174: 9.c. Sheetflow to Vegetated Filter Strip | L174: 9.c. Sheetflow to Vegetated Filter Strip
A175: 10.a. Wet Swale #1 | C175: 10.a. Wet Swale #1 | E175: 10.a. Wet Swale #1 | G175: 10.a. Wet Swale #1 | J175: 10.a. Wet Swale #1 | L175: 10.a. Wet Swale #1
A176: 10.b. Wet Swale #2 | C176: 10.b. Wet Swale #2 | E176: 10.b. Wet Swale #2 | G176: 10.b. Wet Swale #2 | J176: 10.b. Wet Swale #2 | L176: 10.b. Wet Swale #2
A177: 11.a. Filtering Practice #1 | C177: 11.a. Filtering Practice #1 | E177: 11.a. Filtering Practice #1 | G177: 11.a. Filtering Practice #1 | J177: 11.a. Filtering Practice #1 | L177: 11.a. Filtering Practice #1
A178: 11.b. Filtering Practice #2 | C178: 11.b. Filtering Practice #2 | E178: 11.b. Filtering Practice #2 | G178: 11.b. Filtering Practice #2 | J178: 11.b. Filtering Practice #2 | L178: 11.b. Filtering Practice #2
A179: 12.a. Constructed Wetland #1 | C179: 12.a. Constructed Wetland #1 | E179: 12.a. Constructed Wetland #1 | G179: 12.a. Constructed Wetland #1 | J179: 12.a. Constructed Wetland #1 | L179: 12.a. Constructed Wetland #1
A180: 12.b. Constructed Wetland #2 | C180: 12.b. Constructed Wetland #2 | E180: 12.b. Constructed Wetland #2 | G180: 12.b. Constructed Wetland #2 | J180: 12.b. Constructed Wetland #2 | L180: 12.b. Constructed Wetland #2
A181: 13.a. Wet Pond #1 | C181: 13.a. Wet Pond #1 | E181: 13.a. Wet Pond #1 | G181: 13.a. Wet Pond #1 | J181: 13.a. Wet Pond #1 | L181: 13.a. Wet Pond #1
A182: 13.b. Wet Pond #1 (Coastal Plain) | C182: 13.b. Wet Pond #1 (Coastal Plain) | E182: 13.b. Wet Pond #1 (Coastal Plain) | G182: 13.b. Wet Pond #1 (Coastal Plain) | J182: 13.b. Wet Pond #1 (Coastal Plain) | L182: 13.b. Wet Pond #1 (Coastal Plain)
A183: 13.c. Wet Pond #2 | C183: 13.c. Wet Pond #2 | E183: 13.c. Wet Pond #2 | G183: 13.c. Wet Pond #2 | J183: 13.c. Wet Pond #2 | L183: 13.c. Wet Pond #2
A184: 13.d. Wet Pond #2 (Coastal Plain) | C184: 13.d. Wet Pond #2 (Coastal Plain) | E184: 13.d. Wet Pond #2 (Coastal Plain) | G184: 13.d. Wet Pond #2 (Coastal Plain) | J184: 13.d. Wet Pond #2 (Coastal Plain) | L184: 13.d. Wet Pond #2 (Coastal Plain)
A185: 14.a. MTD - Hydrodynamic | C185: 14.a. MTD - Hydrodynamic | E185: 14.a. MTD - Hydrodynamic | G185: 14.a. MTD - Hydrodynamic | J185: 14.a. MTD - Hydrodynamic | L185: 14.a. MTD - Hydrodynamic
A186: 14.b. MTD - Filtering | C186: 14.b. MTD - Filtering | E186: 14.b. MTD - Filtering | G186: 14.b. MTD - Filtering | J186: 14.b. MTD - Filtering | L186: 14.b. MTD - Filtering
A187: 14.c. MTD - Generic | C187: 14.c. MTD - Generic | E187: 14.c. MTD - Generic | G187: 14.c. MTD - Generic | J187: 14.c. MTD - Generic | L187: 14.c. MTD - Generic
A189: Options for 8a. Extended Detention #1 | C189: Options for 8b. Extended Detention #2 | E189: Options for 9 Sheet Flow to Open Space | G189: Options for 9c. Sheet Flow to Filter Strip | J189: Options for 10a. Wet Swale #1 | L189: Options for 10b. Wet Swale #2
A191: =P120 -> None | C191: =P120 -> None | E191: =P120 -> None | G191: =P120 -> None | J191: =P120 -> None | L191: =P120 -> None
A192: =P131 -> 4.a. Grass Channel A/B Soils | C192: =P131 -> 4.a. Grass Channel A/B Soils | G192: =P131 -> 4.a. Grass Channel A/B Soils | J192: =P131 -> 4.a. Grass Channel A/B Soils | L192: =P131 -> 4.a. Grass Channel A/B Soils
A193: 4.b. Grass Channel C/D Soils | C193: 4.b. Grass Channel C/D Soils | G193: 4.b. Grass Channel C/D Soils | J193: 4.b. Grass Channel C/D Soils | L193: 4.b. Grass Channel C/D Soils
A194: 4.c. Grass Channel Compost Amended Soils | C194: 4.c. Grass Channel Compost Amended Soils | G194: 4.c. Grass Channel Compost Amended Soils | J194: 4.c. Grass Channel Compost Amended Soils | L194: 4.c. Grass Channel Compost Amended Soils
A195: 5.a. Dry Swale #1 | C195: 5.a. Dry Swale #1 | G195: 5.a. Dry Swale #1 | J195: 5.a. Dry Swale #1 | L195: 5.a. Dry Swale #1
A196: 5.b. Dry Swale #2 | C196: 5.b. Dry Swale #2 | G196: 5.b. Dry Swale #2 | J196: 5.b. Dry Swale #2 | L196: 5.b. Dry Swale #2
A197: 6.a. Bioretention #1 | C197: 6.a. Bioretention #1 | G197: 6.a. Bioretention #1 | J197: 6.a. Bioretention #1 | L197: 6.a. Bioretention #1
A198: 6.b. Bioretention #2 | C198: 6.b. Bioretention #2 | G198: 6.b. Bioretention #2 | J198: 6.b. Bioretention #2 | L198: 6.b. Bioretention #2
A199: 7.a. Infiltration #1 | C199: 7.a. Infiltration #1 | G199: 7.a. Infiltration #1 | J199: 7.a. Infiltration #1 | L199: 7.a. Infiltration #1
A200: 7.b. Infiltration #2 | C200: 7.b. Infiltration #2 | G200: 7.b. Infiltration #2 | J200: 7.b. Infiltration #2 | L200: 7.b. Infiltration #2
A201: =P141 -> 8.b. ED #2 | C201: 8.a. ED #1 | G201: 8.a. ED #1 | J201: 8.a. ED #1 | L201: 8.a. ED #1
A202: 9.a. Sheetflow to A/B Soil Conservation Area | C202: =P142 -> 9.a. Sheetflow to A/B Soil Conservation Area | G202: 8.b. ED #2 | J202: 8.b. ED #2 | L202: 8.b. ED #2
A203: 9.b. Sheetflow to C/D Soil Conservation Area | C203: 9.b. Sheetflow to C/D Soil Conservation Area | G203: 9.a. Sheetflow to A/B Soil Conservation Area | J203: 9.a. Sheetflow to A/B Soil Conservation Area | L203: 9.a. Sheetflow to A/B Soil Conservation Area
A204: 9.c. Sheetflow to Vegetated Filter Strip | C204: 9.c. Sheetflow to Vegetated Filter Strip | G204: 9.b. Sheetflow to C/D Soil Conservation Area | J204: 9.b. Sheetflow to C/D Soil Conservation Area | L204: 9.b. Sheetflow to C/D Soil Conservation Area
A205: 10.a. Wet Swale #1 | C205: 10.a. Wet Swale #1 | G205: =P145 -> 10.a. Wet Swale #1 | J205: 9.c. Sheetflow to Vegetated Filter Strip | L205: 9.c. Sheetflow to Vegetated Filter Strip
A206: 10.b. Wet Swale #2 | C206: 10.b. Wet Swale #2 | G206: 10.b. Wet Swale #2 | J206: =P146 -> 10.b. Wet Swale #2 | L206: 10.a. Wet Swale #1
A207: 11.a. Filtering Practice #1 | C207: 11.a. Filtering Practice #1 | G207: 11.a. Filtering Practice #1 | J207: 11.a. Filtering Practice #1 | L207: =P147 -> 11.a. Filtering Practice #1
A208: 11.b. Filtering Practice #2 | C208: 11.b. Filtering Practice #2 | G208: 11.b. Filtering Practice #2 | J208: 11.b. Filtering Practice #2 | L208: 11.b. Filtering Practice #2
A209: 12.a. Constructed Wetland #1 | C209: 12.a. Constructed Wetland #1 | G209: 12.a. Constructed Wetland #1 | J209: 12.a. Constructed Wetland #1 | L209: 12.a. Constructed Wetland #1
A210: 12.b. Constructed Wetland #2 | C210: 12.b. Constructed Wetland #2 | G210: 12.b. Constructed Wetland #2 | J210: 12.b. Constructed Wetland #2 | L210: 12.b. Constructed Wetland #2
A211: 13.a. Wet Pond #1 | C211: 13.a. Wet Pond #1 | G211: 13.a. Wet Pond #1 | J211: 13.a. Wet Pond #1 | L211: 13.a. Wet Pond #1
A212: 13.b. Wet Pond #1 (Coastal Plain) | C212: 13.b. Wet Pond #1 (Coastal Plain) | G212: 13.b. Wet Pond #1 (Coastal Plain) | J212: 13.b. Wet Pond #1 (Coastal Plain) | L212: 13.b. Wet Pond #1 (Coastal Plain)
A213: 13.c. Wet Pond #2 | C213: 13.c. Wet Pond #2 | G213: 13.c. Wet Pond #2 | J213: 13.c. Wet Pond #2 | L213: 13.c. Wet Pond #2
A214: 13.d. Wet Pond #2 (Coastal Plain) | C214: 13.d. Wet Pond #2 (Coastal Plain) | G214: 13.d. Wet Pond #2 (Coastal Plain) | J214: 13.d. Wet Pond #2 (Coastal Plain) | L214: 13.d. Wet Pond #2 (Coastal Plain)
A215: 14.a. MTD - Hydrodynamic | C215: 14.a. MTD - Hydrodynamic | G215: 14.a. MTD - Hydrodynamic | J215: 14.a. MTD - Hydrodynamic | L215: 14.a. MTD - Hydrodynamic
A216: 14.b. MTD - Filtering | C216: 14.b. MTD - Filtering | G216: 14.b. MTD - Filtering | J216: 14.b. MTD - Filtering | L216: 14.b. MTD - Filtering
A217: 14.c. MTD - Generic | C217: 14.c. MTD - Generic | G217: 14.c. MTD - Generic | J217: 14.c. MTD - Generic | L217: 14.c. MTD - Generic
E219: Options for 12.a. Constructed Wetland #1 | G219: Options for 12.b. Constructed Wetland #2
A220: Options for 11 A. Filtering Practice #1 | C220: Options for 11 b. Filtering Practice #2 | J220: Options for 13.a. Wet Pond #1
E221: =P120 -> None | G221: =P120 -> None | J221: =P120 -> None | L221: Options for 13.b. Wet Pond #1 (Coastal Plain)
A222: =P120 -> None | C222: =P120 -> None | E222: =P131 -> 4.a. Grass Channel A/B Soils | G222: =P131 -> 4.a. Grass Channel A/B Soils | J222: =P131 -> 4.a. Grass Channel A/B Soils | L222: =P120 -> None
A223: =P131 -> 4.a. Grass Channel A/B Soils | C223: =P131 -> 4.a. Grass Channel A/B Soils | E223: 4.b. Grass Channel C/D Soils | G223: 4.b. Grass Channel C/D Soils | J223: 4.b. Grass Channel C/D Soils | L223: =P131 -> 4.a. Grass Channel A/B Soils
A224: 4.b. Grass Channel C/D Soils | C224: 4.b. Grass Channel C/D Soils | E224: 4.c. Grass Channel Compost Amended Soils | G224: 4.c. Grass Channel Compost Amended Soils | J224: 4.c. Grass Channel Compost Amended Soils | L224: 4.b. Grass Channel C/D Soils
A225: 4.c. Grass Channel Compost Amended Soils | C225: 4.c. Grass Channel Compost Amended Soils | E225: 5.a. Dry Swale #1 | G225: 5.a. Dry Swale #1 | J225: 5.a. Dry Swale #1 | L225: 4.c. Grass Channel Compost Amended Soils
A226: 5.a. Dry Swale #1 | C226: 5.a. Dry Swale #1 | E226: 5.b. Dry Swale #2 | G226: 5.b. Dry Swale #2 | J226: 5.b. Dry Swale #2 | L226: 5.a. Dry Swale #1
A227: 5.b. Dry Swale #2 | C227: 5.b. Dry Swale #2 | E227: 6.a. Bioretention #1 | G227: 6.a. Bioretention #1 | J227: 6.a. Bioretention #1 | L227: 5.b. Dry Swale #2
A228: 6.a. Bioretention #1 | C228: 6.a. Bioretention #1 | E228: 6.b. Bioretention #2 | G228: 6.b. Bioretention #2 | J228: 6.b. Bioretention #2 | L228: 6.a. Bioretention #1
A229: 6.b. Bioretention #2 | C229: 6.b. Bioretention #2 | E229: 7.a. Infiltration #1 | G229: 7.a. Infiltration #1 | J229: 7.a. Infiltration #1 | L229: 6.b. Bioretention #2
A230: 7.a. Infiltration #1 | C230: 7.a. Infiltration #1 | E230: 7.b. Infiltration #2 | G230: 7.b. Infiltration #2 | J230: 7.b. Infiltration #2 | L230: 7.a. Infiltration #1
A231: 7.b. Infiltration #2 | C231: 7.b. Infiltration #2 | E231: 8.a. ED #1 | G231: 8.a. ED #1 | J231: 8.a. ED #1 | L231: 7.b. Infiltration #2
A232: 8.a. ED #1 | C232: 8.a. ED #1 | E232: 8.b. ED #2 | G232: 8.b. ED #2 | J232: 8.b. ED #2 | L232: 8.a. ED #1
A233: 8.b. ED #2 | C233: 8.b. ED #2 | E233: 9.a. Sheetflow to A/B Soil Conservation Area | G233: 9.a. Sheetflow to A/B Soil Conservation Area | J233: 9.a. Sheetflow to A/B Soil Conservation Area | L233: 8.b. ED #2
A234: 9.a. Sheetflow to A/B Soil Conservation Area | C234: 9.a. Sheetflow to A/B Soil Conservation Area | E234: 9.b. Sheetflow to C/D Soil Conservation Area | G234: 9.b. Sheetflow to C/D Soil Conservation Area | J234: 9.b. Sheetflow to C/D Soil Conservation Area | L234: 9.a. Sheetflow to A/B Soil Conservation Area
A235: 9.b. Sheetflow to C/D Soil Conservation Area | C235: 9.b. Sheetflow to C/D Soil Conservation Area | E235: 9.c. Sheetflow to Vegetated Filter Strip | G235: 9.c. Sheetflow to Vegetated Filter Strip | J235: 9.c. Sheetflow to Vegetated Filter Strip | L235: 9.b. Sheetflow to C/D Soil Conservation Area
A236: 9.c. Sheetflow to Vegetated Filter Strip | C236: 9.c. Sheetflow to Vegetated Filter Strip | E236: 10.a. Wet Swale #1 | G236: 10.a. Wet Swale #1 | J236: 10.a. Wet Swale #1 | L236: 9.c. Sheetflow to Vegetated Filter Strip
A237: 10.a. Wet Swale #1 | C237: 10.a. Wet Swale #1 | E237: 10.b. Wet Swale #2 | G237: 10.b. Wet Swale #2 | J237: 10.b. Wet Swale #2 | L237: 10.a. Wet Swale #1
... 38 more rows

Sheet D.A. D
A1: Drainage Area D
Y2: Check Areas! | AA2: CHECK AREAS!
A3: Drainage Area A Land Cover (acres) | B3: =IF($F$8>Site!$F$27,"Drainage area is greater than site area!",(IF(OR(F5>Site!F24,F6>Site!F25,F7>Site!F26),"Check Site Tab land cover areas!",""))) -> 
B4: A Soils | C4: B Soils | D4: C Soils | E4: D Soils | F4: Totals | G4: Land Cover Rv | N4: `
A5: Forest/Open Space (acres) | F5: =SUMIF(B5:E5,">=0") -> 0 | G5: =IF(F5>0,(B5*Site!E32+C5*Site!F32+D5*Site!G32+E5*Site!H32)/F5,0) -> 0
A6: Managed Turf (acres) | F6: =SUMIF(B6:E6,">=0") -> 0 | G6: =IF(F6>0,(B6*Site!E33+C6*Site!F33+D6*Site!G33+E6*Site!H33)/F6,0) -> 0
A7: Impervious Cover (acres) | F7: =SUMIF(B7:E7,">=0") -> 0 | G7: =IF(F7>0,((B7*Site!E34+C7*Site!F34+D7*Site!G34+E7*Site!H34)/F7),0) -> 0 | I7: Total Phosphorus Available for Removal in D.A. D (lb/yr) | M7: =Site!$B$31*Site!$B$36*($M$8/Site!$B$32)*Site!$B$33*2.72/43560 -> 0
E8: Total | F8: =SUM(F5:F7) -> 0 | I8: Post Development Treatment Volume in D.A. D (ft3) | M8: =IFERROR(Site!B32/12*(F6*G6+F7*G7)/(F6+F7)*(F6+F7)*43560,0) -> 0
A10: Stormwater Best Management Practices (RR = Runoff Reduction) | N10: --Select from dropdown lists--
A11: Practice | B11: Runoff Reduction Credit (%) | C11: Managed Turf Credit Area (acres) | D11: Impervious Cover Credit Area (acres) | E11: Volume from Upstream Practice (ft3) | F11: Runoff Reduction (ft3) | G11: Remaining Runoff Volume (ft3) | H11: Total BMP Treatment Volume (ft3) | I11: Phosphorus Removal Efficiency (%) | J11: Phosphorus Load from Upstream Practices (lb) | K11: Untreated Phosphorus Load to Practice (lb) | L11: Phosphorus Removed By Practice (lb) | M11: Remaining Phosphorus Load (lb) | N11: Downstream Practice to be Employed | Q11: Nitrogen Removal Efficiency (%) | R11: Nitrogen Load from Upstream Practices (lbs) | S11: Untreated Nitrogen Load to Practice (lbs) | T11: Nitrogen Removed By Practice (lbs) | U11: Remaining Nitrogen Load (lbs)
A12: 1. Vegetated Roof (RR) | Q12: 1. Vegetated Roof (RR)
A13: 1.a. Vegetated Roof #1 (Spec #5) | B13: 45 | F13: =(Site!$B$32*($G$7*$D13)*3630)*$B13/100 -> 0 | G13: =(Site!$B$32*($G$7*$D13)*3630)*(1-$B13/100) -> 0 | H13: =+$F13+$G13 -> 0 | I13: 0 | K13: =(Site!$B$32*($G$7*$D13)*3630)*Site!$B$33*0.3048^3/454*Site!$B$31/Site!$B$32*Site!$B$36 -> 0 | L13: =IFERROR($K13*($F13+$G13*$I13/100)/($H13),0) -> 0 | M13: =$K13-$L13 -> 0 | Q13: 0 | S13: =(Site!$B$32*$G$7*$D13*3630)*Site!$B$34*0.3048^3/454*Site!$B$31/Site!$B$32*Site!$B$36 -> 0 | T13: =IFERROR($S13*($F13+$G13*$Q13/100)/$H13,0) -> 0 | U13: =$S13-$T13 -> 0
A14: 1.b. Vegetated Roof #2 (Spec #5) | B14: 60 | F14: =(Site!$B$32*($G$7*$D14)*3630)*$B14/100 -> 0 | G14: =(Site!$B$32*($G$7*$D14)*3630)*(1-$B14/100) -> 0 | H14: =+$F14+$G14 -> 0 | I14: 0 | K14: =(Site!$B$32*($G$7*$D14)*3630)*Site!$B$33*0.3048^3/454*Site!$B$31/Site!$B$32*Site!$B$36 -> 0 | L14: =IFERROR($K14*($F14+$G14*$I14/100)/($H14),0) -> 0 | M14: =$K14-$L14 -> 0 | Q14: 0 | S14: =(Site!$B$32*$G$7*$D14*3630)*Site!$B$34*0.3048^3/454*Site!$B$31/Site!$B$32*Site!$B$36 -> 0 | T14: =IFERROR($S14*($F14+$G14*$Q14/100)/$H14,0) -> 0 | U14: =$S14-$T14 -> 0
A16: 2. Rooftop Disconnection (RR) | Q16: 2. Rooftop Disconnection (RR)
A17: 2.a. Simple Disconnection to A/B Soils (Spec #1) | B17: 50 | E17: =SUMIF($N$13:$N$92,$P121,$G$13:$G$92) -> 0 | F17: =(Site!$B$32*($G$6*$C17+$G$7*$D17)*3630+$E17)*$B17/100 -> 0 | G17: =(Site!$B$32*($G$6*$C17+$G$7*$D17)*3630+$E17)*(1-$B17/100) -> 0 | H17: =+$F17+$G17 -> 0 | I17: 0 | J17: =SUMIF($N$13:$N$92,$P121,$M$13:$M$92) -> 0 | K17: =(Site!$B$32*($G$6*$C17+$G$7*$D17)*3630)*Site!$B$33*0.3048^3/454*Site!$B$31/Site!$B$32*Site!$B$36 -> 0 | L17: =IFERROR(($J17+$K17)*($F17+$G17*$I17/100)/$H17,0) -> 0 | M17: =$J17+$K17-$L17 -> 0 | Q17: 0 | R17: =SUMIF($N$13:$N$92,$P121,$U$13:$U$92) -> 0 | S17: =(Site!$B$32*$G$7*$D17*3630)*Site!$B$34*0.3048^3/454*Site!$B$31/Site!$B$32*Site!$B$36 -> 0 | T17: =IFERROR(($R17+$S17)*($F17+$G17*$Q17/100)/$H17,0) -> 0 | U17: =$R17+$S17-$T17 -> 0
A18: 2.b. Simple Disconnection to C/D Soils (Spec #1) | B18: 25 | E18: =SUMIF($N$13:$N$92,$P122,$G$13:$G$92) -> 0 | F18: =(Site!$B$32*($G$6*$C18+$G$7*$D18)*3630+$E18)*$B18/100 -> 0 | G18: =(Site!$B$32*($G$6*$C18+$G$7*$D18)*3630+$E18)*(1-$B18/100) -> 0 | H18: =+$F18+$G18 -> 0 | I18: 0 | J18: =SUMIF($N$13:$N$92,$P122,$M$13:$M$92) -> 0 | K18: =(Site!$B$32*($G$6*$C18+$G$7*$D18)*3630)*Site!$B$33*0.3048^3/454*Site!$B$31/Site!$B$32*Site!$B$36 -> 0 | L18: =IFERROR(($J18+$K18)*($F18+$G18*$I18/100)/$H18,0) -> 0 | M18: 0 | Q18: 0 | R18: =SUMIF($N$13:$N$92,$P122,$U$13:$U$92) -> 0 | S18: =(Site!$B$32*$G$7*$D18*3630)*Site!$B$34*0.3048^3/454*Site!$B$31/Site!$B$32*Site!$B$36 -> 0 | T18: =IFERROR(($R18+$S18)*($F18+$G18*$Q18/100)/$H18,0) -> 0 | U18: 0
A19: 2.c. To Soil Amended Filter Path as per specifications (existing C/D soils) (Spec #4) | B19: 50 | E19: 0 | F19: =(Site!$B$32*($G$6*$C19+$G$7*$D19)*3630+$E19)*$B19/100 -> 0 | G19: =(Site!$B$32*($G$6*$C19+$G$7*$D19)*3630+$E19)*(1-$B19/100) -> 0 | H19: 0 | I19: 0 | J19: 0 | K19: =(Site!$B$32*($G$6*$C19+$G$7*$D19)*3630)*Site!$B$33*0.3048^3/454*Site!$B$31/Site!$B$32*Site!$B$36 -> 0 | L19: 0 | M19: 0 | Q19: 0 | R19: 0 | S19: =(Site!$B$32*$G$7*$D19*3630)*Site!$B$34*0.3048^3/454*Site!$B$31/Site!$B$32*Site!$B$36 -> 0 | T19: 0 | U19: 0
A20: 2.d. To Dry Well or French Drain #1, Micro-Infilration #1 (Spec #8) | B20: 50 | E20: 0 | F20: =(Site!$B$32*($G$6*$C20+$G$7*$D20)*3630+$E20)*$B20/100 -> 0 | G20: =(Site!$B$32*($G$6*$C20+$G$7*$D20)*3630+$E20)*(1-$B20/100) -> 0 | H20: 0 | I20: 25 | J20: 0 | K20: =(Site!$B$32*($G$6*$C20+$G$7*$D20)*3630)*Site!$B$33*0.3048^3/454*Site!$B$31/Site!$B$32*Site!$B$36 -> 0 | L20: 0 | M20: 0 | Q20: 15 | R20: 0 | S20: =(Site!$B$32*$G$7*$D20*3630)*Site!$B$34*0.3048^3/454*Site!$B$31/Site!$B$32*Site!$B$36 -> 0 | T20: 0 | U20: 0
A21: 2.e. To Dry Well or French Drain #2, Micro-Infiltration #2 (Spec #8) | B21: 90 | E21: 0 | F21: =(Site!$B$32*($G$6*$C21+$G$7*$D21)*3630+$E21)*$B21/100 -> 0 | G21: =(Site!$B$32*($G$6*$C21+$G$7*$D21)*3630+$E21)*(1-$B21/100) -> 0 | H21: 0 | I21: 25 | J21: 0 | K21: =(Site!$B$32*($G$6*$C21+$G$7*$D21)*3630)*Site!$B$33*0.3048^3/454*Site!$B$31/Site!$B$32*Site!$B$36 -> 0 | L21: 0 | M21: 0 | Q21: 15 | R21: 0 | S21: =(Site!$B$32*$G$7*$D21*3630)*Site!$B$34*0.3048^3/454*Site!$B$31/Site!$B$32*Site!$B$36 -> 0 | T21: 0 | U21: 0
A22: 2.f. To Rain Garden #1, Micro-Bioretention #1 (Spec #9) | B22: 40 | E22: 0 | F22: =(Site!$B$32*($G$6*$C22+$G$7*$D22)*3630+$E22)*$B22/100 -> 0 | G22: =(Site!$B$32*($G$6*$C22+$G$7*$D22)*3630+$E22)*(1-$B22/100) -> 0 | H22: 0 | I22: 25 | J22: 0 | K22: =(Site!$B$32*($G$6*$C22+$G$7*$D22)*3630)*Site!$B$33*0.3048^3/454*Site!$B$31/Site!$B$32*Site!$B$36 -> 0 | L22: 0 | M22: 0 | Q22: 40 | R22: 0 | S22: =(Site!$B$32*$G$7*$D22*3630)*Site!$B$34*0.3048^3/454*Site!$B$31/Site!$B$32*Site!$B$36 -> 0 | T22: 0 | U22: 0
A23: 2.g. To Rain Garden #2, Micro-Bioretention #2 (Spec #9) | B23: 80 | E23: 0 | F23: =(Site!$B$32*($G$6*$C23+$G$7*$D23)*3630+$E23)*$B23/100 -> 0 | G23: =(Site!$B$32*($G$6*$C23+$G$7*$D23)*3630+$E23)*(1-$B23/100) -> 0 | H23: 0 | I23: 50 | J23: 0 | K23: =(Site!$B$32*($G$6*$C23+$G$7*$D23)*3630)*Site!$B$33*0.3048^3/454*Site!$B$31/Site!$B$32*Site!$B$36 -> 0 | L23: 0 | M23: 0 | Q23: 60 | R23: 0 | S23: =(Site!$B$32*$G$7*$D23*3630)*Site!$B$34*0.3048^3/454*Site!$B$31/Site!$B$32*Site!$B$36 -> 0 | T23: 0 | U23: 0
A24: 2.h. To Rainwater Harvesting (Spec #6) | B24: 0 | E24: 0 | F24: =(Site!$B$32*($G$6*$C24+$G$7*$D24)*3630+$E24)*$B24/100 -> 0 | G24: =(Site!$B$32*($G$6*$C24+$G$7*$D24)*3630+$E24)*(1-$B24/100) -> 0 | H24: 0 | I24: 0 | J24: 0 | K24: =(Site!$B$32*($G$6*$C24+$G$7*$D24)*3630)*Site!$B$33*0.3048^3/454*Site!$B$31/Site!$B$32*Site!$B$36 -> 0 | L24: 0 | M24: 0 | Q24: 0 | R24: 0 | S24: =(Site!$B$32*$G$7*$D24*3630)*Site!$B$34*0.3048^3/454*Site!$B$31/Site!$B$32*Site!$B$36 -> 0 | T24: 0 | U24: 0
A25: 2.i. To Stormwater Planter, Urban Bioretention (Spec #9, Appendix A) | B25: 40 | E25: 0 | F25: =(Site!$B$32*($G$6*$C25+$G$7*$D25)*3630+$E25)*$B25/100 -> 0 | G25: =(Site!$B$32*($G$6*$C25+$G$7*$D25)*3630+$E25)*(1-$B25/100) -> 0 | H25: 0 | I25: 25 | J25: 0 | K25: =(Site!$B$32*($G$6*$C25+$G$7*$D25)*3630)*Site!$B$33*0.3048^3/454*Site!$B$31/Site!$B$32*Site!$B$36 -> 0 | L25: 0 | M25: 0 | Q25: 40 | R25: 0 | S25: =(Site!$B$32*$G$7*$D25*3630)*Site!$B$34*0.3048^3/454*Site!$B$31/Site!$B$32*Site!$B$36 -> 0 | T25: 0 | U25: 0
A27: 3. Permeable Pavement (RR) | Q27: 3. Permeable Pavement (RR)
A28: 3.a. Permeable Pavement #1 (Spec #7) | B28: 45 | E28: =SUMIF($N$13:$N$92,$P130,$G$13:$G$92) -> 0 | F28: =(Site!$B$32*($G$6*$C28+$G$7*$D28)*3630+$E28)*$B28/100 -> 0 | G28: =(Site!$B$32*($G$6*$C28+$G$7*$D28)*3630+$E28)*(1-$B28/100) -> 0 | H28: =+$F28+$G28 -> 0 | I28: 25 | J28: =SUMIF($N$13:$N$92,$P130,$M$13:$M$92) -> 0 | K28: =(Site!$B$32*($G$6*$C28+$G$7*$D28)*3630)*Site!$B$33*0.3048^3/454*Site!$B$31/Site!$B$32*Site!$B$36 -> 0 | L28: =IFERROR(($J28+$K28)*($F28+$G28*$I28/100)/$H28,0) -> 0 | M28: =$J28+$K28-$L28 -> 0 | Q28: 25 | R28: =SUMIF($N$13:$N$92,$P130,$U$13:$U$92) -> 0 | S28: =(Site!$B$32*($G$6*$C28+$G$7*$D28)*3630)*Site!$B$34*0.3048^3/454*Site!$B$31/Site!$B$32*Site!$B$36 -> 0 | T28: =IFERROR(($R28+$S28)*($F28+$G28*$Q28/100)/$H28,0) -> 0 | U28: =$R28+$S28-$T28 -> 0
A29: 3.b. Permeable Pavement #2 (Spec #7) | B29: 75 | F29: =(Site!$B$32*($G$6*$C29+$G$7*$D29)*3630+$E29)*$B29/100 -> 0 | G29: =(Site!$B$32*($G$6*$C29+$G$7*$D29)*3630+$E29)*(1-$B29/100) -> 0 | H29: =+$F29+$G29 -> 0 | I29: 25 | K29: =(Site!$B$32*($G$6*$C29+$G$7*$D29)*3630)*Site!$B$33*0.3048^3/454*Site!$B$31/Site!$B$32*Site!$B$36 -> 0 | L29: =IFERROR(($J29+$K29)*($F29+$G29*$I29/100)/$H29,0) -> 0 | M29: =$K29-$L29 -> 0 | Q29: 25 | S29: =(Site!$B$32*$G$7*$D29*3630)*Site!$B$34*0.3048^3/454*Site!$B$31/Site!$B$32*Site!$B$36 -> 0 | T29: =IFERROR(($R29+$S29)*($F29+$G29*$Q29/100)/$H29,0) -> 0 | U29: =$R29+$S29-$T29 -> 0
A31: 4. Grass Channel (RR) | Q31: 4. Grass Channel (RR)
A32: 4.a. Grass Channel A/B Soils (Spec #3) | B32: 20 | E32: =SUMIF($N$13:$N$92,$P131,$G$13:$G$92) -> 0 | F32: =(Site!$B$32*($G$6*$C32+$G$7*$D32)*3630+$E32)*$B32/100 -> 0 | G32: =(Site!$B$32*($G$6*$C32+$G$7*$D32)*3630+$E32)*(1-$B32/100) -> 0 | H32: =+$F32+$G32 -> 0 | I32: 15 | J32: =SUMIF($N$13:$N$92,$P131,$M$13:$M$92) -> 0 | K32: =(Site!$B$32*($G$6*$C32+$G$7*$D32)*3630)*Site!$B$33*0.3048^3/454*Site!$B$31/Site!$B$32*Site!$B$36 -> 0 | L32: =IFERROR(($J32+$K32)*($F32+$G32*$I32/100)/$H32,0) -> 0 | M32: =$J32+$K32-$L32 -> 0 | Q32: 20 | R32: =SUMIF($N$13:$N$92,$P131,$U$13:$U$92) -> 0 | S32: =(Site!$B$32*($G$6*$C32+$G$7*$D32)*3630)*Site!$B$34*0.3048^3/454*Site!$B$31/Site!$B$32*Site!$B$36 -> 0 | T32: =IFERROR(($R32+$S32)*($F32+$G32*$Q32/100)/$H32,0) -> 0 | U32: =$R32+$S32-$T32 -> 0
A33: 4.b. Grass Channel C/D Soils (Spec #3) | B33: 10 | E33: =SUMIF($N$13:$N$92,$P132,$G$13:$G$92) -> 0 | F33: =(Site!$B$32*($G$6*$C33+$G$7*$D33)*3630+$E33)*$B33/100 -> 0 | G33: =(Site!$B$32*($G$6*$C33+$G$7*$D33)*3630+$E33)*(1-$B33/100) -> 0 | H33: =+$F33+$G33 -> 0 | I33: 15 | J33: =SUMIF($N$13:$N$92,$P132,$M$13:$M$92) -> 0 | K33: =(Site!$B$32*($G$6*$C33+$G$7*$D33)*3630)*Site!$B$33*0.3048^3/454*Site!$B$31/Site!$B$32*Site!$B$36 -> 0 | L33: =IFERROR(($J33+$K33)*($F33+$G33*$I33/100)/$H33,0) -> 0 | M33: =$J33+$K33-$L33 -> 0 | Q33: 20 | R33: =SUMIF($N$13:$N$92,$P132,$U$13:$U$92) -> 0 | S33: =(Site!$B$32*($G$6*$C33+$G$7*$D33)*3630)*Site!$B$34*0.3048^3/454*Site!$B$31/Site!$B$32*Site!$B$36 -> 0 | T33: =IFERROR(($R33+$S33)*($F33+$G33*$Q33/100)/$H33,0) -> 0 | U33: =$R33+$S33-$T33 -> 0
A34: 4.c. Grass Channel with Compost Amended Soils as per specs (see Spec #4) | B34: =IF(Site!$J$11="2011 Stds & Specs",30,20) -> 20 | E34: 0 | F34: =(Site!$B$32*($G$6*$C34+$G$7*$D34)*3630+$E34)*$B34/100 -> 0 | G34: =(Site!$B$32*($G$6*$C34+$G$7*$D34)*3630+$E34)*(1-$B34/100) -> 0 | H34: 0 | I34: 15 | J34: =SUMIF($N$13:$N$92,$P133,$M$13:$M$92) -> 0 | K34: =(Site!$B$32*($G$6*$C34+$G$7*$D34)*3630)*Site!$B$33*0.3048^3/454*Site!$B$31/Site!$B$32*Site!$B$36 -> 0 | L34: 0 | M34: 0 | Q34: 20 | R34: 0 | S34: =(Site!$B$32*($G$6*$C34+$G$7*$D34)*3630)*Site!$B$34*0.3048^3/454*Site!$B$31/Site!$B$32*Site!$B$36 -> 0 | T34: 0 | U34: 0
W35: `
A36: 5. Dry Swale (RR) | Q36: 5. Dry Swale (RR)
A37: 5.a. Dry Swale #1 (Spec #10) | B37: 40 | E37: =SUMIF($N$13:$N$92,$P134,$G$13:$G$92) -> 0 | F37: =(Site!$B$32*($G$6*$C37+$G$7*$D37)*3630+$E37)*$B37/100 -> 0 | G37: =(Site!$B$32*($G$6*$C37+$G$7*$D37)*3630+$E37)*(1-$B37/100) -> 0 | H37: =+$F37+$G37 -> 0 | I37: 20 | J37: =SUMIF($N$13:$N$92,$P134,$M$13:$M$92) -> 0 | K37: =(Site!$B$32*($G$6*$C37+$G$7*$D37)*3630)*Site!$B$33*0.3048^3/454*Site!$B$31/Site!$B$32*Site!$B$36 -> 0 | L37: =IFERROR(($J37+$K37)*($F37+$G37*$I37/100)/$H37,0) -> 0 | M37: =$J37+$K37-$L37 -> 0 | Q37: 25 | R37: =SUMIF($N$13:$N$92,$P134,$U$13:$U$92) -> 0 | S37: =(Site!$B$32*($G$6*$C37+$G$7*$D37)*3630)*Site!$B$34*0.3048^3/454*Site!$B$31/Site!$B$32*Site!$B$36 -> 0 | T37: =IFERROR(($R37+$S37)*($F37+$G37*$Q37/100)/$H37,0) -> 0 | U37: =$R37+$S37-$T37 -> 0
A38: 5.b. Dry Swale #2 (Spec #10) | B38: 60 | E38: =SUMIF($N$13:$N$92,$P135,$G$13:$G$92) -> 0 | F38: =(Site!$B$32*($G$6*$C38+$G$7*$D38)*3630+$E38)*$B38/100 -> 0 | G38: =(Site!$B$32*($G$6*$C38+$G$7*$D38)*3630+$E38)*(1-$B38/100) -> 0 | H38: =+$F38+$G38 -> 0 | I38: 40 | J38: =SUMIF($N$13:$N$92,$P135,$M$13:$M$92) -> 0 | K38: =(Site!$B$32*($G$6*$C38+$G$7*$D38)*3630)*Site!$B$33*0.3048^3/454*Site!$B$31/Site!$B$32*Site!$B$36 -> 0 | L38: =IFERROR(($J38+$K38)*($F38+$G38*$I38/100)/$H38,0) -> 0 | M38: =$J38+$K38-$L38 -> 0 | Q38: 35 | R38: =SUMIF($N$13:$N$92,$P135,$U$13:$U$92) -> 0 | S38: =(Site!$B$32*($G$6*$C38+$G$7*$D38)*3630)*Site!$B$34*0.3048^3/454*Site!$B$31/Site!$B$32*Site!$B$36 -> 0 | T38: 0 | U38: 0
A40: 6. Bioretention (RR) | Q40: 6. Bioretention (RR)
A41: 6.a. Bioretention #1 or Micro-Bioretention #1 or Urban Bioretention (Spec #9) | B41: 40 | E41: =SUMIF($N$13:$N$92,$P136,$G$13:$G$92) -> 0 | F41: =(Site!$B$32*($G$6*$C41+$G$7*$D41)*3630+$E41)*$B41/100 -> 0 | G41: =(Site!$B$32*($G$6*$C41+$G$7*$D41)*3630+$E41)*(1-$B41/100) -> 0 | H41: =+$F41+$G41 -> 0 | I41: 25 | J41: =SUMIF($N$13:$N$92,$P136,$M$13:$M$92) -> 0 | K41: =(Site!$B$32*($G$6*$C41+$G$7*$D41)*3630)*Site!$B$33*0.3048^3/454*Site!$B$31/Site!$B$32*Site!$B$36 -> 0 | L41: =IFERROR(($J41+$K41)*($F41+$G41*$I41/100)/$H41,0) -> 0 | M41: =$J41+$K41-$L41 -> 0 | Q41: 40 | R41: =SUMIF($N$13:$N$92,$P136,$U$13:$U$92) -> 0 | S41: =(Site!$B$32*($G$6*$C41+$G$7*$D41)*3630)*Site!$B$34*0.3048^3/454*Site!$B$31/Site!$B$32*Site!$B$36 -> 0 | T41: =IFERROR(($R41+$S41)*($F41+$G41*$Q41/100)/$H41,0) -> 0 | U41: =$R41+$S41-$T41 -> 0
A42: 6.b. Bioretention #2 or Micro-Bioretention #2 (Spec #9) | B42: 80 | E42: =SUMIF($N$13:$N$92,$P137,$G$13:$G$92) -> 0 | F42: =(Site!$B$32*($G$6*$C42+$G$7*$D42)*3630+$E42)*$B42/100 -> 0 | G42: =(Site!$B$32*($G$6*$C42+$G$7*$D42)*3630+$E42)*(1-$B42/100) -> 0 | H42: =+$F42+$G42 -> 0 | I42: 50 | J42: =SUMIF($N$13:$N$92,$P137,$M$13:$M$92) -> 0 | K42: =(Site!$B$32*($G$6*$C42+$G$7*$D42)*3630)*Site!$B$33*0.3048^3/454*Site!$B$31/Site!$B$32*Site!$B$36 -> 0 | L42: =IFERROR(($J42+$K42)*($F42+$G42*$I42/100)/$H42,0) -> 0 | M42: =$J42+$K42-$L42 -> 0 | Q42: 60 | R42: =SUMIF($N$13:$N$92,$P137,$U$13:$U$92) -> 0 | S42: =(Site!$B$32*($G$6*$C42+$G$7*$D42)*3630)*Site!$B$34*0.3048^3/454*Site!$B$31/Site!$B$32*Site!$B$36 -> 0 | T42: 0 | U42: 0
A44: 7. Infiltration (RR) | Q44: 7. Infiltration (RR)
A45: 7.a. Infiltration #1 (Spec #8) | B45: 50 | E45: =SUMIF($N$13:$N$92,$P138,$G$13:$G$92) -> 0 | F45: =(Site!$B$32*($G$6*$C45+$G$7*$D45)*3630+$E45)*$B45/100 -> 0 | G45: =(Site!$B$32*($G$6*$C45+$G$7*$D45)*3630+$E45)*(1-$B45/100) -> 0 | H45: =+$F45+$G45 -> 0 | I45: 25 | J45: =SUMIF($N$13:$N$92,$P138,$M$13:$M$92) -> 0 | K45: =(Site!$B$32*($G$6*$C45+$G$7*$D45)*3630)*Site!$B$33*0.3048^3/454*Site!$B$31/Site!$B$32*Site!$B$36 -> 0 | L45: =IFERROR(($J45+$K45)*($F45+$G45*$I45/100)/$H45,0) -> 0 | M45: =$J45+$K45-$L45 -> 0 | Q45: 15 | R45: =SUMIF($N$13:$N$92,$P138,$U$13:$U$92) -> 0 | S45: =(Site!$B$32*($G$6*$C45+$G$7*$D45)*3630)*Site!$B$34*0.3048^3/454*Site!$B$31/Site!$B$32*Site!$B$36 -> 0 | T45: =IFERROR(($R45+$S45)*($F45+$G45*$Q45/100)/$H45,0) -> 0 | U45: =$R45+$S45-$T45 -> 0
A46: 7.b. Infiltration #2 (Spec #8) | B46: 90 | E46: =SUMIF($N$13:$N$92,$P139,$G$13:$G$92) -> 0 | F46: =(Site!$B$32*($G$6*$C46+$G$7*$D46)*3630+$E46)*$B46/100 -> 0 | G46: =(Site!$B$32*($G$6*$C46+$G$7*$D46)*3630+$E46)*(1-$B46/100) -> 0 | H46: =+$F46+$G46 -> 0 | I46: 25 | J46: =SUMIF($N$13:$N$92,$P139,$M$13:$M$92) -> 0 | K46: =(Site!$B$32*($G$6*$C46+$G$7*$D46)*3630)*Site!$B$33*0.3048^3/454*Site!$B$31/Site!$B$32*Site!$B$36 -> 0 | L46: =IFERROR(($J46+$K46)*($F46+$G46*$I46/100)/$H46,0) -> 0 | M46: =$J46+$K46-$L46 -> 0 | Q46: 15 | R46: =SUMIF($N$13:$N$92,$P139,$U$13:$U$92) -> 0 | S46: =(Site!$B$32*($G$6*$C46+$G$7*$D46)*3630)*Site!$B$34*0.3048^3/454*Site!$B$31/Site!$B$32*Site!$B$36 -> 0 | T46: 0 | U46: 0
A48: 8. Extended Detention Pond (RR) | Q48: 8. Extended Detention Pond (RR)
A49: 8.a. ED #1 (Spec #15) | B49: 0 | E49: =SUMIF($N$13:$N$92,$P140,$G$13:$G$92) -> 0 | F49: =(Site!$B$32*($G$6*$C49+$G$7*$D49)*3630+$E49)*$B49/100 -> 0 | G49: =(Site!$B$32*($G$6*$C49+$G$7*$D49)*3630+$E49)*(1-$B49/100) -> 0 | H49: =+$F49+$G49 -> 0 | I49: 15 | J49: =SUMIF($N$13:$N$92,$P140,$M$13:$M$92) -> 0 | K49: =(Site!$B$32*($G$6*$C49+$G$7*$D49)*3630)*Site!$B$33*0.3048^3/454*Site!$B$31/Site!$B$32*Site!$B$36 -> 0 | L49: =IFERROR(($J49+$K49)*($F49+$G49*$I49/100)/$H49,0) -> 0 | M49: =$J49+$K49-$L49 -> 0 | Q49: 10 | R49: =SUMIF($N$13:$N$92,$P140,$U$13:$U$92) -> 0 | S49: =(Site!$B$32*($G$6*$C49+$G$7*$D49)*3630)*Site!$B$34*0.3048^3/454*Site!$B$31/Site!$B$32*Site!$B$36 -> 0 | T49: =IFERROR(($R49+$S49)*($F49+$G49*$Q49/100)/$H49,0) -> 0 | U49: =$R49+$S49-$T49 -> 0
A50: 8.b. ED #2 (Spec #15) | B50: 15 | E50: =SUMIF($N$13:$N$92,$P141,$G$13:$G$92) -> 0 | F50: =(Site!$B$32*($G$6*$C50+$G$7*$D50)*3630+$E50)*$B50/100 -> 0 | G50: =(Site!$B$32*($G$6*$C50+$G$7*$D50)*3630+$E50)*(1-$B50/100) -> 0 | H50: =+$F50+$G50 -> 0 | I50: 15 | J50: =SUMIF($N$13:$N$92,$P141,$M$13:$M$92) -> 0 | K50: =(Site!$B$32*($G$6*$C50+$G$7*$D50)*3630)*Site!$B$33*0.3048^3/454*Site!$B$31/Site!$B$32*Site!$B$36 -> 0 | L50: 0 | M50: 0 | Q50: 10 | R50: =SUMIF($N$13:$N$92,$P141,$U$13:$U$92) -> 0 | S50: =(Site!$B$32*($G$6*$C50+$G$7*$D50)*3630)*Site!$B$34*0.3048^3/454*Site!$B$31/Site!$B$32*Site!$B$36 -> 0 | T50: 0 | U50: 0
A52: 9. Sheetflow to Filter/Open Space (RR) | Q52: 9. Sheetflow to Filter/Open Space (RR)
A53: 9.a. Sheetflow to Conservation Area, A/B Soils (Spec #2) | B53: 75 | E53: =SUMIF($N$13:$N$92,$P142,$G$13:$G$92) -> 0 | F53: =(Site!$B$32*($G$6*$C53+$G$7*$D53)*3630+$E53)*$B53/100 -> 0 | G53: =(Site!$B$32*($G$6*$C53+$G$7*$D53)*3630+$E53)*(1-$B53/100) -> 0 | H53: =+$F53+$G53 -> 0 | I53: 0 | J53: =SUMIF($N$13:$N$92,$P142,$M$13:$M$92) -> 0 | K53: =(Site!$B$32*($G$6*$C53+$G$7*$D53)*3630)*Site!$B$33*0.3048^3/454*Site!$B$31/Site!$B$32*Site!$B$36 -> 0 | L53: =IFERROR(($J53+$K53)*($F53+$G53*$I53/100)/$H53,0) -> 0 | M53: =$J53+$K53-$L53 -> 0 | Q53: 0 | R53: =SUMIF($N$13:$N$92,$P142,$U$13:$U$92) -> 0 | S53: =(Site!$B$32*($G$6*$C53+$G$7*$D53)*3630)*Site!$B$34*0.3048^3/454*Site!$B$31/Site!$B$32*Site!$B$36 -> 0 | T53: =IFERROR(($R53+$S53)*($F53+$G53*$Q53/100)/$H53,0) -> 0 | U53: =$R53+$S53-$T53 -> 0
A54: 9.b. Sheetflow to Conservation Area, C/D Soils (Spec #2) | B54: 50 | E54: =SUMIF($N$13:$N$92,$P143,$G$13:$G$92) -> 0 | F54: =(Site!$B$32*($G$6*$C54+$G$7*$D54)*3630+$E54)*$B54/100 -> 0 | G54: =(Site!$B$32*($G$6*$C54+$G$7*$D54)*3630+$E54)*(1-$B54/100) -> 0 | H54: =+$F54+$G54 -> 0 | I54: 0 | J54: =SUMIF($N$13:$N$92,$P143,$M$13:$M$92) -> 0 | K54: =(Site!$B$32*($G$6*$C54+$G$7*$D54)*3630)*Site!$B$33*0.3048^3/454*Site!$B$31/Site!$B$32*Site!$B$36 -> 0 | L54: 0 | M54: 0 | Q54: 0 | R54: =SUMIF($N$13:$N$92,$P143,$U$13:$U$92) -> 0 | S54: =(Site!$B$32*($G$6*$C54+$G$7*$D54)*3630)*Site!$B$34*0.3048^3/454*Site!$B$31/Site!$B$32*Site!$B$36 -> 0 | T54: 0 | U54: 0
A55: 9.c. Sheetflow to Vegetated Filter Strip, A Soils or Compost Amended B/C/D Soils (Spec #2 & #4) | B55: 50 | E55: 0 | F55: =(Site!$B$32*($G$6*$C55+$G$7*$D55)*3630+$E55)*$B55/100 -> 0 | G55: =(Site!$B$32*($G$6*$C55+$G$7*$D55)*3630+$E55)*(1-$B55/100) -> 0 | H55: 0 | I55: 0 | J55: 0 | K55: =(Site!$B$32*($G$6*$C55+$G$7*$D55)*3630)*Site!$B$33*0.3048^3/454*Site!$B$31/Site!$B$32*Site!$B$36 -> 0 | L55: 0 | M55: 0 | Q55: 0 | R55: 0 | S55: =(Site!$B$32*($G$6*$C55+$G$7*$D55)*3630)*Site!$B$34*0.3048^3/454*Site!$B$31/Site!$B$32*Site!$B$36 -> 0 | T55: 0 | U55: 0
E58: TOTAL IMPERVIOUS COVER TREATED (ac) | F58: =SUM(D13:D55) -> 0 | G58: AREA CHECK: | H58: =IF(F58>$F$7,"AREA EXCEEDED!","OK.") -> OK.
E59: TOTAL MANAGED TURF AREA TREATED (ac) | F59: =SUM(C32:C55) -> 0 | G59: AREA CHECK: | H59: =IF(F59>$F$6,"AREA EXCEEDED!","OK.") -> OK.
E60: TOTAL RUNOFF REDUCTION IN D.A. D (ft3) | F60: =IFERROR(SUM($F$13:$F$55),0) -> 0
H62: TOTAL PHOSPHORUS AVAILABLE FOR REMOVAL IN D.A. D (lb/yr) | I62: =$M$7 -> 0
H63: TOTAL PHOSPHORUS REMOVED WITH RUNOFF REDUCTION PRACTICES IN D.A. D (lb/yr) | I63: =IFERROR(SUM(L13:L55),0) -> 0 | U63: TOTAL RUNOFF REDUCTION IN D.A. D (ft3) | V63: =F60 -> 0
H64: TOTAL PHOSPHORUS REMAINING AFTER APPLYING RUNOFF REDUCTION PRACTICES IN D.A. D (lb/yr) | I64: =I62-I63 -> 0 | U64: NITROGEN REMOVED WITH RUNOFF REDUCTION PRACTICES IN D.A. D (lb/yr) | V64: =SUM($T$13:$T$55) -> 0
C66: SEE WATER QUALITY COMPLIANCE TAB FOR SITE COMPLIANCE CALCULATIONS | V66: SEE WATER QUALITY COMPLIANCE TAB FOR SITE CALCULATIONS (Information Only)
A71: 10. Wet Swale (no RR) | R71: 10. Wet Swale (Coastal Plain) (no RR)
A72: 10.a. Wet Swale #1 (Spec #11) | B72: 0 | E72: =SUMIF($N$13:$N$92,$P145,$G$13:$G$92) -> 0 | F72: =(Site!$B$32*($G$6*$C72+$G$7*$D72)*3630+$E72)*$B72/100 -> 0 | G72: =(Site!$B$32*($G$6*$C72+$G$7*$D72)*3630+$E72)*(1-$B72/100) -> 0 | H72: =+$F72+$G72 -> 0 | I72: 20 | J72: =SUMIF($N$13:$N$92,$P145,$M$13:$M$92) -> 0 | K72: =(Site!$B$32*($G$6*$C72+$G$7*$D72)*3630)*Site!$B$33*0.3048^3/454*Site!$B$31/Site!$B$32*Site!$B$36 -> 0 | L72: =IFERROR(($J72+$K72)*($F72+$G72*$I72/100)/$H72,0) -> 0 | M72: =$J72+$K72-$L72 -> 0 | Q72: 25 | R72: =SUMIF($N$13:$N$92,$P145,$U$13:$U$92) -> 0 | S72: =(Site!$B$32*($G$6*$C72+$G$7*$D72)*3630)*Site!$B$34*0.3048^3/454*Site!$B$31/Site!$B$32*Site!$B$36 -> 0 | T72: =IFERROR(($R72+$S72)*($F72+$G72*$Q72/100)/$H72,0) -> 0 | U72: =$R72+$S72-$T72 -> 0
A73: 10.b. Wet Swale #2 (Spec #11) | B73: 0 | E73: =SUMIF($N$13:$N$92,$P146,$G$13:$G$92) -> 0 | F73: =(Site!$B$32*($G$6*$C73+$G$7*$D73)*3630+$E73)*$B73/100 -> 0 | G73: =(Site!$B$32*($G$6*$C73+$G$7*$D73)*3630+$E73)*(1-$B73/100) -> 0 | H73: 0 | I73: 40 | J73: =SUMIF($N$13:$N$92,$P146,$M$13:$M$92) -> 0 | K73: =(Site!$B$32*($G$6*$C73+$G$7*$D73)*3630)*Site!$B$33*0.3048^3/454*Site!$B$31/Site!$B$32*Site!$B$36 -> 0 | L73: 0 | M73: 0 | Q73: 35 | R73: =SUMIF($N$13:$N$92,$P146,$U$13:$U$92) -> 0 | S73: =(Site!$B$32*($G$6*$C73+$G$7*$D73)*3630)*Site!$B$34*0.3048^3/454*Site!$B$31/Site!$B$32*Site!$B$36 -> 0 | T73: 0 | U73: 0
A75: 11. Filtering Practices (no RR) | Q75: 11. Filtering Practices (no RR)
A76: 11.a.Filtering Practice #1 (Spec #12) | B76: 0 | E76: =SUMIF($N$13:$N$92,$P147,$G$13:$G$92) -> 0 | F76: =(Site!$B$32*($G$6*$C76+$G$7*$D76)*3630+$E76)*$B76/100 -> 0 | G76: =(Site!$B$32*($G$6*$C76+$G$7*$D76)*3630+$E76)*(1-$B76/100) -> 0 | H76: =+$F76+$G76 -> 0 | I76: 60 | J76: =SUMIF($N$13:$N$92,$P147,$M$13:$M$92) -> 0 | K76: =(Site!$B$32*($G$6*$C76+$G$7*$D76)*3630)*Site!$B$33*0.3048^3/454*Site!$B$31/Site!$B$32*Site!$B$36 -> 0 | L76: =IFERROR(($J76+$K76)*($F76+$G76*$I76/100)/$H76,0) -> 0 | M76: =$J76+$K76-$L76 -> 0 | Q76: 30 | R76: =SUMIF($N$13:$N$92,$P147,$U$13:$U$92) -> 0 | S76: =(Site!$B$32*($G$6*$C76+$G$7*$D76)*3630)*Site!$B$34*0.3048^3/454*Site!$B$31/Site!$B$32*Site!$B$36 -> 0 | T76: =IFERROR(($R76+$S76)*($F76+$G76*$Q76/100)/$H76,0) -> 0 | U76: =$R76+$S76-$T76 -> 0
A77: 11.b. Filtering Practice #2 (Spec #12) | B77: 0 | E77: =SUMIF($N$13:$N$92,$P148,$G$13:$G$92) -> 0 | F77: =(Site!$B$32*($G$6*$C77+$G$7*$D77)*3630+$E77)*$B77/100 -> 0 | G77: =(Site!$B$32*($G$6*$C77+$G$7*$D77)*3630+$E77)*(1-$B77/100) -> 0 | H77: 0 | I77: 65 | J77: =SUMIF($N$13:$N$92,$P148,$M$13:$M$92) -> 0 | K77: =(Site!$B$32*($G$6*$C77+$G$7*$D77)*3630)*Site!$B$33*0.3048^3/454*Site!$B$31/Site!$B$32*Site!$B$36 -> 0 | L77: 0 | M77: 0 | Q77: 45 | R77: =SUMIF($N$13:$N$92,$P148,$U$13:$U$92) -> 0 | S77: =(Site!$B$32*($G$6*$C77+$G$7*$D77)*3630)*Site!$B$34*0.3048^3/454*Site!$B$31/Site!$B$32*Site!$B$36 -> 0 | T77: 0 | U77: 0
A79: 12. Constructed Wetland (no RR) | Q79: 12. Constructed Wetland (no RR)
A80: 12.a.Constructed Wetland #1 (Spec #13) | B80: 0 | E80: =SUMIF($N$13:$N$92,$P149,$G$13:$G$92) -> 0 | F80: =(Site!$B$32*($G$6*$C80+$G$7*$D80)*3630+$E80)*$B80/100 -> 0 | G80: =(Site!$B$32*($G$6*$C80+$G$7*$D80)*3630+$E80)*(1-$B80/100) -> 0 | H80: =+$F80+$G80 -> 0 | I80: 50 | J80: =SUMIF($N$13:$N$92,$P149,$M$13:$M$92) -> 0 | K80: =(Site!$B$32*($G$6*$C80+$G$7*$D80)*3630)*Site!$B$33*0.3048^3/454*Site!$B$31/Site!$B$32*Site!$B$36 -> 0 | L80: =IFERROR(($J80+$K80)*($F80+$G80*$I80/100)/$H80,0) -> 0 | M80: =$J80+$K80-$L80 -> 0 | Q80: 25 | R80: =SUMIF($N$13:$N$92,$P149,$U$13:$U$92) -> 0 | S80: =(Site!$B$32*($G$6*$C80+$G$7*$D80)*3630)*Site!$B$34*0.3048^3/454*Site!$B$31/Site!$B$32*Site!$B$36 -> 0 | T80: =IFERROR(($R80+$S80)*($F80+$G80*$Q80/100)/$H80,0) -> 0 | U80: =$R80+$S80-$T80 -> 0
A81: 12.b. Constructed Wetland #2 (Spec #13) | B81: 0 | E81: =SUMIF($N$13:$N$92,$P150,$G$13:$G$92) -> 0 | F81: =(Site!$B$32*($G$6*$C81+$G$7*$D81)*3630+$E81)*$B81/100 -> 0 | G81: =(Site!$B$32*($G$6*$C81+$G$7*$D81)*3630+$E81)*(1-$B81/100) -> 0 | H81: 0 | I81: 75 | J81: =SUMIF($N$13:$N$92,$P150,$M$13:$M$92) -> 0 | K81: =(Site!$B$32*($G$6*$C81+$G$7*$D81)*3630)*Site!$B$33*0.3048^3/454*Site!$B$31/Site!$B$32*Site!$B$36 -> 0 | L81: 0 | M81: 0 | Q81: 55 | R81: =SUMIF($N$13:$N$92,$P150,$U$13:$U$92) -> 0 | S81: =(Site!$B$32*($G$6*$C81+$G$7*$D81)*3630)*Site!$B$34*0.3048^3/454*Site!$B$31/Site!$B$32*Site!$B$36 -> 0 | T81: 0 | U81: 0
A83: 13. Wet Ponds (no RR) | Q83: 13. Wet Ponds (no RR)
A84: 13.a. Wet Pond #1 (Spec #14) | B84: 0 | E84: =SUMIF($N$13:$N$92,$P151,$G$13:$G$92) -> 0 | F84: =(Site!$B$32*($G$6*$C84+$G$7*$D84)*3630+$E84)*$B84/100 -> 0 | G84: =(Site!$B$32*($G$6*$C84+$G$7*$D84)*3630+$E84)*(1-$B84/100) -> 0 | H84: =+$F84+$G84 -> 0 | I84: 50 | J84: =SUMIF($N$13:$N$92,$P151,$M$13:$M$92) -> 0 | K84: =(Site!$B$32*($G$6*$C84+$G$7*$D84)*3630)*Site!$B$33*0.3048^3/454*Site!$B$31/Site!$B$32*Site!$B$36 -> 0 | L84: =IFERROR(($J84+$K84)*($F84+$G84*$I84/100)/$H84,0) -> 0 | M84: =$J84+$K84-$L84 -> 0 | Q84: 30 | R84: =SUMIF($N$13:$N$92,$P151,$U$13:$U$92) -> 0 | S84: =(Site!$B$32*($G$6*$C84+$G$7*$D84)*3630)*Site!$B$34*0.3048^3/454*Site!$B$31/Site!$B$32*Site!$B$36 -> 0 | T84: =IFERROR(($R84+$S84)*($F84+$G84*$Q84/100)/$H84,0) -> 0 | U84: =$R84+$S84-$T84 -> 0
A85: 13.b. Wet Pond #1 (Coastal Plain) (Spec #14) | B85: 0 | E85: =SUMIF($N$13:$N$92,$P152,$G$13:$G$92) -> 0 | F85: =(Site!$B$32*($G$6*$C85+$G$7*$D85)*3630+$E85)*$B85/100 -> 0 | G85: =(Site!$B$32*($G$6*$C85+$G$7*$D85)*3630+$E85)*(1-$B85/100) -> 0 | H85: 0 | I85: 45 | J85: =SUMIF($N$13:$N$92,$P152,$M$13:$M$92) -> 0 | K85: =(Site!$B$32*($G$6*$C85+$G$7*$D85)*3630)*Site!$B$33*0.3048^3/454*Site!$B$31/Site!$B$32*Site!$B$36 -> 0 | L85: 0 | M85: 0 | Q85: 20 | R85: =SUMIF($N$13:$N$92,$P152,$U$13:$U$92) -> 0 | S85: =(Site!$B$32*($G$6*$C85+$G$7*$D85)*3630)*Site!$B$34*0.3048^3/454*Site!$B$31/Site!$B$32*Site!$B$36 -> 0 | T85: 0 | U85: 0
A86: 13.c. Wet Pond #2 (Spec #14) | B86: 0 | E86: 0 | F86: =(Site!$B$32*($G$6*$C86+$G$7*$D86)*3630+$E86)*$B86/100 -> 0 | G86: =(Site!$B$32*($G$6*$C86+$G$7*$D86)*3630+$E86)*(1-$B86/100) -> 0 | H86: 0 | I86: 75 | J86: 0 | K86: =(Site!$B$32*($G$6*$C86+$G$7*$D86)*3630)*Site!$B$33*0.3048^3/454*Site!$B$31/Site!$B$32*Site!$B$36 -> 0 | L86: 0 | M86: 0 | Q86: 40 | R86: 0 | S86: =(Site!$B$32*($G$6*$C86+$G$7*$D86)*3630)*Site!$B$34*0.3048^3/454*Site!$B$31/Site!$B$32*Site!$B$36 -> 0 | T86: 0 | U86: 0
A87: 13.d. Wet Pond #2 (Coastal Plain) (Spec #14) | B87: 0 | E87: 0 | F87: =(Site!$B$32*($G$6*$C87+$G$7*$D87)*3630+$E87)*$B87/100 -> 0 | G87: =(Site!$B$32*($G$6*$C87+$G$7*$D87)*3630+$E87)*(1-$B87/100) -> 0 | H87: 0 | I87: 65 | J87: 0 | K87: =(Site!$B$32*($G$6*$C87+$G$7*$D87)*3630)*Site!$B$33*0.3048^3/454*Site!$B$31/Site!$B$32*Site!$B$36 -> 0 | L87: 0 | M87: 0 | Q87: 30 | R87: 0 | S87: =(Site!$B$32*($G$6*$C87+$G$7*$D87)*3630)*Site!$B$34*0.3048^3/454*Site!$B$31/Site!$B$32*Site!$B$36 -> 0 | T87: 0 | U87: 0
A89: 14. Manufactured Treatment Devices (no RR) | R89: 14. Manufactured BMP (no RR)
A90: 14.a. Manufactured Treatment Device-Hydrodynamic | B90: 0 | E90: =SUMIF($N$13:$N$92,$P155,$G$13:$G$92) -> 0 | F90: =(Site!$B$32*($G$6*$C90+$G$7*$D90)*3630+$E90)*$B90/100 -> 0 | G90: =(Site!$B$32*($G$6*$C90+$G$7*$D90)*3630+$E90)*(1-$B90/100) -> 0 | H90: =+$F90+$G90 -> 0 | I90: 20 | J90: =SUMIF($N$13:$N$92,$P155,$M$13:$M$92) -> 0 | K90: =(Site!$B$32*($G$6*$C90+$G$7*$D90)*3630)*Site!$B$33*0.3048^3/454*Site!$B$31/Site!$B$32*Site!$B$36 -> 0 | L90: =IFERROR(($J90+$K90)*($F90+$G90*$I90/100)/$H90,0) -> 0 | M90: =$J90+$K90-$L90 -> 0 | Q90: 0 | R90: =SUMIF($N$13:$N$92,$P155,$U$13:$U$92) -> 0 | S90: =(Site!$B$32*($G$6*$C90+$G$7*$D90)*3630)*Site!$B$34*0.3048^3/454*Site!$B$31/Site!$B$32*Site!$B$36 -> 0 | T90: =IFERROR(($R90+$S90)*($F90+$G90*$Q90/100)/$H90,0) -> 0 | U90: =$R90+$S90-$T90 -> 0
A91: 14.b. Manufactured Treatment Device-Filtering | B91: 0 | E91: =SUMIF($N$13:$N$92,$P156,$G$13:$G$92) -> 0 | F91: =(Site!$B$32*($G$6*$C91+$G$7*$D91)*3630+$E91)*$B91/100 -> 0 | G91: =(Site!$B$32*($G$6*$C91+$G$7*$D91)*3630+$E91)*(1-$B91/100) -> 0 | H91: 0 | I91: 20 | J91: =SUMIF($N$13:$N$92,$P156,$M$13:$M$92) -> 0 | K91: =(Site!$B$32*($G$6*$C91+$G$7*$D91)*3630)*Site!$B$33*0.3048^3/454*Site!$B$31/Site!$B$32*Site!$B$36 -> 0 | L91: 0 | M91: 0 | Q91: 0 | R91: =SUMIF($N$13:$N$92,$P156,$U$13:$U$92) -> 0 | S91: =(Site!$B$32*($G$6*$C91+$G$7*$D91)*3630)*Site!$B$34*0.3048^3/454*Site!$B$31/Site!$B$32*Site!$B$36 -> 0 | T91: 0 | U91: 0
A92: 14.c. Manufactured Treatment Device-Generic | B92: 0 | E92: 0 | F92: =(Site!$B$32*($G$6*$C92+$G$7*$D92)*3630+$E92)*$B92/100 -> 0 | G92: =(Site!$B$32*($G$6*$C92+$G$7*$D92)*3630+$E92)*(1-$B92/100) -> 0 | H92: 0 | I92: 20 | J92: 0 | K92: =(Site!$B$32*($G$6*$C92+$G$7*$D92)*3630)*Site!$B$33*0.3048^3/454*Site!$B$31/Site!$B$32*Site!$B$36 -> 0 | L92: 0 | M92: 0 | Q92: 0 | R92: 0 | S92: =(Site!$B$32*($G$6*$C92+$G$7*$D92)*3630)*Site!$B$34*0.3048^3/454*Site!$B$31/Site!$B$32*Site!$B$36 -> 0 | T92: 0 | U92: 0
E96: TOTAL IMPERVIOUS COVER TREATED (ac) | F96: =SUM($D$13:$D$92) -> 0 | G96: AREA CHECK: | H96: =IF($F$96>$F$7,"AREA EXCEEDED!","OK.") -> OK.
E97: TOTAL MANAGED TURF AREA TREATED (ac) | F97: =SUM($C$13:$C$92) -> 0 | G97: AREA CHECK: | H97: =IF($F$97>$F$6,"AREA EXCEEDED!","OK.") -> OK.
H99: TOTAL PHOSPHORUS REMOVAL REQUIRED ON SITE (lb/yr) | I99: =IF(Site!G63="Check Areas!","ERROR - ",Site!G63) -> -- | J99: =IF(I99="ERROR - ","Site Data Tab","") -> 
H101: TOTAL PHOSPHORUS AVAILABLE FOR REMOVAL IN D.A. D (lb/yr) | I101: =$M$7 -> 0
H102: TOTAL PHOSPHORUS REMOVED WITHOUT RUNOFF REDUCTION PRACTICES IN D.A. D (lb/yr) | I102: =SUM($L$72:$L$92) -> 0
H103: TOTAL PHOSPHORUS REMOVED WITH RUNOFF REDUCTION PRACTICES IN D.A. D (lb/yr) | I103: =$I$63 -> 0
H104: TOTAL PHOSPHORUS LOAD REDUCTION ACHIEVED IN D.A. D (lb/yr) | I104: =$I$102+$I$103 -> 0
H105: TOTAL PHOSPHORUS REMAINING AFTER APPLYING BMP LOAD REDUCTIONS IN D.A. D (lb/yr) | I105: =$I$101-$I$104 -> 0
C107: SEE WATER QUALITY COMPLIANCE TAB FOR SITE COMPLIANCE CALCULATIONS
H109: NITROGEN REMOVED WITH RUNOFF REDUCTION PRACTICES IN D.A. D (lb/yr) | I109: =IFERROR(SUM($T$13:$T$55),0) -> 0
H110: NITROGEN REMOVED WITHOUT RUNOFF REDUCTION PRACTICES IN D.A. D (lb/yr) | I110: =SUM($T$72:$T$92) -> 0
H111: TOTAL NITROGEN REMOVED IN D.A. D (lb/yr) | I111: =$I$109+$I$110 -> 0
C116: Downstream Practices - Dropdown selections for each applicable BMP
A118: Options for 1. Green Roof | C118: Options for 2. Impervious Surface Disconnection | E118: Options for 3a. Pervious Parking, A/B Soils | G118: Options for 4a. Grass Channels, A/B Soils | J118: Options for 4b. Grass Channels, C/D Soils
L119: Options for 4.c. Grass Channel Compost Amended Soils | P119: Master Downstream BMP Reference List
A120: =P120 -> None | C120: =P120 -> None | E120: =P120 -> None | G120: =P120 -> None | J120: =P120 -> None | P120: None
A121: 2.a. Simple Disconnection to A/B Soils | C121: =P131 -> 4.a. Grass Channel A/B Soils | E121: =P131 -> 4.a. Grass Channel A/B Soils | G121: =P132 -> 4.b. Grass Channel C/D Soils | J121: =P131 -> 4.a. Grass Channel A/B Soils | L121: =P120 -> None | P121: 2.a. Simple Disconnection to A/B Soils
A122: 2.b. Simple Disconnection to C/D Soils | C122: 4.b. Grass Channel C/D Soils | E122: 4.b. Grass Channel C/D Soils | G122: 4.c. Grass Channel Compost Amended Soils | J122: =P133 -> 4.c. Grass Channel Compost Amended Soils | L122: =P131 -> 4.a. Grass Channel A/B Soils | P122: 2.b. Simple Disconnection to C/D Soils
A123: 2.c. To Soil Amended Filter Path | C123: 4.c. Grass Channel Compost Amended Soils | E123: 4.c. Grass Channel Compost Amended Soils | G123: 5.a. Dry Swale #1 | J123: 5.a. Dry Swale #1 | L123: =P132 -> 4.b. Grass Channel C/D Soils | P123: 2.c. To Soil Amended Filter Path
A124: 2.d. To Dry Well/French Drain #1 (Micro-Infiltration #1) | C124: 5.a. Dry Swale #1 | E124: 5.a. Dry Swale #1 | G124: 5.b. Dry Swale #2 | J124: 5.b. Dry Swale #2 | L124: =P134 -> 5.a. Dry Swale #1 | P124: 2.d. To Dry Well/French Drain #1 (Micro-Infiltration #1)
A125: 2.e. To Dry Well/French Drain #2 (Micro-Infiltration. #2) | C125: 5.b. Dry Swale #2 | E125: 5.b. Dry Swale #2 | G125: 6.a. Bioretention #1 | J125: 6.a. Bioretention #1 | L125: 5.b. Dry Swale #2 | P125: 2.e. To Dry Well/French Drain #2 (Micro-Infiltration. #2)
A126: 2.f. To Rain Garden #1 (Micro-Bioretention #1) | C126: 6.a. Bioretention #1 | E126: 6.a. Bioretention #1 | G126: 6.b. Bioretention #2 | J126: 6.b. Bioretention #2 | L126: 6.a. Bioretention #1 | P126: 2.f. To Rain Garden #1 (Micro-Bioretention #1)
A127: 2.g. To Rain Garden #2 (Micro-Bioretention #2) | C127: 6.b. Bioretention #2 | E127: 6.b. Bioretention #2 | G127: 7.a. Infiltration #1 | J127: 7.a. Infiltration #1 | L127: 6.b. Bioretention #2 | P127: 2.g. To Rain Garden #2 (Micro-Bioretention #2)
A128: 2.h. To Train Barrel, Rain Tank, or Cistern | C128: 7.a. Infiltration #1 | E128: 7.a. Infiltration #1 | G128: 7.b. Infiltration #2 | J128: 7.b. Infiltration #2 | L128: 7.a. Infiltration #1 | P128: 2.h. To Train Barrel, Rain Tank, or Cistern
A129: 2.i. To Stormwater Planter (Urban Bioretention) | C129: 7.b. Infiltration #2 | E129: 7.b. Infiltration #2 | G129: 8.a. ED #1 | J129: 8.a. ED #1 | L129: 7.b. Infiltration #2 | P129: 2.i. To Stormwater Planter (Urban Bioretention)
A130: 3.a. Permeable Pavement #1 | C130: 8.a. ED #1 | E130: 8.a. ED #1 | G130: 8.b. ED #2 | J130: 8.b. ED #2 | L130: 8.a. ED #1 | P130: 3.a. Permeable Pavement #1
A131: 4.a. Grass Channel A/B Soils | C131: 8.b. ED #2 | E131: 8.b. ED #2 | G131: 9.a. Sheetflow to A/B Soil Conservation Area | J131: 9.a. Sheetflow to A/B Soil Conservation Area | L131: 8.b. ED #2 | P131: 4.a. Grass Channel A/B Soils
A132: 4.b. Grass Channel C/D Soils | C132: 9.a. Sheetflow to A/B Soil Conservation Area | E132: 9.a. Sheetflow to A/B Soil Conservation Area | G132: 9.b. Sheetflow to C/D Soil Conservation Area | J132: 9.b. Sheetflow to C/D Soil Conservation Area | L132: 9.a. Sheetflow to A/B Soil Conservation Area | P132: 4.b. Grass Channel C/D Soils
A133: 4.c. Grass Channel Compost Amended Soils | C133: 9.b. Sheetflow to C/D Soil Conservation Area | E133: 9.b. Sheetflow to C/D Soil Conservation Area | G133: 9.c. Sheetflow to Vegetated Filter Strip | J133: 9.c. Sheetflow to Vegetated Filter Strip | L133: 9.b. Sheetflow to C/D Soil Conservation Area | P133: 4.c. Grass Channel Compost Amended Soils
A134: 5.a. Dry Swale #1 | C134: 9.c. Sheetflow to Vegetated Filter Strip | E134: 9.c. Sheetflow to Vegetated Filter Strip | G134: 10.a. Wet Swale #1 | J134: 10.a. Wet Swale #1 | L134: 9.c. Sheetflow to Vegetated Filter Strip | P134: 5.a. Dry Swale #1
A135: 5.b. Dry Swale #2 | C135: 10.a. Wet Swale #1 | E135: 10.a. Wet Swale #1 | G135: 10.b. Wet Swale #2 | J135: 10.b. Wet Swale #2 | L135: 10.a. Wet Swale #1 | P135: 5.b. Dry Swale #2
A136: 6.a. Bioretention #1 | C136: 10.b. Wet Swale #2 | E136: 10.b. Wet Swale #2 | G136: 11.a. Filtering Practice #1 | J136: 11.a. Filtering Practice #1 | L136: 10.b. Wet Swale #2 | P136: 6.a. Bioretention #1
A137: 6.b. Bioretention #2 | C137: 11.a. Filtering Practice #1 | E137: 11.a. Filtering Practice #1 | G137: 11.b. Filtering Practice #2 | J137: 11.b. Filtering Practice #2 | L137: 11.a. Filtering Practice #1 | P137: 6.b. Bioretention #2
A138: 7.a. Infiltration #1 | C138: 11.b. Filtering Practice #2 | E138: 11.b. Filtering Practice #2 | G138: 12.a. Constructed Wetland #1 | J138: 12.a. Constructed Wetland #1 | L138: 11.b. Filtering Practice #2 | P138: 7.a. Infiltration #1
A139: 7.b. Infiltration #2 | C139: 12.a. Constructed Wetland #1 | E139: 12.a. Constructed Wetland #1 | G139: 12.b. Constructed Wetland #2 | J139: 12.b. Constructed Wetland #2 | L139: 12.a. Constructed Wetland #1 | P139: 7.b. Infiltration #2
A140: 8.a. ED #1 | C140: 12.b. Constructed Wetland #2 | E140: 12.b. Constructed Wetland #2 | G140: 13.a. Wet Pond #1 | J140: 13.a. Wet Pond #1 | L140: 12.b. Constructed Wetland #2 | P140: 8.a. ED #1
A141: 8.b. ED #2 | C141: 13.a. Wet Pond #1 | E141: 13.a. Wet Pond #1 | G141: 13.b. Wet Pond #1 (Coastal Plain) | J141: 13.b. Wet Pond #1 (Coastal Plain) | L141: 13.a. Wet Pond #1 | P141: 8.b. ED #2
A142: 9.a. Sheetflow to A/B Soil Conservation Area | C142: 13.b. Wet Pond #1 (Coastal Plain) | E142: 13.b. Wet Pond #1 (Coastal Plain) | G142: 13.c. Wet Pond #2 | J142: 13.c. Wet Pond #2 | L142: 13.b. Wet Pond #1 (Coastal Plain) | P142: 9.a. Sheetflow to A/B Soil Conservation Area
A143: 9.b. Sheetflow to C/D Soil Conservation Area | C143: 13.c. Wet Pond #2 | E143: 13.c. Wet Pond #2 | G143: 13.d. Wet Pond #2 (Coastal Plain) | J143: 13.d. Wet Pond #2 (Coastal Plain) | L143: 13.c. Wet Pond #2 | P143: 9.b. Sheetflow to C/D Soil Conservation Area
A144: 9.c. Sheetflow to Vegetated Filter Strip | C144: 13.d. Wet Pond #2 (Coastal Plain) | E144: 13.d. Wet Pond #2 (Coastal Plain) | G144: 14.a. MTD - Hydrodynamic | J144: 14.a. MTD - Hydrodynamic | L144: 13.d. Wet Pond #2 (Coastal Plain) | P144: 9.c. Sheetflow to Vegetated Filter Strip
A145: 10.a. Wet Swale #1 | C145: 14.a. MTD - Hydrodynamic | E145: 14.a. MTD - Hydrodynamic | G145: 14.b. MTD - Filtering | J145: 14.b. MTD - Filtering | L145: 14.a. MTD - Hydrodynamic | P145: 10.a. Wet Swale #1
A146: 10.b. Wet Swale #2 | C146: 14.b. MTD - Filtering | E146: 14.b. MTD - Filtering | G146: 14.c. MTD - Generic | J146: 14.c. MTD - Generic | L146: 14.b. MTD - Filtering | P146: 10.b. Wet Swale #2
A147: 11.a. Filtering Practice #1 | C147: 14.c. MTD - Generic | E147: 14.c. MTD - Generic | L147: 14.c. MTD - Generic | P147: 11.a. Filtering Practice #1
A148: 11.b. Filtering Practice #2 | P148: 11.b. Filtering Practice #2
A149: 12.a. Constructed Wetland #1 | P149: 12.a. Constructed Wetland #1
A150: 12.b. Constructed Wetland #2 | P150: 12.b. Constructed Wetland #2
A151: 13.a. Wet Pond #1 | P151: 13.a. Wet Pond #1
A152: 13.b. Wet Pond #1 (Coastal Plain) | P152: 13.b. Wet Pond #1 (Coastal Plain)
A153: 13.c. Wet Pond #2 | P153: 13.c. Wet Pond #2
A154: 13.d. Wet Pond #2 (Coastal Plain) | P154: 13.d. Wet Pond #2 (Coastal Plain)
A155: 14.a. MTD - Hydrodynamic | P155: 14.a. MTD - Hydrodynamic
A156: 14.b. MTD - Filtering | P156: 14.b. MTD - Filtering
A157: 14.c. MTD - Generic | P157: 14.c. MTD - Generic
A159: Options for 5a. Dry Swale #1 | C159: Options for 5b. Dry Swale #2 | E159: Options for 6a. Bioretention #1 | G159: Options for 6b. Bioretention #2 | J159: Options for 7a. Infiltration #1 | L159: Options for 7b. Infiltration #2
A161: =P120 -> None | C161: =P120 -> None | E161: =P120 -> None | G161: =P120 -> None | J161: =P120 -> None | L161: =P120 -> None
A162: =P131 -> 4.a. Grass Channel A/B Soils | C162: =P131 -> 4.a. Grass Channel A/B Soils | E162: =P131 -> 4.a. Grass Channel A/B Soils | G162: =P131 -> 4.a. Grass Channel A/B Soils | J162: =P131 -> 4.a. Grass Channel A/B Soils | L162: =P131 -> 4.a. Grass Channel A/B Soils
A163: =P132 -> 4.b. Grass Channel C/D Soils | C163: =P132 -> 4.b. Grass Channel C/D Soils | E163: =P132 -> 4.b. Grass Channel C/D Soils | G163: 4.b. Grass Channel C/D Soils | J163: 4.b. Grass Channel C/D Soils | L163: 4.b. Grass Channel C/D Soils
A164: =P133 -> 4.c. Grass Channel Compost Amended Soils | C164: =P133 -> 4.c. Grass Channel Compost Amended Soils | E164: =P133 -> 4.c. Grass Channel Compost Amended Soils | G164: 4.c. Grass Channel Compost Amended Soils | J164: 4.c. Grass Channel Compost Amended Soils | L164: 4.c. Grass Channel Compost Amended Soils
A165: =P135 -> 5.b. Dry Swale #2 | C165: =P134 -> 5.a. Dry Swale #1 | E165: =P134 -> 5.a. Dry Swale #1 | G165: 5.a. Dry Swale #1 | J165: 5.a. Dry Swale #1 | L165: 5.a. Dry Swale #1
A166: 6.a. Bioretention #1 | C166: =P136 -> 6.a. Bioretention #1 | E166: =P135 -> 5.b. Dry Swale #2 | G166: 5.b. Dry Swale #2 | J166: 5.b. Dry Swale #2 | L166: 5.b. Dry Swale #2
A167: 6.b. Bioretention #2 | C167: 6.b. Bioretention #2 | E167: =P137 -> 6.b. Bioretention #2 | G167: 6.a. Bioretention #1 | J167: 6.a. Bioretention #1 | L167: 6.a. Bioretention #1
A168: 7.a. Infiltration #1 | C168: 7.a. Infiltration #1 | E168: 7.a. Infiltration #1 | G168: =P138 -> 7.a. Infiltration #1 | J168: 6.b. Bioretention #2 | L168: 6.b. Bioretention #2
A169: 7.b. Infiltration #2 | C169: 7.b. Infiltration #2 | E169: 7.b. Infiltration #2 | G169: 7.b. Infiltration #2 | J169: =P139 -> 7.b. Infiltration #2 | L169: 7.a. Infiltration #1
A170: 8.a. ED #1 | C170: 8.a. ED #1 | E170: 8.a. ED #1 | G170: 8.a. ED #1 | J170: 8.a. ED #1 | L170: =P140 -> 8.a. ED #1
A171: 8.b. ED #2 | C171: 8.b. ED #2 | E171: 8.b. ED #2 | G171: 8.b. ED #2 | J171: 8.b. ED #2 | L171: 8.b. ED #2
A172: 9.a. Sheetflow to A/B Soil Conservation Area | C172: 9.a. Sheetflow to A/B Soil Conservation Area | E172: 9.a. Sheetflow to A/B Soil Conservation Area | G172: 9.a. Sheetflow to A/B Soil Conservation Area | J172: 9.a. Sheetflow to A/B Soil Conservation Area | L172: 9.a. Sheetflow to A/B Soil Conservation Area
A173: 9.b. Sheetflow to C/D Soil Conservation Area | C173: 9.b. Sheetflow to C/D Soil Conservation Area | E173: 9.b. Sheetflow to C/D Soil Conservation Area | G173: 9.b. Sheetflow to C/D Soil Conservation Area | J173: 9.b. Sheetflow to C/D Soil Conservation Area | L173: 9.b. Sheetflow to C/D Soil Conservation Area
A174: 9.c. Sheetflow to Vegetated Filter Strip | C174: 9.c. Sheetflow to Vegetated Filter Strip | E174: 9.c. Sheetflow to Vegetated Filter Strip | G174: 9.c. Sheetflow to Vegetated Filter Strip | J174: 9.c. Sheetflow to Vegetated Filter Strip | L174: 9.c. Sheetflow to Vegetated Filter Strip
A175: 10.a. Wet Swale #1 | C175: 10.a. Wet Swale #1 | E175: 10.a. Wet Swale #1 | G175: 10.a. Wet Swale #1 | J175: 10.a. Wet Swale #1 | L175: 10.a. Wet Swale #1
A176: 10.b. Wet Swale #2 | C176: 10.b. Wet Swale #2 | E176: 10.b. Wet Swale #2 | G176: 10.b. Wet Swale #2 | J176: 10.b. Wet Swale #2 | L176: 10.b. Wet Swale #2
A177: 11.a. Filtering Practice #1 | C177: 11.a. Filtering Practice #1 | E177: 11.a. Filtering Practice #1 | G177: 11.a. Filtering Practice #1 | J177: 11.a. Filtering Practice #1 | L177: 11.a. Filtering Practice #1
A178: 11.b. Filtering Practice #2 | C178: 11.b. Filtering Practice #2 | E178: 11.b. Filtering Practice #2 | G178: 11.b. Filtering Practice #2 | J178: 11.b. Filtering Practice #2 | L178: 11.b. Filtering Practice #2
A179: 12.a. Constructed Wetland #1 | C179: 12.a. Constructed Wetland #1 | E179: 12.a. Constructed Wetland #1 | G179: 12.a. Constructed Wetland #1 | J179: 12.a. Constructed Wetland #1 | L179: 12.a. Constructed Wetland #1
A180: 12.b. Constructed Wetland #2 | C180: 12.b. Constructed Wetland #2 | E180: 12.b. Constructed Wetland #2 | G180: 12.b. Constructed Wetland #2 | J180: 12.b. Constructed Wetland #2 | L180: 12.b. Constructed Wetland #2
A181: 13.a. Wet Pond #1 | C181: 13.a. Wet Pond #1 | E181: 13.a. Wet Pond #1 | G181: 13.a. Wet Pond #1 | J181: 13.a. Wet Pond #1 | L181: 13.a. Wet Pond #1
A182: 13.b. Wet Pond #1 (Coastal Plain) | C182: 13.b. Wet Pond #1 (Coastal Plain) | E182: 13.b. Wet Pond #1 (Coastal Plain) | G182: 13.b. Wet Pond #1 (Coastal Plain) | J182: 13.b. Wet Pond #1 (Coastal Plain) | L182: 13.b. Wet Pond #1 (Coastal Plain)
A183: 13.c. Wet Pond #2 | C183: 13.c. Wet Pond #2 | E183: 13.c. Wet Pond #2 | G183: 13.c. Wet Pond #2 | J183: 13.c. Wet Pond #2 | L183: 13.c. Wet Pond #2
A184: 13.d. Wet Pond #2 (Coastal Plain) | C184: 13.d. Wet Pond #2 (Coastal Plain) | E184: 13.d. Wet Pond #2 (Coastal Plain) | G184: 13.d. Wet Pond #2 (Coastal Plain) | J184: 13.d. Wet Pond #2 (Coastal Plain) | L184: 13.d. Wet Pond #2 (Coastal Plain)
A185: 14.a. MTD - Hydrodynamic | C185: 14.a. MTD - Hydrodynamic | E185: 14.a. MTD - Hydrodynamic | G185: 14.a. MTD - Hydrodynamic | J185: 14.a. MTD - Hydrodynamic | L185: 14.a. MTD - Hydrodynamic
A186: 14.b. MTD - Filtering | C186: 14.b. MTD - Filtering | E186: 14.b. MTD - Filtering | G186: 14.b. MTD - Filtering | J186: 14.b. MTD - Filtering | L186: 14.b. MTD - Filtering
A187: 14.c. MTD - Generic | C187: 14.c. MTD - Generic | E187: 14.c. MTD - Generic | G187: 14.c. MTD - Generic | J187: 14.c. MTD - Generic | L187: 14.c. MTD - Generic
A189: Options for 8a. Extended Detention #1 | C189: Options for 8b. Extended Detention #2 | E189: Options for 9 Sheet Flow to Open Space | G189: Options for 9c. Sheet Flow to Filter Strip | J189: Options for 10a. Wet Swale #1 | L189: Options for 10b. Wet Swale #2
A191: =P120 -> None | C191: =P120 -> None | E191: =P120 -> None | G191: =P120 -> None | J191: =P120 -> None | L191: =P120 -> None
A192: =P131 -> 4.a. Grass Channel A/B Soils | C192: =P131 -> 4.a. Grass Channel A/B Soils | G192: =P131 -> 4.a. Grass Channel A/B Soils | J192: =P131 -> 4.a. Grass Channel A/B Soils | L192: =P131 -> 4.a. Grass Channel A/B Soils
A193: 4.b. Grass Channel C/D Soils | C193: 4.b. Grass Channel C/D Soils | G193: 4.b. Grass Channel C/D Soils | J193: 4.b. Grass Channel C/D Soils | L193: 4.b. Grass Channel C/D Soils
A194: 4.c. Grass Channel Compost Amended Soils | C194: 4.c. Grass Channel Compost Amended Soils | G194: 4.c. Grass Channel Compost Amended Soils | J194: 4.c. Grass Channel Compost Amended Soils | L194: 4.c. Grass Channel Compost Amended Soils
A195: 5.a. Dry Swale #1 | C195: 5.a. Dry Swale #1 | G195: 5.a. Dry Swale #1 | J195: 5.a. Dry Swale #1 | L195: 5.a. Dry Swale #1
A196: 5.b. Dry Swale #2 | C196: 5.b. Dry Swale #2 | G196: 5.b. Dry Swale #2 | J196: 5.b. Dry Swale #2 | L196: 5.b. Dry Swale #2
A197: 6.a. Bioretention #1 | C197: 6.a. Bioretention #1 | G197: 6.a. Bioretention #1 | J197: 6.a. Bioretention #1 | L197: 6.a. Bioretention #1
A198: 6.b. Bioretention #2 | C198: 6.b. Bioretention #2 | G198: 6.b. Bioretention #2 | J198: 6.b. Bioretention #2 | L198: 6.b. Bioretention #2
A199: 7.a. Infiltration #1 | C199: 7.a. Infiltration #1 | G199: 7.a. Infiltration #1 | J199: 7.a. Infiltration #1 | L199: 7.a. Infiltration #1
A200: 7.b. Infiltration #2 | C200: 7.b. Infiltration #2 | G200: 7.b. Infiltration #2 | J200: 7.b. Infiltration #2 | L200: 7.b. Infiltration #2
A201: =P141 -> 8.b. ED #2 | C201: 8.a. ED #1 | G201: 8.a. ED #1 | J201: 8.a. ED #1 | L201: 8.a. ED #1
A202: 9.a. Sheetflow to A/B Soil Conservation Area | C202: =P142 -> 9.a. Sheetflow to A/B Soil Conservation Area | G202: 8.b. ED #2 | J202: 8.b. ED #2 | L202: 8.b. ED #2
A203: 9.b. Sheetflow to C/D Soil Conservation Area | C203: 9.b. Sheetflow to C/D Soil Conservation Area | G203: 9.a. Sheetflow to A/B Soil Conservation Area | J203: 9.a. Sheetflow to A/B Soil Conservation Area | L203: 9.a. Sheetflow to A/B Soil Conservation Area
A204: 9.c. Sheetflow to Vegetated Filter Strip | C204: 9.c. Sheetflow to Vegetated Filter Strip | G204: 9.b. Sheetflow to C/D Soil Conservation Area | J204: 9.b. Sheetflow to C/D Soil Conservation Area | L204: 9.b. Sheetflow to C/D Soil Conservation Area
A205: 10.a. Wet Swale #1 | C205: 10.a. Wet Swale #1 | G205: =P145 -> 10.a. Wet Swale #1 | J205: 9.c. Sheetflow to Vegetated Filter Strip | L205: 9.c. Sheetflow to Vegetated Filter Strip
A206: 10.b. Wet Swale #2 | C206: 10.b. Wet Swale #2 | G206: 10.b. Wet Swale #2 | J206: =P146 -> 10.b. Wet Swale #2 | L206: 10.a. Wet Swale #1
A207: 11.a. Filtering Practice #1 | C207: 11.a. Filtering Practice #1 | G207: 11.a. Filtering Practice #1 | J207: 11.a. Filtering Practice #1 | L207: =P147 -> 11.a. Filtering Practice #1
A208: 11.b. Filtering Practice #2 | C208: 11.b. Filtering Practice #2 | G208: 11.b. Filtering Practice #2 | J208: 11.b. Filtering Practice #2 | L208: 11.b. Filtering Practice #2
A209: 12.a. Constructed Wetland #1 | C209: 12.a. Constructed Wetland #1 | G209: 12.a. Constructed Wetland #1 | J209: 12.a. Constructed Wetland #1 | L209: 12.a. Constructed Wetland #1
A210: 12.b. Constructed Wetland #2 | C210: 12.b. Constructed Wetland #2 | G210: 12.b. Constructed Wetland #2 | J210: 12.b. Constructed Wetland #2 | L210: 12.b. Constructed Wetland #2
A211: 13.a. Wet Pond #1 | C211: 13.a. Wet Pond #1 | G211: 13.a. Wet Pond #1 | J211: 13.a. Wet Pond #1 | L211: 13.a. Wet Pond #1
A212: 13.b. Wet Pond #1 (Coastal Plain) | C212: 13.b. Wet Pond #1 (Coastal Plain) | G212: 13.b. Wet Pond #1 (Coastal Plain) | J212: 13.b. Wet Pond #1 (Coastal Plain) | L212: 13.b. Wet Pond #1 (Coastal Plain)
A213: 13.c. Wet Pond #2 | C213: 13.c. Wet Pond #2 | G213: 13.c. Wet Pond #2 | J213: 13.c. Wet Pond #2 | L213: 13.c. Wet Pond #2
A214: 13.d. Wet Pond #2 (Coastal Plain) | C214: 13.d. Wet Pond #2 (Coastal Plain) | G214: 13.d. Wet Pond #2 (Coastal Plain) | J214: 13.d. Wet Pond #2 (Coastal Plain) | L214: 13.d. Wet Pond #2 (Coastal Plain)
A215: 14.a. MTD - Hydrodynamic | C215: 14.a. MTD - Hydrodynamic | G215: 14.a. MTD - Hydrodynamic | J215: 14.a. MTD - Hydrodynamic | L215: 14.a. MTD - Hydrodynamic
A216: 14.b. MTD - Filtering | C216: 14.b. MTD - Filtering | G216: 14.b. MTD - Filtering | J216: 14.b. MTD - Filtering | L216: 14.b. MTD - Filtering
A217: 14.c. MTD - Generic | C217: 14.c. MTD - Generic | G217: 14.c. MTD - Generic | J217: 14.c. MTD - Generic | L217: 14.c. MTD - Generic
E219: Options for 12.a. Constructed Wetland #1 | G219: Options for 12.b. Constructed Wetland #2
A220: Options for 11 A. Filtering Practice #1 | C220: Options for 11 b. Filtering Practice #2 | J220: Options for 13.a. Wet Pond #1
E221: =P120 -> None | G221: =P120 -> None | J221: =P120 -> None | L221: Options for 13.b. Wet Pond #1 (Coastal Plain)
A222: =P120 -> None | C222: =P120 -> None | E222: =P131 -> 4.a. Grass Channel A/B Soils | G222: =P131 -> 4.a. Grass Channel A/B Soils | J222: =P131 -> 4.a. Grass Channel A/B Soils | L222: =P120 -> None
A223: =P131 -> 4.a. Grass Channel A/B Soils | C223: =P131 -> 4.a. Grass Channel A/B Soils | E223: 4.b. Grass Channel C/D Soils | G223: 4.b. Grass Channel C/D Soils | J223: 4.b. Grass Channel C/D Soils | L223: =P131 -> 4.a. Grass Channel A/B Soils
A224: 4.b. Grass Channel C/D Soils | C224: 4.b. Grass Channel C/D Soils | E224: 4.c. Grass Channel Compost Amended Soils | G224: 4.c. Grass Channel Compost Amended Soils | J224: 4.c. Grass Channel Compost Amended Soils | L224: 4.b. Grass Channel C/D Soils
A225: 4.c. Grass Channel Compost Amended Soils | C225: 4.c. Grass Channel Compost Amended Soils | E225: 5.a. Dry Swale #1 | G225: 5.a. Dry Swale #1 | J225: 5.a. Dry Swale #1 | L225: 4.c. Grass Channel Compost Amended Soils
A226: 5.a. Dry Swale #1 | C226: 5.a. Dry Swale #1 | E226: 5.b. Dry Swale #2 | G226: 5.b. Dry Swale #2 | J226: 5.b. Dry Swale #2 | L226: 5.a. Dry Swale #1
A227: 5.b. Dry Swale #2 | C227: 5.b. Dry Swale #2 | E227: 6.a. Bioretention #1 | G227: 6.a. Bioretention #1 | J227: 6.a. Bioretention #1 | L227: 5.b. Dry Swale #2
A228: 6.a. Bioretention #1 | C228: 6.a. Bioretention #1 | E228: 6.b. Bioretention #2 | G228: 6.b. Bioretention #2 | J228: 6.b. Bioretention #2 | L228: 6.a. Bioretention #1
A229: 6.b. Bioretention #2 | C229: 6.b. Bioretention #2 | E229: 7.a. Infiltration #1 | G229: 7.a. Infiltration #1 | J229: 7.a. Infiltration #1 | L229: 6.b. Bioretention #2
A230: 7.a. Infiltration #1 | C230: 7.a. Infiltration #1 | E230: 7.b. Infiltration #2 | G230: 7.b. Infiltration #2 | J230: 7.b. Infiltration #2 | L230: 7.a. Infiltration #1
A231: 7.b. Infiltration #2 | C231: 7.b. Infiltration #2 | E231: 8.a. ED #1 | G231: 8.a. ED #1 | J231: 8.a. ED #1 | L231: 7.b. Infiltration #2
A232: 8.a. ED #1 | C232: 8.a. ED #1 | E232: 8.b. ED #2 | G232: 8.b. ED #2 | J232: 8.b. ED #2 | L232: 8.a. ED #1
A233: 8.b. ED #2 | C233: 8.b. ED #2 | E233: 9.a. Sheetflow to A/B Soil Conservation Area | G233: 9.a. Sheetflow to A/B Soil Conservation Area | J233: 9.a. Sheetflow to A/B Soil Conservation Area | L233: 8.b. ED #2
A234: 9.a. Sheetflow to A/B Soil Conservation Area | C234: 9.a. Sheetflow to A/B Soil Conservation Area | E234: 9.b. Sheetflow to C/D Soil Conservation Area | G234: 9.b. Sheetflow to C/D Soil Conservation Area | J234: 9.b. Sheetflow to C/D Soil Conservation Area | L234: 9.a. Sheetflow to A/B Soil Conservation Area
A235: 9.b. Sheetflow to C/D Soil Conservation Area | C235: 9.b. Sheetflow to C/D Soil Conservation Area | E235: 9.c. Sheetflow to Vegetated Filter Strip | G235: 9.c. Sheetflow to Vegetated Filter Strip | J235: 9.c. Sheetflow to Vegetated Filter Strip | L235: 9.b. Sheetflow to C/D Soil Conservation Area
A236: 9.c. Sheetflow to Vegetated Filter Strip | C236: 9.c. Sheetflow to Vegetated Filter Strip | E236: 10.a. Wet Swale #1 | G236: 10.a. Wet Swale #1 | J236: 10.a. Wet Swale #1 | L236: 9.c. Sheetflow to Vegetated Filter Strip
A237: 10.a. Wet Swale #1 | C237: 10.a. Wet Swale #1 | E237: 10.b. Wet Swale #2 | G237: 10.b. Wet Swale #2 | J237: 10.b. Wet Swale #2 | L237: 10.a. Wet Swale #1
... 38 more rows

Sheet D.A. E
A1: Drainage Area E
Y2: Check Areas! | AA2: CHECK AREAS!
A3: Drainage Area A Land Cover (acres) | B3: =IF($F$8>Site!$F$27,"Drainage area is greater than site area!",(IF(OR(F5>Site!F24,F6>Site!F25,F7>Site!F26),"Check Site Tab land cover areas!",""))) -> 
B4: A Soils | C4: B Soils | D4: C Soils | E4: D Soils | F4: Totals | G4: Land Cover Rv | N4: `
A5: Forest/Open Space (acres) | F5: =SUMIF(B5:E5,">=0") -> 0 | G5: =IF(F5>0,(B5*Site!E32+C5*Site!F32+D5*Site!G32+E5*Site!H32)/F5,0) -> 0
A6: Managed Turf (acres) | F6: =SUMIF(B6:E6,">=0") -> 0 | G6: =IF(F6>0,(B6*Site!E33+C6*Site!F33+D6*Site!G33+E6*Site!H33)/F6,0) -> 0
A7: Impervious Cover (acres) | F7: =SUMIF(B7:E7,">=0") -> 0 | G7: =IF(F7>0,((B7*Site!E34+C7*Site!F34+D7*Site!G34+E7*Site!H34)/F7),0) -> 0 | I7: Total Phosphorus Available for Removal in D.A. E (lb/yr) | M7: =Site!$B$31*Site!$B$36*($M$8/Site!$B$32)*Site!$B$33*2.72/43560 -> 0
E8: Total | F8: =SUM(F5:F7) -> 0 | I8: Post Development Treatment Volume in D.A. E (ft3) | M8: =IFERROR(Site!B32/12*(F6*G6+F7*G7)/(F6+F7)*(F6+F7)*43560,0) -> 0
A10: Stormwater Best Management Practices (RR = Runoff Reduction) | N10: --Select from dropdown lists--
A11: Practice | B11: Runoff Reduction Credit (%) | C11: Managed Turf Credit Area (acres) | D11: Impervious Cover Credit Area (acres) | E11: Volume from Upstream Practice (ft3) | F11: Runoff Reduction (ft3) | G11: Remaining Runoff Volume (ft3) | H11: Total BMP Treatment Volume (ft3) | I11: Phosphorus Removal Efficiency (%) | J11: Phosphorus Load from Upstream Practices (lb) | K11: Untreated Phosphorus Load to Practice (lb) | L11: Phosphorus Removed By Practice (lb) | M11: Remaining Phosphorus Load (lb) | N11: Downstream Practice to be Employed | Q11: Nitrogen Removal Efficiency (%) | R11: Nitrogen Load from Upstream Practices (lbs) | S11: Untreated Nitrogen Load to Practice (lbs) | T11: Nitrogen Removed By Practice (lbs) | U11: Remaining Nitrogen Load (lbs)
A12: 1. Vegetated Roof (RR) | Q12: 1. Vegetated Roof (RR)
A13: 1.a. Vegetated Roof #1 (Spec #5) | B13: 45 | F13: =(Site!$B$32*($G$7*$D13)*3630)*$B13/100 -> 0 | G13: =(Site!$B$32*($G$7*$D13)*3630)*(1-$B13/100) -> 0 | H13: =+$F13+$G13 -> 0 | I13: 0 | K13: =(Site!$B$32*($G$7*$D13)*3630)*Site!$B$33*0.3048^3/454*Site!$B$31/Site!$B$32*Site!$B$36 -> 0 | L13: =IFERROR($K13*($F13+$G13*$I13/100)/($H13),0) -> 0 | M13: =$K13-$L13 -> 0 | Q13: 0 | S13: =(Site!$B$32*$G$7*$D13*3630)*Site!$B$34*0.3048^3/454*Site!$B$31/Site!$B$32*Site!$B$36 -> 0 | T13: =IFERROR($S13*($F13+$G13*$Q13/100)/$H13,0) -> 0 | U13: =$S13-$T13 -> 0
A14: 1.b. Vegetated Roof #2 (Spec #5) | B14: 60 | F14: =(Site!$B$32*($G$7*$D14)*3630)*$B14/100 -> 0 | G14: =(Site!$B$32*($G$7*$D14)*3630)*(1-$B14/100) -> 0 | H14: =+$F14+$G14 -> 0 | I14: 0 | K14: =(Site!$B$32*($G$7*$D14)*3630)*Site!$B$33*0.3048^3/454*Site!$B$31/Site!$B$32*Site!$B$36 -> 0 | L14: =IFERROR($K14*($F14+$G14*$I14/100)/($H14),0) -> 0 | M14: =$K14-$L14 -> 0 | Q14: 0 | S14: =(Site!$B$32*$G$7*$D14*3630)*Site!$B$34*0.3048^3/454*Site!$B$31/Site!$B$32*Site!$B$36 -> 0 | T14: =IFERROR($S14*($F14+$G14*$Q14/100)/$H14,0) -> 0 | U14: =$S14-$T14 -> 0
A16: 2. Rooftop Disconnection (RR) | Q16: 2. Rooftop Disconnection (RR)
A17: 2.a. Simple Disconnection to A/B Soils (Spec #1) | B17: 50 | E17: =SUMIF($N$13:$N$92,$P121,$G$13:$G$92) -> 0 | F17: =(Site!$B$32*($G$6*$C17+$G$7*$D17)*3630+$E17)*$B17/100 -> 0 | G17: =(Site!$B$32*($G$6*$C17+$G$7*$D17)*3630+$E17)*(1-$B17/100) -> 0 | H17: =+$F17+$G17 -> 0 | I17: 0 | J17: =SUMIF($N$13:$N$92,$P121,$M$13:$M$92) -> 0 | K17: =(Site!$B$32*($G$6*$C17+$G$7*$D17)*3630)*Site!$B$33*0.3048^3/454*Site!$B$31/Site!$B$32*Site!$B$36 -> 0 | L17: =IFERROR(($J17+$K17)*($F17+$G17*$I17/100)/$H17,0) -> 0 | M17: =$J17+$K17-$L17 -> 0 | Q17: 0 | R17: =SUMIF($N$13:$N$92,$P121,$U$13:$U$92) -> 0 | S17: =(Site!$B$32*$G$7*$D17*3630)*Site!$B$34*0.3048^3/454*Site!$B$31/Site!$B$32*Site!$B$36 -> 0 | T17: =IFERROR(($R17+$S17)*($F17+$G17*$Q17/100)/$H17,0) -> 0 | U17: =$R17+$S17-$T17 -> 0
A18: 2.b. Simple Disconnection to C/D Soils (Spec #1) | B18: 25 | E18: =SUMIF($N$13:$N$92,$P122,$G$13:$G$92) -> 0 | F18: =(Site!$B$32*($G$6*$C18+$G$7*$D18)*3630+$E18)*$B18/100 -> 0 | G18: =(Site!$B$32*($G$6*$C18+$G$7*$D18)*3630+$E18)*(1-$B18/100) -> 0 | H18: =+$F18+$G18 -> 0 | I18: 0 | J18: =SUMIF($N$13:$N$92,$P122,$M$13:$M$92) -> 0 | K18: =(Site!$B$32*($G$6*$C18+$G$7*$D18)*3630)*Site!$B$33*0.3048^3/454*Site!$B$31/Site!$B$32*Site!$B$36 -> 0 | L18: =IFERROR(($J18+$K18)*($F18+$G18*$I18/100)/$H18,0) -> 0 | M18: 0 | Q18: 0 | R18: =SUMIF($N$13:$N$92,$P122,$U$13:$U$92) -> 0 | S18: =(Site!$B$32*$G$7*$D18*3630)*Site!$B$34*0.3048^3/454*Site!$B$31/Site!$B$32*Site!$B$36 -> 0 | T18: =IFERROR(($R18+$S18)*($F18+$G18*$Q18/100)/$H18,0) -> 0 | U18: 0
A19: 2.c. To Soil Amended Filter Path as per specifications (existing C/D soils) (Spec #4) | B19: 50 | E19: 0 | F19: =(Site!$B$32*($G$6*$C19+$G$7*$D19)*3630+$E19)*$B19/100 -> 0 | G19: =(Site!$B$32*($G$6*$C19+$G$7*$D19)*3630+$E19)*(1-$B19/100) -> 0 | H19: 0 | I19: 0 | J19: 0 | K19: =(Site!$B$32*($G$6*$C19+$G$7*$D19)*3630)*Site!$B$33*0.3048^3/454*Site!$B$31/Site!$B$32*Site!$B$36 -> 0 | L19: 0 | M19: 0 | Q19: 0 | R19: 0 | S19: =(Site!$B$32*$G$7*$D19*3630)*Site!$B$34*0.3048^3/454*Site!$B$31/Site!$B$32*Site!$B$36 -> 0 | T19: 0 | U19: 0
A20: 2.d. To Dry Well or French Drain #1, Micro-Infilration #1 (Spec #8) | B20: 50 | E20: 0 | F20: =(Site!$B$32*($G$6*$C20+$G$7*$D20)*3630+$E20)*$B20/100 -> 0 | G20: =(Site!$B$32*($G$6*$C20+$G$7*$D20)*3630+$E20)*(1-$B20/100) -> 0 | H20: 0 | I20: 25 | J20: 0 | K20: =(Site!$B$32*($G$6*$C20+$G$7*$D20)*3630)*Site!$B$33*0.3048^3/454*Site!$B$31/Site!$B$32*Site!$B$36 -> 0 | L20: 0 | M20: 0 | Q20: 15 | R20: 0 | S20: =(Site!$B$32*$G$7*$D20*3630)*Site!$B$34*0.3048^3/454*Site!$B$31/Site!$B$32*Site!$B$36 -> 0 | T20: 0 | U20: 0
A21: 2.e. To Dry Well or French Drain #2, Micro-Infiltration #2 (Spec #8) | B21: 90 | E21: 0 | F21: =(Site!$B$32*($G$6*$C21+$G$7*$D21)*3630+$E21)*$B21/100 -> 0 | G21: =(Site!$B$32*($G$6*$C21+$G$7*$D21)*3630+$E21)*(1-$B21/100) -> 0 | H21: 0 | I21: 25 | J21: 0 | K21: =(Site!$B$32*($G$6*$C21+$G$7*$D21)*3630)*Site!$B$33*0.3048^3/454*Site!$B$31/Site!$B$32*Site!$B$36 -> 0 | L21: 0 | M21: 0 | Q21: 15 | R21: 0 | S21: =(Site!$B$32*$G$7*$D21*3630)*Site!$B$34*0.3048^3/454*Site!$B$31/Site!$B$32*Site!$B$36 -> 0 | T21: 0 | U21: 0
A22: 2.f. To Rain Garden #1, Micro-Bioretention #1 (Spec #9) | B22: 40 | E22: 0 | F22: =(Site!$B$32*($G$6*$C22+$G$7*$D22)*3630+$E22)*$B22/100 -> 0 | G22: =(Site!$B$32*($G$6*$C22+$G$7*$D22)*3630+$E22)*(1-$B22/100) -> 0 | H22: 0 | I22: 25 | J22: 0 | K22: =(Site!$B$32*($G$6*$C22+$G$7*$D22)*3630)*Site!$B$33*0.3048^3/454*Site!$B$31/Site!$B$32*Site!$B$36 -> 0 | L22: 0 | M22: 0 | Q22: 40 | R22: 0 | S22: =(Site!$B$32*$G$7*$D22*3630)*Site!$B$34*0.3048^3/454*Site!$B$31/Site!$B$32*Site!$B$36 -> 0 | T22: 0 | U22: 0
A23: 2.g. To Rain Garden #2, Micro-Bioretention #2 (Spec #9) | B23: 80 | E23: 0 | F23: =(Site!$B$32*($G$6*$C23+$G$7*$D23)*3630+$E23)*$B23/100 -> 0 | G23: =(Site!$B$32*($G$6*$C23+$G$7*$D23)*3630+$E23)*(1-$B23/100) -> 0 | H23: 0 | I23: 50 | J23: 0 | K23: =(Site!$B$32*($G$6*$C23+$G$7*$D23)*3630)*Site!$B$33*0.3048^3/454*Site!$B$31/Site!$B$32*Site!$B$36 -> 0 | L23: 0 | M23: 0 | Q23: 60 | R23: 0 | S23: =(Site!$B$32*$G$7*$D23*3630)*Site!$B$34*0.3048^3/454*Site!$B$31/Site!$B$32*Site!$B$36 -> 0 | T23: 0 | U23: 0
A24: 2.h. To Rainwater Harvesting (Spec #6) | B24: 0 | E24: 0 | F24: =(Site!$B$32*($G$6*$C24+$G$7*$D24)*3630+$E24)*$B24/100 -> 0 | G24: =(Site!$B$32*($G$6*$C24+$G$7*$D24)*3630+$E24)*(1-$B24/100) -> 0 | H24: 0 | I24: 0 | J24: 0 | K24: =(Site!$B$32*($G$6*$C24+$G$7*$D24)*3630)*Site!$B$33*0.3048^3/454*Site!$B$31/Site!$B$32*Site!$B$36 -> 0 | L24: 0 | M24: 0 | Q24: 0 | R24: 0 | S24: =(Site!$B$32*$G$7*$D24*3630)*Site!$B$34*0.3048^3/454*Site!$B$31/Site!$B$32*Site!$B$36 -> 0 | T24: 0 | U24: 0
A25: 2.i. To Stormwater Planter, Urban Bioretention (Spec #9, Appendix A) | B25: 40 | E25: 0 | F25: =(Site!$B$32*($G$6*$C25+$G$7*$D25)*3630+$E25)*$B25/100 -> 0 | G25: =(Site!$B$32*($G$6*$C25+$G$7*$D25)*3630+$E25)*(1-$B25/100) -> 0 | H25: 0 | I25: 25 | J25: 0 | K25: =(Site!$B$32*($G$6*$C25+$G$7*$D25)*3630)*Site!$B$33*0.3048^3/454*Site!$B$31/Site!$B$32*Site!$B$36 -> 0 | L25: 0 | M25: 0 | Q25: 40 | R25: 0 | S25: =(Site!$B$32*$G$7*$D25*3630)*Site!$B$34*0.3048^3/454*Site!$B$31/Site!$B$32*Site!$B$36 -> 0 | T25: 0 | U25: 0
A27: 3. Permeable Pavement (RR) | Q27: 3. Permeable Pavement (RR)
A28: 3.a. Permeable Pavement #1 (Spec #7) | B28: 45 | E28: =SUMIF($N$13:$N$92,$P130,$G$13:$G$92) -> 0 | F28: =(Site!$B$32*($G$6*$C28+$G$7*$D28)*3630+$E28)*$B28/100 -> 0 | G28: =(Site!$B$32*($G$6*$C28+$G$7*$D28)*3630+$E28)*(1-$B28/100) -> 0 | H28: =+$F28+$G28 -> 0 | I28: 25 | J28: =SUMIF($N$13:$N$92,$P130,$M$13:$M$92) -> 0 | K28: =(Site!$B$32*($G$6*$C28+$G$7*$D28)*3630)*Site!$B$33*0.3048^3/454*Site!$B$31/Site!$B$32*Site!$B$36 -> 0 | L28: =IFERROR(($J28+$K28)*($F28+$G28*$I28/100)/$H28,0) -> 0 | M28: =$J28+$K28-$L28 -> 0 | Q28: 25 | R28: =SUMIF($N$13:$N$92,$P130,$U$13:$U$92) -> 0 | S28: =(Site!$B$32*($G$6*$C28+$G$7*$D28)*3630)*Site!$B$34*0.3048^3/454*Site!$B$31/Site!$B$32*Site!$B$36 -> 0 | T28: =IFERROR(($R28+$S28)*($F28+$G28*$Q28/100)/$H28,0) -> 0 | U28: =$R28+$S28-$T28 -> 0
A29: 3.b. Permeable Pavement #2 (Spec #7) | B29: 75 | F29: =(Site!$B$32*($G$6*$C29+$G$7*$D29)*3630+$E29)*$B29/100 -> 0 | G29: =(Site!$B$32*($G$6*$C29+$G$7*$D29)*3630+$E29)*(1-$B29/100) -> 0 | H29: =+$F29+$G29 -> 0 | I29: 25 | K29: =(Site!$B$32*($G$6*$C29+$G$7*$D29)*3630)*Site!$B$33*0.3048^3/454*Site!$B$31/Site!$B$32*Site!$B$36 -> 0 | L29: =IFERROR(($J29+$K29)*($F29+$G29*$I29/100)/$H29,0) -> 0 | M29: =$K29-$L29 -> 0 | Q29: 25 | S29: =(Site!$B$32*$G$7*$D29*3630)*Site!$B$34*0.3048^3/454*Site!$B$31/Site!$B$32*Site!$B$36 -> 0 | T29: =IFERROR(($R29+$S29)*($F29+$G29*$Q29/100)/$H29,0) -> 0 | U29: =$R29+$S29-$T29 -> 0
A31: 4. Grass Channel (RR) | Q31: 4. Grass Channel (RR)
A32: 4.a. Grass Channel A/B Soils (Spec #3) | B32: 20 | E32: =SUMIF($N$13:$N$92,$P131,$G$13:$G$92) -> 0 | F32: =(Site!$B$32*($G$6*$C32+$G$7*$D32)*3630+$E32)*$B32/100 -> 0 | G32: =(Site!$B$32*($G$6*$C32+$G$7*$D32)*3630+$E32)*(1-$B32/100) -> 0 | H32: =+$F32+$G32 -> 0 | I32: 15 | J32: =SUMIF($N$13:$N$92,$P131,$M$13:$M$92) -> 0 | K32: =(Site!$B$32*($G$6*$C32+$G$7*$D32)*3630)*Site!$B$33*0.3048^3/454*Site!$B$31/Site!$B$32*Site!$B$36 -> 0 | L32: =IFERROR(($J32+$K32)*($F32+$G32*$I32/100)/$H32,0) -> 0 | M32: =$J32+$K32-$L32 -> 0 | Q32: 20 | R32: =SUMIF($N$13:$N$92,$P131,$U$13:$U$92) -> 0 | S32: =(Site!$B$32*($G$6*$C32+$G$7*$D32)*3630)*Site!$B$34*0.3048^3/454*Site!$B$31/Site!$B$32*Site!$B$36 -> 0 | T32: =IFERROR(($R32+$S32)*($F32+$G32*$Q32/100)/$H32,0) -> 0 | U32: =$R32+$S32-$T32 -> 0
A33: 4.b. Grass Channel C/D Soils (Spec #3) | B33: 10 | E33: =SUMIF($N$13:$N$92,$P132,$G$13:$G$92) -> 0 | F33: =(Site!$B$32*($G$6*$C33+$G$7*$D33)*3630+$E33)*$B33/100 -> 0 | G33: =(Site!$B$32*($G$6*$C33+$G$7*$D33)*3630+$E33)*(1-$B33/100) -> 0 | H33: =+$F33+$G33 -> 0 | I33: 15 | J33: =SUMIF($N$13:$N$92,$P132,$M$13:$M$92) -> 0 | K33: =(Site!$B$32*($G$6*$C33+$G$7*$D33)*3630)*Site!$B$33*0.3048^3/454*Site!$B$31/Site!$B$32*Site!$B$36 -> 0 | L33: =IFERROR(($J33+$K33)*($F33+$G33*$I33/100)/$H33,0) -> 0 | M33: =$J33+$K33-$L33 -> 0 | Q33: 20 | R33: =SUMIF($N$13:$N$92,$P132,$U$13:$U$92) -> 0 | S33: =(Site!$B$32*($G$6*$C33+$G$7*$D33)*3630)*Site!$B$34*0.3048^3/454*Site!$B$31/Site!$B$32*Site!$B$36 -> 0 | T33: =IFERROR(($R33+$S33)*($F33+$G33*$Q33/100)/$H33,0) -> 0 | U33: =$R33+$S33-$T33 -> 0
A34: 4.c. Grass Channel with Compost Amended Soils as per specs (see Spec #4) | B34: =IF(Site!$J$11="2011 Stds & Specs",30,20) -> 20 | E34: 0 | F34: =(Site!$B$32*($G$6*$C34+$G$7*$D34)*3630+$E34)*$B34/100 -> 0 | G34: =(Site!$B$32*($G$6*$C34+$G$7*$D34)*3630+$E34)*(1-$B34/100) -> 0 | H34: 0 | I34: 15 | J34: =SUMIF($N$13:$N$92,$P133,$M$13:$M$92) -> 0 | K34: =(Site!$B$32*($G$6*$C34+$G$7*$D34)*3630)*Site!$B$33*0.3048^3/454*Site!$B$31/Site!$B$32*Site!$B$36 -> 0 | L34: 0 | M34: 0 | Q34: 20 | R34: 0 | S34: =(Site!$B$32*($G$6*$C34+$G$7*$D34)*3630)*Site!$B$34*0.3048^3/454*Site!$B$31/Site!$B$32*Site!$B$36 -> 0 | T34: 0 | U34: 0
W35: `
A36: 5. Dry Swale (RR) | Q36: 5. Dry Swale (RR)
A37: 5.a. Dry Swale #1 (Spec #10) | B37: 40 | E37: =SUMIF($N$13:$N$92,$P134,$G$13:$G$92) -> 0 | F37: =(Site!$B$32*($G$6*$C37+$G$7*$D37)*3630+$E37)*$B37/100 -> 0 | G37: =(Site!$B$32*($G$6*$C37+$G$7*$D37)*3630+$E37)*(1-$B37/100) -> 0 | H37: =+$F37+$G37 -> 0 | I37: 20 | J37: =SUMIF($N$13:$N$92,$P134,$M$13:$M$92) -> 0 | K37: =(Site!$B$32*($G$6*$C37+$G$7*$D37)*3630)*Site!$B$33*0.3048^3/454*Site!$B$31/Site!$B$32*Site!$B$36 -> 0 | L37: =IFERROR(($J37+$K37)*($F37+$G37*$I37/100)/$H37,0) -> 0 | M37: =$J37+$K37-$L37 -> 0 | Q37: 25 | R37: =SUMIF($N$13:$N$92,$P134,$U$13:$U$92) -> 0 | S37: =(Site!$B$32*($G$6*$C37+$G$7*$D37)*3630)*Site!$B$34*0.3048^3/454*Site!$B$31/Site!$B$32*Site!$B$36 -> 0 | T37: =IFERROR(($R37+$S37)*($F37+$G37*$Q37/100)/$H37,0) -> 0 | U37: =$R37+$S37-$T37 -> 0
A38: 5.b. Dry Swale #2 (Spec #10) | B38: 60 | E38: =SUMIF($N$13:$N$92,$P135,$G$13:$G$92) -> 0 | F38: =(Site!$B$32*($G$6*$C38+$G$7*$D38)*3630+$E38)*$B38/100 -> 0 | G38: =(Site!$B$32*($G$6*$C38+$G$7*$D38)*3630+$E38)*(1-$B38/100) -> 0 | H38: =+$F38+$G38 -> 0 | I38: 40 | J38: =SUMIF($N$13:$N$92,$P135,$M$13:$M$92) -> 0 | K38: =(Site!$B$32*($G$6*$C38+$G$7*$D38)*3630)*Site!$B$33*0.3048^3/454*Site!$B$31/Site!$B$32*Site!$B$36 -> 0 | L38: =IFERROR(($J38+$K38)*($F38+$G38*$I38/100)/$H38,0) -> 0 | M38: =$J38+$K38-$L38 -> 0 | Q38: 35 | R38: =SUMIF($N$13:$N$92,$P135,$U$13:$U$92) -> 0 | S38: =(Site!$B$32*($G$6*$C38+$G$7*$D38)*3630)*Site!$B$34*0.3048^3/454*Site!$B$31/Site!$B$32*Site!$B$36 -> 0 | T38: 0 | U38: 0
A40: 6. Bioretention (RR) | Q40: 6. Bioretention (RR)
A41: 6.a. Bioretention #1 or Micro-Bioretention #1 or Urban Bioretention (Spec #9) | B41: 40 | E41: =SUMIF($N$13:$N$92,$P136,$G$13:$G$92) -> 0 | F41: =(Site!$B$32*($G$6*$C41+$G$7*$D41)*3630+$E41)*$B41/100 -> 0 | G41: =(Site!$B$32*($G$6*$C41+$G$7*$D41)*3630+$E41)*(1-$B41/100) -> 0 | H41: =+$F41+$G41 -> 0 | I41: 25 | J41: =SUMIF($N$13:$N$92,$P136,$M$13:$M$92) -> 0 | K41: =(Site!$B$32*($G$6*$C41+$G$7*$D41)*3630)*Site!$B$33*0.3048^3/454*Site!$B$31/Site!$B$32*Site!$B$36 -> 0 | L41: =IFERROR(($J41+$K41)*($F41+$G41*$I41/100)/$H41,0) -> 0 | M41: =$J41+$K41-$L41 -> 0 | Q41: 40 | R41: =SUMIF($N$13:$N$92,$P136,$U$13:$U$92) -> 0 | S41: =(Site!$B$32*($G$6*$C41+$G$7*$D41)*3630)*Site!$B$34*0.3048^3/454*Site!$B$31/Site!$B$32*Site!$B$36 -> 0 | T41: =IFERROR(($R41+$S41)*($F41+$G41*$Q41/100)/$H41,0) -> 0 | U41: =$R41+$S41-$T41 -> 0
A42: 6.b. Bioretention #2 or Micro-Bioretention #2 (Spec #9) | B42: 80 | E42: =SUMIF($N$13:$N$92,$P137,$G$13:$G$92) -> 0 | F42: =(Site!$B$32*($G$6*$C42+$G$7*$D42)*3630+$E42)*$B42/100 -> 0 | G42: =(Site!$B$32*($G$6*$C42+$G$7*$D42)*3630+$E42)*(1-$B42/100) -> 0 | H42: =+$F42+$G42 -> 0 | I42: 50 | J42: =SUMIF($N$13:$N$92,$P137,$M$13:$M$92) -> 0 | K42: =(Site!$B$32*($G$6*$C42+$G$7*$D42)*3630)*Site!$B$33*0.3048^3/454*Site!$B$31/Site!$B$32*Site!$B$36 -> 0 | L42: =IFERROR(($J42+$K42)*($F42+$G42*$I42/100)/$H42,0) -> 0 | M42: =$J42+$K42-$L42 -> 0 | Q42: 60 | R42: =SUMIF($N$13:$N$92,$P137,$U$13:$U$92) -> 0 | S42: =(Site!$B$32*($G$6*$C42+$G$7*$D42)*3630)*Site!$B$34*0.3048^3/454*Site!$B$31/Site!$B$32*Site!$B$36 -> 0 | T42: 0 | U42: 0
A44: 7. Infiltration (RR) | Q44: 7. Infiltration (RR)
A45: 7.a. Infiltration #1 (Spec #8) | B45: 50 | E45: =SUMIF($N$13:$N$92,$P138,$G$13:$G$92) -> 0 | F45: =(Site!$B$32*($G$6*$C45+$G$7*$D45)*3630+$E45)*$B45/100 -> 0 | G45: =(Site!$B$32*($G$6*$C45+$G$7*$D45)*3630+$E45)*(1-$B45/100) -> 0 | H45: =+$F45+$G45 -> 0 | I45: 25 | J45: =SUMIF($N$13:$N$92,$P138,$M$13:$M$92) -> 0 | K45: =(Site!$B$32*($G$6*$C45+$G$7*$D45)*3630)*Site!$B$33*0.3048^3/454*Site!$B$31/Site!$B$32*Site!$B$36 -> 0 | L45: =IFERROR(($J45+$K45)*($F45+$G45*$I45/100)/$H45,0) -> 0 | M45: =$J45+$K45-$L45 -> 0 | Q45: 15 | R45: =SUMIF($N$13:$N$92,$P138,$U$13:$U$92) -> 0 | S45: =(Site!$B$32*($G$6*$C45+$G$7*$D45)*3630)*Site!$B$34*0.3048^3/454*Site!$B$31/Site!$B$32*Site!$B$36 -> 0 | T45: =IFERROR(($R45+$S45)*($F45+$G45*$Q45/100)/$H45,0) -> 0 | U45: =$R45+$S45-$T45 -> 0
A46: 7.b. Infiltration #2 (Spec #8) | B46: 90 | E46: =SUMIF($N$13:$N$92,$P139,$G$13:$G$92) -> 0 | F46: =(Site!$B$32*($G$6*$C46+$G$7*$D46)*3630+$E46)*$B46/100 -> 0 | G46: =(Site!$B$32*($G$6*$C46+$G$7*$D46)*3630+$E46)*(1-$B46/100) -> 0 | H46: =+$F46+$G46 -> 0 | I46: 25 | J46: =SUMIF($N$13:$N$92,$P139,$M$13:$M$92) -> 0 | K46: =(Site!$B$32*($G$6*$C46+$G$7*$D46)*3630)*Site!$B$33*0.3048^3/454*Site!$B$31/Site!$B$32*Site!$B$36 -> 0 | L46: =IFERROR(($J46+$K46)*($F46+$G46*$I46/100)/$H46,0) -> 0 | M46: =$J46+$K46-$L46 -> 0 | Q46: 15 | R46: =SUMIF($N$13:$N$92,$P139,$U$13:$U$92) -> 0 | S46: =(Site!$B$32*($G$6*$C46+$G$7*$D46)*3630)*Site!$B$34*0.3048^3/454*Site!$B$31/Site!$B$32*Site!$B$36 -> 0 | T46: 0 | U46: 0
A48: 8. Extended Detention Pond (RR) | Q48: 8. Extended Detention Pond (RR)
A49: 8.a. ED #1 (Spec #15) | B49: 0 | E49: =SUMIF($N$13:$N$92,$P140,$G$13:$G$92) -> 0 | F49: =(Site!$B$32*($G$6*$C49+$G$7*$D49)*3630+$E49)*$B49/100 -> 0 | G49: =(Site!$B$32*($G$6*$C49+$G$7*$D49)*3630+$E49)*(1-$B49/100) -> 0 | H49: =+$F49+$G49 -> 0 | I49: 15 | J49: =SUMIF($N$13:$N$92,$P140,$M$13:$M$92) -> 0 | K49: =(Site!$B$32*($G$6*$C49+$G$7*$D49)*3630)*Site!$B$33*0.3048^3/454*Site!$B$31/Site!$B$32*Site!$B$36 -> 0 | L49: =IFERROR(($J49+$K49)*($F49+$G49*$I49/100)/$H49,0) -> 0 | M49: =$J49+$K49-$L49 -> 0 | Q49: 10 | R49: =SUMIF($N$13:$N$92,$P140,$U$13:$U$92) -> 0 | S49: =(Site!$B$32*($G$6*$C49+$G$7*$D49)*3630)*Site!$B$34*0.3048^3/454*Site!$B$31/Site!$B$32*Site!$B$36 -> 0 | T49: =IFERROR(($R49+$S49)*($F49+$G49*$Q49/100)/$H49,0) -> 0 | U49: =$R49+$S49-$T49 -> 0
A50: 8.b. ED #2 (Spec #15) | B50: 15 | E50: =SUMIF($N$13:$N$92,$P141,$G$13:$G$92) -> 0 | F50: =(Site!$B$32*($G$6*$C50+$G$7*$D50)*3630+$E50)*$B50/100 -> 0 | G50: =(Site!$B$32*($G$6*$C50+$G$7*$D50)*3630+$E50)*(1-$B50/100) -> 0 | H50: =+$F50+$G50 -> 0 | I50: 15 | J50: =SUMIF($N$13:$N$92,$P141,$M$13:$M$92) -> 0 | K50: =(Site!$B$32*($G$6*$C50+$G$7*$D50)*3630)*Site!$B$33*0.3048^3/454*Site!$B$31/Site!$B$32*Site!$B$36 -> 0 | L50: 0 | M50: 0 | Q50: 10 | R50: =SUMIF($N$13:$N$92,$P141,$U$13:$U$92) -> 0 | S50: =(Site!$B$32*($G$6*$C50+$G$7*$D50)*3630)*Site!$B$34*0.3048^3/454*Site!$B$31/Site!$B$32*Site!$B$36 -> 0 | T50: 0 | U50: 0
A52: 9. Sheetflow to Filter/Open Space (RR) | Q52: 9. Sheetflow to Filter/Open Space (RR)
A53: 9.a. Sheetflow to Conservation Area, A/B Soils (Spec #2) | B53: 75 | E53: =SUMIF($N$13:$N$92,$P142,$G$13:$G$92) -> 0 | F53: =(Site!$B$32*($G$6*$C53+$G$7*$D53)*3630+$E53)*$B53/100 -> 0 | G53: =(Site!$B$32*($G$6*$C53+$G$7*$D53)*3630+$E53)*(1-$B53/100) -> 0 | H53: =+$F53+$G53 -> 0 | I53: 0 | J53: =SUMIF($N$13:$N$92,$P142,$M$13:$M$92) -> 0 | K53: =(Site!$B$32*($G$6*$C53+$G$7*$D53)*3630)*Site!$B$33*0.3048^3/454*Site!$B$31/Site!$B$32*Site!$B$36 -> 0 | L53: =IFERROR(($J53+$K53)*($F53+$G53*$I53/100)/$H53,0) -> 0 | M53: =$J53+$K53-$L53 -> 0 | Q53: 0 | R53: =SUMIF($N$13:$N$92,$P142,$U$13:$U$92) -> 0 | S53: =(Site!$B$32*($G$6*$C53+$G$7*$D53)*3630)*Site!$B$34*0.3048^3/454*Site!$B$31/Site!$B$32*Site!$B$36 -> 0 | T53: =IFERROR(($R53+$S53)*($F53+$G53*$Q53/100)/$H53,0) -> 0 | U53: =$R53+$S53-$T53 -> 0
A54: 9.b. Sheetflow to Conservation Area, C/D Soils (Spec #2) | B54: 50 | E54: =SUMIF($N$13:$N$92,$P143,$G$13:$G$92) -> 0 | F54: =(Site!$B$32*($G$6*$C54+$G$7*$D54)*3630+$E54)*$B54/100 -> 0 | G54: =(Site!$B$32*($G$6*$C54+$G$7*$D54)*3630+$E54)*(1-$B54/100) -> 0 | H54: =+$F54+$G54 -> 0 | I54: 0 | J54: =SUMIF($N$13:$N$92,$P143,$M$13:$M$92) -> 0 | K54: =(Site!$B$32*($G$6*$C54+$G$7*$D54)*3630)*Site!$B$33*0.3048^3/454*Site!$B$31/Site!$B$32*Site!$B$36 -> 0 | L54: 0 | M54: 0 | Q54: 0 | R54: =SUMIF($N$13:$N$92,$P143,$U$13:$U$92) -> 0 | S54: =(Site!$B$32*($G$6*$C54+$G$7*$D54)*3630)*Site!$B$34*0.3048^3/454*Site!$B$31/Site!$B$32*Site!$B$36 -> 0 | T54: 0 | U54: 0
A55: 9.c. Sheetflow to Vegetated Filter Strip, A Soils or Compost Amended B/C/D Soils (Spec #2 & #4) | B55: 50 | E55: 0 | F55: =(Site!$B$32*($G$6*$C55+$G$7*$D55)*3630+$E55)*$B55/100 -> 0 | G55: =(Site!$B$32*($G$6*$C55+$G$7*$D55)*3630+$E55)*(1-$B55/100) -> 0 | H55: 0 | I55: 0 | J55: 0 | K55: =(Site!$B$32*($G$6*$C55+$G$7*$D55)*3630)*Site!$B$33*0.3048^3/454*Site!$B$31/Site!$B$32*Site!$B$36 -> 0 | L55: 0 | M55: 0 | Q55: 0 | R55: 0 | S55: =(Site!$B$32*($G$6*$C55+$G$7*$D55)*3630)*Site!$B$34*0.3048^3/454*Site!$B$31/Site!$B$32*Site!$B$36 -> 0 | T55: 0 | U55: 0
E58: TOTAL IMPERVIOUS COVER TREATED (ac) | F58: =SUM(D13:D55) -> 0 | G58: AREA CHECK: | H58: =IF(F58>$F$7,"AREA EXCEEDED!","OK.") -> OK.
E59: TOTAL MANAGED TURF AREA TREATED (ac) | F59: =SUM(C32:C55) -> 0 | G59: AREA CHECK: | H59: =IF(F59>$F$6,"AREA EXCEEDED!","OK.") -> OK.
E60: TOTAL RUNOFF REDUCTION IN D.A. E (ft3) | F60: =IFERROR(SUM($F$13:$F$55),0) -> 0
H62: TOTAL PHOSPHORUS AVAILABLE FOR REMOVAL IN D.A. E (lb/yr) | I62: =$M$7 -> 0
H63: TOTAL PHOSPHORUS REMOVED WITH RUNOFF REDUCTION PRACTICES IN D.A. E (lb/yr) | I63: =IFERROR(SUM(L13:L55),0) -> 0 | U63: TOTAL RUNOFF REDUCTION IN D.A. E (ft3) | V63: =F60 -> 0
H64: TOTAL PHOSPHORUS REMAINING AFTER APPLYING RUNOFF REDUCTION PRACTICES IN D.A. E (lb/yr) | I64: =I62-I63 -> 0 | U64: NITROGEN REMOVED WITH RUNOFF REDUCTION PRACTICES IN D.A. E (lb/yr) | V64: =SUM($T$13:$T$55) -> 0
C66: SEE WATER QUALITY COMPLIANCE TAB FOR SITE COMPLIANCE CALCULATIONS | V66: SEE WATER QUALITY COMPLIANCE TAB FOR SITE CALCULATIONS (Information Only)
A71: 10. Wet Swale (no RR) | R71: 10. Wet Swale (Coastal Plain) (no RR)
A72: 10.a. Wet Swale #1 (Spec #11) | B72: 0 | E72: =SUMIF($N$13:$N$92,$P145,$G$13:$G$92) -> 0 | F72: =(Site!$B$32*($G$6*$C72+$G$7*$D72)*3630+$E72)*$B72/100 -> 0 | G72: =(Site!$B$32*($G$6*$C72+$G$7*$D72)*3630+$E72)*(1-$B72/100) -> 0 | H72: =+$F72+$G72 -> 0 | I72: 20 | J72: =SUMIF($N$13:$N$92,$P145,$M$13:$M$92) -> 0 | K72: =(Site!$B$32*($G$6*$C72+$G$7*$D72)*3630)*Site!$B$33*0.3048^3/454*Site!$B$31/Site!$B$32*Site!$B$36 -> 0 | L72: =IFERROR(($J72+$K72)*($F72+$G72*$I72/100)/$H72,0) -> 0 | M72: =$J72+$K72-$L72 -> 0 | Q72: 25 | R72: =SUMIF($N$13:$N$92,$P145,$U$13:$U$92) -> 0 | S72: =(Site!$B$32*($G$6*$C72+$G$7*$D72)*3630)*Site!$B$34*0.3048^3/454*Site!$B$31/Site!$B$32*Site!$B$36 -> 0 | T72: =IFERROR(($R72+$S72)*($F72+$G72*$Q72/100)/$H72,0) -> 0 | U72: =$R72+$S72-$T72 -> 0
A73: 10.b. Wet Swale #2 (Spec #11) | B73: 0 | E73: =SUMIF($N$13:$N$92,$P146,$G$13:$G$92) -> 0 | F73: =(Site!$B$32*($G$6*$C73+$G$7*$D73)*3630+$E73)*$B73/100 -> 0 | G73: =(Site!$B$32*($G$6*$C73+$G$7*$D73)*3630+$E73)*(1-$B73/100) -> 0 | H73: 0 | I73: 40 | J73: =SUMIF($N$13:$N$92,$P146,$M$13:$M$92) -> 0 | K73: =(Site!$B$32*($G$6*$C73+$G$7*$D73)*3630)*Site!$B$33*0.3048^3/454*Site!$B$31/Site!$B$32*Site!$B$36 -> 0 | L73: 0 | M73: 0 | Q73: 35 | R73: =SUMIF($N$13:$N$92,$P146,$U$13:$U$92) -> 0 | S73: =(Site!$B$32*($G$6*$C73+$G$7*$D73)*3630)*Site!$B$34*0.3048^3/454*Site!$B$31/Site!$B$32*Site!$B$36 -> 0 | T73: 0 | U73: 0
A75: 11. Filtering Practices (no RR) | Q75: 11. Filtering Practices (no RR)
A76: 11.a.Filtering Practice #1 (Spec #12) | B76: 0 | E76: =SUMIF($N$13:$N$92,$P147,$G$13:$G$92) -> 0 | F76: =(Site!$B$32*($G$6*$C76+$G$7*$D76)*3630+$E76)*$B76/100 -> 0 | G76: =(Site!$B$32*($G$6*$C76+$G$7*$D76)*3630+$E76)*(1-$B76/100) -> 0 | H76: =+$F76+$G76 -> 0 | I76: 60 | J76: =SUMIF($N$13:$N$92,$P147,$M$13:$M$92) -> 0 | K76: =(Site!$B$32*($G$6*$C76+$G$7*$D76)*3630)*Site!$B$33*0.3048^3/454*Site!$B$31/Site!$B$32*Site!$B$36 -> 0 | L76: =IFERROR(($J76+$K76)*($F76+$G76*$I76/100)/$H76,0) -> 0 | M76: =$J76+$K76-$L76 -> 0 | Q76: 30 | R76: =SUMIF($N$13:$N$92,$P147,$U$13:$U$92) -> 0 | S76: =(Site!$B$32*($G$6*$C76+$G$7*$D76)*3630)*Site!$B$34*0.3048^3/454*Site!$B$31/Site!$B$32*Site!$B$36 -> 0 | T76: =IFERROR(($R76+$S76)*($F76+$G76*$Q76/100)/$H76,0) -> 0 | U76: =$R76+$S76-$T76 -> 0
A77: 11.b. Filtering Practice #2 (Spec #12) | B77: 0 | E77: =SUMIF($N$13:$N$92,$P148,$G$13:$G$92) -> 0 | F77: =(Site!$B$32*($G$6*$C77+$G$7*$D77)*3630+$E77)*$B77/100 -> 0 | G77: =(Site!$B$32*($G$6*$C77+$G$7*$D77)*3630+$E77)*(1-$B77/100) -> 0 | H77: 0 | I77: 65 | J77: =SUMIF($N$13:$N$92,$P148,$M$13:$M$92) -> 0 | K77: =(Site!$B$32*($G$6*$C77+$G$7*$D77)*3630)*Site!$B$33*0.3048^3/454*Site!$B$31/Site!$B$32*Site!$B$36 -> 0 | L77: 0 | M77: 0 | Q77: 45 | R77: =SUMIF($N$13:$N$92,$P148,$U$13:$U$92) -> 0 | S77: =(Site!$B$32*($G$6*$C77+$G$7*$D77)*3630)*Site!$B$34*0.3048^3/454*Site!$B$31/Site!$B$32*Site!$B$36 -> 0 | T77: 0 | U77: 0
A79: 12. Constructed Wetland (no RR) | Q79: 12. Constructed Wetland (no RR)
A80: 12.a.Constructed Wetland #1 (Spec #13) | B80: 0 | E80: =SUMIF($N$13:$N$92,$P149,$G$13:$G$92) -> 0 | F80: =(Site!$B$32*($G$6*$C80+$G$7*$D80)*3630+$E80)*$B80/100 -> 0 | G80: =(Site!$B$32*($G$6*$C80+$G$7*$D80)*3630+$E80)*(1-$B80/100) -> 0 | H80: =+$F80+$G80 -> 0 | I80: 50 | J80: =SUMIF($N$13:$N$92,$P149,$M$13:$M$92) -> 0 | K80: =(Site!$B$32*($G$6*$C80+$G$7*$D80)*3630)*Site!$B$33*0.3048^3/454*Site!$B$31/Site!$B$32*Site!$B$36 -> 0 | L80: =IFERROR(($J80+$K80)*($F80+$G80*$I80/100)/$H80,0) -> 0 | M80: =$J80+$K80-$L80 -> 0 | Q80: 25 | R80: =SUMIF($N$13:$N$92,$P149,$U$13:$U$92) -> 0 | S80: =(Site!$B$32*($G$6*$C80+$G$7*$D80)*3630)*Site!$B$34*0.3048^3/454*Site!$B$31/Site!$B$32*Site!$B$36 -> 0 | T80: =IFERROR(($R80+$S80)*($F80+$G80*$Q80/100)/$H80,0) -> 0 | U80: =$R80+$S80-$T80 -> 0
A81: 12.b. Constructed Wetland #2 (Spec #13) | B81: 0 | E81: =SUMIF($N$13:$N$92,$P150,$G$13:$G$92) -> 0 | F81: =(Site!$B$32*($G$6*$C81+$G$7*$D81)*3630+$E81)*$B81/100 -> 0 | G81: =(Site!$B$32*($G$6*$C81+$G$7*$D81)*3630+$E81)*(1-$B81/100) -> 0 | H81: 0 | I81: 75 | J81: =SUMIF($N$13:$N$92,$P150,$M$13:$M$92) -> 0 | K81: =(Site!$B$32*($G$6*$C81+$G$7*$D81)*3630)*Site!$B$33*0.3048^3/454*Site!$B$31/Site!$B$32*Site!$B$36 -> 0 | L81: 0 | M81: 0 | Q81: 55 | R81: =SUMIF($N$13:$N$92,$P150,$U$13:$U$92) -> 0 | S81: =(Site!$B$32*($G$6*$C81+$G$7*$D81)*3630)*Site!$B$34*0.3048^3/454*Site!$B$31/Site!$B$32*Site!$B$36 -> 0 | T81: 0 | U81: 0
A83: 13. Wet Ponds (no RR) | Q83: 13. Wet Ponds (no RR)
A84: 13.a. Wet Pond #1 (Spec #14) | B84: 0 | E84: =SUMIF($N$13:$N$92,$P151,$G$13:$G$92) -> 0 | F84: =(Site!$B$32*($G$6*$C84+$G$7*$D84)*3630+$E84)*$B84/100 -> 0 | G84: =(Site!$B$32*($G$6*$C84+$G$7*$D84)*3630+$E84)*(1-$B84/100) -> 0 | H84: =+$F84+$G84 -> 0 | I84: 50 | J84: =SUMIF($N$13:$N$92,$P151,$M$13:$M$92) -> 0 | K84: =(Site!$B$32*($G$6*$C84+$G$7*$D84)*3630)*Site!$B$33*0.3048^3/454*Site!$B$31/Site!$B$32*Site!$B$36 -> 0 | L84: =IFERROR(($J84+$K84)*($F84+$G84*$I84/100)/$H84,0) -> 0 | M84: =$J84+$K84-$L84 -> 0 | Q84: 30 | R84: =SUMIF($N$13:$N$92,$P151,$U$13:$U$92) -> 0 | S84: =(Site!$B$32*($G$6*$C84+$G$7*$D84)*3630)*Site!$B$34*0.3048^3/454*Site!$B$31/Site!$B$32*Site!$B$36 -> 0 | T84: =IFERROR(($R84+$S84)*($F84+$G84*$Q84/100)/$H84,0) -> 0 | U84: =$R84+$S84-$T84 -> 0
A85: 13.b. Wet Pond #1 (Coastal Plain) (Spec #14) | B85: 0 | E85: =SUMIF($N$13:$N$92,$P152,$G$13:$G$92) -> 0 | F85: =(Site!$B$32*($G$6*$C85+$G$7*$D85)*3630+$E85)*$B85/100 -> 0 | G85: =(Site!$B$32*($G$6*$C85+$G$7*$D85)*3630+$E85)*(1-$B85/100) -> 0 | H85: 0 | I85: 45 | J85: =SUMIF($N$13:$N$92,$P152,$M$13:$M$92) -> 0 | K85: =(Site!$B$32*($G$6*$C85+$G$7*$D85)*3630)*Site!$B$33*0.3048^3/454*Site!$B$31/Site!$B$32*Site!$B$36 -> 0 | L85: 0 | M85: 0 | Q85: 20 | R85: =SUMIF($N$13:$N$92,$P152,$U$13:$U$92) -> 0 | S85: =(Site!$B$32*($G$6*$C85+$G$7*$D85)*3630)*Site!$B$34*0.3048^3/454*Site!$B$31/Site!$B$32*Site!$B$36 -> 0 | T85: 0 | U85: 0
A86: 13.c. Wet Pond #2 (Spec #14) | B86: 0 | E86: 0 | F86: =(Site!$B$32*($G$6*$C86+$G$7*$D86)*3630+$E86)*$B86/100 -> 0 | G86: =(Site!$B$32*($G$6*$C86+$G$7*$D86)*3630+$E86)*(1-$B86/100) -> 0 | H86: 0 | I86: 75 | J86: 0 | K86: =(Site!$B$32*($G$6*$C86+$G$7*$D86)*3630)*Site!$B$33*0.3048^3/454*Site!$B$31/Site!$B$32*Site!$B$36 -> 0 | L86: 0 | M86: 0 | Q86: 40 | R86: 0 | S86: =(Site!$B$32*($G$6*$C86+$G$7*$D86)*3630)*Site!$B$34*0.3048^3/454*Site!$B$31/Site!$B$32*Site!$B$36 -> 0 | T86: 0 | U86: 0
A87: 13.d. Wet Pond #2 (Coastal Plain) (Spec #14) | B87: 0 | E87: 0 | F87: =(Site!$B$32*($G$6*$C87+$G$7*$D87)*3630+$E87)*$B87/100 -> 0 | G87: =(Site!$B$32*($G$6*$C87+$G$7*$D87)*3630+$E87)*(1-$B87/100) -> 0 | H87: 0 | I87: 65 | J87: 0 | K87: =(Site!$B$32*($G$6*$C87+$G$7*$D87)*3630)*Site!$B$33*0.3048^3/454*Site!$B$31/Site!$B$32*Site!$B$36 -> 0 | L87: 0 | M87: 0 | Q87: 30 | R87: 0 | S87: =(Site!$B$32*($G$6*$C87+$G$7*$D87)*3630)*Site!$B$34*0.3048^3/454*Site!$B$31/Site!$B$32*Site!$B$36 -> 0 | T87: 0 | U87: 0
A89: 14. Manufactured Treatment Devices (no RR) | R89: 14. Manufactured BMP (no RR)
A90: 14.a. Manufactured Treatment Device-Hydrodynamic | B90: 0 | E90: =SUMIF($N$13:$N$92,$P155,$G$13:$G$92) -> 0 | F90: =(Site!$B$32*($G$6*$C90+$G$7*$D90)*3630+$E90)*$B90/100 -> 0 | G90: =(Site!$B$32*($G$6*$C90+$G$7*$D90)*3630+$E90)*(1-$B90/100) -> 0 | H90: =+$F90+$G90 -> 0 | I90: 20 | J90: =SUMIF($N$13:$N$92,$P155,$M$13:$M$92) -> 0 | K90: =(Site!$B$32*($G$6*$C90+$G$7*$D90)*3630)*Site!$B$33*0.3048^3/454*Site!$B$31/Site!$B$32*Site!$B$36 -> 0 | L90: =IFERROR(($J90+$K90)*($F90+$G90*$I90/100)/$H90,0) -> 0 | M90: =$J90+$K90-$L90 -> 0 | Q90: 0 | R90: =SUMIF($N$13:$N$92,$P155,$U$13:$U$92) -> 0 | S90: =(Site!$B$32*($G$6*$C90+$G$7*$D90)*3630)*Site!$B$34*0.3048^3/454*Site!$B$31/Site!$B$32*Site!$B$36 -> 0 | T90: =IFERROR(($R90+$S90)*($F90+$G90*$Q90/100)/$H90,0) -> 0 | U90: =$R90+$S90-$T90 -> 0
A91: 14.b. Manufactured Treatment Device-Filtering | B91: 0 | E91: =SUMIF($N$13:$N$92,$P156,$G$13:$G$92) -> 0 | F91: =(Site!$B$32*($G$6*$C91+$G$7*$D91)*3630+$E91)*$B91/100 -> 0 | G91: =(Site!$B$32*($G$6*$C91+$G$7*$D91)*3630+$E91)*(1-$B91/100) -> 0 | H91: 0 | I91: 20 | J91: =SUMIF($N$13:$N$92,$P156,$M$13:$M$92) -> 0 | K91: =(Site!$B$32*($G$6*$C91+$G$7*$D91)*3630)*Site!$B$33*0.3048^3/454*Site!$B$31/Site!$B$32*Site!$B$36 -> 0 | L91: 0 | M91: 0 | Q91: 0 | R91: =SUMIF($N$13:$N$92,$P156,$U$13:$U$92) -> 0 | S91: =(Site!$B$32*($G$6*$C91+$G$7*$D91)*3630)*Site!$B$34*0.3048^3/454*Site!$B$31/Site!$B$32*Site!$B$36 -> 0 | T91: 0 | U91: 0
A92: 14.c. Manufactured Treatment Device-Generic | B92: 0 | E92: 0 | F92: =(Site!$B$32*($G$6*$C92+$G$7*$D92)*3630+$E92)*$B92/100 -> 0 | G92: =(Site!$B$32*($G$6*$C92+$G$7*$D92)*3630+$E92)*(1-$B92/100) -> 0 | H92: 0 | I92: 20 | J92: 0 | K92: =(Site!$B$32*($G$6*$C92+$G$7*$D92)*3630)*Site!$B$33*0.3048^3/454*Site!$B$31/Site!$B$32*Site!$B$36 -> 0 | L92: 0 | M92: 0 | Q92: 0 | R92: 0 | S92: =(Site!$B$32*($G$6*$C92+$G$7*$D92)*3630)*Site!$B$34*0.3048^3/454*Site!$B$31/Site!$B$32*Site!$B$36 -> 0 | T92: 0 | U92: 0
E96: TOTAL IMPERVIOUS COVER TREATED (ac) | F96: =SUM($D$13:$D$92) -> 0 | G96: AREA CHECK: | H96: =IF($F$96>$F$7,"AREA EXCEEDED!","OK.") -> OK.
E97: TOTAL MANAGED TURF AREA TREATED (ac) | F97: =SUM($C$13:$C$92) -> 0 | G97: AREA CHECK: | H97: =IF($F$97>$F$6,"AREA EXCEEDED!","OK.") -> OK.
H99: TOTAL PHOSPHORUS REMOVAL REQUIRED ON SITE (lb/yr) | I99: =IF(Site!G63="Check Areas!","ERROR - ",Site!G63) -> -- | J99: =IF(I99="ERROR - ","Site Data Tab","") -> 
H101: TOTAL PHOSPHORUS AVAILABLE FOR REMOVAL IN D.A. E (lb/yr) | I101: =$M$7 -> 0
H102: TOTAL PHOSPHORUS REMOVED WITHOUT RUNOFF REDUCTION PRACTICES IN D.A. E (lb/yr) | I102: =SUM($L$72:$L$92) -> 0
H103: TOTAL PHOSPHORUS REMOVED WITH RUNOFF REDUCTION PRACTICES IN D.A. E (lb/yr) | I103: =$I$63 -> 0
H104: TOTAL PHOSPHORUS LOAD REDUCTION ACHIEVED IN D.A. E (lb/yr) | I104: =$I$102+$I$103 -> 0
H105: TOTAL PHOSPHORUS REMAINING AFTER APPLYING BMP LOAD REDUCTIONS IN D.A. E (lb/yr) | I105: =$I$101-$I$104 -> 0
C107: SEE WATER QUALITY COMPLIANCE TAB FOR SITE COMPLIANCE CALCULATIONS
H109: NITROGEN REMOVED WITH RUNOFF REDUCTION PRACTICES IN D.A. E (lb/yr) | I109: =IFERROR(SUM($T$13:$T$55),0) -> 0
H110: NITROGEN REMOVED WITHOUT RUNOFF REDUCTION PRACTICES IN D.A. E (lb/yr) | I110: =SUM($T$72:$T$92) -> 0
H111: TOTAL NITROGEN REMOVED IN D.A. E (lb/yr) | I111: =$I$109+$I$110 -> 0
C116: Downstream Practices - Dropdown selections for each applicable BMP
A118: Options for 1. Green Roof | C118: Options for 2. Impervious Surface Disconnection | E118: Options for 3a. Pervious Parking, A/B Soils | G118: Options for 4a. Grass Channels, A/B Soils | J118: Options for 4b. Grass Channels, C/D Soils
L119: Options for 4.c. Grass Channel Compost Amended Soils | P119: Master Downstream BMP Reference List
A120: =P120 -> None | C120: =P120 -> None | E120: =P120 -> None | G120: =P120 -> None | J120: =P120 -> None | P120: None
A121: 2.a. Simple Disconnection to A/B Soils | C121: =P131 -> 4.a. Grass Channel A/B Soils | E121: =P131 -> 4.a. Grass Channel A/B Soils | G121: =P132 -> 4.b. Grass Channel C/D Soils | J121: =P131 -> 4.a. Grass Channel A/B Soils | L121: =P120 -> None | P121: 2.a. Simple Disconnection to A/B Soils
A122: 2.b. Simple Disconnection to C/D Soils | C122: 4.b. Grass Channel C/D Soils | E122: 4.b. Grass Channel C/D Soils | G122: 4.c. Grass Channel Compost Amended Soils | J122: =P133 -> 4.c. Grass Channel Compost Amended Soils | L122: =P131 -> 4.a. Grass Channel A/B Soils | P122: 2.b. Simple Disconnection to C/D Soils
A123: 2.c. To Soil Amended Filter Path | C123: 4.c. Grass Channel Compost Amended Soils | E123: 4.c. Grass Channel Compost Amended Soils | G123: 5.a. Dry Swale #1 | J123: 5.a. Dry Swale #1 | L123: =P132 -> 4.b. Grass Channel C/D Soils | P123: 2.c. To Soil Amended Filter Path
A124: 2.d. To Dry Well/French Drain #1 (Micro-Infiltration #1) | C124: 5.a. Dry Swale #1 | E124: 5.a. Dry Swale #1 | G124: 5.b. Dry Swale #2 | J124: 5.b. Dry Swale #2 | L124: =P134 -> 5.a. Dry Swale #1 | P124: 2.d. To Dry Well/French Drain #1 (Micro-Infiltration #1)
A125: 2.e. To Dry Well/French Drain #2 (Micro-Infiltration. #2) | C125: 5.b. Dry Swale #2 | E125: 5.b. Dry Swale #2 | G125: 6.a. Bioretention #1 | J125: 6.a. Bioretention #1 | L125: 5.b. Dry Swale #2 | P125: 2.e. To Dry Well/French Drain #2 (Micro-Infiltration. #2)
A126: 2.f. To Rain Garden #1 (Micro-Bioretention #1) | C126: 6.a. Bioretention #1 | E126: 6.a. Bioretention #1 | G126: 6.b. Bioretention #2 | J126: 6.b. Bioretention #2 | L126: 6.a. Bioretention #1 | P126: 2.f. To Rain Garden #1 (Micro-Bioretention #1)
A127: 2.g. To Rain Garden #2 (Micro-Bioretention #2) | C127: 6.b. Bioretention #2 | E127: 6.b. Bioretention #2 | G127: 7.a. Infiltration #1 | J127: 7.a. Infiltration #1 | L127: 6.b. Bioretention #2 | P127: 2.g. To Rain Garden #2 (Micro-Bioretention #2)
A128: 2.h. To Train Barrel, Rain Tank, or Cistern | C128: 7.a. Infiltration #1 | E128: 7.a. Infiltration #1 | G128: 7.b. Infiltration #2 | J128: 7.b. Infiltration #2 | L128: 7.a. Infiltration #1 | P128: 2.h. To Train Barrel, Rain Tank, or Cistern
A129: 2.i. To Stormwater Planter (Urban Bioretention) | C129: 7.b. Infiltration #2 | E129: 7.b. Infiltration #2 | G129: 8.a. ED #1 | J129: 8.a. ED #1 | L129: 7.b. Infiltration #2 | P129: 2.i. To Stormwater Planter (Urban Bioretention)
A130: 3.a. Permeable Pavement #1 | C130: 8.a. ED #1 | E130: 8.a. ED #1 | G130: 8.b. ED #2 | J130: 8.b. ED #2 | L130: 8.a. ED #1 | P130: 3.a. Permeable Pavement #1
A131: 4.a. Grass Channel A/B Soils | C131: 8.b. ED #2 | E131: 8.b. ED #2 | G131: 9.a. Sheetflow to A/B Soil Conservation Area | J131: 9.a. Sheetflow to A/B Soil Conservation Area | L131: 8.b. ED #2 | P131: 4.a. Grass Channel A/B Soils
A132: 4.b. Grass Channel C/D Soils | C132: 9.a. Sheetflow to A/B Soil Conservation Area | E132: 9.a. Sheetflow to A/B Soil Conservation Area | G132: 9.b. Sheetflow to C/D Soil Conservation Area | J132: 9.b. Sheetflow to C/D Soil Conservation Area | L132: 9.a. Sheetflow to A/B Soil Conservation Area | P132: 4.b. Grass Channel C/D Soils
A133: 4.c. Grass Channel Compost Amended Soils | C133: 9.b. Sheetflow to C/D Soil Conservation Area | E133: 9.b. Sheetflow to C/D Soil Conservation Area | G133: 9.c. Sheetflow to Vegetated Filter Strip | J133: 9.c. Sheetflow to Vegetated Filter Strip | L133: 9.b. Sheetflow to C/D Soil Conservation Area | P133: 4.c. Grass Channel Compost Amended Soils
A134: 5.a. Dry Swale #1 | C134: 9.c. Sheetflow to Vegetated Filter Strip | E134: 9.c. Sheetflow to Vegetated Filter Strip | G134: 10.a. Wet Swale #1 | J134: 10.a. Wet Swale #1 | L134: 9.c. Sheetflow to Vegetated Filter Strip | P134: 5.a. Dry Swale #1
A135: 5.b. Dry Swale #2 | C135: 10.a. Wet Swale #1 | E135: 10.a. Wet Swale #1 | G135: 10.b. Wet Swale #2 | J135: 10.b. Wet Swale #2 | L135: 10.a. Wet Swale #1 | P135: 5.b. Dry Swale #2
A136: 6.a. Bioretention #1 | C136: 10.b. Wet Swale #2 | E136: 10.b. Wet Swale #2 | G136: 11.a. Filtering Practice #1 | J136: 11.a. Filtering Practice #1 | L136: 10.b. Wet Swale #2 | P136: 6.a. Bioretention #1
A137: 6.b. Bioretention #2 | C137: 11.a. Filtering Practice #1 | E137: 11.a. Filtering Practice #1 | G137: 11.b. Filtering Practice #2 | J137: 11.b. Filtering Practice #2 | L137: 11.a. Filtering Practice #1 | P137: 6.b. Bioretention #2
A138: 7.a. Infiltration #1 | C138: 11.b. Filtering Practice #2 | E138: 11.b. Filtering Practice #2 | G138: 12.a. Constructed Wetland #1 | J138: 12.a. Constructed Wetland #1 | L138: 11.b. Filtering Practice #2 | P138: 7.a. Infiltration #1
A139: 7.b. Infiltration #2 | C139: 12.a. Constructed Wetland #1 | E139: 12.a. Constructed Wetland #1 | G139: 12.b. Constructed Wetland #2 | J139: 12.b. Constructed Wetland #2 | L139: 12.a. Constructed Wetland #1 | P139: 7.b. Infiltration #2
A140: 8.a. ED #1 | C140: 12.b. Constructed Wetland #2 | E140: 12.b. Constructed Wetland #2 | G140: 13.a. Wet Pond #1 | J140: 13.a. Wet Pond #1 | L140: 12.b. Constructed Wetland #2 | P140: 8.a. ED #1
A141: 8.b. ED #2 | C141: 13.a. Wet Pond #1 | E141: 13.a. Wet Pond #1 | G141: 13.b. Wet Pond #1 (Coastal Plain) | J141: 13.b. Wet Pond #1 (Coastal Plain) | L141: 13.a. Wet Pond #1 | P141: 8.b. ED #2
A142: 9.a. Sheetflow to A/B Soil Conservation Area | C142: 13.b. Wet Pond #1 (Coastal Plain) | E142: 13.b. Wet Pond #1 (Coastal Plain) | G142: 13.c. Wet Pond #2 | J142: 13.c. Wet Pond #2 | L142: 13.b. Wet Pond #1 (Coastal Plain) | P142: 9.a. Sheetflow to A/B Soil Conservation Area
A143: 9.b. Sheetflow to C/D Soil Conservation Area | C143: 13.c. Wet Pond #2 | E143: 13.c. Wet Pond #2 | G143: 13.d. Wet Pond #2 (Coastal Plain) | J143: 13.d. Wet Pond #2 (Coastal Plain) | L143: 13.c. Wet Pond #2 | P143: 9.b. Sheetflow to C/D Soil Conservation Area
A144: 9.c. Sheetflow to Vegetated Filter Strip | C144: 13.d. Wet Pond #2 (Coastal Plain) | E144: 13.d. Wet Pond #2 (Coastal Plain) | G144: 14.a. MTD - Hydrodynamic | J144: 14.a. MTD - Hydrodynamic | L144: 13.d. Wet Pond #2 (Coastal Plain) | P144: 9.c. Sheetflow to Vegetated Filter Strip
A145: 10.a. Wet Swale #1 | C145: 14.a. MTD - Hydrodynamic | E145: 14.a. MTD - Hydrodynamic | G145: 14.b. MTD - Filtering | J145: 14.b. MTD - Filtering | L145: 14.a. MTD - Hydrodynamic | P145: 10.a. Wet Swale #1
A146: 10.b. Wet Swale #2 | C146: 14.b. MTD - Filtering | E146: 14.b. MTD - Filtering | G146: 14.c. MTD - Generic | J146: 14.c. MTD - Generic | L146: 14.b. MTD - Filtering | P146: 10.b. Wet Swale #2
A147: 11.a. Filtering Practice #1 | C147: 14.c. MTD - Generic | E147: 14.c. MTD - Generic | L147: 14.c. MTD - Generic | P147: 11.a. Filtering Practice #1
A148: 11.b. Filtering Practice #2 | P148: 11.b. Filtering Practice #2
A149: 12.a. Constructed Wetland #1 | P149: 12.a. Constructed Wetland #1
A150: 12.b. Constructed Wetland #2 | P150: 12.b. Constructed Wetland #2
A151: 13.a. Wet Pond #1 | P151: 13.a. Wet Pond #1
A152: 13.b. Wet Pond #1 (Coastal Plain) | P152: 13.b. Wet Pond #1 (Coastal Plain)
A153: 13.c. Wet Pond #2 | P153: 13.c. Wet Pond #2
A154: 13.d. Wet Pond #2 (Coastal Plain) | P154: 13.d. Wet Pond #2 (Coastal Plain)
A155: 14.a. MTD - Hydrodynamic | P155: 14.a. MTD - Hydrodynamic
A156: 14.b. MTD - Filtering | P156: 14.b. MTD - Filtering
A157: 14.c. MTD - Generic | P157: 14.c. MTD - Generic
A159: Options for 5a. Dry Swale #1 | C159: Options for 5b. Dry Swale #2 | E159: Options for 6a. Bioretention #1 | G159: Options for 6b. Bioretention #2 | J159: Options for 7a. Infiltration #1 | L159: Options for 7b. Infiltration #2
A161: =P120 -> None | C161: =P120 -> None | E161: =P120 -> None | G161: =P120 -> None | J161: =P120 -> None | L161: =P120 -> None
A162: =P131 -> 4.a. Grass Channel A/B Soils | C162: =P131 -> 4.a. Grass Channel A/B Soils | E162: =P131 -> 4.a. Grass Channel A/B Soils | G162: =P131 -> 4.a. Grass Channel A/B Soils | J162: =P131 -> 4.a. Grass Channel A/B Soils | L162: =P131 -> 4.a. Grass Channel A/B Soils
A163: =P132 -> 4.b. Grass Channel C/D Soils | C163: =P132 -> 4.b. Grass Channel C/D Soils | E163: =P132 -> 4.b. Grass Channel C/D Soils | G163: 4.b. Grass Channel C/D Soils | J163: 4.b. Grass Channel C/D Soils | L163: 4.b. Grass Channel C/D Soils
A164: =P133 -> 4.c. Grass Channel Compost Amended Soils | C164: =P133 -> 4.c. Grass Channel Compost Amended Soils | E164: =P133 -> 4.c. Grass Channel Compost Amended Soils | G164: 4.c. Grass Channel Compost Amended Soils | J164: 4.c. Grass Channel Compost Amended Soils | L164: 4.c. Grass Channel Compost Amended Soils
A165: =P135 -> 5.b. Dry Swale #2 | C165: =P134 -> 5.a. Dry Swale #1 | E165: =P134 -> 5.a. Dry Swale #1 | G165: 5.a. Dry Swale #1 | J165: 5.a. Dry Swale #1 | L165: 5.a. Dry Swale #1
A166: 6.a. Bioretention #1 | C166: =P136 -> 6.a. Bioretention #1 | E166: =P135 -> 5.b. Dry Swale #2 | G166: 5.b. Dry Swale #2 | J166: 5.b. Dry Swale #2 | L166: 5.b. Dry Swale #2
A167: 6.b. Bioretention #2 | C167: 6.b. Bioretention #2 | E167: =P137 -> 6.b. Bioretention #2 | G167: 6.a. Bioretention #1 | J167: 6.a. Bioretention #1 | L167: 6.a. Bioretention #1
A168: 7.a. Infiltration #1 | C168: 7.a. Infiltration #1 | E168: 7.a. Infiltration #1 | G168: =P138 -> 7.a. Infiltration #1 | J168: 6.b. Bioretention #2 | L168: 6.b. Bioretention #2
A169: 7.b. Infiltration #2 | C169: 7.b. Infiltration #2 | E169: 7.b. Infiltration #2 | G169: 7.b. Infiltration #2 | J169: =P139 -> 7.b. Infiltration #2 | L169: 7.a. Infiltration #1
A170: 8.a. ED #1 | C170: 8.a. ED #1 | E170: 8.a. ED #1 | G170: 8.a. ED #1 | J170: 8.a. ED #1 | L170: =P140 -> 8.a. ED #1
A171: 8.b. ED #2 | C171: 8.b. ED #2 | E171: 8.b. ED #2 | G171: 8.b. ED #2 | J171: 8.b. ED #2 | L171: 8.b. ED #2
A172: 9.a. Sheetflow to A/B Soil Conservation Area | C172: 9.a. Sheetflow to A/B Soil Conservation Area | E172: 9.a. Sheetflow to A/B Soil Conservation Area | G172: 9.a. Sheetflow to A/B Soil Conservation Area | J172: 9.a. Sheetflow to A/B Soil Conservation Area | L172: 9.a. Sheetflow to A/B Soil Conservation Area
A173: 9.b. Sheetflow to C/D Soil Conservation Area | C173: 9.b. Sheetflow to C/D Soil Conservation Area | E173: 9.b. Sheetflow to C/D Soil Conservation Area | G173: 9.b. Sheetflow to C/D Soil Conservation Area | J173: 9.b. Sheetflow to C/D Soil Conservation Area | L173: 9.b. Sheetflow to C/D Soil Conservation Area
A174: 9.c. Sheetflow to Vegetated Filter Strip | C174: 9.c. Sheetflow to Vegetated Filter Strip | E174: 9.c. Sheetflow to Vegetated Filter Strip | G174: 9.c. Sheetflow to Vegetated Filter Strip | J174: 9.c. Sheetflow to Vegetated Filter Strip | L174: 9.c. Sheetflow to Vegetated Filter Strip
A175: 10.a. Wet Swale #1 | C175: 10.a. Wet Swale #1 | E175: 10.a. Wet Swale #1 | G175: 10.a. Wet Swale #1 | J175: 10.a. Wet Swale #1 | L175: 10.a. Wet Swale #1
A176: 10.b. Wet Swale #2 | C176: 10.b. Wet Swale #2 | E176: 10.b. Wet Swale #2 | G176: 10.b. Wet Swale #2 | J176: 10.b. Wet Swale #2 | L176: 10.b. Wet Swale #2
A177: 11.a. Filtering Practice #1 | C177: 11.a. Filtering Practice #1 | E177: 11.a. Filtering Practice #1 | G177: 11.a. Filtering Practice #1 | J177: 11.a. Filtering Practice #1 | L177: 11.a. Filtering Practice #1
A178: 11.b. Filtering Practice #2 | C178: 11.b. Filtering Practice #2 | E178: 11.b. Filtering Practice #2 | G178: 11.b. Filtering Practice #2 | J178: 11.b. Filtering Practice #2 | L178: 11.b. Filtering Practice #2
A179: 12.a. Constructed Wetland #1 | C179: 12.a. Constructed Wetland #1 | E179: 12.a. Constructed Wetland #1 | G179: 12.a. Constructed Wetland #1 | J179: 12.a. Constructed Wetland #1 | L179: 12.a. Constructed Wetland #1
A180: 12.b. Constructed Wetland #2 | C180: 12.b. Constructed Wetland #2 | E180: 12.b. Constructed Wetland #2 | G180: 12.b. Constructed Wetland #2 | J180: 12.b. Constructed Wetland #2 | L180: 12.b. Constructed Wetland #2
A181: 13.a. Wet Pond #1 | C181: 13.a. Wet Pond #1 | E181: 13.a. Wet Pond #1 | G181: 13.a. Wet Pond #1 | J181: 13.a. Wet Pond #1 | L181: 13.a. Wet Pond #1
A182: 13.b. Wet Pond #1 (Coastal Plain) | C182: 13.b. Wet Pond #1 (Coastal Plain) | E182: 13.b. Wet Pond #1 (Coastal Plain) | G182: 13.b. Wet Pond #1 (Coastal Plain) | J182: 13.b. Wet Pond #1 (Coastal Plain) | L182: 13.b. Wet Pond #1 (Coastal Plain)
A183: 13.c. Wet Pond #2 | C183: 13.c. Wet Pond #2 | E183: 13.c. Wet Pond #2 | G183: 13.c. Wet Pond #2 | J183: 13.c. Wet Pond #2 | L183: 13.c. Wet Pond #2
A184: 13.d. Wet Pond #2 (Coastal Plain) | C184: 13.d. Wet Pond #2 (Coastal Plain) | E184: 13.d. Wet Pond #2 (Coastal Plain) | G184: 13.d. Wet Pond #2 (Coastal Plain) | J184: 13.d. Wet Pond #2 (Coastal Plain) | L184: 13.d. Wet Pond #2 (Coastal Plain)
A185: 14.a. MTD - Hydrodynamic | C185: 14.a. MTD - Hydrodynamic | E185: 14.a. MTD - Hydrodynamic | G185: 14.a. MTD - Hydrodynamic | J185: 14.a. MTD - Hydrodynamic | L185: 14.a. MTD - Hydrodynamic
A186: 14.b. MTD - Filtering | C186: 14.b. MTD - Filtering | E186: 14.b. MTD - Filtering | G186: 14.b. MTD - Filtering | J186: 14.b. MTD - Filtering | L186: 14.b. MTD - Filtering
A187: 14.c. MTD - Generic | C187: 14.c. MTD - Generic | E187: 14.c. MTD - Generic | G187: 14.c. MTD - Generic | J187: 14.c. MTD - Generic | L187: 14.c. MTD - Generic
A189: Options for 8a. Extended Detention #1 | C189: Options for 8b. Extended Detention #2 | E189: Options for 9 Sheet Flow to Open Space | G189: Options for 9c. Sheet Flow to Filter Strip | J189: Options for 10a. Wet Swale #1 | L189: Options for 10b. Wet Swale #2
A191: =P120 -> None | C191: =P120 -> None | E191: =P120 -> None | G191: =P120 -> None | J191: =P120 -> None | L191: =P120 -> None
A192: =P131 -> 4.a. Grass Channel A/B Soils | C192: =P131 -> 4.a. Grass Channel A/B Soils | G192: =P131 -> 4.a. Grass Channel A/B Soils | J192: =P131 -> 4.a. Grass Channel A/B Soils | L192: =P131 -> 4.a. Grass Channel A/B Soils
A193: 4.b. Grass Channel C/D Soils | C193: 4.b. Grass Channel C/D Soils | G193: 4.b. Grass Channel C/D Soils | J193: 4.b. Grass Channel C/D Soils | L193: 4.b. Grass Channel C/D Soils
A194: 4.c. Grass Channel Compost Amended Soils | C194: 4.c. Grass Channel Compost Amended Soils | G194: 4.c. Grass Channel Compost Amended Soils | J194: 4.c. Grass Channel Compost Amended Soils | L194: 4.c. Grass Channel Compost Amended Soils
A195: 5.a. Dry Swale #1 | C195: 5.a. Dry Swale #1 | G195: 5.a. Dry Swale #1 | J195: 5.a. Dry Swale #1 | L195: 5.a. Dry Swale #1
A196: 5.b. Dry Swale #2 | C196: 5.b. Dry Swale #2 | G196: 5.b. Dry Swale #2 | J196: 5.b. Dry Swale #2 | L196: 5.b. Dry Swale #2
A197: 6.a. Bioretention #1 | C197: 6.a. Bioretention #1 | G197: 6.a. Bioretention #1 | J197: 6.a. Bioretention #1 | L197: 6.a. Bioretention #1
A198: 6.b. Bioretention #2 | C198: 6.b. Bioretention #2 | G198: 6.b. Bioretention #2 | J198: 6.b. Bioretention #2 | L198: 6.b. Bioretention #2
A199: 7.a. Infiltration #1 | C199: 7.a. Infiltration #1 | G199: 7.a. Infiltration #1 | J199: 7.a. Infiltration #1 | L199: 7.a. Infiltration #1
A200: 7.b. Infiltration #2 | C200: 7.b. Infiltration #2 | G200: 7.b. Infiltration #2 | J200: 7.b. Infiltration #2 | L200: 7.b. Infiltration #2
A201: =P141 -> 8.b. ED #2 | C201: 8.a. ED #1 | G201: 8.a. ED #1 | J201: 8.a. ED #1 | L201: 8.a. ED #1
A202: 9.a. Sheetflow to A/B Soil Conservation Area | C202: =P142 -> 9.a. Sheetflow to A/B Soil Conservation Area | G202: 8.b. ED #2 | J202: 8.b. ED #2 | L202: 8.b. ED #2
A203: 9.b. Sheetflow to C/D Soil Conservation Area | C203: 9.b. Sheetflow to C/D Soil Conservation Area | G203: 9.a. Sheetflow to A/B Soil Conservation Area | J203: 9.a. Sheetflow to A/B Soil Conservation Area | L203: 9.a. Sheetflow to A/B Soil Conservation Area
A204: 9.c. Sheetflow to Vegetated Filter Strip | C204: 9.c. Sheetflow to Vegetated Filter Strip | G204: 9.b. Sheetflow to C/D Soil Conservation Area | J204: 9.b. Sheetflow to C/D Soil Conservation Area | L204: 9.b. Sheetflow to C/D Soil Conservation Area
A205: 10.a. Wet Swale #1 | C205: 10.a. Wet Swale #1 | G205: =P145 -> 10.a. Wet Swale #1 | J205: 9.c. Sheetflow to Vegetated Filter Strip | L205: 9.c. Sheetflow to Vegetated Filter Strip
A206: 10.b. Wet Swale #2 | C206: 10.b. Wet Swale #2 | G206: 10.b. Wet Swale #2 | J206: =P146 -> 10.b. Wet Swale #2 | L206: 10.a. Wet Swale #1
A207: 11.a. Filtering Practice #1 | C207: 11.a. Filtering Practice #1 | G207: 11.a. Filtering Practice #1 | J207: 11.a. Filtering Practice #1 | L207: =P147 -> 11.a. Filtering Practice #1
A208: 11.b. Filtering Practice #2 | C208: 11.b. Filtering Practice #2 | G208: 11.b. Filtering Practice #2 | J208: 11.b. Filtering Practice #2 | L208: 11.b. Filtering Practice #2
A209: 12.a. Constructed Wetland #1 | C209: 12.a. Constructed Wetland #1 | G209: 12.a. Constructed Wetland #1 | J209: 12.a. Constructed Wetland #1 | L209: 12.a. Constructed Wetland #1
A210: 12.b. Constructed Wetland #2 | C210: 12.b. Constructed Wetland #2 | G210: 12.b. Constructed Wetland #2 | J210: 12.b. Constructed Wetland #2 | L210: 12.b. Constructed Wetland #2
A211: 13.a. Wet Pond #1 | C211: 13.a. Wet Pond #1 | G211: 13.a. Wet Pond #1 | J211: 13.a. Wet Pond #1 | L211: 13.a. Wet Pond #1
A212: 13.b. Wet Pond #1 (Coastal Plain) | C212: 13.b. Wet Pond #1 (Coastal Plain) | G212: 13.b. Wet Pond #1 (Coastal Plain) | J212: 13.b. Wet Pond #1 (Coastal Plain) | L212: 13.b. Wet Pond #1 (Coastal Plain)
A213: 13.c. Wet Pond #2 | C213: 13.c. Wet Pond #2 | G213: 13.c. Wet Pond #2 | J213: 13.c. Wet Pond #2 | L213: 13.c. Wet Pond #2
A214: 13.d. Wet Pond #2 (Coastal Plain) | C214: 13.d. Wet Pond #2 (Coastal Plain) | G214: 13.d. Wet Pond #2 (Coastal Plain) | J214: 13.d. Wet Pond #2 (Coastal Plain) | L214: 13.d. Wet Pond #2 (Coastal Plain)
A215: 14.a. MTD - Hydrodynamic | C215: 14.a. MTD - Hydrodynamic | G215: 14.a. MTD - Hydrodynamic | J215: 14.a. MTD - Hydrodynamic | L215: 14.a. MTD - Hydrodynamic
A216: 14.b. MTD - Filtering | C216: 14.b. MTD - Filtering | G216: 14.b. MTD - Filtering | J216: 14.b. MTD - Filtering | L216: 14.b. MTD - Filtering
A217: 14.c. MTD - Generic | C217: 14.c. MTD - Generic | G217: 14.c. MTD - Generic | J217: 14.c. MTD - Generic | L217: 14.c. MTD - Generic
E219: Options for 12.a. Constructed Wetland #1 | G219: Options for 12.b. Constructed Wetland #2
A220: Options for 11 A. Filtering Practice #1 | C220: Options for 11 b. Filtering Practice #2 | J220: Options for 13.a. Wet Pond #1
E221: =P120 -> None | G221: =P120 -> None | J221: =P120 -> None | L221: Options for 13.b. Wet Pond #1 (Coastal Plain)
A222: =P120 -> None | C222: =P120 -> None | E222: =P131 -> 4.a. Grass Channel A/B Soils | G222: =P131 -> 4.a. Grass Channel A/B Soils | J222: =P131 -> 4.a. Grass Channel A/B Soils | L222: =P120 -> None
A223: =P131 -> 4.a. Grass Channel A/B Soils | C223: =P131 -> 4.a. Grass Channel A/B Soils | E223: 4.b. Grass Channel C/D Soils | G223: 4.b. Grass Channel C/D Soils | J223: 4.b. Grass Channel C/D Soils | L223: =P131 -> 4.a. Grass Channel A/B Soils
A224: 4.b. Grass Channel C/D Soils | C224: 4.b. Grass Channel C/D Soils | E224: 4.c. Grass Channel Compost Amended Soils | G224: 4.c. Grass Channel Compost Amended Soils | J224: 4.c. Grass Channel Compost Amended Soils | L224: 4.b. Grass Channel C/D Soils
A225: 4.c. Grass Channel Compost Amended Soils | C225: 4.c. Grass Channel Compost Amended Soils | E225: 5.a. Dry Swale #1 | G225: 5.a. Dry Swale #1 | J225: 5.a. Dry Swale #1 | L225: 4.c. Grass Channel Compost Amended Soils
A226: 5.a. Dry Swale #1 | C226: 5.a. Dry Swale #1 | E226: 5.b. Dry Swale #2 | G226: 5.b. Dry Swale #2 | J226: 5.b. Dry Swale #2 | L226: 5.a. Dry Swale #1
A227: 5.b. Dry Swale #2 | C227: 5.b. Dry Swale #2 | E227: 6.a. Bioretention #1 | G227: 6.a. Bioretention #1 | J227: 6.a. Bioretention #1 | L227: 5.b. Dry Swale #2
A228: 6.a. Bioretention #1 | C228: 6.a. Bioretention #1 | E228: 6.b. Bioretention #2 | G228: 6.b. Bioretention #2 | J228: 6.b. Bioretention #2 | L228: 6.a. Bioretention #1
A229: 6.b. Bioretention #2 | C229: 6.b. Bioretention #2 | E229: 7.a. Infiltration #1 | G229: 7.a. Infiltration #1 | J229: 7.a. Infiltration #1 | L229: 6.b. Bioretention #2
A230: 7.a. Infiltration #1 | C230: 7.a. Infiltration #1 | E230: 7.b. Infiltration #2 | G230: 7.b. Infiltration #2 | J230: 7.b. Infiltration #2 | L230: 7.a. Infiltration #1
A231: 7.b. Infiltration #2 | C231: 7.b. Infiltration #2 | E231: 8.a. ED #1 | G231: 8.a. ED #1 | J231: 8.a. ED #1 | L231: 7.b. Infiltration #2
A232: 8.a. ED #1 | C232: 8.a. ED #1 | E232: 8.b. ED #2 | G232: 8.b. ED #2 | J232: 8.b. ED #2 | L232: 8.a. ED #1
A233: 8.b. ED #2 | C233: 8.b. ED #2 | E233: 9.a. Sheetflow to A/B Soil Conservation Area | G233: 9.a. Sheetflow to A/B Soil Conservation Area | J233: 9.a. Sheetflow to A/B Soil Conservation Area | L233: 8.b. ED #2
A234: 9.a. Sheetflow to A/B Soil Conservation Area | C234: 9.a. Sheetflow to A/B Soil Conservation Area | E234: 9.b. Sheetflow to C/D Soil Conservation Area | G234: 9.b. Sheetflow to C/D Soil Conservation Area | J234: 9.b. Sheetflow to C/D Soil Conservation Area | L234: 9.a. Sheetflow to A/B Soil Conservation Area
A235: 9.b. Sheetflow to C/D Soil Conservation Area | C235: 9.b. Sheetflow to C/D Soil Conservation Area | E235: 9.c. Sheetflow to Vegetated Filter Strip | G235: 9.c. Sheetflow to Vegetated Filter Strip | J235: 9.c. Sheetflow to Vegetated Filter Strip | L235: 9.b. Sheetflow to C/D Soil Conservation Area
A236: 9.c. Sheetflow to Vegetated Filter Strip | C236: 9.c. Sheetflow to Vegetated Filter Strip | E236: 10.a. Wet Swale #1 | G236: 10.a. Wet Swale #1 | J236: 10.a. Wet Swale #1 | L236: 9.c. Sheetflow to Vegetated Filter Strip
A237: 10.a. Wet Swale #1 | C237: 10.a. Wet Swale #1 | E237: 10.b. Wet Swale #2 | G237: 10.b. Wet Swale #2 | J237: 10.b. Wet Swale #2 | L237: 10.a. Wet Swale #1
... 38 more rows

Sheet Water Quality Compliance
B1: Site Results (Water Quality Compliance) | U1: error summary
B2: Area Checks | C2: D.A. A | D2: D.A. B | E2: D.A. C | F2: D.A. D | G2: D.A. E | H2: AREA CHECK | U2: Area checks | V2: =COUNTIF(H4:H7,"AREA EXCEEDED!") -> 0
B3: FOREST/OPEN SPACE (ac) | C3: ='D.A. A'!$F$5 -> 0 | D3: ='D.A. B'!$F$5 -> 0 | E3: ='D.A. C'!$F$5 -> 0 | F3: ='D.A. D'!$F$5 -> 0 | G3: ='D.A. E'!$F$5 -> 0 | H3: =IF(SUM(C3:G3)>Site!$F$24,"AREA EXCEEDED!","OK.") -> OK. | U3: DA checks | V3: =COUNTIF(H5:H8,"AREA EXCEEDED!") -> 0
B4: IMPERVIOUS COVER (ac) | C4: ='D.A. A'!$F$7 -> 0 | D4: ='D.A. B'!$F$7 -> 0 | E4: ='D.A. C'!$F$7 -> 0 | F4: ='D.A. D'!$F$7 -> 0 | G4: ='D.A. E'!$F$7 -> 0 | H4: =IF(SUM(C4:G4)>Site!$F$26,"AREA EXCEEDED!","OK.") -> OK. | U4: total | V4: =SUM(V2:V3) -> 0
B5: IMPERVIOUS COVER TREATED (ac) | C5: ='D.A. A'!$F$96 -> 0 | D5: ='D.A. B'!$F$96 -> 0 | E5: ='D.A. C'!$F$96 -> 0 | F5: ='D.A. D'!$F$96 -> 0 | G5: ='D.A. E'!$F$96 -> 0 | H5: =IF(SUM(C5:G5)>SUM('D.A. A'!F7,'D.A. B'!F7,'D.A. C'!F7,'D.A. D'!F7,'D.A. E'!F7),"AREA EXCEEDED!","OK.") -> OK.
B6: MANAGED TURF AREA (ac) | C6: ='D.A. A'!$F$6 -> 0 | D6: ='D.A. B'!$F$6 -> 0 | E6: ='D.A. C'!$F$6 -> 0 | F6: ='D.A. D'!$F$6 -> 0 | G6: ='D.A. E'!$F$6 -> 0 | H6: =IF(SUM(C6:G6)>Site!$F$25,"AREA EXCEEDED!","OK.") -> OK.
B7: MANAGED TURF AREA TREATED (ac) | C7: ='D.A. A'!$F$97 -> 0 | D7: ='D.A. B'!$F$97 -> 0 | E7: ='D.A. C'!$F$97 -> 0 | F7: ='D.A. D'!$F$97 -> 0 | G7: ='D.A. E'!$F$97 -> 0 | H7: =IF(SUM(C7:G7)>SUM('D.A. A'!F6,'D.A. B'!F6,'D.A. C'!F6,'D.A. D'!F6,'D.A. E'!F6),"AREA EXCEEDED!","OK.") -> OK.
B8: AREA CHECK | C8: =IF(C5>C4,"AREA EXCEEDED!",IF(C7>C6,"AREA EXCEEDED!","OK.")) -> OK. | D8: =IF(D5>D4,"AREA EXCEEDED!",IF(D7>D6,"AREA EXCEEDED!","OK.")) -> OK. | E8: OK. | F8: OK. | G8: OK.
G9: =IF(COUNTIF(C4:G4,"=ERROR!")>0,"ERROR!: CHECK SITE DATA TAB",IF(COUNTIF(C6:G6,"=ERROR!")>0,"ERROR!: CHECK SITE DATA TAB","")) -> 
B10: Site Treatment Volume (ft3) | C10: =Site!$F$55 -> -- | D10: =IF(C10="x","Check Site tab for errors!","") -> 
B12: Runoff Reduction Volume and TP By Drainage Area
C13: D.A. A | D13: D.A. B | E13: D.A. C | F13: D.A. D | G13: D.A. E | H13: TOTAL
B14: RUNOFF REDUCTION VOLUME ACHIEVED (ft3) | C14: ='D.A. A'!$F$60 -> 0 | D14: ='D.A. B'!$F$60 -> 0 | E14: ='D.A. C'!$F$60 -> 0 | F14: ='D.A. D'!$F$60 -> 0 | G14: ='D.A. E'!$F$60 -> 0 | H14: =SUM(C14:G14) -> 0
B15: TP LOAD AVAILABLE FOR REMOVAL (lb/yr) | C15: ='D.A. A'!$M$7 -> 0 | D15: ='D.A. B'!$M$7 -> 0 | E15: ='D.A. C'!$M$7 -> 0 | F15: ='D.A. D'!$M$7 -> 0 | G15: ='D.A. E'!$M$7 -> 0 | H15: =SUM(C15:G15) -> 0 | W15: Project:
B16: TP LOAD REDUCTION ACHIEVED (lb/yr) | C16: ='D.A. A'!$I$104 -> 0 | D16: ='D.A. B'!$I$104 -> 0 | E16: ='D.A. C'!$I$104 -> 0 | F16: ='D.A. D'!$I$104 -> 0 | G16: ='D.A. E'!$I$104 -> 0 | H16: =SUM(C16:G16) -> 0 | U16: Reduction | W16: Regular | X16: Linear
B17: TP LOAD REMAINING (lb/yr) | C17: =C15-C16 -> 0 | D17: =D15-D16 -> 0 | E17: 0 | F17: 0 | G17: 0 | H17: =SUM(C17:G17) -> 0 | U17: required | W17: =C23 -> -- | X17: =E23 -> 
U18: achieved | W18: =C24 -> -- | X18: =E24 -> 
B19: NITROGEN LOAD REDUCTION ACHIEVED (lb/yr) | C19: ='D.A. A'!$I$111 -> 0 | D19: ='D.A. B'!$I$111 -> 0 | E19: ='D.A. C'!$I$111 -> 0 | F19: ='D.A. D'!$I$111 -> 0 | G19: ='D.A. E'!$I$111 -> 0 | H19: =SUM(C19:G19) -> 0
U20: req-ach | W20: =W17-W18 ->  | X20: =X17-X18 -> 
B21: Total Phosphorus | E21: LINEAR PROJECT: | U21: req>ach? | W21: =W17>W18 -> FALSE | X21: =X17>X18 -> FALSE
B22: FINAL POST-DEVELOPMENT TP LOAD (lb/yr) | C22: =IF(Site!$E$6="yes","--",Site!$F$56) -> -- | E22: =IF(Site!$E$6="yes",Site!$F$56,"") ->  | U22: abs(req-ach)>=0.005? | W22: =ABS(W17-W18)>=0.005 ->  | X22: =ABS(X17-X18)>=0.005 -> 
B23: TP LOAD REDUCTION REQUIRED (lb/yr) | C23: =IF(OR(Site!$E$6="yes",$C$22="--"),"--",IF(OR(Site!$P$5>0,$V$4>0),"x",Site!$G$63)) -> -- | E23: =IF(OR($E$22="",$E$22="--"),$E$22,IF(OR(Site!$P$5>0,$V$4>0),"x",Site!$G$64)) -> 
B24: TP LOAD REDUCTION ACHIEVED (lb/yr) | C24: =IF(OR($C$23="--",$C$23="x"),$C$23,$H$16) -> -- | E24: =IF($E$22="", $E$22,IF(OR($E$23="--",$E$23="x"),$E$23,$H$16)) -> 
B25: TP LOAD REMAINING (lb/yr): | C25: =IF(OR($C$23="--",$C$23="x"),$C$23,$C$22-$C$24) -> -- | E25: =IF($E$22="",$E$22,IF(OR($E$23="--",$E$23="x"),$E$23,$E$22-$E$24)) ->  | W25: ="--" -> --
B26: REMAINING TP LOAD REDUCTION REQUIRED (lb/yr): | C26: =IF($C$23="--","--",IF(OR($C$23="x",$H$3="AREA EXCEEDED!"),"CHECK AREAS!",IF($C$23>$C$24,$C$23-$C$24,0))) -> -- | D26: =IF($B$27="","","**") ->  | E26: =IF($E$22="","",IF($E$23="--","--",IF(OR($E$23="x",$H$3="AREA EXCEEDED!"),"CHECK AREAS!",IF($E$23>$E$24,$E$23-$E$24,0)))) ->  | F26: =IF(OR($E$22="",$E$22="--",E$22="x",$V$4>0),"",IF(AND($X$21=TRUE,$X$22=TRUE),"",IF(AND($X$21=FALSE,$X$22=FALSE),"**No further TP load reduction required",IF(AND($X$21=FALSE,$X$22=TRUE),"** TARGET TP REDUCTION EXCEEDED BY "&ROUND($E$24-$E$23,2)&" LB/YEAR **","**No further TP load reduction required (Required - Achieved < 0.005 lb/yr)")))) -> 
B27: =IF(OR(Site!$E$6="yes",Site!$G$63="--",$C$26="CHECK AREAS!"),"",IF(AND($W$21=TRUE,$W$22=TRUE),"",IF(AND($W$21=FALSE,$W$22=FALSE),"**No further TP load reduction required",IF(AND($W$21=FALSE,$W$22=TRUE),"** TARGET TP REDUCTION EXCEEDED BY "&ROUND($C$24-$C$23,2)&" LB/YEAR **","**No further TP load reduction required (Required - Achieved < 0.005 lb/yr)")))) -> 
B28: Total Nitrogen (For Information Purposes)
B29: POST-DEVELOPMENT LOAD (lb/yr) | C29: =IF(Site!$F$13="--","--",IF(Site!$I$67=Site!$O$2,"x",Site!$I$67)) -> --
B30: NITROGEN LOAD REDUCTION ACHIEVED (lb/yr) | C30: =IF(OR($C$29="--",$C$29="x"),$C$29,$H$19) -> --
B31: REMAINING POST-DEVELOPMENT NITROGEN LOAD (lb/yr) | C31: =IF(OR($C$29="--",$C$29="x"),$C$29,$C$29-$C$30) -> --

Sheet Runoff Volume and CN
G2: Runoff Volume and Curve Number Calculations | O2: These values are used for | R2: Range : 1 2 3 4 5 6 7
O3: computing "qu" by equation | R3: Ia / P : | S3: 0.1 | T3: 0.3 | U3: 0.35 | V3: 0.4 | W3: 0.45 | X3: 0.5
F4: Enter design storm rainfall depths (in): | O4: in Appendix F of TR-55. | R4: C0 : | S4: 2.55323 | T4: 2.46532 | U4: 2.41896 | V4: 2.36409 | W4: 2.29238 | X4: 2.20282
F5: 1-year storm | G5: 2-year storm | H5: 10-year storm | O5: The formulas automatically | R5: C1 : | S5: -0.61512 | T5: -0.62257 | U5: -0.61594 | V5: -0.59857 | W5: -0.57005 | X5: -0.51599
E6: =IF(SUM(F6:H6)=0,"→","") -> → | F6: 0 | G6: 0 | H6: 0 | I6: =IF(SUM(F6:H6)=0,"←","") -> ← | O6: interpolate for C0, C1 & C2. | R6: C2 : | S6: -0.16403 | T6: -0.11657 | U6: -0.0882 | V6: -0.05621 | W6: -0.02281 | X6: -0.01259
C9: *Notes (see below):
C10: [1] The curve numbers and runoff volumes computed in this spreadsheet for each drainage area are limited in their applicability for determining and demonstrating compliance with water quantity requirements. See VRRM User's Guide and Documentation for additional information.
C13: [2] Runoff Volume (RV) for pre- and post-development drainage areas must be in volumetric units (e.g., acre-feet or cubic feet) when using the Energy Balance Equation. Runoff measured in watershed-inches and shown in the spreadsheet as RV(watershed-inch) can only be used in the Energy Balance Equation when the pre- and post-development drainage areas are equal. Otherwise RV(watershed-inch) must be multiplied by the drainage area.
C17: [3] Adjusted CNs are based on runoff reduction volumes as calculated in D.A. tabs. An alternative CN adjustment calculation for Vegetated Roofs is included in BMP specification No. 5.
O20: 1-year | P20: 2-year | Q20: 10-year
C21: Drainage Area Curve Numbers and Runoff Depths* Curve numbers (CN, CNadj) and runoff depths (RVDeveloped) are computed with and without reduction practices. | O21: v | R21: CN | S21: S
C23: Drainage Area A | F23: A Soils | G23: B Soils | H23: C Soils | I23: D Soils | K23: Total Area (acres): | L23: ='D.A. A'!F8 -> 0 | P23: =IF(G$6>0.2*($S23),(G$6-0.2*($S23))^2/(G$6+0.8*($S23)),0) -> 0 | Q23: =IF(H$6>0.2*($S23),(H$6-0.2*($S23))^2/(H$6+0.8*($S23)),0) -> 0 | R23: 40 | S23: =IF(R23>0,1000/R23-10,1000) -> 15
C24: Forest/Open Space -- undisturbed, protected forest/open space or reforested land | E24: Area (acres) | F24: ='D.A. A'!B$5 -> 0 | G24: ='D.A. A'!C$5 -> 0 | H24: ='D.A. A'!D$5 -> 0 | I24: ='D.A. A'!E$5 -> 0 | K24: Runoff Reduction Volume (ft3): | P24: 0 | Q24: 0 | R24: =R23+0.1 -> 40.1 | S24: 14.93765586
E25: CN | F25: 30 | G25: 55 | H25: 70 | I25: 77 | L25: ='D.A. A'!F60 -> 0 | P25: 0 | Q25: 0 | R25: 40.2 | S25: 14.87562189
C26: Managed Turf -- disturbed, graded for yards or other turf to be mowed/managed | E26: Area (acres) | F26: ='D.A. A'!B$6 -> 0 | G26: ='D.A. A'!C$6 -> 0 | H26: ='D.A. A'!D$6 -> 0 | I26: ='D.A. A'!E$6 -> 0 | P26: 0 | Q26: 0 | R26: 40.3 | S26: 14.81389578
E27: CN | F27: 39 | G27: 61 | H27: 74 | I27: 80 | P27: 0 | Q27: 0 | R27: 40.4 | S27: 14.75247525
C28: Impervious Cover | E28: Area (acres) | F28: ='D.A. A'!B$7 -> 0 | G28: ='D.A. A'!C$7 -> 0 | H28: ='D.A. A'!D$7 -> 0 | I28: ='D.A. A'!E$7 -> 0 | P28: 0 | Q28: 0 | R28: 40.5 | S28: 14.69135802
E29: CN | F29: 98 | G29: 98 | H29: 98 | I29: 98 | P29: 0 | Q29: 0 | R29: 40.6 | S29: 14.63054187
I30: CN(D.A. A) | P30: 0 | Q30: 0 | R30: 40.7 | S30: 14.57002457 | V30: Drainage Area A:
I31: =ROUND(IF(L23>0,(SUMPRODUCT(F24:I24,F25:I25)+SUMPRODUCT(F26:I26,F27:I27)+SUMPRODUCT(F28:I28,F29:I29))/L23,0),0) -> 0 | P31: 0 | Q31: 0 | R31: 40.8 | S31: 14.50980392
F32: 1-year storm | G32: 2-year storm | H32: 10-year storm | P32: 0 | Q32: 0 | R32: 40.9 | S32: 14.44987775 | V32: S (in)
C33: RVDeveloped (watershed-inch) with no Runoff Reduction* | F33: =IF(F$6>0.2*($V33),(F$6-0.2*($V33))^2/(F$6+0.8*($V33)),0) -> 0 | G33: =IF(G$6>0.2*($V33),(G$6-0.2*($V33))^2/(G$6+0.8*($V33)),0) -> 0 | H33: =IF(H$6>0.2*($V33),(H$6-0.2*($V33))^2/(H$6+0.8*($V33)),0) -> 0 | P33: 0 | Q33: 0 | R33: 41 | S33: 14.3902439 | V33: =IF(I31>0,1000/I31-10,1000) -> 1000
C34: RVDeveloped (watershed-inch) with Runoff Reduction* | F34: =IF($L23>0,IF(F33>0,(IFERROR(MAX(F33-$L25/3630/$L23,0),"Check Areas!")),F33),F33) -> 0 | G34: =IF($L23>0,IF(G33>0,(IFERROR(MAX(G33-$L25/3630/$L23,0),"Check Areas!")),G33),G33) -> 0 | H34: =IF($L23>0,IF(H33>0,(IFERROR(MAX(H33-$L25/3630/$L23,0),"Check Areas!")),H33),H33) -> 0 | P34: 0 | Q34: 0 | R34: 41.1 | S34: 14.33090024
E35: Adjusted CN* | F35: =IF($L23>0,VLOOKUP(F34,O$23:$S$666,4),0) -> 0 | G35: =IF($L23>0,VLOOKUP(G34,P$23:$S$666,3),0) -> 0 | H35: =IF($L23>0,VLOOKUP(H34,Q$23:$S$666,2),0) -> 0 | P35: 0 | Q35: 0 | R35: 41.2 | S35: 14.27184466 | AC35: ….
E36: *See Notes above | P36: 0 | Q36: 0 | R36: 41.3 | S36: 14.21307506
C37: Drainage Area B | F37: A Soils | G37: B Soils | H37: C Soils | I37: D Soils | K37: Total Area (acres): | L37: ='D.A. B'!F8 -> 0 | P37: 0 | Q37: 0 | R37: 41.4 | S37: 14.15458937
C38: Forest/Open Space -- undisturbed, protected forest/open space or reforested land | E38: Area (acres) | F38: ='D.A. B'!B$5 -> 0 | G38: ='D.A. B'!C$5 -> 0 | H38: ='D.A. B'!D$5 -> 0 | I38: ='D.A. B'!E$5 -> 0 | K38: Runoff Reduction Volume (ft3): | P38: 0 | Q38: 0 | R38: 41.5 | S38: 14.09638554
E39: CN | F39: 30 | G39: 55 | H39: 70 | I39: 77 | L39: ='D.A. B'!F60 -> 0 | P39: 0 | Q39: 0 | R39: 41.6 | S39: 14.03846154
C40: Managed Turf -- disturbed, graded for yards or other turf to be mowed/managed | E40: Area (acres) | F40: ='D.A. B'!B$6 -> 0 | G40: ='D.A. B'!C$6 -> 0 | H40: ='D.A. B'!D$6 -> 0 | I40: ='D.A. B'!E$6 -> 0 | P40: 0 | Q40: 0 | R40: 41.7 | S40: 13.98081535
E41: CN | F41: 39 | G41: 61 | H41: 74 | I41: 80 | P41: 0 | Q41: 0 | R41: 41.8 | S41: 13.92344498
C42: Impervious Cover | E42: Area (acres) | F42: ='D.A. B'!B$7 -> 0 | G42: ='D.A. B'!C$7 -> 0 | H42: ='D.A. B'!D$7 -> 0 | I42: ='D.A. B'!E$7 -> 0 | P42: 0 | Q42: 0 | R42: 41.9 | S42: 13.86634845
E43: CN | F43: 98 | G43: 98 | H43: 98 | I43: 98 | P43: 0 | Q43: 0 | R43: 42 | S43: 13.80952381
I44: CN(D.A. B) | P44: 0 | Q44: 0 | R44: 42.1 | S44: 13.75296912 | V44: Drainage Area B:
I45: =ROUND(IF(L37>0,(SUMPRODUCT(F38:I38,F39:I39)+SUMPRODUCT(F40:I40,F41:I41)+SUMPRODUCT(F42:I42,F43:I43))/L37,0),0) -> 0 | P45: 0 | Q45: 0 | R45: 42.2 | S45: 13.69668246
F46: 1-year storm | G46: 2-year storm | H46: 10-year storm | P46: 0 | Q46: 0 | R46: 42.3 | S46: 13.64066194 | V46: S (in)
C47: RVDeveloped (watershed-inch) with no Runoff Reduction* | F47: =IF(F$6>0.2*($V47),(F$6-0.2*($V47))^2/(F$6+0.8*($V47)),0) -> 0 | G47: =IF(G$6>0.2*($V47),(G$6-0.2*($V47))^2/(G$6+0.8*($V47)),0) -> 0 | H47: =IF(H$6>0.2*($V47),(H$6-0.2*($V47))^2/(H$6+0.8*($V47)),0) -> 0 | P47: 0 | Q47: 0 | R47: 42.4 | S47: 13.58490566 | V47: =IF(I45>0,1000/I45-10,1000) -> 1000
C48: RVDeveloped (watershed-inch) with Runoff Reduction* | F48: =IF(F47>0,IF($L37>0,(IFERROR(MAX(F47-$L39/3630/$L37,0),"Check Areas!")),F47),F47) -> 0 | G48: =IF($L37>0,IF(G47>0,(IFERROR(MAX(G47-$L39/3630/$L37,0),"Check Areas!")),G47),G47) -> 0 | H48: =IF($L37>0,IF(H47>0,(IFERROR(MAX(H47-$L39/3630/$L37,0),"Check Areas!")),H47),H47) -> 0 | P48: 0 | Q48: 0 | R48: 42.5 | S48: 13.52941176
E49: Adjusted CN* | F49: =IF($L37>0,VLOOKUP(F48,O$23:$S$666,4),0) -> 0 | G49: =IF($L37>0,VLOOKUP(G48,P$23:$S$666,3),0) -> 0 | H49: =IF($L37>0,VLOOKUP(H48,Q$23:$S$666,2),0) -> 0 | O49: =IF(F$6>0.2*($S49),(F$6-0.2*($S49))^2/(F$6+0.8*($S49)),0) -> 0 | P49: 0 | Q49: 0 | R49: 42.6 | S49: 13.4741784
E50: *See Notes above | O50: 0 | P50: 0 | Q50: 0 | R50: 42.7 | S50: 13.41920375
C51: Drainage Area C | F51: A Soils | G51: B Soils | H51: C Soils | I51: D Soils | K51: Total Area (acres): | L51: ='D.A. C'!F8 -> 0 | O51: 0 | P51: 0 | Q51: 0 | R51: 42.8 | S51: 13.36448598
C52: Forest/Open Space -- undisturbed, protected forest/open space or reforested land | E52: Area (acres) | F52: ='D.A. C'!B$5 -> 0 | G52: ='D.A. C'!C$5 -> 0 | H52: ='D.A. C'!D$5 -> 0 | I52: ='D.A. C'!E$5 -> 0 | K52: Runoff Reduction Volume (ft3): | O52: 0 | P52: 0 | Q52: 0 | R52: 42.9 | S52: 13.31002331
E53: CN | F53: 30 | G53: 55 | H53: 70 | I53: 77 | L53: ='D.A. C'!F60 -> 0 | O53: 0 | P53: 0 | Q53: 0 | R53: 43 | S53: 13.25581395
C54: Managed Turf -- disturbed, graded for yards or other turf to be mowed/managed | E54: Area (acres) | F54: ='D.A. C'!B$6 -> 0 | G54: ='D.A. C'!C$6 -> 0 | H54: ='D.A. C'!D$6 -> 0 | I54: ='D.A. C'!E$6 -> 0 | O54: 0 | P54: 0 | Q54: 0 | R54: 43.1 | S54: 13.20185615
E55: CN | F55: 39 | G55: 61 | H55: 74 | I55: 80 | O55: 0 | P55: =IF(G$6>0.2*($S55),(G$6-0.2*($S55))^2/(G$6+0.8*($S55)),0) -> 0 | Q55: =IF(H$6>0.2*($S55),(H$6-0.2*($S55))^2/(H$6+0.8*($S55)),0) -> 0 | R55: 43.2 | S55: =IF(R55>0,1000/R55-10,1000) -> 13.14814815
C56: Impervious Cover | E56: Area (acres) | F56: ='D.A. C'!B$7 -> 0 | G56: ='D.A. C'!C$7 -> 0 | H56: ='D.A. C'!D$7 -> 0 | I56: ='D.A. C'!E$7 -> 0 | O56: 0 | P56: 0 | Q56: 0 | R56: =R55+0.1 -> 43.3 | S56: 13.09468822
E57: CN | F57: 98 | G57: 98 | H57: 98 | I57: 98 | O57: 0 | P57: 0 | Q57: 0 | R57: 43.4 | S57: 13.04147465
I58: CN(D.A. C) | O58: 0 | P58: 0 | Q58: 0 | R58: 43.5 | S58: 12.98850575 | V58: Drainage Area C:
I59: =ROUND(IF(L51>0,(SUMPRODUCT(F52:I52,F53:I53)+SUMPRODUCT(F54:I54,F55:I55)+SUMPRODUCT(F56:I56,F57:I57))/L51,0),0) -> 0 | O59: 0 | P59: 0 | Q59: 0 | R59: 43.6 | S59: 12.93577982
F60: 1-year storm | G60: 2-year storm | H60: 10-year storm | O60: 0 | P60: 0 | Q60: 0 | R60: 43.7 | S60: 12.88329519 | V60: S (in)
C61: RVDeveloped (watershed-inch) with no Runoff Reduction* | F61: =IF(F$6>0.2*($V61),(F$6-0.2*($V61))^2/(F$6+0.8*($V61)),0) -> 0 | G61: =IF(G$6>0.2*($V61),(G$6-0.2*($V61))^2/(G$6+0.8*($V61)),0) -> 0 | H61: =IF(H$6>0.2*($V61),(H$6-0.2*($V61))^2/(H$6+0.8*($V61)),0) -> 0 | O61: 0 | P61: 0 | Q61: 0 | R61: 43.8 | S61: 12.83105023 | V61: =IF(I59>0,1000/I59-10,1000) -> 1000
C62: RVDeveloped (watershed-inch) with Runoff Reduction* | F62: =IF($L51>0,IF(F61>0,(IFERROR(MAX(F61-$L53/3630/$L51,0),"Check Areas!")),F61),F61) -> 0 | G62: =IF($L51>0,IF(G61>0,(IFERROR(MAX(G61-$L53/3630/$L51,0),"Check Areas!")),G61),G61) -> 0 | H62: =IF($L51>0,IF(H61>0,(IFERROR(MAX(H61-$L53/3630/$L51,0),"Check Areas!")),H61),H61) -> 0 | O62: 0 | P62: 0 | Q62: 0 | R62: 43.9 | S62: 12.77904328
E63: Adjusted CN* | F63: =IF($L51>0,VLOOKUP(F62,O$23:$S$666,4),0) -> 0 | G63: =IF($L51>0,VLOOKUP(G62,P$23:$S$666,3),0) -> 0 | H63: =IF($L51>0,VLOOKUP(H62,Q$23:$S$666,2),0) -> 0 | O63: 0 | P63: 0 | Q63: 0 | R63: 44 | S63: 12.72727273
E64: *See Notes above | O64: 0 | P64: 0 | Q64: 0 | R64: 44.1 | S64: 12.67573696
C65: Drainage Area D | F65: A Soils | G65: B Soils | H65: C Soils | I65: D Soils | K65: Total Area (acres): | L65: ='D.A. D'!F8 -> 0 | O65: 0 | P65: 0 | Q65: 0 | R65: 44.2 | S65: 12.62443439
C66: Forest/Open Space -- undisturbed, protected forest/open space or reforested land | E66: Area (acres) | F66: ='D.A. D'!B$5 -> 0 | G66: ='D.A. D'!C$5 -> 0 | H66: ='D.A. D'!D$5 -> 0 | I66: ='D.A. D'!E$5 -> 0 | K66: Runoff Reduction Volume (ft3): | O66: 0 | P66: 0 | Q66: 0 | R66: 44.3 | S66: 12.57336343
E67: CN | F67: 30 | G67: 55 | H67: 70 | I67: 77 | L67: ='D.A. D'!F60 -> 0 | O67: 0 | P67: 0 | Q67: 0 | R67: 44.4 | S67: 12.52252252
C68: Managed Turf -- disturbed, graded for yards or other turf to be mowed/managed | E68: Area (acres) | F68: ='D.A. D'!B$6 -> 0 | G68: ='D.A. D'!C$6 -> 0 | H68: ='D.A. D'!D$6 -> 0 | I68: ='D.A. D'!E$6 -> 0 | O68: 0 | P68: 0 | Q68: 0 | R68: 44.5 | S68: 12.47191011
E69: CN | F69: 39 | G69: 61 | H69: 74 | I69: 80 | O69: 0 | P69: 0 | Q69: 0 | R69: 44.6 | S69: 12.42152466
C70: Impervious Cover | E70: Area (acres) | F70: ='D.A. D'!B$7 -> 0 | G70: ='D.A. D'!C$7 -> 0 | H70: ='D.A. D'!D$7 -> 0 | I70: ='D.A. D'!E$7 -> 0 | O70: 0 | P70: 0 | Q70: 0 | R70: 44.7 | S70: 12.37136465
E71: CN | F71: 98 | G71: 98 | H71: 98 | I71: 98 | O71: 0 | P71: 0 | Q71: 0 | R71: 44.8 | S71: 12.32142857
I72: CN(D.A. D) | O72: 0 | P72: 0 | Q72: 0 | R72: 44.9 | S72: 12.27171492 | V72: Drainage Area D:
I73: =ROUND(IF(L65>0,(SUMPRODUCT(F66:I66,F67:I67)+SUMPRODUCT(F68:I68,F69:I69)+SUMPRODUCT(F70:I70,F71:I71))/L65,0),0) -> 0 | O73: 0 | P73: 0 | Q73: 0 | R73: 45 | S73: 12.22222222
F74: 1-year storm | G74: 2-year storm | H74: 10-year storm | O74: 0 | P74: 0 | Q74: 0 | R74: 45.1 | S74: 12.172949 | V74: S (in)
